Workbook

Sheet Contents
F2: =Workbook.Title -> CPI-X Temporary Conditions Model - Non-confidential
A4: Information
A6: Title | B6: CPI-X Temporary Conditions Model - Non-confidential
A7: Objective | B7: Forecasting the costs and revenues of business connectivity services for the purpose of setting charge controls
A8: Status | B8: Approved for release
A11: Contents
A13: Sheet | B13: Description
A14: Contents | B14: This contents sheet
A15: Style Guidelines | B15: A guide to the styles used in this workbook
A16: Terms and Conditions | B16: The terms and conditions on which OFCOM is making available the model
A17: Model map | B17: Diagram of the structure of the model
A18: Control panel | B18: Control sheet for adjusting certain parameters and inputs
A19: Scenarios | B19: Contains a range of scenarios which involve different assumptions underlying the charge control model's calculations
A20: <<Names mapping>> | B20: Blank divider sheet
A21: Lists | B21: Sets out a series of lists used as named ranges in the formulae
A22: <<Modelling starting values>> | B22: Blank divider sheet
A23: Input data --> | B23: Blank divider sheet
A24: Comp_CapCosts | B24: Component capital cost inputs
A25: Comp_OpexCosts | B25: Component operating cost inputs
A26: Serv_CapCosts | B26: Service capital cost inputs
A27: Serv_OpexCosts | B27: Service operating cost inputs
A28: Summary--> | B28: Blank divider sheet
A29: ModelStartValues_NonAdmin | B29: Summarises non-admin base year costs
A30: ModelStartValues_Admin | B30: Summarises admin base year costs
A31: ModelStartValues_TotalSummary | B31: Summarises non-admin and admin base year costs
A32: <<Volume forecasts>> | B32: Blank divider sheet
A33: FC.ServVolumes | B33: Service volume forecast inputs, excluding passives
A34: FC.ServActiveVolumes | B34: Service volume forecast inputs, including impact of passives
A35: MEAmapping | B35: Mapping of MEA services
A36: FC.ServMEAVolumes | B36: Service volume forecast inputs, including impact of passives and MEA assumption
A37: Component volumes --> | B37: Blank divider sheet
A38: Volume_UFs | B38: Volume usage factor inputs
A39: FC.CompVolumes | B39: Component volume forecasts
A40: <<Other inputs>> | B40: Blank divider sheet
A41: AssetLives | B41: Asset life assumptions
A42: InputPriceChanges | B42: Input price change assumptions
A43: AVEs | B43: Asset-volume elasticity assumptions
A44: CVEs | B44: Cost-volume elasticity assumptions
A45: Efficiency | B45: Efficiency assumptions
A46: Inflation | B46: Generalised inflation assumptions
A47: WACC | B47: Weighted average cost of capital assumption
A48: <<Forecasts, by component>> | B48: Blank divider sheet
A49: FC.Comp.RAV | B49: Component cost forecast: RAV
A50: FC.Comp.GRC | B50: Component cost forecast: GRC
A51: FC.Comp.Capex | B51: Component cost forecast: Capex
A52: FC.Comp.OCMdep | B52: Component cost forecast: OCM depreciation
A53: FC.Comp.NCA | B53: Component cost forecast: NCA
A54: FC.Comp.NRC | B54: Component cost forecast: NRC
A55: FC.Comp.HGL | B55: Component cost forecast: holding gains and losses
A56: FC.Comp.Pay | B56: Component cost forecast: pay opex
A57: FC.Comp.NonPay | B57: Component cost forecast: non-pay opex
A58: FC.Comp.Total | B58: Component cost forecast: total non-admin costs
A59: <<Usage factors>> | B59: Blank divider sheet
A60: Cost_UFs | B60: Cost usage factor inputs
A61: <<Forecasts, by service>> | B61: Blank divider sheet
A62: FC.Serv.RAV | B62: Service cost forecast: RAV
A63: FC.Serv.GRC | B63: Service cost forecast: GRC
A64: FC.Serv.Capex | B64: Service cost forecast: Capex
A65: FC.Serv.OCM | B65: Service cost forecast: OCM depreciation
A66: FC.Serv.NCA | B66: Service cost forecast: NCA
A67: FC.Serv.NRC | B67: Service cost forecast: NRC
A68: FC.Serv.HGL | B68: Service cost forecast: holding gains and losses
A69: FC.Serv.Pay | B69: Service cost forecast: pay opex
A70: FC.Serv.NonPay | B70: Service cost forecast: non-pay opex
A71: FC.Serv.Return | B71: Service cost forecast: return on capital employed
A72: <<Summary & analysis>> | B72: Blank divider sheet
A73: TotalCosts_Service | B73: Service cost forecast: total costs
A74: <<Starting prices>> | B74: Blank divider sheet
A75: StartPrices | B75: Input assumptions for starting charges
A76: <<X calculation>> | B76: Blank divider sheet
A77: BasketDesign | B77: Inputs to determine which services are in which charge control baskets
A78: Basket 1 --> | B78: Blank divider sheet
A79: Basket1Rev | B79: Basket 1 revenue forecasts
A80: Basket1Cost | B80: Basket 1 cost forecasts
A81: Basket 2 --> | B81: Blank divider sheet
A82: Basket2Rev | B82: Basket 2 revenue forecasts
A83: Basket2Cost | B83: Basket 2 cost forecasts
A84: Basket 3 --> | B84: Blank divider sheet
A85: Basket3Rev | B85: Basket 3 revenue forecasts
A86: Basket3Cost | B86: Basket 3 cost forecasts
A87: Basket 4 --> | B87: Blank divider sheet
A88: Basket4Rev | B88: Basket 4 revenue forecasts
A89: Basket4Cost | B89: Basket 4 cost forecasts
A90: Xcalculation | B90: Calculation of the value of X for each of the control baskets
A91: 1819 cost uplifts | B91: Uplifts to 2018/19 Ethernet basket costs to account for NDR decision and dark fibre remedy
A92: Geo adjustment | B92: Calculation of uplift to Ethernet basket csosts to account for removal of Birmingham, Glasgow and Leeds CBDs

Sheet Terms and Conditions
A1: The disclosure of this sheet is only permitted to those nominated individuals and individuals occupying the roles and functional areas (and their relevant external advisers, sub-contractors and agents) listed in Annex 2 of the Undertakings given by BT to Ofcom pursuant to the Enterprise Act 2002.
A2: Terms and conditions
A4: The terms and conditions on which OFCOM is making available the model are set out below.
A6: All right, title and interest in the provided model (the ‘Model’) constructed in Excel to calculate our values of X for the 2017 BCMR Temporary Conditions charge control are owned by OFCOM. Such title and interest is protected by United Kingdom intellectual property laws and international treaty provisions. While you may freely use the Model to understand the calculations used to derive our proposed values of X, it is not to be modified in any way or used for commercial gain or otherwise without the prior written permission of OFCOM.
A8: No representation or warranty is given as to the accuracy, completeness or correctness of the provided Model and it is provided 'as is'. It is provided without any representation or endorsement made and without warranty of any kind, whether express or implied, including but not limited to the implied warranties of satisfactory quality, fitness for a particular purpose, non-infringement, compatibility, security and accuracy.
A10: OFCOM does not accept any responsibility for any loss, disruption or damage to your data or your computer system which may occur whilst using the Model or material derived from the Model. OFCOM does not warrant that the functions contained in the Model will be uninterrupted or error free. Also, OFCOM does not warrant that defects will be corrected, or that the Model provided is free of viruses.
A12: In no event will OFCOM be liable for any loss or damage including, without limitation, indirect or consequential loss or damage, or any loss or damages whatsoever arising from use or loss of use of, data or profits arising out of or in connection with the use or otherwise of the provided Model. By using this Model, you agree to the above.
A14: These terms and conditions shall be covered by and construed in accordance with the laws of England and Wales. Any dispute arising under these terms and conditions shall be subject to the exclusive jurisdiction of the Courts of England and Wales.

Sheet Style Guidelines
A1: The disclosure of this sheet is only permitted to those nominated individuals and individuals occupying the roles and functional areas (and their relevant external advisers, sub-contractors and agents) listed in Annex 2 of the Undertakings given by BT to Ofcom pursuant to the Enterprise Act 2002.
A2: Style Guidelines
A4: Sheet key
B6: Model map | E6: Model map sheet
B8: Control & outputs | E8: Control panel and model output sheets
B10: Inputs | E10: Model input sheet, either linked to another workbook or contains hard-coded data
B12: Calculations | E12: Calculation sheet
B14: Divider 1 | E14: Blank divider sheet level 1
B16: Divider 2 | E16: Blank divider sheet level 2
A19: Input cell styles
B21: Input Parameter | C21: 300 | E21: Input parameter that can be changed by user
B23: Input Data 1 | C23: 100 | E23: Input data/label hard-coded in model
B25: Input Data 2 | C25: 150 | E25: Input data hard-coded in model
B27: Input Data 3 | C27: 300 | E27: Input data that is linked to another workbook
B29: Input Label 1 | C29: 100 | E29: Input lists that have been defined as named ranges
B31: Input Label 2 | C31: 100 | E31: Input label that is liked to cell in another sheet
B33: Calculated input data | C33: 100 | E33: Input that has been calculated from other inputs
B35: Input Blank | E35: Blank input cell, e.g. for running alternative scenarios
A38: Calculation & output cell styles
B40: Calculation 1 | C40: 100 | E40: Model calculation type 1
B42: Calculation 2 | C42: 100 | E42: Model calculation type 2 (likely using base year data)
B44: Calculation total | C44: 100 | E44: Total of model calculation cells
B46: Summary | C46: 100 | E46: Calculation of summary information
B48: Summary total | C48: 100 | E48: Total of summary calculation cells
B50: Output | C50: 100 | E50: Key calculation output in sheet / model
A53: Other cell styles
B55: List 1 | C55: List | E55: List that is linked to named range
B57: List 2 | C57: List | E57: List that has been calculated
B59: Named range | C59: Name | E59: Label for named range
B61: Note/source | C61: Note/source | E61: Note about / source for information on the sheet
B63: Index | C63: 1 | E63: Index numbering
B65: Check | C65: 100 | E65: Check calculation
B67: Redacted input data | C67: Removed | E67: Input data that is confidential and has been removed
B69: Randomised data | E69: Data that has been randomised by +/- 20% for confidentiality purposes
A71: Heading styles
B73: H1 | C73: Title | E73: Level 1
B75: H2 | C75: Title | E75: Level 2
B77: H3 | C77: Title | E77: Level 3
B79: H4 | C79: Title | E79: Level 4

Sheet Model map
A1: The disclosure of this sheet is only permitted to those nominated individuals and individuals occupying the roles and functional areas (and their relevant external advisers, sub-contractors and agents) listed in Annex 2 of the Undertakings given by BT to Ofcom pursuant to the Enterprise Act 2002.
A2: Model map

Sheet Control panel
A1: The disclosure of this sheet is only permitted to those nominated individuals and individuals occupying the roles and functional areas (and their relevant external advisers, sub-contractors and agents) listed in Annex 2 of the Undertakings given by BT to Ofcom pursuant to the Enterprise Act 2002.
A2: Control Panel
D4: Options | E4: Description | G4: Selected options
A5: Basket design
A7: =IF(ISBLANK(B7),"",MAX($A$6:A6)+1) -> 1 | B7: Choose basket design scenario | D7: 1 | E7: =BasketDesign!W5 -> BasketOption_1 | G7: =INDEX(Scenarios!$F:$F,MATCH(A7,Scenarios!$A:$A,0)) -> 1 | H7: =INDEX(E7:E9,MATCH(G7,D7:D9,0)) -> BasketOption_1 | K7: Selected scenario | L7: =Scenarios!F6 -> Base case
A8: =IF(ISBLANK(B8),"",MAX($A$6:A7)+1) ->  | D8: 2 | E8: =BasketDesign!AC5 -> BasketOption_2 | G8: Basket_scenario
A9: =IF(ISBLANK(B9),"",MAX($A$6:A8)+1) ->  | D9: 3 | E9: =BasketDesign!AI5 -> BasketOption_3
J10: Model results summary | M10: NB. Calculated results different to Temporary Conditions statement because non-confidential model uses data that has been randomised by +/- 20%
A11: Volume forecasts | J11: Units: £m
A12: =IF(ISBLANK(B12),"",MAX($A$6:A11)+1) -> 
A13: =IF(ISBLANK(B13),"",MAX($A$6:A12)+1) -> 2 | B13: Choose standard volume forecast | D13: 1 | E13: =FC.ServVolumes!W9 -> StandVolFC_1 | G13: =INDEX(Scenarios!$F:$F,MATCH(A13,Scenarios!$A:$A,0)) -> 1 | H13: =INDEX($E$13:$E$15,MATCH(Volume_scenario,$D$13:$D$15,0)) -> StandVolFC_1 | J13: 1 | K13: =Xcalculation!$F$4 -> TI Basket | L13: =List_Years -> 2014/15 | M13: 2015/16 | N13: 2016/17 | O13: 2017/18 | P13: 2018/19
B14: (if not assuming migration to passives) | D14: 2 | E14: =FC.ServVolumes!AE9 -> StandVolFC_2 | G14: Volume_scenario | K14: Revenues | L14: =Xcalculation!F19 -> 340.0008826 | M14: =Xcalculation!G19 -> 271.2126628 | N14: =Xcalculation!H19 -> 227.0528547 | O14: =Xcalculation!I19 -> 175.7933598 | P14: =Xcalculation!J19 -> 145.3132623
A15: =IF(ISBLANK(B15),"",MAX($A$6:A14)+1) ->  | D15: 3 | E15: =FC.ServVolumes!AM9 -> StandVolFC_3 | K15: Operating costs | L15: =Xcalculation!F41 -> 113.5703878 | M15: =Xcalculation!G41 -> 100.2952552 | N15: =Xcalculation!H41 -> 84.61847537 | O15: =Xcalculation!I41 -> 72.8386485 | P15: =Xcalculation!J41 -> 65.74479054
A16: =IF(ISBLANK(B16),"",MAX($A$6:A15)+1) ->  | K16: Capital costs | L16: =SUM(Xcalculation!F42:F44) -> 99.95747531 | M16: =SUM(Xcalculation!G42:G44) -> 86.65004099 | N16: =SUM(Xcalculation!H42:H44) -> 73.72582925 | O16: =SUM(Xcalculation!I42:I44) -> 64.90272136 | P16: =SUM(Xcalculation!J42:J44) -> 59.51826405
A17: =IF(ISBLANK(B17),"",MAX($A$6:A16)+1) -> 3 | B17: Use MEA volumes? | D17: 1 | E17: TRUE | G17: =INDEX(Scenarios!$F:$F,MATCH(A17,Scenarios!$A:$A,0)) -> 1 | H17: =INDEX(E17:E18,MATCH(G17,D17:D18,0)) -> TRUE | O17: X | P17: =Xcalculation!J11 -> -0.0225
A18: =IF(ISBLANK(B18),"",MAX($A$6:A17)+1) ->  | D18: 2 | E18: FALSE | G18: MEA.On_scenario
A19: =IF(ISBLANK(B19),"",MAX($A$6:A18)+1) ->  | J19: 2 | K19: =Xcalculation!N4 -> Ethernet Basket | L19: =List_Years -> 2014/15 | M19: 2015/16 | N19: 2016/17 | O19: 2017/18 | P19: 2018/19
A20: =IF(ISBLANK(B20),"",MAX($A$6:A19)+1) -> 4 | B20: MEA mapping | D20: 1 | E20: =INDEX(MEAmapping!$H$9:$J$9,MATCH('Control panel'!D20,MEAmapping!$H$8:$J$8,0)) -> Base case | G20: =INDEX(Scenarios!$F:$F,MATCH(A20,Scenarios!$A:$A,0)) -> 1 | H20: =INDEX(E20:E22,MATCH(G20,D20:D22,0)) -> Base case | K20: Revenues | L20: =Xcalculation!N19 -> 696.9501811 | M20: =Xcalculation!O19 -> 686.7090664 | N20: =Xcalculation!P19 -> 700.5894857 | O20: =Xcalculation!Q19 -> 738.9080345 | P20: =Xcalculation!R19 -> 641.6007027
A21: =IF(ISBLANK(B21),"",MAX($A$6:A20)+1) ->  | D21: 2 | E21: =INDEX(MEAmapping!$H$9:$J$9,MATCH('Control panel'!D21,MEAmapping!$H$8:$J$8,0)) -> <Enter scenario name> | G21: MEA.Map_scenario | K21: Operating costs | L21: =Xcalculation!N41 -> 148.0524041 | M21: =Xcalculation!O41 -> 144.0094462 | N21: =Xcalculation!P41 -> 143.9271456 | O21: =Xcalculation!Q41 -> 142.1005403 | P21: =Xcalculation!R41 -> 115.6254669
A22: =IF(ISBLANK(B22),"",MAX($A$6:A21)+1) ->  | D22: 3 | E22: =INDEX(MEAmapping!$H$9:$J$9,MATCH('Control panel'!D22,MEAmapping!$H$8:$J$8,0)) -> <Enter scenario name> | K22: Capital costs | L22: =SUM(Xcalculation!N42:N44) -> 301.8422021 | M22: =SUM(Xcalculation!O42:O44) -> 286.6012429 | N22: =SUM(Xcalculation!P42:P44) -> 278.9399974 | O22: =SUM(Xcalculation!Q42:Q44) -> 275.38533 | P22: =SUM(Xcalculation!R42:R44) -> 234.4645709
A23: =IF(ISBLANK(B23),"",MAX($A$6:A22)+1) ->  | O23: X | P23: =Xcalculation!R11 -> -0.1525
A24: =IF(ISBLANK(B24),"",MAX($A$6:A23)+1) -> 5 | B24: Use volumes that include passives impact? | D24: 1 | E24: TRUE | G24: =INDEX(Scenarios!$F:$F,MATCH(A24,Scenarios!$A:$A,0)) -> 1 | H24: =INDEX(E24:E25,MATCH(G24,D24:D25,0)) -> TRUE
A25: =IF(ISBLANK(B25),"",MAX($A$6:A24)+1) ->  | D25: 2 | E25: FALSE | G25: Volume.Passives_scenario | J25: 3 | K25: ="<"&Xcalculation!V4&">" -> <Basket not used> | L25: =List_Years -> 2014/15 | M25: 2015/16 | N25: 2016/17 | O25: 2017/18 | P25: 2018/19
A26: =IF(ISBLANK(B26),"",MAX($A$6:A25)+1) ->  | K26: Revenues | L26: =Xcalculation!V19 -> 0 | M26: =Xcalculation!W19 -> 0 | N26: =Xcalculation!X19 -> 0 | O26: =Xcalculation!Y19 -> 0 | P26: =Xcalculation!Z19 -> 0
A27: =IF(ISBLANK(B27),"",MAX($A$6:A26)+1) -> 6 | B27: Choose actives volume forecast | D27: 1 | E27: =FC.ServActiveVolumes!U12 -> ActiveVolFC_1 | G27: =INDEX(Scenarios!$F:$F,MATCH(A27,Scenarios!$A:$A,0)) -> 1 | H27: =INDEX($E$27:$E$30,MATCH(ActVolume_scenario,$D$27:$D$30,0)) -> ActiveVolFC_1 | K27: Operating costs | L27: =Xcalculation!V41 -> 0 | M27: =Xcalculation!W41 -> 0 | N27: =Xcalculation!X41 -> 0 | O27: =Xcalculation!Y41 -> 0 | P27: =Xcalculation!Z41 -> 0
A28: =IF(ISBLANK(B28),"",MAX($A$6:A27)+1) ->  | D28: 2 | E28: =FC.ServActiveVolumes!AC12 -> ActiveVolFC_2 | G28: ActVolume_scenario | K28: Capital costs | L28: =SUM(Xcalculation!V42:V44) -> 0 | M28: =SUM(Xcalculation!W42:W44) -> 0 | N28: =SUM(Xcalculation!X42:X44) -> 0 | O28: =SUM(Xcalculation!Y42:Y44) -> 0 | P28: =SUM(Xcalculation!Z42:Z44) -> 0
A29: =IF(ISBLANK(B29),"",MAX($A$6:A28)+1) ->  | D29: 3 | E29: =FC.ServActiveVolumes!AK12 -> ActiveVolFC_3 | O29: X | P29: =Xcalculation!Z11 -> 0
D30: 4 | E30: =FC.ServActiveVolumes!AS12 -> ActiveVolFC_4
J31: 4 | K31: ="<"&Xcalculation!AD4&">" -> <Basket not used> | L31: =List_Years -> 2014/15 | M31: 2015/16 | N31: 2016/17 | O31: 2017/18 | P31: 2018/19
A32: =IF(ISBLANK(B32),"",MAX($A$6:A31)+1) -> 7 | B32: Legacy Ethernet conversion factor | D32: 1 | E32: 0.5 | G32: =INDEX(Scenarios!$F:$F,MATCH(A32,Scenarios!$A:$A,0)) -> 1 | H32: =INDEX(E32:E32,MATCH(G32,D32:D32,0)) -> 0.5 | K32: Revenues | L32: =Xcalculation!AD19 -> 0 | M32: =Xcalculation!AE19 -> 0 | N32: =Xcalculation!AF19 -> 0 | O32: =Xcalculation!AG19 -> 0 | P32: =Xcalculation!AH19 -> 0
A33: =IF(ISBLANK(B33),"",MAX($A$6:A32)+1) ->  | G33: LegacyConv_scenario | K33: Operating costs | L33: =Xcalculation!AD41 -> 0 | M33: =Xcalculation!AE41 -> 0 | N33: =Xcalculation!AF41 -> 0 | O33: =Xcalculation!AG41 -> 0 | P33: =Xcalculation!AH41 -> 0
A34: Asset lives | K34: Capital costs | L34: =SUM(Xcalculation!AD42:AD44) -> 0 | M34: =SUM(Xcalculation!AE42:AE44) -> 0 | N34: =SUM(Xcalculation!AF42:AF44) -> 0 | O34: =SUM(Xcalculation!AG42:AG44) -> 0 | P34: =SUM(Xcalculation!AH42:AH44) -> 0
A35: =IF(ISBLANK(B35),"",MAX($A$6:A34)+1) ->  | O35: X | P35: =Xcalculation!AH11 -> 0
A36: =IF(ISBLANK(B36),"",MAX($A$6:A35)+1) -> 8 | B36: Choose asset lives | D36: 1 | E36: =INDEX(AssetLives!$H$8:$J$8,MATCH($D36,AssetLives!$H$7:$J$7,0)) -> Implied asset life | G36: =INDEX(Scenarios!$F:$F,MATCH(A36,Scenarios!$A:$A,0)) -> 1 | H36: =INDEX(E36:E38,MATCH(G36,D36:D38,0)) -> Implied asset life
A37: =IF(ISBLANK(B37),"",MAX($A$6:A36)+1) ->  | D37: 2 | E37: =INDEX(AssetLives!$H$8:$J$8,MATCH($D37,AssetLives!$H$7:$J$7,0)) -> <Enter scenario name> | G37: AssetLife_scenario
A38: =IF(ISBLANK(B38),"",MAX($A$6:A37)+1) ->  | D38: 3 | E38: =INDEX(AssetLives!$H$8:$J$8,MATCH($D38,AssetLives!$H$7:$J$7,0)) -> <Enter scenario name>
A39: =IF(ISBLANK(B39),"",MAX($A$6:A38)+1) -> 
A40: Input Price Changes
A41: =IF(ISBLANK(B41),"",MAX($A$6:A40)+1) -> 
A42: =IF(ISBLANK(B42),"",MAX($A$6:A41)+1) -> 9 | B42: Choose Asset price change scenario | D42: 1 | E42: =InputPriceChanges!C19 -> Base case | G42: =INDEX(Scenarios!$F:$F,MATCH(A42,Scenarios!$A:$A,0)) -> 1 | H42: =INDEX(E42:E44,MATCH(G42,D42:D44,0)) -> Base case
A43: =IF(ISBLANK(B43),"",MAX($A$6:A42)+1) ->  | D43: 2 | E43: =InputPriceChanges!C22 -> <Enter scenario name> | G43: InputPriceChanges_scenario
A44: =IF(ISBLANK(B44),"",MAX($A$6:A43)+1) ->  | D44: 3 | E44: =InputPriceChanges!C23 -> <Enter scenario name>
A45: =IF(ISBLANK(B45),"",MAX($A$6:A44)+1) -> 
A46: =IF(ISBLANK(B46),"",MAX($A$6:A45)+1) -> 10 | B46: Cable: copper/fibre ratio | D46: 1 | E46: 0.01278399143 | G46: =INDEX(Scenarios!$F:$F,MATCH(A46,Scenarios!$A:$A,0)) -> 1 | H46: =INDEX(E46:E46,MATCH(G46,D46:D46,0)) -> 0.01278399143
A47: =IF(ISBLANK(B47),"",MAX($A$6:A46)+1) ->  | G47: CableSplit_copper.fibre
A48: =IF(ISBLANK(B48),"",MAX($A$6:A47)+1) -> 
A49: =IF(ISBLANK(B49),"",MAX($A$6:A48)+1) -> 11 | B49: Choose Pay opex price trend | D49: 1 | E49: =INDEX(InputPriceChanges!$C$34:$C$36,MATCH(D49,InputPriceChanges!$B$34:$B$36,0)) -> Base | G49: =INDEX(Scenarios!$F:$F,MATCH(A49,Scenarios!$A:$A,0)) -> 1 | H49: =INDEX(E49:E51,MATCH(G49,D49:D51,0)) -> Base
A50: =IF(ISBLANK(B50),"",MAX($A$6:A49)+1) ->  | D50: 2 | E50: =INDEX(InputPriceChanges!$C$34:$C$36,MATCH(D50,InputPriceChanges!$B$34:$B$36,0)) -> <Enter scenario name> | G50: Pay.Trend_scenario
A51: =IF(ISBLANK(B51),"",MAX($A$6:A50)+1) ->  | D51: 3 | E51: =INDEX(InputPriceChanges!$C$34:$C$36,MATCH(D51,InputPriceChanges!$B$34:$B$36,0)) -> <Enter scenario name>
A52: =IF(ISBLANK(B52),"",MAX($A$6:A51)+1) -> 
A53: =IF(ISBLANK(B53),"",MAX($A$6:A52)+1) -> 12 | B53: Choose Non Pay opex price trend | D53: 1 | E53: =INDEX(InputPriceChanges!$C$40:$C$42,MATCH(D53,InputPriceChanges!$B$40:$B$42,0)) -> Base | G53: =INDEX(Scenarios!$F:$F,MATCH(A53,Scenarios!$A:$A,0)) -> 1 | H53: =INDEX(E53:E55,MATCH(G53,D53:D55,0)) -> Base
A54: =IF(ISBLANK(B54),"",MAX($A$6:A53)+1) ->  | D54: 2 | E54: =INDEX(InputPriceChanges!$C$40:$C$42,MATCH(D54,InputPriceChanges!$B$40:$B$42,0)) -> <Enter scenario name> | G54: NonPay.Trend_scenario
A55: =IF(ISBLANK(B55),"",MAX($A$6:A54)+1) ->  | D55: 3 | E55: =INDEX(InputPriceChanges!$C$40:$C$42,MATCH(D55,InputPriceChanges!$B$40:$B$42,0)) -> <Enter scenario name>
A56: =IF(ISBLANK(B56),"",MAX($A$6:A55)+1) -> 
A57: AVEs
A58: =IF(ISBLANK(B58),"",MAX($A$6:A57)+1) -> 
A59: =IF(ISBLANK(B59),"",MAX($A$6:A58)+1) -> 13 | B59: Choose AVEs | D59: 1 | E59: =INDEX(AVEs!$H$5:$J$5,MATCH(D59,AVEs!$H$6:$J$6,0)) -> 2014/15 LRIC:FAC ratios | G59: =INDEX(Scenarios!$F:$F,MATCH(A59,Scenarios!$A:$A,0)) -> 1 | H59: =INDEX(E59:E61,MATCH(G59,D59:D61,0)) -> 2014/15 LRIC:FAC ratios
A60: =IF(ISBLANK(B60),"",MAX($A$6:A59)+1) ->  | D60: 2 | E60: =INDEX(AVEs!$H$5:$J$5,MATCH(D60,AVEs!$H$6:$J$6,0)) -> <Enter scenario name> | G60: AVEs_scenario
A61: =IF(ISBLANK(B61),"",MAX($A$6:A60)+1) ->  | D61: 3 | E61: =INDEX(AVEs!$H$5:$J$5,MATCH(D61,AVEs!$H$6:$J$6,0)) -> <Enter scenario name>
A62: =IF(ISBLANK(B62),"",MAX($A$6:A61)+1) -> 
A63: CVEs
A64: =IF(ISBLANK(B64),"",MAX($A$6:A63)+1) -> 
A65: =IF(ISBLANK(B65),"",MAX($A$6:A64)+1) -> 14 | B65: Choose CVEs | D65: 1 | E65: =INDEX(CVEs!$H$5:$J$5,MATCH(D65,CVEs!$H$6:$J$6,0)) -> 2014/15 LRIC:FAC ratios | G65: =INDEX(Scenarios!$F:$F,MATCH(A65,Scenarios!$A:$A,0)) -> 1 | H65: =INDEX(E65:E67,MATCH(G65,D65:D67,0)) -> 2014/15 LRIC:FAC ratios
A66: =IF(ISBLANK(B66),"",MAX($A$6:A65)+1) ->  | D66: 2 | E66: =INDEX(CVEs!$H$5:$J$5,MATCH(D66,CVEs!$H$6:$J$6,0)) -> <Enter scenario name> | G66: CVEs_scenario
A67: =IF(ISBLANK(B67),"",MAX($A$6:A66)+1) ->  | D67: 3 | E67: =INDEX(CVEs!$H$5:$J$5,MATCH(D67,CVEs!$H$6:$J$6,0)) -> <Enter scenario name>
A68: =IF(ISBLANK(B68),"",MAX($A$6:A67)+1) -> 
A70: Dynamic elasticities
A71: =IF(ISBLANK(B71),"",MAX($A$6:A70)+1) -> 
A72: =IF(ISBLANK(B72),"",MAX($A$6:A71)+1) -> 15 | B72: Enable dynamic elasticities? | D72: 1 | E72: TRUE | G72: =INDEX(Scenarios!$F:$F,MATCH(A72,Scenarios!$A:$A,0)) -> 1 | H72: =INDEX(E72:E73,MATCH(G72,D72:D73,0)) -> TRUE
A73: =IF(ISBLANK(B73),"",MAX($A$6:A72)+1) ->  | D73: 2 | E73: FALSE | G73: Dynamic_scenario
A74: =IF(ISBLANK(B74),"",MAX($A$6:A73)+1) -> 
A75: Efficiency assumptions
A76: =IF(ISBLANK(B76),"",MAX($A$6:A75)+1) -> 
A77: =IF(ISBLANK(B77),"",MAX($A$6:A76)+1) -> 16 | B77: Choose efficiency scenario | D77: 1 | E77: =INDEX(Efficiency!$G$7:$I$7,MATCH(D77,Efficiency!$G$8:$I$8,0)) -> Base case | G77: =INDEX(Scenarios!$F:$F,MATCH(A77,Scenarios!$A:$A,0)) -> 1 | H77: =INDEX(E77:E79,MATCH(G77,D77:D79,0)) -> Base case
A78: =IF(ISBLANK(B78),"",MAX($A$6:A77)+1) ->  | D78: 2 | E78: =INDEX(Efficiency!$G$7:$I$7,MATCH(D78,Efficiency!$G$8:$I$8,0)) -> <Enter scenario name> | G78: Efficiency_scenario
A79: =IF(ISBLANK(B79),"",MAX($A$6:A78)+1) ->  | D79: 3 | E79: =INDEX(Efficiency!$G$7:$I$7,MATCH(D79,Efficiency!$G$8:$I$8,0)) -> <Enter scenario name>
A80: =IF(ISBLANK(B80),"",MAX($A$6:A79)+1) -> 
A81: WACC assumptions
A82: =IF(ISBLANK(B82),"",MAX($A$6:A81)+1) -> 
A83: =IF(ISBLANK(B83),"",MAX($A$6:A82)+1) -> 17 | B83: Choose WACC | D83: 1 | E83: =INDEX(WACC!$C$8:$E$8,MATCH(D83,WACC!$C$9:$E$9,0)) -> Base case | G83: =INDEX(Scenarios!$F:$F,MATCH(A83,Scenarios!$A:$A,0)) -> 1 | H83: =INDEX(E83:E85,MATCH(G83,D83:D85,0)) -> Base case
A84: =IF(ISBLANK(B84),"",MAX($A$6:A83)+1) ->  | D84: 2 | E84: =INDEX(WACC!$C$8:$E$8,MATCH(D84,WACC!$C$9:$E$9,0)) -> <Enter scenario name> | G84: WACC_scenario
A85: =IF(ISBLANK(B85),"",MAX($A$6:A84)+1) ->  | D85: 3 | E85: =INDEX(WACC!$C$8:$E$8,MATCH(D85,WACC!$C$9:$E$9,0)) -> <Enter scenario name>
A86: =IF(ISBLANK(B86),"",MAX($A$6:A85)+1) -> 
A87: Inflation
A88: =IF(ISBLANK(B88),"",MAX($A$6:A87)+1) -> 
A89: =IF(ISBLANK(B89),"",MAX($A$6:A88)+1) -> 18 | B89: Choose CPI Forecast | D89: 1 | E89: =INDEX(Inflation!$B$10:$B$12,MATCH(D89,Inflation!$A$10:$A$12,0)) -> Base case | G89: =INDEX(Scenarios!$F:$F,MATCH(A89,Scenarios!$A:$A,0)) -> 1 | H89: =INDEX(E89:E91,MATCH(G89,D89:D91,0)) -> Base case
A90: =IF(ISBLANK(B90),"",MAX($A$6:A89)+1) ->  | D90: 2 | E90: =INDEX(Inflation!$B$10:$B$12,MATCH(D90,Inflation!$A$10:$A$12,0)) -> <Enter scenario> | G90: CPI_scenario
A91: =IF(ISBLANK(B91),"",MAX($A$6:A90)+1) ->  | D91: 3 | E91: =INDEX(Inflation!$B$10:$B$12,MATCH(D91,Inflation!$A$10:$A$12,0)) -> <Enter scenario>
A92: =IF(ISBLANK(B92),"",MAX($A$6:A91)+1) -> 
A93: =IF(ISBLANK(B93),"",MAX($A$6:A92)+1) -> 19 | B93: Choose RPI Forecast | D93: 1 | E93: =INDEX(Inflation!$B$15:$B$17,MATCH(D93,Inflation!$A$15:$A$17,0)) -> Base case | G93: =INDEX(Scenarios!$F:$F,MATCH(A93,Scenarios!$A:$A,0)) -> 1 | H93: =INDEX(E93:E95,MATCH(G93,D93:D95,0)) -> Base case
A94: =IF(ISBLANK(B94),"",MAX($A$6:A93)+1) ->  | D94: 2 | E94: =INDEX(Inflation!$B$15:$B$17,MATCH(D94,Inflation!$A$15:$A$17,0)) -> <Enter scenario> | G94: RPI_scenario
A95: =IF(ISBLANK(B95),"",MAX($A$6:A94)+1) ->  | D95: 3 | E95: =INDEX(Inflation!$B$15:$B$17,MATCH(D95,Inflation!$A$15:$A$17,0)) -> <Enter scenario>
A96: =IF(ISBLANK(B96),"",MAX($A$6:A95)+1) -> 
A97: TI basket cost forecasting
A98: =IF(ISBLANK(B98),"",MAX($A$6:A97)+1) -> 
A99: =IF(ISBLANK(B99),"",MAX($A$6:A98)+1) -> 20 | B99: Use (6) Supplementary cost forecasting model for TI? | D99: 1 | E99: TRUE | G99: =INDEX(Scenarios!$F:$F,MATCH(A99,Scenarios!$A:$A,0)) -> 1 | H99: =INDEX(E99:E100,MATCH(G99,D99:D100,0)) -> TRUE
D100: 2 | E100: FALSE | G100: TI_scenario
A102: NDR cost uplift
A103: =IF(ISBLANK(B103),"",MAX($A$6:A102)+1) -> 
A104: =IF(ISBLANK(B104),"",MAX($A$6:A103)+1) -> 21 | B104: Choose NDR scenario | D104: 1 | E104: ='1819 cost uplifts'!$D$5 -> 2016 LLCC | G104: =INDEX(Scenarios!$F:$F,MATCH(A104,Scenarios!$A:$A,0)) -> 2 | H104: =INDEX(E104:E105,MATCH(G104,D104:D105,0)) -> Temporary conditions
D105: 2 | E105: ='1819 cost uplifts'!$E$5 -> Temporary conditions | G105: NDR_scenario
A107: Dark fibre uplifts
A108: =IF(ISBLANK(B108),"",MAX($A$6:A107)+1) -> 
A109: =IF(ISBLANK(B109),"",MAX($A$6:A108)+1) -> 22 | B109: Choose dark fibre uplift scenario | D109: 1 | E109: ='1819 cost uplifts'!$D$5 -> 2016 LLCC | G109: =INDEX(Scenarios!$F:$F,MATCH(A109,Scenarios!$A:$A,0)) -> 2 | H109: =INDEX(E109:E110,MATCH(G109,D109:D110,0)) -> Temporary conditions
D110: 2 | E110: ='1819 cost uplifts'!$E$5 -> Temporary conditions | G110: DF_scenario
A112: Geographic cost uplifts
A113: =IF(ISBLANK(B113),"",MAX($A$6:A112)+1) -> 
A114: =IF(ISBLANK(B114),"",MAX($A$6:A113)+1) -> 23 | B114: Choose geographic cost uplift scenario | D114: 1 | E114: ='Geo adjustment'!F43 -> 2016 LLCC | G114: =INDEX(Scenarios!$F:$F,MATCH(A114,Scenarios!$A:$A,0)) -> 2 | H114: =INDEX(E114:E115,MATCH(G114,D114:D115,0)) -> Temporary conditions
D115: 2 | E115: ='Geo adjustment'!G43 -> Temporary conditions | G115: Geo_scenario
A117: Geometric average of inflation
A118: =IF(ISBLANK(B118),"",MAX($A$6:A117)+1) -> 
A119: =IF(ISBLANK(B119),"",MAX($A$6:A118)+1) -> 24 | B119: Choose geometric average of inflation scenario | D119: 1 | E119: =Inflation!G40 -> 2016 LLCC | G119: =INDEX(Scenarios!$F:$F,MATCH(A119,Scenarios!$A:$A,0)) -> 2 | H119: =INDEX(E119:E120,MATCH(G119,D119:D120,0)) -> Temporary conditions
D120: 2 | E120: =Inflation!H40 -> Temporary conditions | G120: Xinfl_scenario

Sheet Scenarios
A1: The disclosure of this sheet is only permitted to those nominated individuals and individuals occupying the roles and functional areas (and their relevant external advisers, sub-contractors and agents) listed in Annex 2 of the Undertakings given by BT to Ofcom pursuant to the Enterprise Act 2002.
A2: Scenario sheet
A3: This sheet contains a list of scenarios. Select a scenario to change the assumptions underlying the charge control model's calculations
E5: Select scenario | F5: 1 | H5: 1 | I5: 2 | J5: 3 | K5: 4 | L5: 5 | M5: 6 | N5: 7 | O5: 8 | P5: 9 | Q5: 10 | R5: 11 | S5: 12 | T5: 13 | U5: 14 | V5: 15 | W5: 16 | X5: 17 | Y5: 18 | Z5: 19 | AA5: 20 | AB5: 21 | AC5: 22 | AD5: 23 | AE5: 24 | AF5: 25 | AG5: 26 | AH5: 27 | AI5: 28 | AJ5: 29 | AK5: 30 | AL5: 31 | AM5: 32
F6: =INDEX(H6:AM6,,MATCH(F5,H5:AM5,0)) -> Base case | H6: Base case | I6: 2016 BCMR FS | J6: Include NDR uplift | K6: Revised core volumes | L6: Revised core and CBD volumes | M6: CBD unit cost uplift | N6: Revised dark fibre volumes | O6: Revised dark fibre uplifts | P6: <Enter scenario description> | Q6: <Enter scenario description> | R6: <Enter scenario description> | S6: <Enter scenario description> | T6: <Enter scenario description> | U6: <Enter scenario description> | V6: <Enter scenario description> | W6: <Enter scenario description> | X6: <Enter scenario description> | Y6: <Enter scenario description> | Z6: <Enter scenario description> | AA6: <Enter scenario description> | AB6: <Enter scenario description> | AC6: <Enter scenario description> | AD6: <Enter scenario description> | AE6: <Enter scenario description> | AF6: <Enter scenario description> | AG6: <Enter scenario description> | AH6: <Enter scenario description> | AI6: <Enter scenario description> | AJ6: <Enter scenario description> | AK6: <Enter scenario description> | AL6: <Enter scenario description> | AM6: <Enter scenario description>
F8: Selected
B9: Basket design
A10: =IF(ISBLANK((D10)),"",MAX($A9:A$9)+1) -> 1 | B10: =INDEX('Control panel'!$B:$B,MATCH(A10,'Control panel'!$A:$A,0)) -> Choose basket design scenario | C10: ="(1) "&OFFSET(INDIRECT(D10),0,-2)&"; (2) "&OFFSET(INDIRECT(D10),1,-2)&"; (3) "&OFFSET(INDIRECT(D10),2,-2) -> (1) BasketOption_1; (2) BasketOption_2; (3) BasketOption_3 | D10: Basket_scenario | F10: =INDEX(H10:AM10,,MATCH($F$5,H$5:AM$5,0)) -> 1 | H10: 1 | I10: 1 | J10: 1 | K10: 1 | L10: 1 | M10: 1 | N10: 1 | O10: 1
B12: Volume forecasts
A13: =IF(ISBLANK((D13)),"",MAX($A$9:A12)+1) -> 2 | B13: =INDEX('Control panel'!$B:$B,MATCH(A13,'Control panel'!$A:$A,0)) -> Choose standard volume forecast | C13: ="(1) "&OFFSET(INDIRECT(D13),0,-2)&"; (2) "&OFFSET(INDIRECT(D13),1,-2)&"; (3) "&OFFSET(INDIRECT(D13),2,-2) -> (1) StandVolFC_1; (2) StandVolFC_2; (3) StandVolFC_3 | D13: Volume_scenario | F13: =INDEX(H13:AM13,,MATCH($F$5,H$5:AM$5,0)) -> 1 | H13: 1 | I13: 3 | J13: 3 | K13: 2 | L13: 1 | M13: 1 | N13: 1 | O13: 1
A14: =IF(ISBLANK((D14)),"",MAX($A$9:A13)+1) -> 3 | B14: =INDEX('Control panel'!$B:$B,MATCH(A14,'Control panel'!$A:$A,0)) -> Use MEA volumes? | C14: ="(1) "&OFFSET(INDIRECT(D14),0,-2)&"; (2) "&OFFSET(INDIRECT(D14),1,-2) -> (1) TRUE; (2) FALSE | D14: MEA.On_scenario | F14: 1 | H14: 1 | I14: 1 | J14: 1 | K14: 1 | L14: 1 | M14: 1 | N14: 1 | O14: 1
A15: =IF(ISBLANK((D15)),"",MAX($A$9:A14)+1) -> 4 | B15: =INDEX('Control panel'!$B:$B,MATCH(A15,'Control panel'!$A:$A,0)) -> MEA mapping | C15: ="(1) "&OFFSET(INDIRECT(D15),0,-2)&"; (2) "&OFFSET(INDIRECT(D15),1,-2)&"; (3) "&OFFSET(INDIRECT(D15),2,-2) -> (1) Base case; (2) <Enter scenario name>; (3) <Enter scenario name> | D15: MEA.Map_scenario | F15: 1 | H15: 1 | I15: 1 | J15: 1 | K15: 1 | L15: 1 | M15: 1 | N15: 1 | O15: 1
A16: =IF(ISBLANK((D16)),"",MAX($A$9:A15)+1) -> 5 | B16: =INDEX('Control panel'!$B:$B,MATCH(A16,'Control panel'!$A:$A,0)) -> Use volumes that include passives impact? | C16: ="(1) "&OFFSET(INDIRECT(D16),0,-2)&"; (2) "&OFFSET(INDIRECT(D16),1,-2) -> (1) TRUE; (2) FALSE | D16: Volume.Passives_scenario | F16: 1 | H16: 1 | I16: 1 | J16: 1 | K16: 1 | L16: 1 | M16: 1 | N16: 1 | O16: 1
A17: =IF(ISBLANK((D17)),"",MAX($A$9:A16)+1) -> 6 | B17: =INDEX('Control panel'!$B:$B,MATCH(A17,'Control panel'!$A:$A,0)) -> Choose actives volume forecast | C17: ="(1) "&OFFSET(INDIRECT(D17),0,-2)&"; (2) "&OFFSET(INDIRECT(D17),1,-2)&"; (3) "&OFFSET(INDIRECT(D17),2,-2)&"; (4) "&OFFSET(INDIRECT(D17),3,-2) -> (1) ActiveVolFC_1; (2) ActiveVolFC_2; (3) ActiveVolFC_3; (4) ActiveVolFC_4 | D17: ActVolume_scenario | F17: 1 | H17: 1 | I17: 4 | J17: 4 | K17: 3 | L17: 2 | M17: 2 | N17: 1 | O17: 1
A18: =IF(ISBLANK((D18)),"",MAX($A$9:A17)+1) -> 7 | B18: =INDEX('Control panel'!$B:$B,MATCH(A18,'Control panel'!$A:$A,0)) -> Legacy Ethernet conversion factor | C18: ="(1) "&OFFSET(INDIRECT(D18),0,-2) -> (1) 0.5 | D18: LegacyConv_scenario | F18: 1 | H18: 1 | I18: 1 | J18: 1 | K18: 1 | L18: 1 | M18: 1 | N18: 1 | O18: 1
B20: Asset lives
A21: =IF(ISBLANK((D21)),"",MAX($A$9:A20)+1) -> 8 | B21: =INDEX('Control panel'!$B:$B,MATCH(A21,'Control panel'!$A:$A,0)) -> Choose asset lives | C21: ="(1) "&OFFSET(INDIRECT(D21),0,-2)&"; (2) "&OFFSET(INDIRECT(D21),1,-2)&"; (3) "&OFFSET(INDIRECT(D21),2,-2) -> (1) Implied asset life; (2) <Enter scenario name>; (3) <Enter scenario name> | D21: AssetLife_scenario | F21: =INDEX(H21:AM21,,MATCH($F$5,H$5:AM$5,0)) -> 1 | H21: 1 | I21: 1 | J21: 1 | K21: 1 | L21: 1 | M21: 1 | N21: 1 | O21: 1
B23: Input price changes
A24: =IF(ISBLANK((D24)),"",MAX($A$9:A23)+1) -> 9 | B24: =INDEX('Control panel'!$B:$B,MATCH(A24,'Control panel'!$A:$A,0)) -> Choose Asset price change scenario | C24: ="(1) "&OFFSET(INDIRECT(D24),0,-2)&"; (2) "&OFFSET(INDIRECT(D24),1,-2)&"; (3) "&OFFSET(INDIRECT(D24),2,-2) -> (1) Base case; (2) <Enter scenario name>; (3) <Enter scenario name> | D24: InputPriceChanges_scenario | F24: =INDEX(H24:AM24,,MATCH($F$5,H$5:AM$5,0)) -> 1 | H24: 1 | I24: 1 | J24: 1 | K24: 1 | L24: 1 | M24: 1 | N24: 1 | O24: 1
A25: =IF(ISBLANK((D25)),"",MAX($A$9:A24)+1) -> 10 | B25: =INDEX('Control panel'!$B:$B,MATCH(A25,'Control panel'!$A:$A,0)) -> Cable: copper/fibre ratio | C25: ="(1) "&OFFSET(INDIRECT(D25),0,-2) -> (1) 0.0127839914262087 | D25: CableSplit_copper.fibre | F25: =INDEX(H25:AM25,,MATCH($F$5,H$5:AM$5,0)) -> 1 | H25: 1 | I25: 1 | J25: 1 | K25: 1 | L25: 1 | M25: 1 | N25: 1 | O25: 1
A26: =IF(ISBLANK((D26)),"",MAX($A$9:A25)+1) -> 11 | B26: =INDEX('Control panel'!$B:$B,MATCH(A26,'Control panel'!$A:$A,0)) -> Choose Pay opex price trend | C26: ="(1) "&OFFSET(INDIRECT(D26),0,-2)&"; (2) "&OFFSET(INDIRECT(D26),1,-2)&"; (3) "&OFFSET(INDIRECT(D26),2,-2) -> (1) Base; (2) <Enter scenario name>; (3) <Enter scenario name> | D26: Pay.Trend_scenario | F26: =INDEX(H26:AM26,,MATCH($F$5,H$5:AM$5,0)) -> 1 | H26: 1 | I26: 1 | J26: 1 | K26: 1 | L26: 1 | M26: 1 | N26: 1 | O26: 1
A27: =IF(ISBLANK((D27)),"",MAX($A$9:A26)+1) -> 12 | B27: =INDEX('Control panel'!$B:$B,MATCH(A27,'Control panel'!$A:$A,0)) -> Choose Non Pay opex price trend | C27: ="(1) "&OFFSET(INDIRECT(D27),0,-2)&"; (2) "&OFFSET(INDIRECT(D27),1,-2)&"; (3) "&OFFSET(INDIRECT(D27),2,-2) -> (1) Base; (2) <Enter scenario name>; (3) <Enter scenario name> | D27: NonPay.Trend_scenario | F27: =INDEX(H27:AM27,,MATCH($F$5,H$5:AM$5,0)) -> 1 | H27: 1 | I27: 1 | J27: 1 | K27: 1 | L27: 1 | M27: 1 | N27: 1 | O27: 1
B29: AVEs
A30: =IF(ISBLANK((D30)),"",MAX($A$9:A29)+1) -> 13 | B30: =INDEX('Control panel'!$B:$B,MATCH(A30,'Control panel'!$A:$A,0)) -> Choose AVEs | C30: ="(1) "&OFFSET(INDIRECT(D30),0,-2)&"; (2) "&OFFSET(INDIRECT(D30),1,-2)&"; (3) "&OFFSET(INDIRECT(D30),2,-2) -> (1) 2014/15 LRIC:FAC ratios; (2) <Enter scenario name>; (3) <Enter scenario name> | D30: AVEs_scenario | F30: =INDEX(H30:AM30,,MATCH($F$5,H$5:AM$5,0)) -> 1 | H30: 1 | I30: 1 | J30: 1 | K30: 1 | L30: 1 | M30: 1 | N30: 1 | O30: 1
B32: CVEs
A33: =IF(ISBLANK((D33)),"",MAX($A$9:A32)+1) -> 14 | B33: =INDEX('Control panel'!$B:$B,MATCH(A33,'Control panel'!$A:$A,0)) -> Choose CVEs | C33: ="(1) "&OFFSET(INDIRECT(D33),0,-2)&"; (2) "&OFFSET(INDIRECT(D33),1,-2)&"; (3) "&OFFSET(INDIRECT(D33),2,-2) -> (1) 2014/15 LRIC:FAC ratios; (2) <Enter scenario name>; (3) <Enter scenario name> | D33: CVEs_scenario | F33: =INDEX(H33:AM33,,MATCH($F$5,H$5:AM$5,0)) -> 1 | H33: 1 | I33: 1 | J33: 1 | K33: 1 | L33: 1 | M33: 1 | N33: 1 | O33: 1
B35: Dynamic elasticities
A36: =IF(ISBLANK((D36)),"",MAX($A$9:A35)+1) -> 15 | B36: =INDEX('Control panel'!$B:$B,MATCH(A36,'Control panel'!$A:$A,0)) -> Enable dynamic elasticities? | C36: ="(1) "&OFFSET(INDIRECT(D36),0,-2)&"; (2) "&OFFSET(INDIRECT(D36),1,-2) -> (1) TRUE; (2) FALSE | D36: Dynamic_scenario | F36: =INDEX(H36:AM36,,MATCH($F$5,H$5:AM$5,0)) -> 1 | H36: 1 | I36: 1 | J36: 1 | K36: 1 | L36: 1 | M36: 1 | N36: 1 | O36: 1
B38: Efficiency assumptions
A39: =IF(ISBLANK((D39)),"",MAX($A$9:A38)+1) -> 16 | B39: =INDEX('Control panel'!$B:$B,MATCH(A39,'Control panel'!$A:$A,0)) -> Choose efficiency scenario | C39: ="(1) "&OFFSET(INDIRECT(D39),0,-2)&"; (2) "&OFFSET(INDIRECT(D39),1,-2)&"; (3) "&OFFSET(INDIRECT(D39),2,-2) -> (1) Base case; (2) <Enter scenario name>; (3) <Enter scenario name> | D39: Efficiency_scenario | F39: =INDEX(H39:AM39,,MATCH($F$5,H$5:AM$5,0)) -> 1 | H39: 1 | I39: 1 | J39: 1 | K39: 1 | L39: 1 | M39: 1 | N39: 1 | O39: 1
B41: WACC assumptions
A42: =IF(ISBLANK((D42)),"",MAX($A$9:A41)+1) -> 17 | B42: =INDEX('Control panel'!$B:$B,MATCH(A42,'Control panel'!$A:$A,0)) -> Choose WACC | C42: ="(1) "&OFFSET(INDIRECT(D42),0,-2)&"; (2) "&OFFSET(INDIRECT(D42),1,-2)&"; (3) "&OFFSET(INDIRECT(D42),2,-2) -> (1) Base case; (2) <Enter scenario name>; (3) <Enter scenario name> | D42: WACC_scenario | F42: =INDEX(H42:AM42,,MATCH($F$5,H$5:AM$5,0)) -> 1 | H42: 1 | I42: 1 | J42: 1 | K42: 1 | L42: 1 | M42: 1 | N42: 1 | O42: 1
B44: Inflation
A45: =IF(ISBLANK((D45)),"",MAX($A$9:A44)+1) -> 18 | B45: =INDEX('Control panel'!$B:$B,MATCH(A45,'Control panel'!$A:$A,0)) -> Choose CPI Forecast | C45: ="(1) "&OFFSET(INDIRECT(D45),0,-2)&"; (2) "&OFFSET(INDIRECT(D45),1,-2)&"; (3) "&OFFSET(INDIRECT(D45),2,-2) -> (1) Base case; (2) <Enter scenario>; (3) <Enter scenario> | D45: CPI_scenario | F45: =INDEX(H45:AM45,,MATCH($F$5,H$5:AM$5,0)) -> 1 | H45: 1 | I45: 1 | J45: 1 | K45: 1 | L45: 1 | M45: 1 | N45: 1 | O45: 1
A46: =IF(ISBLANK((D46)),"",MAX($A$9:A45)+1) -> 19 | B46: =INDEX('Control panel'!$B:$B,MATCH(A46,'Control panel'!$A:$A,0)) -> Choose RPI Forecast | C46: ="(1) "&OFFSET(INDIRECT(D46),0,-2)&"; (2) "&OFFSET(INDIRECT(D46),1,-2)&"; (3) "&OFFSET(INDIRECT(D46),2,-2) -> (1) Base case; (2) <Enter scenario>; (3) <Enter scenario> | D46: RPI_scenario | F46: =INDEX(H46:AM46,,MATCH($F$5,H$5:AM$5,0)) -> 1 | H46: 1 | I46: 1 | J46: 1 | K46: 1 | L46: 1 | M46: 1 | N46: 1 | O46: 1
B48: TI basket cost forecasting
A49: =IF(ISBLANK((D49)),"",MAX($A$9:A48)+1) -> 20 | B49: =INDEX('Control panel'!$B:$B,MATCH(A49,'Control panel'!$A:$A,0)) -> Use (6) Supplementary cost forecasting model for TI? | C49: ="(1) "&OFFSET(INDIRECT(D49),0,-2)&"; (2) "&OFFSET(INDIRECT(D49),1,-2) -> (1) TRUE; (2) FALSE | D49: TI_scenario | F49: =INDEX(H49:AM49,,MATCH($F$5,H$5:AM$5,0)) -> 1 | H49: 1 | I49: 1 | J49: 1 | K49: 1 | L49: 1 | M49: 1 | N49: 1 | O49: 1
B51: NDR cost uplift
A52: =IF(ISBLANK((D52)),"",MAX($A$9:A51)+1) -> 21 | B52: =INDEX('Control panel'!$B:$B,MATCH(A52,'Control panel'!$A:$A,0)) -> Choose NDR scenario | C52: ="(1) "&OFFSET(INDIRECT(D52),0,-2)&"; (2) "&OFFSET(INDIRECT(D52),1,-2) -> (1) 2016 LLCC; (2) Temporary conditions | D52: NDR_scenario | F52: =INDEX(H52:AM52,,MATCH($F$5,H$5:AM$5,0)) -> 2 | H52: 2 | I52: 1 | J52: 2 | K52: 2 | L52: 2 | M52: 2 | N52: 2 | O52: 2
B54: Dark fibre uplifts
A55: =IF(ISBLANK((D55)),"",MAX($A$9:A54)+1) -> 22 | B55: =INDEX('Control panel'!$B:$B,MATCH(A55,'Control panel'!$A:$A,0)) -> Choose dark fibre uplift scenario | C55: ="(1) "&OFFSET(INDIRECT(D55),0,-2)&"; (2) "&OFFSET(INDIRECT(D55),1,-2) -> (1) 2016 LLCC; (2) Temporary conditions | D55: DF_scenario | F55: =INDEX(H55:AM55,,MATCH($F$5,H$5:AM$5,0)) -> 2 | H55: 2 | I55: 1 | J55: 1 | K55: 1 | L55: 1 | M55: 1 | N55: 1 | O55: 2
B57: Geographic cost uplifts
A58: =IF(ISBLANK((D58)),"",MAX($A$9:A57)+1) -> 23 | B58: =INDEX('Control panel'!$B:$B,MATCH(A58,'Control panel'!$A:$A,0)) -> Choose geographic cost uplift scenario | C58: ="(1) "&OFFSET(INDIRECT(D58),0,-2)&"; (2) "&OFFSET(INDIRECT(D58),1,-2) -> (1) 2016 LLCC; (2) Temporary conditions | D58: Geo_scenario | F58: =INDEX(H58:AM58,,MATCH($F$5,H$5:AM$5,0)) -> 2 | H58: 2 | I58: 1 | J58: 1 | K58: 1 | L58: 1 | M58: 2 | N58: 2 | O58: 2
B60: Geometric average of inflation
A61: =IF(ISBLANK((D61)),"",MAX($A$9:A60)+1) -> 24 | B61: =INDEX('Control panel'!$B:$B,MATCH(A61,'Control panel'!$A:$A,0)) -> Choose geometric average of inflation scenario | C61: ="(1) "&OFFSET(INDIRECT(D61),0,-2)&"; (2) "&OFFSET(INDIRECT(D61),1,-2) -> (1) 2016 LLCC; (2) Temporary conditions | D61: Xinfl_scenario | F61: =INDEX(H61:AM61,,MATCH($F$5,H$5:AM$5,0)) -> 2 | H61: 2 | I61: 1 | J61: 1 | K61: 1 | L61: 1 | M61: 1 | N61: 1 | O61: 1

Sheet Results
A1: The disclosure of this sheet is only permitted to those nominated individuals and individuals occupying the roles and functional areas (and their relevant external advisers, sub-contractors and agents) listed in Annex 2 of the Undertakings given by BT to Ofcom pursuant to the Enterprise Act 2002.
A2: Summary of results
A3: Summary of CPI-X model outputs and impact of model updates from 2016 LLCC to Temporary Conditions
C6: (A) Temporary conditions model base case results
C7: Scenario | D7: Description | E7: Revenues in absence of X (£m) | F7: Costs - including return on capital (£m) | G7: Number of periods | H7: X | I7: Geometric average of inflation | J7: Adjusted year 1 X | K7: Rounded X
C9: (1) Temporary conditions base case | D9: 2016 LLCC model - adjusted for NDR, geographic scope and dark fibre forecasts | G9: 2 | H9: -0.1322946245 | I9: 0.02025 | J9: =H9*(1+I9) -> -0.1349735907 | K9: =ROUND(J9*100*4,0)/400 -> -0.135
C12: (B) Scenario results: Iterative impact of updating assumptions 2016 LLCC model to Temporary Conditions model
C13: Scenario | D13: Description | E13: Revenues in absence of X (£m) | F13: Costs - including return on capital (£m) | G13: Number of periods | H13: X | I13: Geometric average of inflation | J13: Adjusted year 1 X | K13: Rounded X | L13: Rounded X +/- previous scenarios
C15: (2) 2016 BCMR Final Statement | D15: Revenues absent X based on end of 16/17 prices. X calculated over 2 periods. | G15: 2 | H15: -0.1330685245 | I15: 0.01691046443 | J15: =H15*(1+I15) -> -0.135318775 | K15: =ROUND(J15*100*4,0)/400 -> -0.135
C16: (3) Include NDR uplift | D16: Uplift 18/19 costs by £4.8m to account for NDR decision | G16: 2 | H16: -0.1276174046 | I16: 0.01691046443 | J16: -0.1297754741 | K16: -0.13 | L16: =K16-K15 -> 0.005
C17: (4) Revised core volumes | D17: Remove additional circuits identified in competitive core (now 107 exchanges) | G17: 2 | H17: -0.1274348733 | I17: 0.01691046443 | J17: -0.1295898562 | K17: -0.13 | L17: 0
C18: (5) Revised core and CBD volumes | D18: Take out circuit volumes in CBDs of Birmingham, Glasgow and Leeds | G18: 2 | H18: -0.1271154391 | I18: 0.01691046443 | J18: -0.1292650202 | K18: -0.13 | L18: 0
C19: (6) CBD unit cost uplift | D19: Uplift RoUK+LP costs by WECLA vs Non-WECLA unit cost differential | G19: 2 | H19: -0.1243814538 | I19: 0.01691046443 | J19: -0.1264848019 | K19: -0.1275 | L19: 0.0025
C20: (7) Revised dark fibre volumes | D20: Revised dark fibre volumes - April 2018 start date and no VHB migration | G20: 2 | H20: -0.1299800246 | I20: 0.01691046443 | J20: -0.1321780472 | K20: -0.1325 | L20: -0.005
C21: (8) Revised dark fibre uplifts | D21: Updated cost uplifts in light of revised dark fibre volumes | G21: 2 | H21: -0.1322946245 | I21: 0.01691046443 | J21: -0.1345317881 | K21: -0.135 | L21: -0.0025
C22: (1) Temprorary conditions base case | D22: Use 2.0% inflation (2018/19) for X calculation to align with new control period | G22: 2 | H22: -0.1322946245 | I22: 0.02025 | J22: -0.1349735907 | K22: -0.135 | L22: 0

Sheet Names mapping>>
A1: The disclosure of this sheet is only permitted to those nominated individuals and individuals occupying the roles and functional areas (and their relevant external advisers, sub-contractors and agents) listed in Annex 2 of the Undertakings given by BT to Ofcom pursuant to the Enterprise Act 2002.
A2: Names mapping
A3: This section of the model links to the mapping names workbook where we have derived a unique service and component list from the different data sources provided by BT under formal powers.
A4: These lists are used across all the charge control modules.

Sheet Lists
A1: The disclosure of this sheet is only permitted to those nominated individuals and individuals occupying the roles and functional areas (and their relevant external advisers, sub-contractors and agents) listed in Annex 2 of the Undertakings given by BT to Ofcom pursuant to the Enterprise Act 2002.
A2: Names lists
B4: Service list | Y4: Cost component list
B5: Service code | C5: Service name | D5: Market | E5: Source 1 | F5: Source 2 | G5: Service Technology | H5: Unit | I5: Geography | J5: Bandwidth | K5: Charging element | L5: Customer type | M5: Technology | N5: Mapped to MEA? | O5: Passive price 1 (EAD 1G)? | P5: Passive price 2 (EAD Average)? | Q5: Usage factor mapping | S5: Passives 1 index no. | T5: Passives 2 index no. | U5: Label for MEA mapping | V5: Basket | Y5: Component code | Z5: Component Name | AA5: Admin? | AB5: Source
A6: 1 | B6: SE371 | C6: SE371: PPC rental 2Mbit link per km distribution | D6: SW100 | E6: BTW | F6: BTW | G6: PPC | H6: km | I6: Non-WECLA | J6: 2Mbit/s | K6: Distribution | L6: External | M6: TI | N6: 0 | O6: 0 | P6: 0 | Q6: 0 | S6: =IF(O6,MAX(S$5:S5)+1,0) -> 0 | T6: =IF(P6,MAX(T$5:T5)+1,0) -> 0 | U6: =IF(A6=0,0,G6&J6&K6&L6&I6) -> PPC2Mbit/sDistributionExternalNon-WECLA | V6: =IF(E6="BTW",IF(INDEX(BasketDesign!$J$9:$J$407,MATCH($B6,BasketDesign!$B$9:$B$407,0)),BasketDesign!$J$7,0),IF(INDEX(BasketDesign!$K$9:$K$407,MATCH($B6,BasketDesign!$B$9:$B$407,0)),BasketDesign!$K$7,0)) -> TI | X6: 1 | Y6: CF371 | Z6: CF371: OR PC Rental 2Mbit link per km distribution | AA6: FALSE | AB6: BTW
A7: 2 | B7: SE745 | C7: SE745: Netstream 16 LL 2mbit rentals Per km | D7: SW100 | E7: BTW | F7: BTW | G7: Netstream | H7: km | I7: Non-WECLA | J7: 2Mbit/s | K7: Distribution | L7: External | M7: TI | N7: 0 | O7: 0 | P7: 0 | Q7: 0 | S7: =IF(O7,MAX(S$5:S6)+1,0) -> 0 | T7: =IF(P7,MAX(T$5:T6)+1,0) -> 0 | U7: Netstream2Mbit/sDistributionExternalNon-WECLA | V7: =IF(E7="BTW",IF(INDEX(BasketDesign!$J$9:$J$407,MATCH($B7,BasketDesign!$B$9:$B$407,0)),BasketDesign!$J$7,0),IF(INDEX(BasketDesign!$K$9:$K$407,MATCH($B7,BasketDesign!$B$9:$B$407,0)),BasketDesign!$K$7,0)) -> 0 | X7: 2 | Y7: CF373 | Z7: CF373: OR PC Rental 34Mbit link per km distribution | AA7: FALSE | AB7: BTW
A8: 3 | B8: SH371 | C8: SH371: PPC RBS rental 2Mbit link per km distribution | D8: SW100 | E8: BTW | F8: BTW | G8: RBS | H8: km | I8: Non-WECLA | J8: 2Mbit/s | K8: Distribution | L8: External | M8: TI | N8: 0 | O8: 0 | P8: 0 | Q8: 0 | S8: =IF(O8,MAX(S$5:S7)+1,0) -> 0 | T8: =IF(P8,MAX(T$5:T7)+1,0) -> 0 | U8: RBS2Mbit/sDistributionExternalNon-WECLA | V8: =IF(E8="BTW",IF(INDEX(BasketDesign!$J$9:$J$407,MATCH($B8,BasketDesign!$B$9:$B$407,0)),BasketDesign!$J$7,0),IF(INDEX(BasketDesign!$K$9:$K$407,MATCH($B8,BasketDesign!$B$9:$B$407,0)),BasketDesign!$K$7,0)) -> TI | X8: 3 | Y8: CF375 | Z8: CF375: OR PC Rental 140Mbit link per km distribution | AA8: FALSE | AB8: BTW
A9: 4 | B9: SO371 | C9: SO371: PC rental 2Mbit link per km distribution | D9: SW100 | E9: BTW | F9: BTW | G9: PPC | H9: km | I9: Non-WECLA | J9: 2Mbit/s | K9: Distribution | L9: Internal | M9: TI | N9: 0 | O9: 0 | P9: 0 | Q9: 0 | S9: =IF(O9,MAX(S$5:S8)+1,0) -> 0 | T9: =IF(P9,MAX(T$5:T8)+1,0) -> 0 | U9: PPC2Mbit/sDistributionInternalNon-WECLA | V9: =IF(E9="BTW",IF(INDEX(BasketDesign!$J$9:$J$407,MATCH($B9,BasketDesign!$B$9:$B$407,0)),BasketDesign!$J$7,0),IF(INDEX(BasketDesign!$K$9:$K$407,MATCH($B9,BasketDesign!$B$9:$B$407,0)),BasketDesign!$K$7,0)) -> TI | X9: 4 | Y9: CF381 | Z9: CF381: OR PC Rental 64Kb link | AA9: FALSE | AB9: BTW
A10: 5 | B10: ST371 | C10: ST371: Siteconnect rental 2Mbit link per km distribution | D10: SW100 | E10: BTW | F10: BTW | G10: SiteConnect | H10: km | I10: Non-WECLA | J10: 2Mbit/s | K10: Distribution | L10: Internal | M10: TI | N10: 0 | O10: 0 | P10: 0 | Q10: 0 | S10: =IF(O10,MAX(S$5:S9)+1,0) -> 0 | T10: =IF(P10,MAX(T$5:T9)+1,0) -> 0 | U10: SiteConnect2Mbit/sDistributionInternalNon-WECLA | V10: =IF(E10="BTW",IF(INDEX(BasketDesign!$J$9:$J$407,MATCH($B10,BasketDesign!$B$9:$B$407,0)),BasketDesign!$J$7,0),IF(INDEX(BasketDesign!$K$9:$K$407,MATCH($B10,BasketDesign!$B$9:$B$407,0)),BasketDesign!$K$7,0)) -> TI | X10: 5 | Y10: CF383 | Z10: CF383: OR PC Rental 2Mb link | AA10: FALSE | AB10: BTW
A11: 6 | B11: SY371 | C11: SY371: PPC rental 2Mbit CLZ link per km dist ext | D11: SW100 | E11: BTW | F11: BTW | G11: PPC | H11: km | I11: Non-WECLA | J11: 2Mbit/s | K11: Distribution | L11: External | M11: TI | N11: 0 | O11: 0 | P11: 0 | Q11: 0 | S11: =IF(O11,MAX(S$5:S10)+1,0) -> 0 | T11: =IF(P11,MAX(T$5:T10)+1,0) -> 0 | U11: PPC2Mbit/sDistributionExternalNon-WECLA | V11: =IF(E11="BTW",IF(INDEX(BasketDesign!$J$9:$J$407,MATCH($B11,BasketDesign!$B$9:$B$407,0)),BasketDesign!$J$7,0),IF(INDEX(BasketDesign!$K$9:$K$407,MATCH($B11,BasketDesign!$B$9:$B$407,0)),BasketDesign!$K$7,0)) -> TI | X11: 6 | Y11: CF385 | Z11: CF385: OR PC Rental 34Mb link | AA11: FALSE | AB11: BTW
A12: 7 | B12: SZ371 | C12: SZ371: PC rental 2Mbit CLZ link per km dist int | D12: SW100 | E12: BTW | F12: BTW | G12: PPC | H12: km | I12: Non-WECLA | J12: 2Mbit/s | K12: Distribution | L12: Internal | M12: TI | N12: 0 | O12: 0 | P12: 0 | Q12: 0 | S12: =IF(O12,MAX(S$5:S11)+1,0) -> 0 | T12: =IF(P12,MAX(T$5:T11)+1,0) -> 0 | U12: PPC2Mbit/sDistributionInternalNon-WECLA | V12: =IF(E12="BTW",IF(INDEX(BasketDesign!$J$9:$J$407,MATCH($B12,BasketDesign!$B$9:$B$407,0)),BasketDesign!$J$7,0),IF(INDEX(BasketDesign!$K$9:$K$407,MATCH($B12,BasketDesign!$B$9:$B$407,0)),BasketDesign!$K$7,0)) -> TI | X12: 7 | Y12: CF388 | Z12: CF388: OR PC rental 140Mb link | AA12: FALSE | AB12: BTW
A13: 8 | B13: SE373 | C13: SE373: PPC rental 34Mbit link per km distribution | D13: SW111 | E13: BTW | F13: BTW | G13: PPC | H13: km | I13: Non-WECLA | J13: 34/45Mbit/s | K13: Distribution | L13: External | M13: TI | N13: 0 | O13: 0 | P13: 0 | Q13: 0 | S13: =IF(O13,MAX(S$5:S12)+1,0) -> 0 | T13: =IF(P13,MAX(T$5:T12)+1,0) -> 0 | U13: PPC34/45Mbit/sDistributionExternalNon-WECLA | V13: =IF(E13="BTW",IF(INDEX(BasketDesign!$J$9:$J$407,MATCH($B13,BasketDesign!$B$9:$B$407,0)),BasketDesign!$J$7,0),IF(INDEX(BasketDesign!$K$9:$K$407,MATCH($B13,BasketDesign!$B$9:$B$407,0)),BasketDesign!$K$7,0)) -> 0 | X13: 8 | Y13: CF391 | Z13: CF391: OR PC rental 64Kbit link per km transmission | AA13: FALSE | AB13: BTW
A14: 9 | B14: SO373 | C14: SO373: PC rental 34Mbit link per km distribution | D14: SW111 | E14: BTW | F14: BTW | G14: PPC | H14: km | I14: Non-WECLA | J14: 34/45Mbit/s | K14: Distribution | L14: Internal | M14: TI | N14: 0 | O14: 0 | P14: 0 | Q14: 0 | S14: =IF(O14,MAX(S$5:S13)+1,0) -> 0 | T14: =IF(P14,MAX(T$5:T13)+1,0) -> 0 | U14: PPC34/45Mbit/sDistributionInternalNon-WECLA | V14: =IF(E14="BTW",IF(INDEX(BasketDesign!$J$9:$J$407,MATCH($B14,BasketDesign!$B$9:$B$407,0)),BasketDesign!$J$7,0),IF(INDEX(BasketDesign!$K$9:$K$407,MATCH($B14,BasketDesign!$B$9:$B$407,0)),BasketDesign!$K$7,0)) -> 0 | X14: 9 | Y14: CG101 | Z14: CG101: PC rental 2Mbit s regional trunk | AA14: FALSE | AB14: BTW
A15: 10 | B15: SE375 | C15: SE375: PPC rental 140Mbit link per km distribution | D15: SW112 | E15: BTW | F15: BTW | G15: PPC | H15: km | I15: Non-WECLA | J15: 140/155Mbit/s | K15: Distribution | L15: External | M15: TI | N15: 0 | O15: 0 | P15: 0 | Q15: 0 | S15: =IF(O15,MAX(S$5:S14)+1,0) -> 0 | T15: =IF(P15,MAX(T$5:T14)+1,0) -> 0 | U15: PPC140/155Mbit/sDistributionExternalNon-WECLA | V15: =IF(E15="BTW",IF(INDEX(BasketDesign!$J$9:$J$407,MATCH($B15,BasketDesign!$B$9:$B$407,0)),BasketDesign!$J$7,0),IF(INDEX(BasketDesign!$K$9:$K$407,MATCH($B15,BasketDesign!$B$9:$B$407,0)),BasketDesign!$K$7,0)) -> 0 | X15: 10 | Y15: CG103 | Z15: CG103: PC rental 140Mbit s regional trunk | AA15: FALSE | AB15: BTW
A16: 11 | B16: SE753 | C16: SE753: Netstream 16 LL 155mbit rentals Per km | D16: SW112 | E16: BTW | F16: BTW | G16: Netstream | H16: km | I16: Non-WECLA | J16: 140/155Mbit/s | K16: Distribution | L16: External | M16: TI | N16: 0 | O16: 0 | P16: 0 | Q16: 0 | S16: =IF(O16,MAX(S$5:S15)+1,0) -> 0 | T16: =IF(P16,MAX(T$5:T15)+1,0) -> 0 | U16: Netstream140/155Mbit/sDistributionExternalNon-WECLA | V16: =IF(E16="BTW",IF(INDEX(BasketDesign!$J$9:$J$407,MATCH($B16,BasketDesign!$B$9:$B$407,0)),BasketDesign!$J$7,0),IF(INDEX(BasketDesign!$K$9:$K$407,MATCH($B16,BasketDesign!$B$9:$B$407,0)),BasketDesign!$K$7,0)) -> 0 | X16: 11 | Y16: CG201 | Z16: CG201: PC rental 2Mbit link per km national trunk | AA16: FALSE | AB16: BTW
A17: 12 | B17: SO375 | C17: SO375: PC rental 140Mbit link per km distribution | D17: SW112 | E17: BTW | F17: BTW | G17: PPC | H17: km | I17: Non-WECLA | J17: 140/155Mbit/s | K17: Distribution | L17: Internal | M17: TI | N17: 0 | O17: 0 | P17: 0 | Q17: 0 | S17: =IF(O17,MAX(S$5:S16)+1,0) -> 0 | T17: =IF(P17,MAX(T$5:T16)+1,0) -> 0 | U17: PPC140/155Mbit/sDistributionInternalNon-WECLA | V17: =IF(E17="BTW",IF(INDEX(BasketDesign!$J$9:$J$407,MATCH($B17,BasketDesign!$B$9:$B$407,0)),BasketDesign!$J$7,0),IF(INDEX(BasketDesign!$K$9:$K$407,MATCH($B17,BasketDesign!$B$9:$B$407,0)),BasketDesign!$K$7,0)) -> 0 | X17: 12 | Y17: CG203 | Z17: CG203: PC rental 140Mbit link per km national trunk | AA17: FALSE | AB17: BTW
A18: 13 | B18: ST375 | C18: ST375: Site Connect PPC rental 140Mbit link km dist | D18: SW112 | E18: BTW | F18: BTW | G18: SiteConnect | H18: km | I18: Non-WECLA | J18: 140/155Mbit/s | K18: Distribution | L18: Internal | M18: TI | N18: 0 | O18: 0 | P18: 0 | Q18: 0 | S18: =IF(O18,MAX(S$5:S17)+1,0) -> 0 | T18: =IF(P18,MAX(T$5:T17)+1,0) -> 0 | U18: SiteConnect140/155Mbit/sDistributionInternalNon-WECLA | V18: =IF(E18="BTW",IF(INDEX(BasketDesign!$J$9:$J$407,MATCH($B18,BasketDesign!$B$9:$B$407,0)),BasketDesign!$J$7,0),IF(INDEX(BasketDesign!$K$9:$K$407,MATCH($B18,BasketDesign!$B$9:$B$407,0)),BasketDesign!$K$7,0)) -> 0 | X18: 13 | Y18: CL171 | Z18: CL171: E side copper capital | AA18: FALSE | AB18: BTW
A19: 14 | B19: SE381 | C19: SE381: PPC rental 64Kbit link | D19: SW100 | E19: BTW | F19: BTW | G19: PPC | H19: links | I19: Non-WECLA | J19: 64Kbit/s | K19: Link | L19: External | M19: TI | N19: 0 | O19: 0 | P19: 0 | Q19: 0 | S19: =IF(O19,MAX(S$5:S18)+1,0) -> 0 | T19: =IF(P19,MAX(T$5:T18)+1,0) -> 0 | U19: PPC64Kbit/sLinkExternalNon-WECLA | V19: =IF(E19="BTW",IF(INDEX(BasketDesign!$J$9:$J$407,MATCH($B19,BasketDesign!$B$9:$B$407,0)),BasketDesign!$J$7,0),IF(INDEX(BasketDesign!$K$9:$K$407,MATCH($B19,BasketDesign!$B$9:$B$407,0)),BasketDesign!$K$7,0)) -> TI | X19: 14 | Y19: CL173 | Z19: CL173: D side copper capital | AA19: FALSE | AB19: BTW
A20: 15 | B20: SH381 | C20: SH381: RBS PPC rental 64Kbit link | D20: SW100 | E20: BTW | F20: BTW | G20: RBS | H20: links | I20: Non-WECLA | J20: 64Kbit/s | K20: Link | L20: External | M20: TI | N20: 0 | O20: 0 | P20: 0 | Q20: 0 | S20: =IF(O20,MAX(S$5:S19)+1,0) -> 0 | T20: =IF(P20,MAX(T$5:T19)+1,0) -> 0 | U20: RBS64Kbit/sLinkExternalNon-WECLA | V20: =IF(E20="BTW",IF(INDEX(BasketDesign!$J$9:$J$407,MATCH($B20,BasketDesign!$B$9:$B$407,0)),BasketDesign!$J$7,0),IF(INDEX(BasketDesign!$K$9:$K$407,MATCH($B20,BasketDesign!$B$9:$B$407,0)),BasketDesign!$K$7,0)) -> TI | X20: 15 | Y20: CO379 | Z20: CO379: Point of Handover electronics | AA20: FALSE | AB20: BTW
A21: 16 | B21: SO381 | C21: SO381: PC rental 64Kbit link | D21: SW100 | E21: BTW | F21: BTW | G21: PPC | H21: links | I21: Non-WECLA | J21: 64Kbit/s | K21: Link | L21: Internal | M21: TI | N21: 0 | O21: 0 | P21: 0 | Q21: 0 | S21: =IF(O21,MAX(S$5:S20)+1,0) -> 0 | T21: =IF(P21,MAX(T$5:T20)+1,0) -> 0 | U21: PPC64Kbit/sLinkInternalNon-WECLA | V21: =IF(E21="BTW",IF(INDEX(BasketDesign!$J$9:$J$407,MATCH($B21,BasketDesign!$B$9:$B$407,0)),BasketDesign!$J$7,0),IF(INDEX(BasketDesign!$K$9:$K$407,MATCH($B21,BasketDesign!$B$9:$B$407,0)),BasketDesign!$K$7,0)) -> TI | X21: 16 | Y21: CO432 | Z21: CO432: PC rental 64Kbit link local end | AA21: FALSE | AB21: BTW
A22: 17 | B22: SE383 | C22: SE383: PPC rental 2Mbit link | D22: SW100 | E22: BTW | F22: BTW | G22: PPC | H22: links | I22: Non-WECLA | J22: 2Mbit/s | K22: Link | L22: External | M22: TI | N22: 0 | O22: 0 | P22: 0 | Q22: 0 | S22: =IF(O22,MAX(S$5:S21)+1,0) -> 0 | T22: =IF(P22,MAX(T$5:T21)+1,0) -> 0 | U22: PPC2Mbit/sLinkExternalNon-WECLA | V22: =IF(E22="BTW",IF(INDEX(BasketDesign!$J$9:$J$407,MATCH($B22,BasketDesign!$B$9:$B$407,0)),BasketDesign!$J$7,0),IF(INDEX(BasketDesign!$K$9:$K$407,MATCH($B22,BasketDesign!$B$9:$B$407,0)),BasketDesign!$K$7,0)) -> TI | X22: 17 | Y22: CO434 | Z22: CO434: PC rental 34Mbit link local end | AA22: FALSE | AB22: BTW
A23: 18 | B23: SE744 | C23: SE744: Netstream 16 LL 2mbit rentals Links | D23: SW100 | E23: BTW | F23: BTW | G23: Netstream | H23: links | I23: Non-WECLA | J23: 2Mbit/s | K23: Link | L23: External | M23: TI | N23: 0 | O23: 0 | P23: 0 | Q23: 0 | S23: =IF(O23,MAX(S$5:S22)+1,0) -> 0 | T23: =IF(P23,MAX(T$5:T22)+1,0) -> 0 | U23: Netstream2Mbit/sLinkExternalNon-WECLA | V23: =IF(E23="BTW",IF(INDEX(BasketDesign!$J$9:$J$407,MATCH($B23,BasketDesign!$B$9:$B$407,0)),BasketDesign!$J$7,0),IF(INDEX(BasketDesign!$K$9:$K$407,MATCH($B23,BasketDesign!$B$9:$B$407,0)),BasketDesign!$K$7,0)) -> 0 | X23: 18 | Y23: CO436 | Z23: CO436: PC rental 140Mbit link local end | AA23: FALSE | AB23: BTW
A24: 19 | B24: SH383 | C24: SH383: PPC RBS rental 2Mbit link | D24: SW100 | E24: BTW | F24: BTW | G24: RBS | H24: links | I24: Non-WECLA | J24: 2Mbit/s | K24: Link | L24: External | M24: TI | N24: 0 | O24: 0 | P24: 0 | Q24: 0 | S24: =IF(O24,MAX(S$5:S23)+1,0) -> 0 | T24: =IF(P24,MAX(T$5:T23)+1,0) -> 0 | U24: RBS2Mbit/sLinkExternalNon-WECLA | V24: =IF(E24="BTW",IF(INDEX(BasketDesign!$J$9:$J$407,MATCH($B24,BasketDesign!$B$9:$B$407,0)),BasketDesign!$J$7,0),IF(INDEX(BasketDesign!$K$9:$K$407,MATCH($B24,BasketDesign!$B$9:$B$407,0)),BasketDesign!$K$7,0)) -> TI | X24: 19 | Y24: CO438 | Z24: CO438: PC rental 2Mbit local end copper | AA24: FALSE | AB24: BTW
A25: 20 | B25: SO383 | C25: SO383: PC rental 2Mbit link | D25: SW100 | E25: BTW | F25: BTW | G25: PPC | H25: links | I25: Non-WECLA | J25: 2Mbit/s | K25: Link | L25: Internal | M25: TI | N25: 0 | O25: 0 | P25: 0 | Q25: 0 | S25: =IF(O25,MAX(S$5:S24)+1,0) -> 0 | T25: =IF(P25,MAX(T$5:T24)+1,0) -> 0 | U25: PPC2Mbit/sLinkInternalNon-WECLA | V25: =IF(E25="BTW",IF(INDEX(BasketDesign!$J$9:$J$407,MATCH($B25,BasketDesign!$B$9:$B$407,0)),BasketDesign!$J$7,0),IF(INDEX(BasketDesign!$K$9:$K$407,MATCH($B25,BasketDesign!$B$9:$B$407,0)),BasketDesign!$K$7,0)) -> TI | X25: 20 | Y25: CO439 | Z25: CO439: PC rental 2Mbit local end fibre | AA25: FALSE | AB25: BTW
A26: 21 | B26: ST383 | C26: ST383: Siteconnect PPC rental 2Mbit link | D26: SW100 | E26: BTW | F26: BTW | G26: SiteConnect | H26: links | I26: Non-WECLA | J26: 2Mbit/s | K26: Link | L26: Internal | M26: TI | N26: 0 | O26: 0 | P26: 0 | Q26: 0 | S26: =IF(O26,MAX(S$5:S25)+1,0) -> 0 | T26: =IF(P26,MAX(T$5:T25)+1,0) -> 0 | U26: SiteConnect2Mbit/sLinkInternalNon-WECLA | V26: =IF(E26="BTW",IF(INDEX(BasketDesign!$J$9:$J$407,MATCH($B26,BasketDesign!$B$9:$B$407,0)),BasketDesign!$J$7,0),IF(INDEX(BasketDesign!$K$9:$K$407,MATCH($B26,BasketDesign!$B$9:$B$407,0)),BasketDesign!$K$7,0)) -> TI | X26: 21 | Y26: CP371 | Z26: CP371: Prot Path PC rental 2Mbit link per km dist | AA26: TRUE | AB26: BTW
A27: 22 | B27: SY383 | C27: SY383: PPC rental 2Mbit CLZ link et | D27: SW100 | E27: BTW | F27: BTW | G27: PPC | H27: links | I27: Non-WECLA | J27: 2Mbit/s | K27: Link | L27: External | M27: TI | N27: 0 | O27: 0 | P27: 0 | Q27: 0 | S27: =IF(O27,MAX(S$5:S26)+1,0) -> 0 | T27: =IF(P27,MAX(T$5:T26)+1,0) -> 0 | U27: PPC2Mbit/sLinkExternalNon-WECLA | V27: =IF(E27="BTW",IF(INDEX(BasketDesign!$J$9:$J$407,MATCH($B27,BasketDesign!$B$9:$B$407,0)),BasketDesign!$J$7,0),IF(INDEX(BasketDesign!$K$9:$K$407,MATCH($B27,BasketDesign!$B$9:$B$407,0)),BasketDesign!$K$7,0)) -> TI | X27: 22 | Y27: CP373 | Z27: CP373: Protected Path PC rental 34Mbit link per km distr | AA27: TRUE | AB27: BTW
A28: 23 | B28: SZ383 | C28: SZ383: PC rental 2Mbit CLZ link int | D28: SW100 | E28: BTW | F28: BTW | G28: PPC | H28: links | I28: Non-WECLA | J28: 2Mbit/s | K28: Link | L28: Internal | M28: TI | N28: 0 | O28: 0 | P28: 0 | Q28: 0 | S28: =IF(O28,MAX(S$5:S27)+1,0) -> 0 | T28: =IF(P28,MAX(T$5:T27)+1,0) -> 0 | U28: PPC2Mbit/sLinkInternalNon-WECLA | V28: =IF(E28="BTW",IF(INDEX(BasketDesign!$J$9:$J$407,MATCH($B28,BasketDesign!$B$9:$B$407,0)),BasketDesign!$J$7,0),IF(INDEX(BasketDesign!$K$9:$K$407,MATCH($B28,BasketDesign!$B$9:$B$407,0)),BasketDesign!$K$7,0)) -> TI | X28: 23 | Y28: CP375 | Z28: CP375: Protected Path PC rental 140Mbit link per km distr | AA28: TRUE | AB28: BTW
A29: 24 | B29: SE385 | C29: SE385: PPC rental 34Mbit link | D29: SW111 | E29: BTW | F29: BTW | G29: PPC | H29: links | I29: Non-WECLA | J29: 34/45Mbit/s | K29: Link | L29: External | M29: TI | N29: 0 | O29: 0 | P29: 0 | Q29: 0 | S29: =IF(O29,MAX(S$5:S28)+1,0) -> 0 | T29: =IF(P29,MAX(T$5:T28)+1,0) -> 0 | U29: PPC34/45Mbit/sLinkExternalNon-WECLA | V29: =IF(E29="BTW",IF(INDEX(BasketDesign!$J$9:$J$407,MATCH($B29,BasketDesign!$B$9:$B$407,0)),BasketDesign!$J$7,0),IF(INDEX(BasketDesign!$K$9:$K$407,MATCH($B29,BasketDesign!$B$9:$B$407,0)),BasketDesign!$K$7,0)) -> 0 | X29: 24 | Y29: CP383 | Z29: CP383: Protected Path PC rental 2Mbit link | AA29: TRUE | AB29: BTW
A30: 25 | B30: SO385 | C30: SO385: PC rental 34Mbit link | D30: SW111 | E30: BTW | F30: BTW | G30: PPC | H30: links | I30: Non-WECLA | J30: 34/45Mbit/s | K30: Link | L30: Internal | M30: TI | N30: 0 | O30: 0 | P30: 0 | Q30: 0 | S30: =IF(O30,MAX(S$5:S29)+1,0) -> 0 | T30: =IF(P30,MAX(T$5:T29)+1,0) -> 0 | U30: PPC34/45Mbit/sLinkInternalNon-WECLA | V30: =IF(E30="BTW",IF(INDEX(BasketDesign!$J$9:$J$407,MATCH($B30,BasketDesign!$B$9:$B$407,0)),BasketDesign!$J$7,0),IF(INDEX(BasketDesign!$K$9:$K$407,MATCH($B30,BasketDesign!$B$9:$B$407,0)),BasketDesign!$K$7,0)) -> 0 | X30: 25 | Y30: CP385 | Z30: CP385: Protected Path PC rental 34Mb link | AA30: TRUE | AB30: BTW
A31: 26 | B31: SE388 | C31: SE388: PPC rental 140Mbit link | D31: SW112 | E31: BTW | F31: BTW | G31: PPC | H31: links | I31: Non-WECLA | J31: 140/155Mbit/s | K31: Link | L31: External | M31: TI | N31: 0 | O31: 0 | P31: 0 | Q31: 0 | S31: =IF(O31,MAX(S$5:S30)+1,0) -> 0 | T31: =IF(P31,MAX(T$5:T30)+1,0) -> 0 | U31: PPC140/155Mbit/sLinkExternalNon-WECLA | V31: =IF(E31="BTW",IF(INDEX(BasketDesign!$J$9:$J$407,MATCH($B31,BasketDesign!$B$9:$B$407,0)),BasketDesign!$J$7,0),IF(INDEX(BasketDesign!$K$9:$K$407,MATCH($B31,BasketDesign!$B$9:$B$407,0)),BasketDesign!$K$7,0)) -> 0 | X31: 26 | Y31: CP388 | Z31: CP388: Protected Path PC rental 140Mbit link | AA31: TRUE | AB31: BTW
A32: 27 | B32: SE752 | C32: SE752: Netstream 16 LL 155mbit rentals Links | D32: SW112 | E32: BTW | F32: BTW | G32: Netstream | H32: links | I32: Non-WECLA | J32: 140/155Mbit/s | K32: Link | L32: External | M32: TI | N32: 0 | O32: 0 | P32: 0 | Q32: 0 | S32: =IF(O32,MAX(S$5:S31)+1,0) -> 0 | T32: =IF(P32,MAX(T$5:T31)+1,0) -> 0 | U32: Netstream140/155Mbit/sLinkExternalNon-WECLA | V32: =IF(E32="BTW",IF(INDEX(BasketDesign!$J$9:$J$407,MATCH($B32,BasketDesign!$B$9:$B$407,0)),BasketDesign!$J$7,0),IF(INDEX(BasketDesign!$K$9:$K$407,MATCH($B32,BasketDesign!$B$9:$B$407,0)),BasketDesign!$K$7,0)) -> 0 | X32: 27 | Y32: CP434 | Z32: CP434: Protected Path PC rental 34Mbit link local end | AA32: TRUE | AB32: BTW
A33: 28 | B33: SO388 | C33: SO388: PC rental 140Mbit link | D33: SW112 | E33: BTW | F33: BTW | G33: PPC | H33: links | I33: Non-WECLA | J33: 140/155Mbit/s | K33: Link | L33: Internal | M33: TI | N33: 0 | O33: 0 | P33: 0 | Q33: 0 | S33: =IF(O33,MAX(S$5:S32)+1,0) -> 0 | T33: =IF(P33,MAX(T$5:T32)+1,0) -> 0 | U33: PPC140/155Mbit/sLinkInternalNon-WECLA | V33: =IF(E33="BTW",IF(INDEX(BasketDesign!$J$9:$J$407,MATCH($B33,BasketDesign!$B$9:$B$407,0)),BasketDesign!$J$7,0),IF(INDEX(BasketDesign!$K$9:$K$407,MATCH($B33,BasketDesign!$B$9:$B$407,0)),BasketDesign!$K$7,0)) -> 0 | X33: 28 | Y33: CP436 | Z33: CP436: Protected Path PC rental 140Mbit link local end | AA33: TRUE | AB33: BTW
A34: 29 | B34: ST388 | C34: ST388: Site Connect PPC rental 140Mbit link | D34: SW112 | E34: BTW | F34: BTW | G34: SiteConnect | H34: links | I34: Non-WECLA | J34: 140/155Mbit/s | K34: Link | L34: Internal | M34: TI | N34: 0 | O34: 0 | P34: 0 | Q34: 0 | S34: =IF(O34,MAX(S$5:S33)+1,0) -> 0 | T34: =IF(P34,MAX(T$5:T33)+1,0) -> 0 | U34: SiteConnect140/155Mbit/sLinkInternalNon-WECLA | V34: =IF(E34="BTW",IF(INDEX(BasketDesign!$J$9:$J$407,MATCH($B34,BasketDesign!$B$9:$B$407,0)),BasketDesign!$J$7,0),IF(INDEX(BasketDesign!$K$9:$K$407,MATCH($B34,BasketDesign!$B$9:$B$407,0)),BasketDesign!$K$7,0)) -> 0 | X34: 29 | Y34: CP439 | Z34: CP439: Protected Path PC rental 2Mbit local end fibre | AA34: TRUE | AB34: BTW
A35: 30 | B35: SE391 | C35: SE391: PPC rental 64Kbit Distribution | D35: SW100 | E35: BTW | F35: BTW | G35: PPC | H35: km | I35: Non-WECLA | J35: 64Kbit/s | K35: Distribution | L35: External | M35: TI | N35: 0 | O35: 0 | P35: 0 | Q35: 0 | S35: =IF(O35,MAX(S$5:S34)+1,0) -> 0 | T35: =IF(P35,MAX(T$5:T34)+1,0) -> 0 | U35: PPC64Kbit/sDistributionExternalNon-WECLA | V35: =IF(E35="BTW",IF(INDEX(BasketDesign!$J$9:$J$407,MATCH($B35,BasketDesign!$B$9:$B$407,0)),BasketDesign!$J$7,0),IF(INDEX(BasketDesign!$K$9:$K$407,MATCH($B35,BasketDesign!$B$9:$B$407,0)),BasketDesign!$K$7,0)) -> TI | X35: 30 | Y35: CR371 | Z35: CR371: PC rental 2Mbit link per km distribution | AA35: FALSE | AB35: BTW
A36: 31 | B36: SH391 | C36: SH391: RBS PPC rental 64Kbit link per km transmission | D36: SW100 | E36: BTW | F36: BTW | G36: RBS | H36: km | I36: Non-WECLA | J36: 64Kbit/s | K36: Distribution | L36: External | M36: TI | N36: 0 | O36: 0 | P36: 0 | Q36: 0 | S36: =IF(O36,MAX(S$5:S35)+1,0) -> 0 | T36: =IF(P36,MAX(T$5:T35)+1,0) -> 0 | U36: RBS64Kbit/sDistributionExternalNon-WECLA | V36: =IF(E36="BTW",IF(INDEX(BasketDesign!$J$9:$J$407,MATCH($B36,BasketDesign!$B$9:$B$407,0)),BasketDesign!$J$7,0),IF(INDEX(BasketDesign!$K$9:$K$407,MATCH($B36,BasketDesign!$B$9:$B$407,0)),BasketDesign!$K$7,0)) -> TI | X36: 31 | Y36: CR373 | Z36: CR373: PC rental 34Mbit link per km distribution | AA36: FALSE | AB36: BTW
A37: 32 | B37: SO391 | C37: SO391: PC rental 64Kbit link per km Distribution | D37: SW100 | E37: BTW | F37: BTW | G37: PPC | H37: km | I37: Non-WECLA | J37: 64Kbit/s | K37: Distribution | L37: Internal | M37: TI | N37: 0 | O37: 0 | P37: 0 | Q37: 0 | S37: =IF(O37,MAX(S$5:S36)+1,0) -> 0 | T37: =IF(P37,MAX(T$5:T36)+1,0) -> 0 | U37: PPC64Kbit/sDistributionInternalNon-WECLA | V37: =IF(E37="BTW",IF(INDEX(BasketDesign!$J$9:$J$407,MATCH($B37,BasketDesign!$B$9:$B$407,0)),BasketDesign!$J$7,0),IF(INDEX(BasketDesign!$K$9:$K$407,MATCH($B37,BasketDesign!$B$9:$B$407,0)),BasketDesign!$K$7,0)) -> TI | X37: 32 | Y37: CR375 | Z37: CR375: PC rental 140Mbit link per km distribution | AA37: FALSE | AB37: BTW
A38: 33 | B38: SE746 | C38: SE746: Netstream 16 LL 2mbit rentals Trunk | D38: SW100 | E38: BTW | F38: BTW | G38: Netstream | H38: km | I38: Non-WECLA | J38: 2Mbit/s | K38: Trunk | L38: External | M38: TI | N38: 0 | O38: 0 | P38: 0 | Q38: 0 | S38: =IF(O38,MAX(S$5:S37)+1,0) -> 0 | T38: =IF(P38,MAX(T$5:T37)+1,0) -> 0 | U38: =IF(A38=0,0,G38&J38&K38&L38&I38) -> Netstream2Mbit/sTrunkExternalNon-WECLA | V38: =IF(E38="BTW",IF(INDEX(BasketDesign!$J$9:$J$407,MATCH($B38,BasketDesign!$B$9:$B$407,0)),BasketDesign!$J$7,0),IF(INDEX(BasketDesign!$K$9:$K$407,MATCH($B38,BasketDesign!$B$9:$B$407,0)),BasketDesign!$K$7,0)) -> 0 | X38: 33 | Y38: CR383 | Z38: CR383: PC rental 2Mb link | AA38: FALSE | AB38: BTW
A39: 34 | B39: SH372 | C39: SH372: PPC RBS rental 2Mbit link per km trunk | D39: SW100 | E39: BTW | F39: BTW | G39: RBS | H39: km | I39: Non-WECLA | J39: 2Mbit/s | K39: Trunk | L39: External | M39: TI | N39: 0 | O39: 0 | P39: 0 | Q39: 0 | S39: =IF(O39,MAX(S$5:S38)+1,0) -> 0 | T39: =IF(P39,MAX(T$5:T38)+1,0) -> 0 | U39: RBS2Mbit/sTrunkExternalNon-WECLA | V39: =IF(E39="BTW",IF(INDEX(BasketDesign!$J$9:$J$407,MATCH($B39,BasketDesign!$B$9:$B$407,0)),BasketDesign!$J$7,0),IF(INDEX(BasketDesign!$K$9:$K$407,MATCH($B39,BasketDesign!$B$9:$B$407,0)),BasketDesign!$K$7,0)) -> TI | X39: 34 | Y39: CR385 | Z39: CR385: PC rental 34Mb link | AA39: FALSE | AB39: BTW
A40: 35 | B40: ST372 | C40: ST372: Siteconnect rental 2Mbit link per km trunk | D40: SW100 | E40: BTW | F40: BTW | G40: SiteConnect | H40: km | I40: Non-WECLA | J40: 2Mbit/s | K40: Trunk | L40: Internal | M40: TI | N40: 0 | O40: 0 | P40: 0 | Q40: 0 | S40: =IF(O40,MAX(S$5:S39)+1,0) -> 0 | T40: =IF(P40,MAX(T$5:T39)+1,0) -> 0 | U40: SiteConnect2Mbit/sTrunkInternalNon-WECLA | V40: =IF(E40="BTW",IF(INDEX(BasketDesign!$J$9:$J$407,MATCH($B40,BasketDesign!$B$9:$B$407,0)),BasketDesign!$J$7,0),IF(INDEX(BasketDesign!$K$9:$K$407,MATCH($B40,BasketDesign!$B$9:$B$407,0)),BasketDesign!$K$7,0)) -> TI | X40: 35 | Y40: CR388 | Z40: CR388: PC rental 140Mb link | AA40: FALSE | AB40: BTW
A41: 36 | B41: SE754 | C41: SE754: Netstream 16 LL 155mbit rentals Trunk | D41: SW112 | E41: BTW | F41: BTW | G41: Netstream | H41: km | I41: Non-WECLA | J41: 140/155Mbit/s | K41: Trunk | L41: External | M41: TI | N41: 0 | O41: 0 | P41: 0 | Q41: 0 | S41: =IF(O41,MAX(S$5:S40)+1,0) -> 0 | T41: =IF(P41,MAX(T$5:T40)+1,0) -> 0 | U41: Netstream140/155Mbit/sTrunkExternalNon-WECLA | V41: =IF(E41="BTW",IF(INDEX(BasketDesign!$J$9:$J$407,MATCH($B41,BasketDesign!$B$9:$B$407,0)),BasketDesign!$J$7,0),IF(INDEX(BasketDesign!$K$9:$K$407,MATCH($B41,BasketDesign!$B$9:$B$407,0)),BasketDesign!$K$7,0)) -> 0 | X41: 36 | Y41: CR391 | Z41: CR391: PC rental 64Kbit link per km transmission | AA41: FALSE | AB41: BTW
A42: 37 | B42: ST376 | C42: ST376: Site Con PPC rental 140Mbit link per km trunk | D42: SW112 | E42: BTW | F42: BTW | G42: SiteConnect | H42: km | I42: Non-WECLA | J42: 140/155Mbit/s | K42: Trunk | L42: Internal | M42: TI | N42: 0 | O42: 0 | P42: 0 | Q42: 0 | S42: =IF(O42,MAX(S$5:S41)+1,0) -> 0 | T42: =IF(P42,MAX(T$5:T41)+1,0) -> 0 | U42: SiteConnect140/155Mbit/sTrunkInternalNon-WECLA | V42: =IF(E42="BTW",IF(INDEX(BasketDesign!$J$9:$J$407,MATCH($B42,BasketDesign!$B$9:$B$407,0)),BasketDesign!$J$7,0),IF(INDEX(BasketDesign!$K$9:$K$407,MATCH($B42,BasketDesign!$B$9:$B$407,0)),BasketDesign!$K$7,0)) -> 0 | X42: 37 | Y42: CE103 | Z42: CE103: Tisbo Excess Construction | AA42: TRUE | AB42: BTW
A43: 38 | B43: SE432 | C43: SE432: PPC rental 64kbit link local end | D43: SW100 | E43: BTW | F43: BTW | G43: PPC | H43: le | I43: Non-WECLA | J43: 64Kbit/s | K43: Local end | L43: External | M43: TI | N43: 0 | O43: 0 | P43: 0 | Q43: 0 | S43: =IF(O43,MAX(S$5:S42)+1,0) -> 0 | T43: =IF(P43,MAX(T$5:T42)+1,0) -> 0 | U43: PPC64Kbit/sLocal endExternalNon-WECLA | V43: =IF(E43="BTW",IF(INDEX(BasketDesign!$J$9:$J$407,MATCH($B43,BasketDesign!$B$9:$B$407,0)),BasketDesign!$J$7,0),IF(INDEX(BasketDesign!$K$9:$K$407,MATCH($B43,BasketDesign!$B$9:$B$407,0)),BasketDesign!$K$7,0)) -> TI | X43: 38 | Y43: CL175 | Z43: CL175: Local exchanges general frames capital | AA43: FALSE | AB43: BTW
A44: 39 | B44: SE438 | C44: SE438: PPC rental 2Mbit local end copper | D44: SW100 | E44: BTW | F44: BTW | G44: PPC | H44: le | I44: Non-WECLA | J44: 2Mbit/s | K44: Local end | L44: External | M44: TI | N44: 0 | O44: 0 | P44: 0 | Q44: 0 | S44: =IF(O44,MAX(S$5:S43)+1,0) -> 0 | T44: =IF(P44,MAX(T$5:T43)+1,0) -> 0 | U44: PPC2Mbit/sLocal endExternalNon-WECLA | V44: =IF(E44="BTW",IF(INDEX(BasketDesign!$J$9:$J$407,MATCH($B44,BasketDesign!$B$9:$B$407,0)),BasketDesign!$J$7,0),IF(INDEX(BasketDesign!$K$9:$K$407,MATCH($B44,BasketDesign!$B$9:$B$407,0)),BasketDesign!$K$7,0)) -> TI | X44: 39 | Y44: CO417 | Z44: CO417: 64Kbit PC link connection cct provision | AA44: FALSE | AB44: BTW
A45: 40 | B45: SE743 | C45: SE743: Netstream 16 LL 2mbit rentals Local Ends | D45: SW100 | E45: BTW | F45: BTW | G45: Netstream | H45: le | I45: Non-WECLA | J45: 2Mbit/s | K45: Local end | L45: External | M45: TI | N45: 0 | O45: 0 | P45: 0 | Q45: 0 | S45: =IF(O45,MAX(S$5:S44)+1,0) -> 0 | T45: =IF(P45,MAX(T$5:T44)+1,0) -> 0 | U45: Netstream2Mbit/sLocal endExternalNon-WECLA | V45: =IF(E45="BTW",IF(INDEX(BasketDesign!$J$9:$J$407,MATCH($B45,BasketDesign!$B$9:$B$407,0)),BasketDesign!$J$7,0),IF(INDEX(BasketDesign!$K$9:$K$407,MATCH($B45,BasketDesign!$B$9:$B$407,0)),BasketDesign!$K$7,0)) -> 0 | X45: 40 | Y45: CO506 | Z45: CO506: Customer Support partial private circuits | AA45: TRUE | AB45: BTW
A46: 41 | B46: SH432 | C46: SH432: RBS rental 64kbit link local end | D46: SW100 | E46: BTW | F46: BTW | G46: RBS | H46: le | I46: Non-WECLA | J46: Sub 2Mbit/s | K46: Local end | L46: External | M46: TI | N46: 0 | O46: 0 | P46: 0 | Q46: 0 | S46: =IF(O46,MAX(S$5:S45)+1,0) -> 0 | T46: =IF(P46,MAX(T$5:T45)+1,0) -> 0 | U46: RBSSub 2Mbit/sLocal endExternalNon-WECLA | V46: =IF(E46="BTW",IF(INDEX(BasketDesign!$J$9:$J$407,MATCH($B46,BasketDesign!$B$9:$B$407,0)),BasketDesign!$J$7,0),IF(INDEX(BasketDesign!$K$9:$K$407,MATCH($B46,BasketDesign!$B$9:$B$407,0)),BasketDesign!$K$7,0)) -> TI | X46: 41 | Y46: CO418 | Z46: CO418: 64Kbit PC link connection cct rearrangements | AA46: FALSE | AB46: BTW
A47: 42 | B47: SH438 | C47: SH438: RBS rental 2Mbit local end copper | D47: SW100 | E47: BTW | F47: BTW | G47: RBS | H47: le | I47: Non-WECLA | J47: 2Mbit/s | K47: Local end | L47: External | M47: TI | N47: 0 | O47: 0 | P47: 0 | Q47: 0 | S47: =IF(O47,MAX(S$5:S46)+1,0) -> 0 | T47: =IF(P47,MAX(T$5:T46)+1,0) -> 0 | U47: RBS2Mbit/sLocal endExternalNon-WECLA | V47: =IF(E47="BTW",IF(INDEX(BasketDesign!$J$9:$J$407,MATCH($B47,BasketDesign!$B$9:$B$407,0)),BasketDesign!$J$7,0),IF(INDEX(BasketDesign!$K$9:$K$407,MATCH($B47,BasketDesign!$B$9:$B$407,0)),BasketDesign!$K$7,0)) -> TI | X47: 42 | Y47: CL172 | Z47: CL172: E side copper current | AA47: FALSE | AB47: BTW
A48: 43 | B48: SH440 | C48: SH440: RBS rental 2Mb le copper 256k | D48: SW100 | E48: BTW | F48: BTW | G48: RBS | H48: le | I48: Non-WECLA | J48: Sub 2Mbit/s | K48: Local end | L48: External | M48: TI | N48: 0 | O48: 0 | P48: 0 | Q48: 0 | S48: =IF(O48,MAX(S$5:S47)+1,0) -> 0 | T48: =IF(P48,MAX(T$5:T47)+1,0) -> 0 | U48: RBSSub 2Mbit/sLocal endExternalNon-WECLA | V48: =IF(E48="BTW",IF(INDEX(BasketDesign!$J$9:$J$407,MATCH($B48,BasketDesign!$B$9:$B$407,0)),BasketDesign!$J$7,0),IF(INDEX(BasketDesign!$K$9:$K$407,MATCH($B48,BasketDesign!$B$9:$B$407,0)),BasketDesign!$K$7,0)) -> TI | X48: 43 | Y48: CL174 | Z48: CL174: D side copper current | AA48: FALSE | AB48: BTW
A49: 44 | B49: SO432 | C49: SO432: PC rental 64kbit link local end | D49: SW100 | E49: BTW | F49: BTW | G49: PPC | H49: le | I49: Non-WECLA | J49: 64Kbit/s | K49: Local end | L49: Internal | M49: TI | N49: 0 | O49: 0 | P49: 0 | Q49: 0 | S49: =IF(O49,MAX(S$5:S48)+1,0) -> 0 | T49: =IF(P49,MAX(T$5:T48)+1,0) -> 0 | U49: PPC64Kbit/sLocal endInternalNon-WECLA | V49: =IF(E49="BTW",IF(INDEX(BasketDesign!$J$9:$J$407,MATCH($B49,BasketDesign!$B$9:$B$407,0)),BasketDesign!$J$7,0),IF(INDEX(BasketDesign!$K$9:$K$407,MATCH($B49,BasketDesign!$B$9:$B$407,0)),BasketDesign!$K$7,0)) -> TI | X49: 44 | Y49: CO413 | Z49: CO413: 2Mbit and above PC link connection cct provision | AA49: FALSE | AB49: BTW
A50: 45 | B50: SO438 | C50: SO438: PC rental 2Mbit local end copper | D50: SW100 | E50: BTW | F50: BTW | G50: PPC | H50: le | I50: Non-WECLA | J50: 2Mbit/s | K50: Local end | L50: Internal | M50: TI | N50: 0 | O50: 0 | P50: 0 | Q50: 0 | S50: =IF(O50,MAX(S$5:S49)+1,0) -> 0 | T50: =IF(P50,MAX(T$5:T49)+1,0) -> 0 | U50: PPC2Mbit/sLocal endInternalNon-WECLA | V50: =IF(E50="BTW",IF(INDEX(BasketDesign!$J$9:$J$407,MATCH($B50,BasketDesign!$B$9:$B$407,0)),BasketDesign!$J$7,0),IF(INDEX(BasketDesign!$K$9:$K$407,MATCH($B50,BasketDesign!$B$9:$B$407,0)),BasketDesign!$K$7,0)) -> TI | X50: 45 | Y50: CR187 | Z50: CR187: Broadband line testing systems | AA50: TRUE | AB50: BTW
A51: 46 | B51: ST438 | C51: ST438: Siteconnect PPC rental 2Mbit local end copper | D51: SW100 | E51: BTW | F51: BTW | G51: SiteConnect | H51: le | I51: Non-WECLA | J51: 2Mbit/s | K51: Local end | L51: Internal | M51: TI | N51: 0 | O51: 0 | P51: 0 | Q51: 0 | S51: =IF(O51,MAX(S$5:S50)+1,0) -> 0 | T51: =IF(P51,MAX(T$5:T50)+1,0) -> 0 | U51: SiteConnect2Mbit/sLocal endInternalNon-WECLA | V51: =IF(E51="BTW",IF(INDEX(BasketDesign!$J$9:$J$407,MATCH($B51,BasketDesign!$B$9:$B$407,0)),BasketDesign!$J$7,0),IF(INDEX(BasketDesign!$K$9:$K$407,MATCH($B51,BasketDesign!$B$9:$B$407,0)),BasketDesign!$K$7,0)) -> TI | X51: 46 | Y51: CO401 | Z51: CO401: Netstream Equipment | AA51: FALSE | AB51: BTW
A52: 47 | B52: SO400 | C52: SO400: External Customer Sited Handover connections | D52: SW140 | E52: BTW | F52: BTW | G52: POH | H52: conns | I52: Non-WECLA | J52: unspecified | K52: Connection | L52: External | M52: TI | N52: 0 | O52: 0 | P52: 0 | Q52: 0 | S52: =IF(O52,MAX(S$5:S51)+1,0) -> 0 | T52: =IF(P52,MAX(T$5:T51)+1,0) -> 0 | U52: POHunspecifiedConnectionExternalNon-WECLA | V52: =IF(E52="BTW",IF(INDEX(BasketDesign!$J$9:$J$407,MATCH($B52,BasketDesign!$B$9:$B$407,0)),BasketDesign!$J$7,0),IF(INDEX(BasketDesign!$K$9:$K$407,MATCH($B52,BasketDesign!$B$9:$B$407,0)),BasketDesign!$K$7,0)) -> 0 | X52: 47 | Y52: CPE432 | Z52: CPE432: POH adjust credit PPC 64k LE | AA52: FALSE | AB52: BTW
A53: 48 | B53: SO402 | C53: SO402: External Customer Sited Handover rentals | D53: SW140 | E53: BTW | F53: BTW | G53: POH | H53: lines | I53: Non-WECLA | J53: unspecified | K53: Rental | L53: External | M53: TI | N53: 0 | O53: 0 | P53: 0 | Q53: 0 | S53: =IF(O53,MAX(S$5:S52)+1,0) -> 0 | T53: =IF(P53,MAX(T$5:T52)+1,0) -> 0 | U53: POHunspecifiedRentalExternalNon-WECLA | V53: =IF(E53="BTW",IF(INDEX(BasketDesign!$J$9:$J$407,MATCH($B53,BasketDesign!$B$9:$B$407,0)),BasketDesign!$J$7,0),IF(INDEX(BasketDesign!$K$9:$K$407,MATCH($B53,BasketDesign!$B$9:$B$407,0)),BasketDesign!$K$7,0)) -> 0 | X53: 48 | Y53: CPE438 | Z53: CPE438: POH adjust credit PPC 2Mb Copper LE | AA53: FALSE | AB53: BTW
A54: 49 | B54: SO403 | C54: SO403: External In Span Handover rentals | D54: SW140 | E54: BTW | F54: BTW | G54: POH | H54: lines | I54: Non-WECLA | J54: unspecified | K54: Rental | L54: External | M54: TI | N54: 0 | O54: 0 | P54: 0 | Q54: 0 | S54: =IF(O54,MAX(S$5:S53)+1,0) -> 0 | T54: =IF(P54,MAX(T$5:T53)+1,0) -> 0 | U54: POHunspecifiedRentalExternalNon-WECLA | V54: =IF(E54="BTW",IF(INDEX(BasketDesign!$J$9:$J$407,MATCH($B54,BasketDesign!$B$9:$B$407,0)),BasketDesign!$J$7,0),IF(INDEX(BasketDesign!$K$9:$K$407,MATCH($B54,BasketDesign!$B$9:$B$407,0)),BasketDesign!$K$7,0)) -> 0 | X54: 49 | Y54: CPE439 | Z54: CPE439: POH adjust credit PPC 2Mb Fibre LE | AA54: FALSE | AB54: BTW
A55: 50 | B55: SO404 | C55: SO404: 2 Meg bearer connection | D55: SW100 | E55: BTW | F55: BTW | G55: 3rd party infrastructure | H55: conns | I55: Non-WECLA | J55: 2Mbit/s | K55: Connection | L55: External | M55: TI | N55: 0 | O55: 0 | P55: 0 | Q55: 0 | S55: =IF(O55,MAX(S$5:S54)+1,0) -> 0 | T55: =IF(P55,MAX(T$5:T54)+1,0) -> 0 | U55: 3rd party infrastructure2Mbit/sConnectionExternalNon-WECLA | V55: =IF(E55="BTW",IF(INDEX(BasketDesign!$J$9:$J$407,MATCH($B55,BasketDesign!$B$9:$B$407,0)),BasketDesign!$J$7,0),IF(INDEX(BasketDesign!$K$9:$K$407,MATCH($B55,BasketDesign!$B$9:$B$407,0)),BasketDesign!$K$7,0)) -> TI | X55: 50 | Y55: CD100 | Z55: CD100: Low Tisbo 3rd Party Equipment Depreciation | AA55: TRUE | AB55: BTW
A56: 51 | B56: SO409 | C56: SO409: 2 Meg bearer rentals | D56: SW100 | E56: BTW | F56: BTW | G56: 3rd party infrastructure | H56: lines | I56: Non-WECLA | J56: 2Mbit/s | K56: Rental | L56: External | M56: TI | N56: 0 | O56: 0 | P56: 0 | Q56: 0 | S56: =IF(O56,MAX(S$5:S55)+1,0) -> 0 | T56: =IF(P56,MAX(T$5:T55)+1,0) -> 0 | U56: 3rd party infrastructure2Mbit/sRentalExternalNon-WECLA | V56: =IF(E56="BTW",IF(INDEX(BasketDesign!$J$9:$J$407,MATCH($B56,BasketDesign!$B$9:$B$407,0)),BasketDesign!$J$7,0),IF(INDEX(BasketDesign!$K$9:$K$407,MATCH($B56,BasketDesign!$B$9:$B$407,0)),BasketDesign!$K$7,0)) -> TI | X56: 51 | Y56: CPE434 | Z56: CPE434: POH adjust credit PPC 34Mb LE | AA56: FALSE | AB56: BTW
A57: 52 | B57: SE760 | C57: SE760: External 3rd Party POH Rental 64kbit | D57: SW140 | E57: BTW | F57: BTW | G57: 3rd Party POH | H57: le | I57: Non-WECLA | J57: 64Kbit/s | K57: Rental | L57: External | M57: TI | N57: 0 | O57: 0 | P57: 0 | Q57: 0 | S57: =IF(O57,MAX(S$5:S56)+1,0) -> 0 | T57: =IF(P57,MAX(T$5:T56)+1,0) -> 0 | U57: 3rd Party POH64Kbit/sRentalExternalNon-WECLA | V57: =IF(E57="BTW",IF(INDEX(BasketDesign!$J$9:$J$407,MATCH($B57,BasketDesign!$B$9:$B$407,0)),BasketDesign!$J$7,0),IF(INDEX(BasketDesign!$K$9:$K$407,MATCH($B57,BasketDesign!$B$9:$B$407,0)),BasketDesign!$K$7,0)) -> 0 | X57: 52 | Y57: CD101 | Z57: CD101: Medium Tisbo 3rd Party Equipment Depreciation | AA57: TRUE | AB57: BTW
A58: 53 | B58: SE765 | C58: SE765: Extl 3rd Party POH Rental 64kbit eff | D58: SW140 | E58: BTW | F58: BTW | G58: 3rd Party POH | H58: le | I58: Non-WECLA | J58: 64Kbit/s | K58: Rental | L58: External | M58: TI | N58: 0 | O58: 0 | P58: 0 | Q58: 0 | S58: =IF(O58,MAX(S$5:S57)+1,0) -> 0 | T58: =IF(P58,MAX(T$5:T57)+1,0) -> 0 | U58: 3rd Party POH64Kbit/sRentalExternalNon-WECLA | V58: =IF(E58="BTW",IF(INDEX(BasketDesign!$J$9:$J$407,MATCH($B58,BasketDesign!$B$9:$B$407,0)),BasketDesign!$J$7,0),IF(INDEX(BasketDesign!$K$9:$K$407,MATCH($B58,BasketDesign!$B$9:$B$407,0)),BasketDesign!$K$7,0)) -> 0 | X58: 53 | Y58: CD102 | Z58: CD102: High Tisbo 3rd Party Equipment Depreciation | AA58: TRUE | AB58: BTW
A59: 54 | B59: SE434 | C59: SE434: PPC rental 34Mbit link local end | D59: SW111 | E59: BTW | F59: BTW | G59: PPC | H59: le | I59: Non-WECLA | J59: 34/45Mbit/s | K59: Local end | L59: External | M59: TI | N59: 0 | O59: 0 | P59: 0 | Q59: 0 | S59: =IF(O59,MAX(S$5:S58)+1,0) -> 0 | T59: =IF(P59,MAX(T$5:T58)+1,0) -> 0 | U59: PPC34/45Mbit/sLocal endExternalNon-WECLA | V59: =IF(E59="BTW",IF(INDEX(BasketDesign!$J$9:$J$407,MATCH($B59,BasketDesign!$B$9:$B$407,0)),BasketDesign!$J$7,0),IF(INDEX(BasketDesign!$K$9:$K$407,MATCH($B59,BasketDesign!$B$9:$B$407,0)),BasketDesign!$K$7,0)) -> 0 | X59: 54 | Y59: CPE105 | Z59: CPE105: POH LE adjust CSH debit | AA59: FALSE | AB59: BTW
A60: 55 | B60: SE761 | C60: SE761: External 3rd Party POH Rental 34 45mbit | D60: SW140 | E60: BTW | F60: BTW | G60: 3rd Party POH | H60: le | I60: Non-WECLA | J60: 34/45Mbit/s | K60: Rental | L60: External | M60: TI | N60: 0 | O60: 0 | P60: 0 | Q60: 0 | S60: =IF(O60,MAX(S$5:S59)+1,0) -> 0 | T60: =IF(P60,MAX(T$5:T59)+1,0) -> 0 | U60: 3rd Party POH34/45Mbit/sRentalExternalNon-WECLA | V60: =IF(E60="BTW",IF(INDEX(BasketDesign!$J$9:$J$407,MATCH($B60,BasketDesign!$B$9:$B$407,0)),BasketDesign!$J$7,0),IF(INDEX(BasketDesign!$K$9:$K$407,MATCH($B60,BasketDesign!$B$9:$B$407,0)),BasketDesign!$K$7,0)) -> 0 | X60: 55 | Y60: CG102 | Z60: CG102: PC rental 34Mbit s regional trunk | AA60: FALSE | AB60: BTW
A61: 56 | B61: SE766 | C61: SE766: Extl 3rd Party POH Rental 34 45mbit eff | D61: SW140 | E61: BTW | F61: BTW | G61: 3rd Party POH | H61: le | I61: Non-WECLA | J61: 34/45Mbit/s | K61: Rental | L61: External | M61: TI | N61: 0 | O61: 0 | P61: 0 | Q61: 0 | S61: =IF(O61,MAX(S$5:S60)+1,0) -> 0 | T61: =IF(P61,MAX(T$5:T60)+1,0) -> 0 | U61: 3rd Party POH34/45Mbit/sRentalExternalNon-WECLA | V61: =IF(E61="BTW",IF(INDEX(BasketDesign!$J$9:$J$407,MATCH($B61,BasketDesign!$B$9:$B$407,0)),BasketDesign!$J$7,0),IF(INDEX(BasketDesign!$K$9:$K$407,MATCH($B61,BasketDesign!$B$9:$B$407,0)),BasketDesign!$K$7,0)) -> 0 | X61: 56 | Y61: CG202 | Z61: CG202: PC rental 34Mbit link per km national trunk | AA61: FALSE | AB61: BTW
A62: 57 | B62: SO434 | C62: SO434: PC rental 34Mbit link local end | D62: SW111 | E62: BTW | F62: BTW | G62: PPC | H62: le | I62: Non-WECLA | J62: 34/45Mbit/s | K62: Local end | L62: Internal | M62: TI | N62: 0 | O62: 0 | P62: 0 | Q62: 0 | S62: =IF(O62,MAX(S$5:S61)+1,0) -> 0 | T62: =IF(P62,MAX(T$5:T61)+1,0) -> 0 | U62: PPC34/45Mbit/sLocal endInternalNon-WECLA | V62: =IF(E62="BTW",IF(INDEX(BasketDesign!$J$9:$J$407,MATCH($B62,BasketDesign!$B$9:$B$407,0)),BasketDesign!$J$7,0),IF(INDEX(BasketDesign!$K$9:$K$407,MATCH($B62,BasketDesign!$B$9:$B$407,0)),BasketDesign!$K$7,0)) -> 0 | X62: 57 | Y62: CO411 | Z62: CO411: OR Analogue PC link connection cct prov | AA62: FALSE | AB62: BTW
A63: 58 | B63: SE436 | C63: SE436: PPC rental 140Mbit link local end | D63: SW112 | E63: BTW | F63: BTW | G63: PPC | H63: le | I63: Non-WECLA | J63: 140/155Mbit/s | K63: Local end | L63: External | M63: TI | N63: 0 | O63: 0 | P63: 0 | Q63: 0 | S63: =IF(O63,MAX(S$5:S62)+1,0) -> 0 | T63: =IF(P63,MAX(T$5:T62)+1,0) -> 0 | U63: PPC140/155Mbit/sLocal endExternalNon-WECLA | V63: =IF(E63="BTW",IF(INDEX(BasketDesign!$J$9:$J$407,MATCH($B63,BasketDesign!$B$9:$B$407,0)),BasketDesign!$J$7,0),IF(INDEX(BasketDesign!$K$9:$K$407,MATCH($B63,BasketDesign!$B$9:$B$407,0)),BasketDesign!$K$7,0)) -> 0 | X63: 58 | Y63: CO421 | Z63: CO421: OR Analogue PC installation | AA63: FALSE | AB63: BTW
A64: 59 | B64: SE751 | C64: SE751: Netstream 16 LL 155mbit rentals LE | D64: SW112 | E64: BTW | F64: BTW | G64: Netstream | H64: le | I64: Non-WECLA | J64: 140/155Mbit/s | K64: Local end | L64: External | M64: TI | N64: 0 | O64: 0 | P64: 0 | Q64: 0 | S64: =IF(O64,MAX(S$5:S63)+1,0) -> 0 | T64: =IF(P64,MAX(T$5:T63)+1,0) -> 0 | U64: Netstream140/155Mbit/sLocal endExternalNon-WECLA | V64: =IF(E64="BTW",IF(INDEX(BasketDesign!$J$9:$J$407,MATCH($B64,BasketDesign!$B$9:$B$407,0)),BasketDesign!$J$7,0),IF(INDEX(BasketDesign!$K$9:$K$407,MATCH($B64,BasketDesign!$B$9:$B$407,0)),BasketDesign!$K$7,0)) -> 0 | X64: 59 | Y64: CO461 | Z64: CO461: Private Circuit test systems | AA64: FALSE | AB64: BTW
A65: 60 | B65: SE762 | C65: SE762: External 3rd Party POH Rental 155mbit | D65: SW140 | E65: BTW | F65: BTW | G65: 3rd Party POH | H65: le | I65: Non-WECLA | J65: 140/155Mbit/s | K65: Rental | L65: External | M65: TI | N65: 0 | O65: 0 | P65: 0 | Q65: 0 | S65: =IF(O65,MAX(S$5:S64)+1,0) -> 0 | T65: =IF(P65,MAX(T$5:T64)+1,0) -> 0 | U65: 3rd Party POH140/155Mbit/sRentalExternalNon-WECLA | V65: =IF(E65="BTW",IF(INDEX(BasketDesign!$J$9:$J$407,MATCH($B65,BasketDesign!$B$9:$B$407,0)),BasketDesign!$J$7,0),IF(INDEX(BasketDesign!$K$9:$K$407,MATCH($B65,BasketDesign!$B$9:$B$407,0)),BasketDesign!$K$7,0)) -> 0 | X65: 60 | Y65: CX902 | Z65: CX902: Wholesale | AA65: TRUE | AB65: BTW
A66: 61 | B66: SE767 | C66: SE767: Extl 3rd Party POH Rental 155mbit eff | D66: SW140 | E66: BTW | F66: BTW | G66: 3rd Party POH | H66: le | I66: Non-WECLA | J66: 140/155Mbit/s | K66: Rental | L66: External | M66: TI | N66: 0 | O66: 0 | P66: 0 | Q66: 0 | S66: =IF(O66,MAX(S$5:S65)+1,0) -> 0 | T66: =IF(P66,MAX(T$5:T65)+1,0) -> 0 | U66: 3rd Party POH140/155Mbit/sRentalExternalNon-WECLA | V66: =IF(E66="BTW",IF(INDEX(BasketDesign!$J$9:$J$407,MATCH($B66,BasketDesign!$B$9:$B$407,0)),BasketDesign!$J$7,0),IF(INDEX(BasketDesign!$K$9:$K$407,MATCH($B66,BasketDesign!$B$9:$B$407,0)),BasketDesign!$K$7,0)) -> 0 | X66: 61 | Y66: CG105 | Z66: CG105: PPCs 34 45Mbit regional Trunk WECLA | AA66: FALSE | AB66: BTW
A67: 62 | B67: SO436 | C67: SO436: PC rental 140Mbit link local end | D67: SW112 | E67: BTW | F67: BTW | G67: PPC | H67: le | I67: Non-WECLA | J67: 140/155Mbit/s | K67: Local end | L67: Internal | M67: TI | N67: 0 | O67: 0 | P67: 0 | Q67: 0 | S67: =IF(O67,MAX(S$5:S66)+1,0) -> 0 | T67: =IF(P67,MAX(T$5:T66)+1,0) -> 0 | U67: PPC140/155Mbit/sLocal endInternalNon-WECLA | V67: =IF(E67="BTW",IF(INDEX(BasketDesign!$J$9:$J$407,MATCH($B67,BasketDesign!$B$9:$B$407,0)),BasketDesign!$J$7,0),IF(INDEX(BasketDesign!$K$9:$K$407,MATCH($B67,BasketDesign!$B$9:$B$407,0)),BasketDesign!$K$7,0)) -> 0 | X67: 62 | Y67: CG106 | Z67: CG106: PPCs 140 155Mbit regional Trunk WECLA | AA67: FALSE | AB67: BTW
A68: 63 | B68: ST436 | C68: ST436: Site Connect 140Mbits rentals | D68: SW112 | E68: BTW | F68: BTW | G68: SiteConnect | H68: le | I68: Non-WECLA | J68: 140/155Mbit/s | K68: Local end | L68: Internal | M68: TI | N68: 0 | O68: 0 | P68: 0 | Q68: 0 | S68: =IF(O68,MAX(S$5:S67)+1,0) -> 0 | T68: =IF(P68,MAX(T$5:T67)+1,0) -> 0 | U68: SiteConnect140/155Mbit/sLocal endInternalNon-WECLA | V68: =IF(E68="BTW",IF(INDEX(BasketDesign!$J$9:$J$407,MATCH($B68,BasketDesign!$B$9:$B$407,0)),BasketDesign!$J$7,0),IF(INDEX(BasketDesign!$K$9:$K$407,MATCH($B68,BasketDesign!$B$9:$B$407,0)),BasketDesign!$K$7,0)) -> 0 | X68: 63 | Y68: CG107 | Z68: CG107: ProtPath PC rent 2Mbit link perkm regional trunk | AA68: FALSE | AB68: BTW
A69: 64 | B69: SE763 | C69: SE763: External 3rd Party PoH Rental 2mbit Copper | D69: SW140 | E69: BTW | F69: BTW | G69: 3rd Party POH | H69: le | I69: Non-WECLA | J69: 2Mbit/s | K69: Rental | L69: External | M69: TI | N69: 0 | O69: 0 | P69: 0 | Q69: 0 | S69: =IF(O69,MAX(S$5:S68)+1,0) -> 0 | T69: =IF(P69,MAX(T$5:T68)+1,0) -> 0 | U69: 3rd Party POH2Mbit/sRentalExternalNon-WECLA | V69: =IF(E69="BTW",IF(INDEX(BasketDesign!$J$9:$J$407,MATCH($B69,BasketDesign!$B$9:$B$407,0)),BasketDesign!$J$7,0),IF(INDEX(BasketDesign!$K$9:$K$407,MATCH($B69,BasketDesign!$B$9:$B$407,0)),BasketDesign!$K$7,0)) -> 0 | X69: 64 | Y69: CG108 | Z69: CG108: ProtPath PC rent 34Mbit link perkm regional trunk | AA69: FALSE | AB69: BTW
A70: 65 | B70: SE768 | C70: SE768: Extl 3rd Party PoH Rental 2mbit Copper eff | D70: SW140 | E70: BTW | F70: BTW | G70: 3rd Party POH | H70: le | I70: Non-WECLA | J70: 2Mbit/s | K70: Rental | L70: External | M70: TI | N70: 0 | O70: 0 | P70: 0 | Q70: 0 | S70: =IF(O70,MAX(S$5:S69)+1,0) -> 0 | T70: =IF(P70,MAX(T$5:T69)+1,0) -> 0 | U70: =IF(A70=0,0,G70&J70&K70&L70&I70) -> 3rd Party POH2Mbit/sRentalExternalNon-WECLA | V70: =IF(E70="BTW",IF(INDEX(BasketDesign!$J$9:$J$407,MATCH($B70,BasketDesign!$B$9:$B$407,0)),BasketDesign!$J$7,0),IF(INDEX(BasketDesign!$K$9:$K$407,MATCH($B70,BasketDesign!$B$9:$B$407,0)),BasketDesign!$K$7,0)) -> 0 | X70: 65 | Y70: CG109 | Z70: CG109: ProtPath PC rent 140Mbit link perkm regional trunk | AA70: FALSE | AB70: BTW
A71: 66 | B71: SE439 | C71: SE439: PPC rental 2Mbit local end fibre | D71: SW100 | E71: BTW | F71: BTW | G71: PPC | H71: le | I71: Non-WECLA | J71: 2Mbit/s | K71: Local end | L71: External | M71: TI | N71: 0 | O71: 0 | P71: 0 | Q71: 0 | S71: =IF(O71,MAX(S$5:S70)+1,0) -> 0 | T71: =IF(P71,MAX(T$5:T70)+1,0) -> 0 | U71: PPC2Mbit/sLocal endExternalNon-WECLA | V71: =IF(E71="BTW",IF(INDEX(BasketDesign!$J$9:$J$407,MATCH($B71,BasketDesign!$B$9:$B$407,0)),BasketDesign!$J$7,0),IF(INDEX(BasketDesign!$K$9:$K$407,MATCH($B71,BasketDesign!$B$9:$B$407,0)),BasketDesign!$K$7,0)) -> TI | X71: 66 | Y71: CG207 | Z71: CG207: ProtPath PC rent 2Mbit link perkm national trunk | AA71: FALSE | AB71: BTW
A72: 67 | B72: SE764 | C72: SE764: External 3rd Party PoH Rental 2mbit Fibre | D72: SW140 | E72: BTW | F72: BTW | G72: 3rd Party POH | H72: le | I72: Non-WECLA | J72: 2Mbit/s | K72: Rental | L72: External | M72: TI | N72: 0 | O72: 0 | P72: 0 | Q72: 0 | S72: =IF(O72,MAX(S$5:S71)+1,0) -> 0 | T72: =IF(P72,MAX(T$5:T71)+1,0) -> 0 | U72: 3rd Party POH2Mbit/sRentalExternalNon-WECLA | V72: =IF(E72="BTW",IF(INDEX(BasketDesign!$J$9:$J$407,MATCH($B72,BasketDesign!$B$9:$B$407,0)),BasketDesign!$J$7,0),IF(INDEX(BasketDesign!$K$9:$K$407,MATCH($B72,BasketDesign!$B$9:$B$407,0)),BasketDesign!$K$7,0)) -> 0 | X72: 67 | Y72: CG208 | Z72: CG208: ProtPath PC rent 34Mbit link perkm national trunk | AA72: FALSE | AB72: BTW
A73: 68 | B73: SE769 | C73: SE769: Extl 3rd Party PoH Rental 2mbit Fibre eff | D73: SW140 | E73: BTW | F73: BTW | G73: 3rd Party POH | H73: le | I73: Non-WECLA | J73: 2Mbit/s | K73: Rental | L73: External | M73: TI | N73: 0 | O73: 0 | P73: 0 | Q73: 0 | S73: =IF(O73,MAX(S$5:S72)+1,0) -> 0 | T73: =IF(P73,MAX(T$5:T72)+1,0) -> 0 | U73: 3rd Party POH2Mbit/sRentalExternalNon-WECLA | V73: =IF(E73="BTW",IF(INDEX(BasketDesign!$J$9:$J$407,MATCH($B73,BasketDesign!$B$9:$B$407,0)),BasketDesign!$J$7,0),IF(INDEX(BasketDesign!$K$9:$K$407,MATCH($B73,BasketDesign!$B$9:$B$407,0)),BasketDesign!$K$7,0)) -> 0 | X73: 68 | Y73: CG209 | Z73: CG209: ProtPath PC rent 140Mbit link perkm national trunk | AA73: FALSE | AB73: BTW
A74: 69 | B74: SH439 | C74: SH439: RBS rental 2Mbit local end fibre | D74: SW100 | E74: BTW | F74: BTW | G74: RBS | H74: le | I74: Non-WECLA | J74: 2Mbit/s | K74: Local end | L74: External | M74: TI | N74: 0 | O74: 0 | P74: 0 | Q74: 0 | S74: =IF(O74,MAX(S$5:S73)+1,0) -> 0 | T74: =IF(P74,MAX(T$5:T73)+1,0) -> 0 | U74: RBS2Mbit/sLocal endExternalNon-WECLA | V74: =IF(E74="BTW",IF(INDEX(BasketDesign!$J$9:$J$407,MATCH($B74,BasketDesign!$B$9:$B$407,0)),BasketDesign!$J$7,0),IF(INDEX(BasketDesign!$K$9:$K$407,MATCH($B74,BasketDesign!$B$9:$B$407,0)),BasketDesign!$K$7,0)) -> TI | X74: 69 | Y74: CF550 | Z74: CF550: OR PPCs 34 45Mb Link CELA | AA74: FALSE | AB74: BTW
A75: 70 | B75: SH441 | C75: SH441: RBS rental 2Mb le fibre 256k | D75: SW100 | E75: BTW | F75: BTW | G75: RBS | H75: le | I75: Non-WECLA | J75: Sub 2Mbit/s | K75: Local end | L75: External | M75: TI | N75: 0 | O75: 0 | P75: 0 | Q75: 0 | S75: =IF(O75,MAX(S$5:S74)+1,0) -> 0 | T75: =IF(P75,MAX(T$5:T74)+1,0) -> 0 | U75: RBSSub 2Mbit/sLocal endExternalNon-WECLA | V75: =IF(E75="BTW",IF(INDEX(BasketDesign!$J$9:$J$407,MATCH($B75,BasketDesign!$B$9:$B$407,0)),BasketDesign!$J$7,0),IF(INDEX(BasketDesign!$K$9:$K$407,MATCH($B75,BasketDesign!$B$9:$B$407,0)),BasketDesign!$K$7,0)) -> TI | X75: 70 | Y75: CF551 | Z75: CF551: OR PPCs 34 45Mb Distribution CELA | AA75: FALSE | AB75: BTW
A76: 71 | B76: SO439 | C76: SO439: PC rental 2Mbit local end fibre | D76: SW100 | E76: BTW | F76: BTW | G76: PPC | H76: le | I76: Non-WECLA | J76: 2Mbit/s | K76: Local end | L76: Internal | M76: TI | N76: 0 | O76: 0 | P76: 0 | Q76: 0 | S76: =IF(O76,MAX(S$5:S75)+1,0) -> 0 | T76: =IF(P76,MAX(T$5:T75)+1,0) -> 0 | U76: PPC2Mbit/sLocal endInternalNon-WECLA | V76: =IF(E76="BTW",IF(INDEX(BasketDesign!$J$9:$J$407,MATCH($B76,BasketDesign!$B$9:$B$407,0)),BasketDesign!$J$7,0),IF(INDEX(BasketDesign!$K$9:$K$407,MATCH($B76,BasketDesign!$B$9:$B$407,0)),BasketDesign!$K$7,0)) -> TI | X76: 71 | Y76: CF553 | Z76: CF553: OR PPCs 140 155Mb Link CELA | AA76: FALSE | AB76: BTW
A77: 72 | B77: ST439 | C77: ST439: Siteconnect PPC rental 2Mbit local end fibre | D77: SW100 | E77: BTW | F77: BTW | G77: SiteConnect | H77: le | I77: Non-WECLA | J77: 2Mbit/s | K77: Local end | L77: Internal | M77: TI | N77: 0 | O77: 0 | P77: 0 | Q77: 0 | S77: =IF(O77,MAX(S$5:S76)+1,0) -> 0 | T77: =IF(P77,MAX(T$5:T76)+1,0) -> 0 | U77: SiteConnect2Mbit/sLocal endInternalNon-WECLA | V77: =IF(E77="BTW",IF(INDEX(BasketDesign!$J$9:$J$407,MATCH($B77,BasketDesign!$B$9:$B$407,0)),BasketDesign!$J$7,0),IF(INDEX(BasketDesign!$K$9:$K$407,MATCH($B77,BasketDesign!$B$9:$B$407,0)),BasketDesign!$K$7,0)) -> TI | X77: 72 | Y77: CF554 | Z77: CF554: OR PPCs 140 155Mb Distribution CELA | AA77: FALSE | AB77: BTW
A78: 73 | B78: SY439 | C78: SY439: PPC rental 2Mbit CLZ local end fibre ext | D78: SW100 | E78: BTW | F78: BTW | G78: PPC | H78: le | I78: Non-WECLA | J78: 2Mbit/s | K78: Local end | L78: External | M78: TI | N78: 0 | O78: 0 | P78: 0 | Q78: 0 | S78: =IF(O78,MAX(S$5:S77)+1,0) -> 0 | T78: =IF(P78,MAX(T$5:T77)+1,0) -> 0 | U78: PPC2Mbit/sLocal endExternalNon-WECLA | V78: =IF(E78="BTW",IF(INDEX(BasketDesign!$J$9:$J$407,MATCH($B78,BasketDesign!$B$9:$B$407,0)),BasketDesign!$J$7,0),IF(INDEX(BasketDesign!$K$9:$K$407,MATCH($B78,BasketDesign!$B$9:$B$407,0)),BasketDesign!$K$7,0)) -> TI | X78: 73 | Y78: CG205 | Z78: CG205: PPCs 34 45Mbit national Trunk WECLA | AA78: FALSE | AB78: BTW
A79: 74 | B79: SY764 | C79: SY764: External 3rd Party PoH Rental 2mbit CLZ | D79: SW140 | E79: BTW | F79: BTW | G79: 3rd Party POH | H79: le | I79: Non-WECLA | J79: 2Mbit/s | K79: Rental | L79: External | M79: TI | N79: 0 | O79: 0 | P79: 0 | Q79: 0 | S79: =IF(O79,MAX(S$5:S78)+1,0) -> 0 | T79: =IF(P79,MAX(T$5:T78)+1,0) -> 0 | U79: 3rd Party POH2Mbit/sRentalExternalNon-WECLA | V79: =IF(E79="BTW",IF(INDEX(BasketDesign!$J$9:$J$407,MATCH($B79,BasketDesign!$B$9:$B$407,0)),BasketDesign!$J$7,0),IF(INDEX(BasketDesign!$K$9:$K$407,MATCH($B79,BasketDesign!$B$9:$B$407,0)),BasketDesign!$K$7,0)) -> 0 | X79: 74 | Y79: CG206 | Z79: CG206: PPCs 140 155Mbit national Trunk WECLA | AA79: FALSE | AB79: BTW
A80: 75 | B80: SY765 | C80: SY765: Extl 3rd Party PoH Rental 2mbit CLZ eff | D80: SW140 | E80: BTW | F80: BTW | G80: 3rd Party POH | H80: le | I80: Non-WECLA | J80: 2Mbit/s | K80: Rental | L80: External | M80: TI | N80: 0 | O80: 0 | P80: 0 | Q80: 0 | S80: =IF(O80,MAX(S$5:S79)+1,0) -> 0 | T80: =IF(P80,MAX(T$5:T79)+1,0) -> 0 | U80: 3rd Party POH2Mbit/sRentalExternalNon-WECLA | V80: =IF(E80="BTW",IF(INDEX(BasketDesign!$J$9:$J$407,MATCH($B80,BasketDesign!$B$9:$B$407,0)),BasketDesign!$J$7,0),IF(INDEX(BasketDesign!$K$9:$K$407,MATCH($B80,BasketDesign!$B$9:$B$407,0)),BasketDesign!$K$7,0)) -> 0 | X80: 75 | Y80: CR550 | Z80: CR550: PPCs 34 45Mb Link CELA | AA80: FALSE | AB80: BTW
A81: 76 | B81: SZ439 | C81: SZ439: PC rental 2Mbit CLZ local end fibre int | D81: SW100 | E81: BTW | F81: BTW | G81: PPC | H81: le | I81: Non-WECLA | J81: 2Mbit/s | K81: Local end | L81: Internal | M81: TI | N81: 0 | O81: 0 | P81: 0 | Q81: 0 | S81: =IF(O81,MAX(S$5:S80)+1,0) -> 0 | T81: =IF(P81,MAX(T$5:T80)+1,0) -> 0 | U81: PPC2Mbit/sLocal endInternalNon-WECLA | V81: =IF(E81="BTW",IF(INDEX(BasketDesign!$J$9:$J$407,MATCH($B81,BasketDesign!$B$9:$B$407,0)),BasketDesign!$J$7,0),IF(INDEX(BasketDesign!$K$9:$K$407,MATCH($B81,BasketDesign!$B$9:$B$407,0)),BasketDesign!$K$7,0)) -> TI | X81: 76 | Y81: CR551 | Z81: CR551: PPCs 34 45Mb Distribution CELA | AA81: FALSE | AB81: BTW
A82: 77 | B82: SPE371 | C82: SPE371: Prot Path PPC rental 2Mbit link per km dist | D82: SW100 | E82: BTW | F82: BTW | G82: Prot path & res. | H82: km | I82: Non-WECLA | J82: 2Mbit/s | K82: Distribution | L82: External | M82: TI | N82: 0 | O82: 0 | P82: 0 | Q82: 0 | S82: =IF(O82,MAX(S$5:S81)+1,0) -> 0 | T82: =IF(P82,MAX(T$5:T81)+1,0) -> 0 | U82: Prot path & res.2Mbit/sDistributionExternalNon-WECLA | V82: =IF(E82="BTW",IF(INDEX(BasketDesign!$J$9:$J$407,MATCH($B82,BasketDesign!$B$9:$B$407,0)),BasketDesign!$J$7,0),IF(INDEX(BasketDesign!$K$9:$K$407,MATCH($B82,BasketDesign!$B$9:$B$407,0)),BasketDesign!$K$7,0)) -> TI | X82: 77 | Y82: CR553 | Z82: CR553: PPCs 140 155Mb Link CELA | AA82: FALSE | AB82: BTW
A83: 78 | B83: SPO371 | C83: SPO371: Prot Path PC rental 2Mbit link per km dist | D83: SW100 | E83: BTW | F83: BTW | G83: Prot path & res. | H83: km | I83: Non-WECLA | J83: 2Mbit/s | K83: Distribution | L83: Internal | M83: TI | N83: 0 | O83: 0 | P83: 0 | Q83: 0 | S83: =IF(O83,MAX(S$5:S82)+1,0) -> 0 | T83: =IF(P83,MAX(T$5:T82)+1,0) -> 0 | U83: Prot path & res.2Mbit/sDistributionInternalNon-WECLA | V83: =IF(E83="BTW",IF(INDEX(BasketDesign!$J$9:$J$407,MATCH($B83,BasketDesign!$B$9:$B$407,0)),BasketDesign!$J$7,0),IF(INDEX(BasketDesign!$K$9:$K$407,MATCH($B83,BasketDesign!$B$9:$B$407,0)),BasketDesign!$K$7,0)) -> TI | X83: 78 | Y83: CR554 | Z83: CR554: PPCs 140 155Mb Distribution CELA | AA83: FALSE | AB83: BTW
A84: 79 | B84: SPE373 | C84: SPE373: Prot Path PPC rental 34Mbit link per km dist | D84: SW111 | E84: BTW | F84: BTW | G84: Prot path & res. | H84: km | I84: Non-WECLA | J84: 34/45Mbit/s | K84: Distribution | L84: External | M84: TI | N84: 0 | O84: 0 | P84: 0 | Q84: 0 | S84: =IF(O84,MAX(S$5:S83)+1,0) -> 0 | T84: =IF(P84,MAX(T$5:T83)+1,0) -> 0 | U84: Prot path & res.34/45Mbit/sDistributionExternalNon-WECLA | V84: =IF(E84="BTW",IF(INDEX(BasketDesign!$J$9:$J$407,MATCH($B84,BasketDesign!$B$9:$B$407,0)),BasketDesign!$J$7,0),IF(INDEX(BasketDesign!$K$9:$K$407,MATCH($B84,BasketDesign!$B$9:$B$407,0)),BasketDesign!$K$7,0)) -> 0 | X84: 79 | Y84: CN616 | Z84: CN616: EBD | AA84: FALSE | AB84: OR
A85: 80 | B85: SPO373 | C85: SPO373: Prot Path PC rental 34Mbit link per km dist | D85: SW111 | E85: BTW | F85: BTW | G85: Prot path & res. | H85: km | I85: Non-WECLA | J85: 34/45Mbit/s | K85: Distribution | L85: Internal | M85: TI | N85: 0 | O85: 0 | P85: 0 | Q85: 0 | S85: =IF(O85,MAX(S$5:S84)+1,0) -> 0 | T85: =IF(P85,MAX(T$5:T84)+1,0) -> 0 | U85: Prot path & res.34/45Mbit/sDistributionInternalNon-WECLA | V85: =IF(E85="BTW",IF(INDEX(BasketDesign!$J$9:$J$407,MATCH($B85,BasketDesign!$B$9:$B$407,0)),BasketDesign!$J$7,0),IF(INDEX(BasketDesign!$K$9:$K$407,MATCH($B85,BasketDesign!$B$9:$B$407,0)),BasketDesign!$K$7,0)) -> 0 | X85: 80 | Y85: CN617 | Z85: CN617: EBD Extended Reach | AA85: FALSE | AB85: OR
A86: 81 | B86: SPE375 | C86: SPE375: Prot Path PPC rental 140Mbit link per km dist | D86: SW112 | E86: BTW | F86: BTW | G86: Prot path & res. | H86: km | I86: Non-WECLA | J86: 140/155Mbit/s | K86: Distribution | L86: External | M86: TI | N86: 0 | O86: 0 | P86: 0 | Q86: 0 | S86: =IF(O86,MAX(S$5:S85)+1,0) -> 0 | T86: =IF(P86,MAX(T$5:T85)+1,0) -> 0 | U86: Prot path & res.140/155Mbit/sDistributionExternalNon-WECLA | V86: =IF(E86="BTW",IF(INDEX(BasketDesign!$J$9:$J$407,MATCH($B86,BasketDesign!$B$9:$B$407,0)),BasketDesign!$J$7,0),IF(INDEX(BasketDesign!$K$9:$K$407,MATCH($B86,BasketDesign!$B$9:$B$407,0)),BasketDesign!$K$7,0)) -> 0 | X86: 81 | Y86: CN618 | Z86: CN618: EBD Resilience | AA86: FALSE | AB86: OR
A87: 82 | B87: SPO375 | C87: SPO375: Prot Path PC rental 140Mbit link per km dist | D87: SW112 | E87: BTW | F87: BTW | G87: Prot path & res. | H87: km | I87: Non-WECLA | J87: 140/155Mbit/s | K87: Distribution | L87: Internal | M87: TI | N87: 0 | O87: 0 | P87: 0 | Q87: 0 | S87: =IF(O87,MAX(S$5:S86)+1,0) -> 0 | T87: =IF(P87,MAX(T$5:T86)+1,0) -> 0 | U87: Prot path & res.140/155Mbit/sDistributionInternalNon-WECLA | V87: =IF(E87="BTW",IF(INDEX(BasketDesign!$J$9:$J$407,MATCH($B87,BasketDesign!$B$9:$B$407,0)),BasketDesign!$J$7,0),IF(INDEX(BasketDesign!$K$9:$K$407,MATCH($B87,BasketDesign!$B$9:$B$407,0)),BasketDesign!$K$7,0)) -> 0 | X87: 82 | Y87: CO447 | Z87: CO447: Backhaul extension services fibre etc | AA87: FALSE | AB87: OR
A88: 83 | B88: SPE383 | C88: SPE383: Prot Path PPC rental 2Mbit link | D88: SW100 | E88: BTW | F88: BTW | G88: Prot path & res. | H88: links | I88: Non-WECLA | J88: 2Mbit/s | K88: Link | L88: External | M88: TI | N88: 0 | O88: 0 | P88: 0 | Q88: 0 | S88: =IF(O88,MAX(S$5:S87)+1,0) -> 0 | T88: =IF(P88,MAX(T$5:T87)+1,0) -> 0 | U88: Prot path & res.2Mbit/sLinkExternalNon-WECLA | V88: =IF(E88="BTW",IF(INDEX(BasketDesign!$J$9:$J$407,MATCH($B88,BasketDesign!$B$9:$B$407,0)),BasketDesign!$J$7,0),IF(INDEX(BasketDesign!$K$9:$K$407,MATCH($B88,BasketDesign!$B$9:$B$407,0)),BasketDesign!$K$7,0)) -> TI | X88: 83 | Y88: CO450 | Z88: CO450: Wholesale LAN extension services fibre etc | AA88: FALSE | AB88: OR
A89: 84 | B89: SPO383 | C89: SPO383: Prot Path PC rental 2Mbit link | D89: SW100 | E89: BTW | F89: BTW | G89: Prot path & res. | H89: links | I89: Non-WECLA | J89: 2Mbit/s | K89: Link | L89: Internal | M89: TI | N89: 0 | O89: 0 | P89: 0 | Q89: 0 | S89: =IF(O89,MAX(S$5:S88)+1,0) -> 0 | T89: =IF(P89,MAX(T$5:T88)+1,0) -> 0 | U89: Prot path & res.2Mbit/sLinkInternalNon-WECLA | V89: =IF(E89="BTW",IF(INDEX(BasketDesign!$J$9:$J$407,MATCH($B89,BasketDesign!$B$9:$B$407,0)),BasketDesign!$J$7,0),IF(INDEX(BasketDesign!$K$9:$K$407,MATCH($B89,BasketDesign!$B$9:$B$407,0)),BasketDesign!$K$7,0)) -> TI | X89: 84 | Y89: CO484 | Z89: CO484: Ethernet main links | AA89: FALSE | AB89: OR
A90: 85 | B90: SPE385 | C90: SPE385: Prot Path PPC rental 34Mbit link | D90: SW111 | E90: BTW | F90: BTW | G90: Prot path & res. | H90: links | I90: Non-WECLA | J90: 34/45Mbit/s | K90: Link | L90: External | M90: TI | N90: 0 | O90: 0 | P90: 0 | Q90: 0 | S90: =IF(O90,MAX(S$5:S89)+1,0) -> 0 | T90: =IF(P90,MAX(T$5:T89)+1,0) -> 0 | U90: Prot path & res.34/45Mbit/sLinkExternalNon-WECLA | V90: =IF(E90="BTW",IF(INDEX(BasketDesign!$J$9:$J$407,MATCH($B90,BasketDesign!$B$9:$B$407,0)),BasketDesign!$J$7,0),IF(INDEX(BasketDesign!$K$9:$K$407,MATCH($B90,BasketDesign!$B$9:$B$407,0)),BasketDesign!$K$7,0)) -> 0 | X90: 85 | Y90: CO485 | Z90: CO485: Ethernet Electronics | AA90: FALSE | AB90: OR
A91: 86 | B91: SPO385 | C91: SPO385: Prot Path PC rental 34Mbit link | D91: SW111 | E91: BTW | F91: BTW | G91: Prot path & res. | H91: links | I91: Non-WECLA | J91: 34/45Mbit/s | K91: Link | L91: Internal | M91: TI | N91: 0 | O91: 0 | P91: 0 | Q91: 0 | S91: =IF(O91,MAX(S$5:S90)+1,0) -> 0 | T91: =IF(P91,MAX(T$5:T90)+1,0) -> 0 | U91: Prot path & res.34/45Mbit/sLinkInternalNon-WECLA | V91: =IF(E91="BTW",IF(INDEX(BasketDesign!$J$9:$J$407,MATCH($B91,BasketDesign!$B$9:$B$407,0)),BasketDesign!$J$7,0),IF(INDEX(BasketDesign!$K$9:$K$407,MATCH($B91,BasketDesign!$B$9:$B$407,0)),BasketDesign!$K$7,0)) -> 0 | X91: 86 | Y91: CW609 | Z91: CW609: Ethernet Access Direct Fibre | AA91: FALSE | AB91: OR
A92: 87 | B92: SPE388 | C92: SPE388: Prot Path PPC rental 140Mbit link | D92: SW112 | E92: BTW | F92: BTW | G92: Prot path & res. | H92: links | I92: Non-WECLA | J92: 140/155Mbit/s | K92: Link | L92: External | M92: TI | N92: 0 | O92: 0 | P92: 0 | Q92: 0 | S92: =IF(O92,MAX(S$5:S91)+1,0) -> 0 | T92: =IF(P92,MAX(T$5:T91)+1,0) -> 0 | U92: Prot path & res.140/155Mbit/sLinkExternalNon-WECLA | V92: =IF(E92="BTW",IF(INDEX(BasketDesign!$J$9:$J$407,MATCH($B92,BasketDesign!$B$9:$B$407,0)),BasketDesign!$J$7,0),IF(INDEX(BasketDesign!$K$9:$K$407,MATCH($B92,BasketDesign!$B$9:$B$407,0)),BasketDesign!$K$7,0)) -> 0 | X92: 87 | Y92: CE104 | Z92: CE104: AISBO Excess Construction | AA92: TRUE | AB92: OR
A93: 88 | B93: SPO388 | C93: SPO388: Prot Path PC rental 140Mbit link | D93: SW112 | E93: BTW | F93: BTW | G93: Prot path & res. | H93: links | I93: Non-WECLA | J93: 140/155Mbit/s | K93: Link | L93: Internal | M93: TI | N93: 0 | O93: 0 | P93: 0 | Q93: 0 | S93: =IF(O93,MAX(S$5:S92)+1,0) -> 0 | T93: =IF(P93,MAX(T$5:T92)+1,0) -> 0 | U93: Prot path & res.140/155Mbit/sLinkInternalNon-WECLA | V93: =IF(E93="BTW",IF(INDEX(BasketDesign!$J$9:$J$407,MATCH($B93,BasketDesign!$B$9:$B$407,0)),BasketDesign!$J$7,0),IF(INDEX(BasketDesign!$K$9:$K$407,MATCH($B93,BasketDesign!$B$9:$B$407,0)),BasketDesign!$K$7,0)) -> 0 | X93: 88 | Y93: CL578 | Z93: CL578: OR Service Centre Assurance Ethernet | AA93: TRUE | AB93: OR
A94: 89 | B94: SPE434 | C94: SPE434: Prot Path PPC rental 34Mbit local end | D94: SW111 | E94: BTW | F94: BTW | G94: Prot path & res. | H94: le | I94: Non-WECLA | J94: 34/45Mbit/s | K94: Local end | L94: External | M94: TI | N94: 0 | O94: 0 | P94: 0 | Q94: 0 | S94: =IF(O94,MAX(S$5:S93)+1,0) -> 0 | T94: =IF(P94,MAX(T$5:T93)+1,0) -> 0 | U94: Prot path & res.34/45Mbit/sLocal endExternalNon-WECLA | V94: =IF(E94="BTW",IF(INDEX(BasketDesign!$J$9:$J$407,MATCH($B94,BasketDesign!$B$9:$B$407,0)),BasketDesign!$J$7,0),IF(INDEX(BasketDesign!$K$9:$K$407,MATCH($B94,BasketDesign!$B$9:$B$407,0)),BasketDesign!$K$7,0)) -> 0 | X94: 89 | Y94: CO772 | Z94: CO772: Openreach Systems Development Ethernet Specific | AA94: FALSE | AB94: OR
A95: 90 | B95: SPO434 | C95: SPO434: Prot Path PC rental 34Mbit local end | D95: SW111 | E95: BTW | F95: BTW | G95: Prot path & res. | H95: le | I95: Non-WECLA | J95: 34/45Mbit/s | K95: Local end | L95: Internal | M95: TI | N95: 0 | O95: 0 | P95: 0 | Q95: 0 | S95: =IF(O95,MAX(S$5:S94)+1,0) -> 0 | T95: =IF(P95,MAX(T$5:T94)+1,0) -> 0 | U95: Prot path & res.34/45Mbit/sLocal endInternalNon-WECLA | V95: =IF(E95="BTW",IF(INDEX(BasketDesign!$J$9:$J$407,MATCH($B95,BasketDesign!$B$9:$B$407,0)),BasketDesign!$J$7,0),IF(INDEX(BasketDesign!$K$9:$K$407,MATCH($B95,BasketDesign!$B$9:$B$407,0)),BasketDesign!$K$7,0)) -> 0 | X95: 90 | Y95: CP502 | Z95: CP502: Openreach sales product management | AA95: TRUE | AB95: OR
A96: 91 | B96: SPE436 | C96: SPE436: Prot Path PPC rental 140Mbit local end | D96: SW112 | E96: BTW | F96: BTW | G96: Prot path & res. | H96: le | I96: Non-WECLA | J96: 140/155Mbit/s | K96: Local end | L96: External | M96: TI | N96: 0 | O96: 0 | P96: 0 | Q96: 0 | S96: =IF(O96,MAX(S$5:S95)+1,0) -> 0 | T96: =IF(P96,MAX(T$5:T95)+1,0) -> 0 | U96: Prot path & res.140/155Mbit/sLocal endExternalNon-WECLA | V96: =IF(E96="BTW",IF(INDEX(BasketDesign!$J$9:$J$407,MATCH($B96,BasketDesign!$B$9:$B$407,0)),BasketDesign!$J$7,0),IF(INDEX(BasketDesign!$K$9:$K$407,MATCH($B96,BasketDesign!$B$9:$B$407,0)),BasketDesign!$K$7,0)) -> 0 | X96: 91 | Y96: CL160 | Z96: CL160: Routeing records | AA96: FALSE | AB96: OR
A97: 92 | B97: SPO436 | C97: SPO436: Prot Path PC rental 140Mbit local end | D97: SW112 | E97: BTW | F97: BTW | G97: Prot path & res. | H97: le | I97: Non-WECLA | J97: 140/155Mbit/s | K97: Local end | L97: Internal | M97: TI | N97: 0 | O97: 0 | P97: 0 | Q97: 0 | S97: =IF(O97,MAX(S$5:S96)+1,0) -> 0 | T97: =IF(P97,MAX(T$5:T96)+1,0) -> 0 | U97: Prot path & res.140/155Mbit/sLocal endInternalNon-WECLA | V97: =IF(E97="BTW",IF(INDEX(BasketDesign!$J$9:$J$407,MATCH($B97,BasketDesign!$B$9:$B$407,0)),BasketDesign!$J$7,0),IF(INDEX(BasketDesign!$K$9:$K$407,MATCH($B97,BasketDesign!$B$9:$B$407,0)),BasketDesign!$K$7,0)) -> 0 | X97: 92 | Y97: CL573 | Z97: CL573: OR Service Centre Provision Ethernet | AA97: TRUE | AB97: OR
A98: 93 | B98: SPE439 | C98: SPE439: Prot Path PPC rental 2Mbit local end fibre | D98: SW100 | E98: BTW | F98: BTW | G98: Prot path & res. | H98: le | I98: Non-WECLA | J98: 2Mbit/s | K98: Local end | L98: External | M98: TI | N98: 0 | O98: 0 | P98: 0 | Q98: 0 | S98: =IF(O98,MAX(S$5:S97)+1,0) -> 0 | T98: =IF(P98,MAX(T$5:T97)+1,0) -> 0 | U98: Prot path & res.2Mbit/sLocal endExternalNon-WECLA | V98: =IF(E98="BTW",IF(INDEX(BasketDesign!$J$9:$J$407,MATCH($B98,BasketDesign!$B$9:$B$407,0)),BasketDesign!$J$7,0),IF(INDEX(BasketDesign!$K$9:$K$407,MATCH($B98,BasketDesign!$B$9:$B$407,0)),BasketDesign!$K$7,0)) -> TI | X98: 93 | Y98: CW617 | Z98: CW617: Other Ethernet Rentals Internal | AA98: FALSE | AB98: OR
A99: 94 | B99: SPO439 | C99: SPO439: Prot Path PC rental 2Mbit local end fibre | D99: SW100 | E99: BTW | F99: BTW | G99: Prot path & res. | H99: le | I99: Non-WECLA | J99: 2Mbit/s | K99: Local end | L99: Internal | M99: TI | N99: 0 | O99: 0 | P99: 0 | Q99: 0 | S99: =IF(O99,MAX(S$5:S98)+1,0) -> 0 | T99: =IF(P99,MAX(T$5:T98)+1,0) -> 0 | U99: Prot path & res.2Mbit/sLocal endInternalNon-WECLA | V99: =IF(E99="BTW",IF(INDEX(BasketDesign!$J$9:$J$407,MATCH($B99,BasketDesign!$B$9:$B$407,0)),BasketDesign!$J$7,0),IF(INDEX(BasketDesign!$K$9:$K$407,MATCH($B99,BasketDesign!$B$9:$B$407,0)),BasketDesign!$K$7,0)) -> TI | X99: 94 | Y99: CW619 | Z99: CW619: Other Ethernet Connection Internal | AA99: FALSE | AB99: OR
A100: 95 | B100: SQ103 | C100: SQ103: WS Low Tisbo Excess Construction | D100: SW100 | E100: BTW | F100: BTW | G100: ECC | H100: 0 | I100: Non-WECLA | J100: Up to 8Mbit/s | K100: 0 | L100: Internal | M100: TI | N100: 0 | O100: 0 | P100: 0 | Q100: 0 | S100: =IF(O100,MAX(S$5:S99)+1,0) -> 0 | T100: =IF(P100,MAX(T$5:T99)+1,0) -> 0 | U100: ECCUp to 8Mbit/s0InternalNon-WECLA | V100: =IF(E100="BTW",IF(INDEX(BasketDesign!$J$9:$J$407,MATCH($B100,BasketDesign!$B$9:$B$407,0)),BasketDesign!$J$7,0),IF(INDEX(BasketDesign!$K$9:$K$407,MATCH($B100,BasketDesign!$B$9:$B$407,0)),BasketDesign!$K$7,0)) -> 0 | X100: 95 | Y100: CW901 | Z100: CW901: Openreach non copper | AA100: TRUE | AB100: OR
A101: 96 | B101: SO417 | C101: SO417: 64Kbit PC link connection cct prov internal | D101: SW100 | E101: BTW | F101: BTW | G101: PPC | H101: ccts | I101: Non-WECLA | J101: 64Kbit/s | K101: Connection | L101: Internal | M101: TI | N101: 0 | O101: 0 | P101: 0 | Q101: 0 | S101: =IF(O101,MAX(S$5:S100)+1,0) -> 0 | T101: =IF(P101,MAX(T$5:T100)+1,0) -> 0 | U101: PPC64Kbit/sConnectionInternalNon-WECLA | V101: =IF(E101="BTW",IF(INDEX(BasketDesign!$J$9:$J$407,MATCH($B101,BasketDesign!$B$9:$B$407,0)),BasketDesign!$J$7,0),IF(INDEX(BasketDesign!$K$9:$K$407,MATCH($B101,BasketDesign!$B$9:$B$407,0)),BasketDesign!$K$7,0)) -> TI | X101: 96 | Y101: 0 | Z101: 0 | AA101: 0 | AB101: 0
A102: 97 | B102: SO418 | C102: SO418: 64kbit PC Re arranges | D102: SW100 | E102: BTW | F102: BTW | G102: PPC | H102: ccts | I102: Non-WECLA | J102: 64Kbit/s | K102: Re-arrange | L102: Internal | M102: TI | N102: 0 | O102: 0 | P102: 0 | Q102: 0 | S102: =IF(O102,MAX(S$5:S101)+1,0) -> 0 | T102: =IF(P102,MAX(T$5:T101)+1,0) -> 0 | U102: =IF(A102=0,0,G102&J102&K102&L102&I102) -> PPC64Kbit/sRe-arrangeInternalNon-WECLA | V102: =IF(E102="BTW",IF(INDEX(BasketDesign!$J$9:$J$407,MATCH($B102,BasketDesign!$B$9:$B$407,0)),BasketDesign!$J$7,0),IF(INDEX(BasketDesign!$K$9:$K$407,MATCH($B102,BasketDesign!$B$9:$B$407,0)),BasketDesign!$K$7,0)) -> TI | X102: 97 | Y102: 0 | Z102: 0 | AA102: 0 | AB102: 0
A103: 98 | B103: SE417 | C103: SE417: 64Kbit PPC new connection provision external | D103: SW100 | E103: BTW | F103: BTW | G103: PPC | H103: ccts | I103: Non-WECLA | J103: 64Kbit/s | K103: Connection | L103: External | M103: TI | N103: 0 | O103: 0 | P103: 0 | Q103: 0 | S103: =IF(O103,MAX(S$5:S102)+1,0) -> 0 | T103: =IF(P103,MAX(T$5:T102)+1,0) -> 0 | U103: PPC64Kbit/sConnectionExternalNon-WECLA | V103: =IF(E103="BTW",IF(INDEX(BasketDesign!$J$9:$J$407,MATCH($B103,BasketDesign!$B$9:$B$407,0)),BasketDesign!$J$7,0),IF(INDEX(BasketDesign!$K$9:$K$407,MATCH($B103,BasketDesign!$B$9:$B$407,0)),BasketDesign!$K$7,0)) -> TI | X103: 98 | Y103: 0 | Z103: 0 | AA103: 0 | AB103: 0
A104: 99 | B104: SE418 | C104: SE418: 64kbit PPC Re arranges | D104: SW100 | E104: BTW | F104: BTW | G104: PPC | H104: ccts | I104: Non-WECLA | J104: 64Kbit/s | K104: Re-arrange | L104: External | M104: TI | N104: 0 | O104: 0 | P104: 0 | Q104: 0 | S104: =IF(O104,MAX(S$5:S103)+1,0) -> 0 | T104: =IF(P104,MAX(T$5:T103)+1,0) -> 0 | U104: PPC64Kbit/sRe-arrangeExternalNon-WECLA | V104: =IF(E104="BTW",IF(INDEX(BasketDesign!$J$9:$J$407,MATCH($B104,BasketDesign!$B$9:$B$407,0)),BasketDesign!$J$7,0),IF(INDEX(BasketDesign!$K$9:$K$407,MATCH($B104,BasketDesign!$B$9:$B$407,0)),BasketDesign!$K$7,0)) -> TI | X104: 99 | Y104: 0 | Z104: 0 | AA104: 0 | AB104: 0
A105: 100 | B105: SO413 | C105: SO413: 2Mbit PC link connection cct provision | D105: SW100 | E105: BTW | F105: BTW | G105: PPC | H105: ccts | I105: Non-WECLA | J105: 2Mbit/s | K105: Connection | L105: Internal | M105: TI | N105: 0 | O105: 0 | P105: 0 | Q105: 0 | S105: =IF(O105,MAX(S$5:S104)+1,0) -> 0 | T105: =IF(P105,MAX(T$5:T104)+1,0) -> 0 | U105: PPC2Mbit/sConnectionInternalNon-WECLA | V105: =IF(E105="BTW",IF(INDEX(BasketDesign!$J$9:$J$407,MATCH($B105,BasketDesign!$B$9:$B$407,0)),BasketDesign!$J$7,0),IF(INDEX(BasketDesign!$K$9:$K$407,MATCH($B105,BasketDesign!$B$9:$B$407,0)),BasketDesign!$K$7,0)) -> TI | X105: 100 | Y105: 0 | Z105: 0 | AA105: 0 | AB105: 0
A106: 101 | B106: SE413 | C106: SE413: 2Mbit PPC link connection cct provision | D106: SW100 | E106: BTW | F106: BTW | G106: PPC | H106: ccts | I106: Non-WECLA | J106: 2Mbit/s | K106: Connection | L106: External | M106: TI | N106: 0 | O106: 0 | P106: 0 | Q106: 0 | S106: =IF(O106,MAX(S$5:S105)+1,0) -> 0 | T106: =IF(P106,MAX(T$5:T105)+1,0) -> 0 | U106: PPC2Mbit/sConnectionExternalNon-WECLA | V106: =IF(E106="BTW",IF(INDEX(BasketDesign!$J$9:$J$407,MATCH($B106,BasketDesign!$B$9:$B$407,0)),BasketDesign!$J$7,0),IF(INDEX(BasketDesign!$K$9:$K$407,MATCH($B106,BasketDesign!$B$9:$B$407,0)),BasketDesign!$K$7,0)) -> TI | X106: 101 | Y106: 0 | Z106: 0 | AA106: 0 | AB106: 0
A107: 102 | B107: SL136 | C107: SL136: WH SDSL conns MPF TISBO | D107: SW100 | E107: BTW | F107: BTW | G107: SDSL | H107: conns | I107: Non-WECLA | J107: unspecified | K107: Connection | L107: Internal | M107: TI | N107: 0 | O107: 0 | P107: 0 | Q107: 0 | S107: =IF(O107,MAX(S$5:S106)+1,0) -> 0 | T107: =IF(P107,MAX(T$5:T106)+1,0) -> 0 | U107: SDSLunspecifiedConnectionInternalNon-WECLA | V107: =IF(E107="BTW",IF(INDEX(BasketDesign!$J$9:$J$407,MATCH($B107,BasketDesign!$B$9:$B$407,0)),BasketDesign!$J$7,0),IF(INDEX(BasketDesign!$K$9:$K$407,MATCH($B107,BasketDesign!$B$9:$B$407,0)),BasketDesign!$K$7,0)) -> 0 | X107: 102 | Y107: 0 | Z107: 0 | AA107: 0 | AB107: 0
A108: 103 | B108: SL137 | C108: SL137: WH SDSL rentals MPF TISBO | D108: SW100 | E108: BTW | F108: BTW | G108: SDSL | H108: lines | I108: Non-WECLA | J108: unspecified | K108: Rental | L108: Internal | M108: TI | N108: 0 | O108: 0 | P108: 0 | Q108: 0 | S108: =IF(O108,MAX(S$5:S107)+1,0) -> 0 | T108: =IF(P108,MAX(T$5:T107)+1,0) -> 0 | U108: SDSLunspecifiedRentalInternalNon-WECLA | V108: =IF(E108="BTW",IF(INDEX(BasketDesign!$J$9:$J$407,MATCH($B108,BasketDesign!$B$9:$B$407,0)),BasketDesign!$J$7,0),IF(INDEX(BasketDesign!$K$9:$K$407,MATCH($B108,BasketDesign!$B$9:$B$407,0)),BasketDesign!$K$7,0)) -> 0 | X108: 103 | Y108: 0 | Z108: 0 | AA108: 0 | AB108: 0
A109: 104 | B109: SH417 | C109: SH417: 64Kbit RBS new connection cct provision external | D109: SW100 | E109: BTW | F109: BTW | G109: RBS | H109: ccts | I109: Non-WECLA | J109: 64Kbit/s | K109: Connection | L109: External | M109: TI | N109: 0 | O109: 0 | P109: 0 | Q109: 0 | S109: =IF(O109,MAX(S$5:S108)+1,0) -> 0 | T109: =IF(P109,MAX(T$5:T108)+1,0) -> 0 | U109: RBS64Kbit/sConnectionExternalNon-WECLA | V109: =IF(E109="BTW",IF(INDEX(BasketDesign!$J$9:$J$407,MATCH($B109,BasketDesign!$B$9:$B$407,0)),BasketDesign!$J$7,0),IF(INDEX(BasketDesign!$K$9:$K$407,MATCH($B109,BasketDesign!$B$9:$B$407,0)),BasketDesign!$K$7,0)) -> TI | X109: 104 | Y109: 0 | Z109: 0 | AA109: 0 | AB109: 0
A110: 105 | B110: SH418 | C110: SH418: RBS 64Kbit PPC Re arranges | D110: SW100 | E110: BTW | F110: BTW | G110: RBS | H110: ccts | I110: Non-WECLA | J110: 64Kbit/s | K110: Re-arrange | L110: External | M110: TI | N110: 0 | O110: 0 | P110: 0 | Q110: 0 | S110: =IF(O110,MAX(S$5:S109)+1,0) -> 0 | T110: =IF(P110,MAX(T$5:T109)+1,0) -> 0 | U110: RBS64Kbit/sRe-arrangeExternalNon-WECLA | V110: =IF(E110="BTW",IF(INDEX(BasketDesign!$J$9:$J$407,MATCH($B110,BasketDesign!$B$9:$B$407,0)),BasketDesign!$J$7,0),IF(INDEX(BasketDesign!$K$9:$K$407,MATCH($B110,BasketDesign!$B$9:$B$407,0)),BasketDesign!$K$7,0)) -> TI | X110: 105 | Y110: 0 | Z110: 0 | AA110: 0 | AB110: 0
A111: 106 | B111: ST413 | C111: ST413: 2Mbit Siteconnect PPC link conn cct provision | D111: SW100 | E111: BTW | F111: BTW | G111: SiteConnect | H111: ccts | I111: Non-WECLA | J111: 2Mbit/s | K111: Connection | L111: Internal | M111: TI | N111: 0 | O111: 0 | P111: 0 | Q111: 0 | S111: =IF(O111,MAX(S$5:S110)+1,0) -> 0 | T111: =IF(P111,MAX(T$5:T110)+1,0) -> 0 | U111: SiteConnect2Mbit/sConnectionInternalNon-WECLA | V111: =IF(E111="BTW",IF(INDEX(BasketDesign!$J$9:$J$407,MATCH($B111,BasketDesign!$B$9:$B$407,0)),BasketDesign!$J$7,0),IF(INDEX(BasketDesign!$K$9:$K$407,MATCH($B111,BasketDesign!$B$9:$B$407,0)),BasketDesign!$K$7,0)) -> TI | X111: 106 | Y111: 0 | Z111: 0 | AA111: 0 | AB111: 0
A112: 107 | B112: SH413 | C112: SH413: RBS 2Mbit PPC link connection cct provision | D112: SW100 | E112: BTW | F112: BTW | G112: RBS | H112: ccts | I112: Non-WECLA | J112: 2Mbit/s | K112: Connection | L112: External | M112: TI | N112: 0 | O112: 0 | P112: 0 | Q112: 0 | S112: =IF(O112,MAX(S$5:S111)+1,0) -> 0 | T112: =IF(P112,MAX(T$5:T111)+1,0) -> 0 | U112: RBS2Mbit/sConnectionExternalNon-WECLA | V112: =IF(E112="BTW",IF(INDEX(BasketDesign!$J$9:$J$407,MATCH($B112,BasketDesign!$B$9:$B$407,0)),BasketDesign!$J$7,0),IF(INDEX(BasketDesign!$K$9:$K$407,MATCH($B112,BasketDesign!$B$9:$B$407,0)),BasketDesign!$K$7,0)) -> TI | X112: 107 | Y112: 0 | Z112: 0 | AA112: 0 | AB112: 0
A113: 108 | B113: SE740 | C113: SE740: Netstream 16 LL 2mbit connections | D113: SW100 | E113: BTW | F113: BTW | G113: Netstream | H113: ccts | I113: Non-WECLA | J113: 2Mbit/s | K113: Connection | L113: External | M113: TI | N113: 0 | O113: 0 | P113: 0 | Q113: 0 | S113: =IF(O113,MAX(S$5:S112)+1,0) -> 0 | T113: =IF(P113,MAX(T$5:T112)+1,0) -> 0 | U113: Netstream2Mbit/sConnectionExternalNon-WECLA | V113: =IF(E113="BTW",IF(INDEX(BasketDesign!$J$9:$J$407,MATCH($B113,BasketDesign!$B$9:$B$407,0)),BasketDesign!$J$7,0),IF(INDEX(BasketDesign!$K$9:$K$407,MATCH($B113,BasketDesign!$B$9:$B$407,0)),BasketDesign!$K$7,0)) -> 0 | X113: 108 | Y113: 0 | Z113: 0 | AA113: 0 | AB113: 0
A114: 109 | B114: SO473 | C114: SO473: Separation Diversity | D114: SW100 | E114: BTW | F114: BTW | G114: Separation & diversity | H114: ccts | I114: Non-WECLA | J114: Up to 8Mbit/s | K114: Rental | L114: Internal | M114: TI | N114: 0 | O114: 0 | P114: 0 | Q114: 0 | S114: =IF(O114,MAX(S$5:S113)+1,0) -> 0 | T114: =IF(P114,MAX(T$5:T113)+1,0) -> 0 | U114: Separation & diversityUp to 8Mbit/sRentalInternalNon-WECLA | V114: =IF(E114="BTW",IF(INDEX(BasketDesign!$J$9:$J$407,MATCH($B114,BasketDesign!$B$9:$B$407,0)),BasketDesign!$J$7,0),IF(INDEX(BasketDesign!$K$9:$K$407,MATCH($B114,BasketDesign!$B$9:$B$407,0)),BasketDesign!$K$7,0)) -> TI | X114: 109 | Y114: 0 | Z114: 0 | AA114: 0 | AB114: 0
A115: 110 | B115: SPO438 | C115: SPO438: Prot Path PC rental 2Mbit local end copper | D115: SW100 | E115: BTW | F115: BTW | G115: Prot path & res. | H115: le | I115: Non-WECLA | J115: 2Mbit/s | K115: Local end | L115: Internal | M115: TI | N115: 0 | O115: 0 | P115: 0 | Q115: 0 | S115: =IF(O115,MAX(S$5:S114)+1,0) -> 0 | T115: =IF(P115,MAX(T$5:T114)+1,0) -> 0 | U115: Prot path & res.2Mbit/sLocal endInternalNon-WECLA | V115: =IF(E115="BTW",IF(INDEX(BasketDesign!$J$9:$J$407,MATCH($B115,BasketDesign!$B$9:$B$407,0)),BasketDesign!$J$7,0),IF(INDEX(BasketDesign!$K$9:$K$407,MATCH($B115,BasketDesign!$B$9:$B$407,0)),BasketDesign!$K$7,0)) -> TI | X115: 110 | Y115: 0 | Z115: 0 | AA115: 0 | AB115: 0
A116: 111 | B116: SE473 | C116: SE473: Separation Diversity | D116: SW100 | E116: BTW | F116: BTW | G116: Separation & diversity | H116: ccts | I116: Non-WECLA | J116: Up to 8Mbit/s | K116: Rental | L116: External | M116: TI | N116: 0 | O116: 0 | P116: 0 | Q116: 0 | S116: =IF(O116,MAX(S$5:S115)+1,0) -> 0 | T116: =IF(P116,MAX(T$5:T115)+1,0) -> 0 | U116: Separation & diversityUp to 8Mbit/sRentalExternalNon-WECLA | V116: =IF(E116="BTW",IF(INDEX(BasketDesign!$J$9:$J$407,MATCH($B116,BasketDesign!$B$9:$B$407,0)),BasketDesign!$J$7,0),IF(INDEX(BasketDesign!$K$9:$K$407,MATCH($B116,BasketDesign!$B$9:$B$407,0)),BasketDesign!$K$7,0)) -> TI | X116: 111 | Y116: 0 | Z116: 0 | AA116: 0 | AB116: 0
A117: 112 | B117: SO474 | C117: SO474: Third Party Equipment PPC | D117: SW100 | E117: BTW | F117: BTW | G117: 3rd party infrastructure | H117: ccts | I117: Non-WECLA | J117: Up to 8Mbit/s | K117: Rental | L117: Internal | M117: TI | N117: 0 | O117: 0 | P117: 0 | Q117: 0 | S117: =IF(O117,MAX(S$5:S116)+1,0) -> 0 | T117: =IF(P117,MAX(T$5:T116)+1,0) -> 0 | U117: 3rd party infrastructureUp to 8Mbit/sRentalInternalNon-WECLA | V117: =IF(E117="BTW",IF(INDEX(BasketDesign!$J$9:$J$407,MATCH($B117,BasketDesign!$B$9:$B$407,0)),BasketDesign!$J$7,0),IF(INDEX(BasketDesign!$K$9:$K$407,MATCH($B117,BasketDesign!$B$9:$B$407,0)),BasketDesign!$K$7,0)) -> TI | X117: 112 | Y117: 0 | Z117: 0 | AA117: 0 | AB117: 0
A118: 113 | B118: SE474 | C118: SE474: Third Party Equipment PPC | D118: SW100 | E118: BTW | F118: BTW | G118: 3rd party infrastructure | H118: ccts | I118: Non-WECLA | J118: Up to 8Mbit/s | K118: Rental | L118: External | M118: TI | N118: 0 | O118: 0 | P118: 0 | Q118: 0 | S118: =IF(O118,MAX(S$5:S117)+1,0) -> 0 | T118: =IF(P118,MAX(T$5:T117)+1,0) -> 0 | U118: 3rd party infrastructureUp to 8Mbit/sRentalExternalNon-WECLA | V118: =IF(E118="BTW",IF(INDEX(BasketDesign!$J$9:$J$407,MATCH($B118,BasketDesign!$B$9:$B$407,0)),BasketDesign!$J$7,0),IF(INDEX(BasketDesign!$K$9:$K$407,MATCH($B118,BasketDesign!$B$9:$B$407,0)),BasketDesign!$K$7,0)) -> TI | X118: 113 | Y118: 0 | Z118: 0 | AA118: 0 | AB118: 0
A119: 114 | B119: SO475 | C119: SO475: Other Single Payment | D119: SW100 | E119: BTW | F119: BTW | G119: Separation & diversity | H119: ccts | I119: Non-WECLA | J119: Up to 8Mbit/s | K119: Rental | L119: Internal | M119: TI | N119: 0 | O119: 0 | P119: 0 | Q119: 0 | S119: =IF(O119,MAX(S$5:S118)+1,0) -> 0 | T119: =IF(P119,MAX(T$5:T118)+1,0) -> 0 | U119: Separation & diversityUp to 8Mbit/sRentalInternalNon-WECLA | V119: =IF(E119="BTW",IF(INDEX(BasketDesign!$J$9:$J$407,MATCH($B119,BasketDesign!$B$9:$B$407,0)),BasketDesign!$J$7,0),IF(INDEX(BasketDesign!$K$9:$K$407,MATCH($B119,BasketDesign!$B$9:$B$407,0)),BasketDesign!$K$7,0)) -> TI | X119: 114 | Y119: 0 | Z119: 0 | AA119: 0 | AB119: 0
A120: 115 | B120: SE476 | C120: SE476: Other single Payment external | D120: SW100 | E120: BTW | F120: BTW | G120: Separation & diversity | H120: ccts | I120: Non-WECLA | J120: Up to 8Mbit/s | K120: Rental | L120: External | M120: TI | N120: 0 | O120: 0 | P120: 0 | Q120: 0 | S120: =IF(O120,MAX(S$5:S119)+1,0) -> 0 | T120: =IF(P120,MAX(T$5:T119)+1,0) -> 0 | U120: Separation & diversityUp to 8Mbit/sRentalExternalNon-WECLA | V120: =IF(E120="BTW",IF(INDEX(BasketDesign!$J$9:$J$407,MATCH($B120,BasketDesign!$B$9:$B$407,0)),BasketDesign!$J$7,0),IF(INDEX(BasketDesign!$K$9:$K$407,MATCH($B120,BasketDesign!$B$9:$B$407,0)),BasketDesign!$K$7,0)) -> TI | X120: 115 | Y120: 0 | Z120: 0 | AA120: 0 | AB120: 0
A121: 116 | B121: SO410 | C121: SO410: 34 45Mbit PPC link conn cct prov | D121: SW111 | E121: BTW | F121: BTW | G121: PPC | H121: ccts | I121: Non-WECLA | J121: 34/45Mbit/s | K121: Connection | L121: Internal | M121: TI | N121: 0 | O121: 0 | P121: 0 | Q121: 0 | S121: =IF(O121,MAX(S$5:S120)+1,0) -> 0 | T121: =IF(P121,MAX(T$5:T120)+1,0) -> 0 | U121: PPC34/45Mbit/sConnectionInternalNon-WECLA | V121: =IF(E121="BTW",IF(INDEX(BasketDesign!$J$9:$J$407,MATCH($B121,BasketDesign!$B$9:$B$407,0)),BasketDesign!$J$7,0),IF(INDEX(BasketDesign!$K$9:$K$407,MATCH($B121,BasketDesign!$B$9:$B$407,0)),BasketDesign!$K$7,0)) -> 0 | X121: 116 | Y121: 0 | Z121: 0 | AA121: 0 | AB121: 0
A122: 117 | B122: SE410 | C122: SE410: 34 45Mbit PPC link conn cct provision | D122: SW111 | E122: BTW | F122: BTW | G122: PPC | H122: ccts | I122: Non-WECLA | J122: 34/45Mbit/s | K122: Connection | L122: External | M122: TI | N122: 0 | O122: 0 | P122: 0 | Q122: 0 | S122: =IF(O122,MAX(S$5:S121)+1,0) -> 0 | T122: =IF(P122,MAX(T$5:T121)+1,0) -> 0 | U122: PPC34/45Mbit/sConnectionExternalNon-WECLA | V122: =IF(E122="BTW",IF(INDEX(BasketDesign!$J$9:$J$407,MATCH($B122,BasketDesign!$B$9:$B$407,0)),BasketDesign!$J$7,0),IF(INDEX(BasketDesign!$K$9:$K$407,MATCH($B122,BasketDesign!$B$9:$B$407,0)),BasketDesign!$K$7,0)) -> 0 | X122: 117 | Y122: 0 | Z122: 0 | AA122: 0 | AB122: 0
A123: 118 | B123: SO416 | C123: SO416: 140 155Mbit PPC link conn cct prov | D123: SW112 | E123: BTW | F123: BTW | G123: PPC | H123: ccts | I123: Non-WECLA | J123: 140/155Mbit/s | K123: Connection | L123: Internal | M123: TI | N123: 0 | O123: 0 | P123: 0 | Q123: 0 | S123: =IF(O123,MAX(S$5:S122)+1,0) -> 0 | T123: =IF(P123,MAX(T$5:T122)+1,0) -> 0 | U123: PPC140/155Mbit/sConnectionInternalNon-WECLA | V123: =IF(E123="BTW",IF(INDEX(BasketDesign!$J$9:$J$407,MATCH($B123,BasketDesign!$B$9:$B$407,0)),BasketDesign!$J$7,0),IF(INDEX(BasketDesign!$K$9:$K$407,MATCH($B123,BasketDesign!$B$9:$B$407,0)),BasketDesign!$K$7,0)) -> 0 | X123: 118 | Y123: 0 | Z123: 0 | AA123: 0 | AB123: 0
A124: 119 | B124: SE416 | C124: SE416: 140 155Mbit PPC link conn cct prov | D124: SW112 | E124: BTW | F124: BTW | G124: PPC | H124: ccts | I124: Non-WECLA | J124: 140/155Mbit/s | K124: Connection | L124: External | M124: TI | N124: 0 | O124: 0 | P124: 0 | Q124: 0 | S124: =IF(O124,MAX(S$5:S123)+1,0) -> 0 | T124: =IF(P124,MAX(T$5:T123)+1,0) -> 0 | U124: PPC140/155Mbit/sConnectionExternalNon-WECLA | V124: =IF(E124="BTW",IF(INDEX(BasketDesign!$J$9:$J$407,MATCH($B124,BasketDesign!$B$9:$B$407,0)),BasketDesign!$J$7,0),IF(INDEX(BasketDesign!$K$9:$K$407,MATCH($B124,BasketDesign!$B$9:$B$407,0)),BasketDesign!$K$7,0)) -> 0 | X124: 119 | Y124: 0 | Z124: 0 | AA124: 0 | AB124: 0
A125: 120 | B125: SQ100 | C125: SQ100: WS Low Tisbo 3rd Pty Equipment Depn | D125: SW100 | E125: BTW | F125: BTW | G125: Equipment depreciation | H125: N/A | I125: Non-WECLA | J125: Up to 8Mbit/s | K125: 0 | L125: External | M125: TI | N125: 0 | O125: 0 | P125: 0 | Q125: 0 | S125: =IF(O125,MAX(S$5:S124)+1,0) -> 0 | T125: =IF(P125,MAX(T$5:T124)+1,0) -> 0 | U125: Equipment depreciationUp to 8Mbit/s0ExternalNon-WECLA | V125: =IF(E125="BTW",IF(INDEX(BasketDesign!$J$9:$J$407,MATCH($B125,BasketDesign!$B$9:$B$407,0)),BasketDesign!$J$7,0),IF(INDEX(BasketDesign!$K$9:$K$407,MATCH($B125,BasketDesign!$B$9:$B$407,0)),BasketDesign!$K$7,0)) -> 0 | X125: 120 | Y125: 0 | Z125: 0 | AA125: 0 | AB125: 0
... 145 more rows

Sheet Modelling starting values>>
A1: The disclosure of this sheet is only permitted to those nominated individuals and individuals occupying the roles and functional areas (and their relevant external advisers, sub-contractors and agents) listed in Annex 2 of the Undertakings given by BT to Ofcom pursuant to the Enterprise Act 2002.
A2: Modelling starting values
A3: This section of the model links to the base year costs derived in the base year cost modules.

Sheet Input data>>
A1: The disclosure of this sheet is only permitted to those nominated individuals and individuals occupying the roles and functional areas (and their relevant external advisers, sub-contractors and agents) listed in Annex 2 of the Undertakings given by BT to Ofcom pursuant to the Enterprise Act 2002.
A2: Input data
A3: This section of the model links to the outputs from the base year costs module. These are the inputs used as the starting cost values of the model.

Sheet Comp_CapCosts
A1: The disclosure of this sheet is only permitted to those nominated individuals and individuals occupying the roles and functional areas (and their relevant external advisers, sub-contractors and agents) listed in Annex 2 of the Undertakings given by BT to Ofcom pursuant to the Enterprise Act 2002.
A2: Capital costs by component | P2: GRC | AC2: NRC | AP2: OCM | BC2: HGL | BI2: NCA
A3: Units: £m | B3: Source: 2016 LLCC | E3: Cable | F3: Duct | G3: Transmission | H3: Local Exchange | I3: Main Exchange | J3: Land & Buildings | K3: Computers & OM | L3: Other Ntwk Eqpt | M3: Other | N3: Motor Transport | O3: Intangibles | P3: Total | R3: Cable | S3: Duct | T3: Transmission | U3: Local Exchange | V3: Main Exchange | W3: Land & Buildings | X3: Computers & OM | Y3: Other Ntwk Eqpt | Z3: Other | AA3: Motor Transport | AB3: Intangibles | AC3: Total | AE3: Cable | AF3: Duct | AG3: Transmission | AH3: Local Exchange | AI3: Main Exchange | AJ3: Land & Buildings | AK3: Computers & OM | AL3: Other Ntwk Eqpt | AM3: Other | AN3: Motor Transport | AO3: Intangibles | AP3: Total | AR3: Cable | AS3: Duct | AT3: Transmission | AU3: Local Exchange | AV3: Main Exchange | AW3: Land & Buildings | AX3: Computers & OM | AY3: Other Ntwk Eqpt | AZ3: Other | BA3: Motor Transport | BB3: Intangibles | BC3: Total | BE3: NCA - Debtors: internal | BF3: NCA - Debtors: external | BG3: NCA - Current liabilities (external) | BH3: NCA - Provisions | BI3: Total
A4: 1. Total costs | E4: GRC | F4: GRC | G4: GRC | H4: GRC | I4: GRC | J4: GRC | K4: GRC | L4: GRC | M4: GRC | N4: GRC | O4: GRC | P4: GRC | R4: NRC | S4: NRC | T4: NRC | U4: NRC | V4: NRC | W4: NRC | X4: NRC | Y4: NRC | Z4: NRC | AA4: NRC | AB4: NRC | AC4: NRC | AE4: OCM depreciation | AF4: OCM depreciation | AG4: OCM depreciation | AH4: OCM depreciation | AI4: OCM depreciation | AJ4: OCM depreciation | AK4: OCM depreciation | AL4: OCM depreciation | AM4: OCM depreciation | AN4: OCM depreciation | AO4: OCM depreciation | AP4: OCM depreciation | AR4: Holding gain | AS4: Holding gain | AT4: Holding gain | AU4: Holding gain | AV4: Holding gain | AW4: Holding gain | AX4: Holding gain | AY4: Holding gain | AZ4: Holding gain | BA4: Holding gain | BB4: Holding gain | BC4: Holding gain | BE4: NCA | BF4: NCA | BG4: NCA | BH4: NCA | BI4: NCA
A5: CF371 | B5: CF371: OR PC Rental 2Mbit link per km distribution | E5: 0.006506627873 | F5: 185.4449279 | G5: 388.1094148 | H5: 0 | I5: 0.002470466362 | J5: 52.59345596 | K5: 3.62249089 | L5: 27.68254954 | M5: 1.552823266 | N5: 0.2720182868 | O5: 7.536215585 | P5: 750.5571639 | R5: 0.007412295723 | S5: 70.2529042 | T5: 31.59226485 | U5: 0 | V5: 0.002419002409 | W5: 17.40760487 | X5: 0.3793663184 | Y5: 5.743909985 | Z5: 0.6454217124 | AA5: 0.134590178 | AB5: 2.45201996 | AC5: 149.7852368 | AE5: 0 | AF5: 4.082664423 | AG5: 5.973797816 | AH5: 0 | AI5: 0 | AJ5: 1.23984349 | AK5: 0.2004098785 | AL5: 0.8055476837 | AM5: 0.01278663375 | AN5: 0.00966261578 | AO5: 0.8860517874 | AP5: 16.13165866 | AR5: 0 | AS5: -0.7392977934 | AT5: 0.7925858467 | AU5: 0 | AV5: 0 | AW5: 0.09328316809 | AX5: 0 | AY5: 0.09928286962 | AZ5: 0 | BA5: 0 | BB5: 0 | BC5: 0.3995057315 | BE5: 4.123631971e-05 | BF5: 5.829533124 | BG5: -16.84969704 | BH5: -0.9128507012 | BI5: -7.248340058
A6: CF373 | B6: CF373: OR PC Rental 34Mbit link per km distribution | E6: 0.001061205382 | F6: 37.75694596 | G6: 36.78817783 | H6: 0 | I6: 0.000259573396 | J6: 6.072703098 | K6: 0.498907238 | L6: 3.670943215 | M6: 0.1526595249 | N6: 0.03332163884 | O6: 1.009290071 | P6: 83.47217934 | R6: 0.001163129092 | S6: 15.97308161 | T6: 4.483560031 | U6: 0 | V6: 0.0002812847841 | W6: 1.881749856 | X6: 0.03489058053 | Y6: 0.5568030784 | Z6: 0.08089264382 | AA6: 0.01200111714 | AB6: 0.2921700198 | AC6: 20.58409027 | AE6: 0 | AF6: 0.6935567709 | AG6: 0.7449680808 | AH6: 0 | AI6: 0 | AJ6: 0.1387184895 | AK6: 0.02203780473 | AL6: 0.07060166975 | AM6: 0.001177378541 | AN6: 0.0008818349142 | AO6: 0.09582332659 | AP6: 2.183992463 | AR6: 0 | AS6: -0.1288864764 | AT6: 0.150119504 | AU6: 0 | AV6: 0 | AW6: 0.01533245863 | AX6: 0 | AY6: 0.01813736597 | AZ6: 0 | BA6: 0 | BB6: 0 | BC6: 0.06375045207 | BE6: 5.602331147e-06 | BF6: 0.6490609086 | BG6: -1.622019649 | BH6: -0.1241613046 | BI6: -0.8452302918
A7: CF375 | B7: CF375: OR PC Rental 140Mbit link per km distribution | E7: 0.0007054627711 | F7: 24.96613077 | G7: 58.95206481 | H7: 0 | I7: 0.0003845154869 | J7: 4.862661229 | K7: 0.5072532771 | L7: 3.713129719 | M7: 0.1988518071 | N7: 0.03729269777 | O7: 0.9873503194 | P7: 91.06335461 | R7: 0.0006195086763 | S7: 9.583978349 | T7: 5.74409945 | U7: 0 | V7: 0.0004094354944 | W7: 2.06558567 | X7: 0.04520765135 | Y7: 1.059225703 | Z7: 0.07512995805 | AA7: 0.01220560936 | AB7: 0.3314006499 | AC7: 21.19344999 | AE7: 0 | AF7: 0.4787690151 | AG7: 1.087837033 | AH7: 0 | AI7: 0 | AJ7: 0.1627383717 | AK7: 0.02132701077 | AL7: 0.1479612798 | AM7: 0.001360256824 | AN7: 0.000973748164 | AO7: 0.1255804045 | AP7: 1.994737148 | AR7: 0 | AS7: -0.06946627987 | AT7: 0.1125673977 | AU7: 0 | AV7: 0 | AW7: -0.003024857751 | AX7: 0 | AY7: 0.001517325865 | AZ7: 0 | BA7: 0 | BB7: 0 | BC7: 0.01615766855 | BE7: 2.901565796e-06 | BF7: 0.8356302741 | BG7: -1.597900689 | BH7: -0.1324399619 | BI7: -0.6810977262
A8: CF381 | B8: CF381: OR PC Rental 64Kb link | E8: 0.6286778892 | F8: -2.99822288e-08 | G8: 13.84571625 | H8: 0 | I8: 0.0004650746668 | J8: 11.96210705 | K8: 0.6951422295 | L8: 86.22381286 | M8: 0.251654913 | N8: 0.1024871418 | O8: 1.271304837 | P8: 99.83872082 | R8: 0.1479433818 | S8: -7.010432111e-08 | T8: 0.8306275298 | U8: 0 | V8: 0.0006770127629 | W8: 8.997196407 | X8: 0.06837213786 | Y8: 5.438120775 | Z8: 0.1027119501 | AA8: 0.02946159335 | AB8: 0.2969301577 | AC8: 16.06097571 | AE8: 0.03429122552 | AF8: 0 | AG8: 0.1798933095 | AH8: 0 | AI8: 0 | AJ8: 0.8476882109 | AK8: 0.03895110808 | AL8: 1.137304572 | AM8: 0.005221505336 | AN8: 0.00233214756 | AO8: 0.1911347513 | AP8: 2.642967096 | AR8: 0 | AS8: 0 | AT8: 0 | AU8: 0 | AV8: 0 | AW8: -0.1222887482 | AX8: 0 | AY8: -0.07787021529 | AZ8: 0 | BA8: 0 | BB8: 0 | BC8: -0.1841608577 | BE8: -1.102490362e-05 | BF8: 1.396838536 | BG8: -2.509022829 | BH8: -0.332909702 | BI8: -2.120124813
A9: CF383 | B9: CF383: OR PC Rental 2Mb link | E9: 2.68507724 | F9: 9.683583351e-07 | G9: 36.8118708 | H9: 0 | I9: 0.000454875397 | J9: 8.165938158 | K9: 0.6678110064 | L9: 41.06858815 | M9: 0.2879985659 | N9: 0.1013533892 | O9: 1.390043303 | P9: 86.73249085 | R9: 0.7359873325 | S9: 1.195635265e-06 | T9: 2.70449597 | U9: 0 | V9: 0.0004819024153 | W9: 4.485802489 | X9: 0.07226138922 | Y9: 3.50125184 | Z9: 0.1307576799 | AA9: 0.03224506876 | AB9: 0.3472630541 | AC9: 11.79826772 | AE9: 0.1775691309 | AF9: 0 | AG9: 0.7326821454 | AH9: 0 | AI9: 0 | AJ9: 0.4356835651 | AK9: 0.02908424636 | AL9: 0.9479429663 | AM9: 0.001442918035 | AN9: 0.001809611339 | AO9: 0.1387357804 | AP9: 2.769361507 | AR9: 0 | AS9: 0 | AT9: 0 | AU9: 0 | AV9: 0 | AW9: -0.07480186116 | AX9: 0 | AY9: -0.0407416942 | AZ9: 0 | BA9: 0 | BB9: 0 | BC9: -0.128334938 | BE9: -8.304787277e-06 | BF9: 1.304170002 | BG9: -3.376766525 | BH9: -0.3398320202 | BI9: -2.253876416
A10: CF385 | B10: CF385: OR PC Rental 34Mb link | E10: 1.149934928e-06 | F10: 1.325015077e-07 | G10: 7.288934822 | H10: 0 | I10: 5.832075115e-05 | J10: 1.216602419 | K10: 0.0521139711 | L10: 1.329336921 | M10: 0.02202148116 | N10: 0.004868165213 | O10: 0.1112164026 | P10: 9.146600373 | R10: 1.31374996e-06 | S10: 1.071689696e-07 | T10: 0.5345694069 | U10: 0 | V10: 3.786773353e-05 | W10: 0.48537678 | X10: 0.004258820913 | Y10: 0.200234109 | Z10: 0.009174813207 | AA10: 0.001490598471 | AB10: 0.02370076131 | AC10: 1.160928497 | AE10: 0 | AF10: 0 | AG10: 0.1183972862 | AH10: 0 | AI10: 0 | AJ10: 0.03792183174 | AK10: 0.002871140433 | AL10: 0.02933821064 | AM10: 7.974653819e-05 | AN10: 0.0001322892264 | AO10: 0.01083926397 | AP10: 0.1659526677 | AR10: 0 | AS10: 0 | AT10: 0 | AU10: 0 | AV10: 0 | AW10: -0.001049849184 | AX10: 0 | AY10: -0.0001870779409 | AZ10: 0 | BA10: 0 | BB10: 0 | BC10: -0.001590235319 | BE10: 2.685718495e-07 | BF10: 0.1347962737 | BG10: -0.2388132985 | BH10: -0.02536402929 | BI10: -0.1888002061
A11: CF388 | B11: CF388: OR PC rental 140Mb link | E11: 0.005185246227 | F11: 5.118174341e-08 | G11: 12.77826867 | H11: 0 | I11: 7.894058185e-05 | J11: 1.472592973 | K11: 0.08782793651 | L11: 0.8007609708 | M11: 0.04309864238 | N11: 0.008141170119 | O11: 0.2115146621 | P11: 14.51361412 | R11: 0.001860468576 | S11: 5.256709575e-08 | T11: 1.277090455 | U11: 0 | V11: 0.0001103015859 | W11: 0.6959133737 | X11: 0.007781977776 | Y11: 0.2363170055 | Z11: 0.01831719851 | AA11: 0.002712219109 | AB11: 0.04263747501 | AC11: 2.296777306 | AE11: 0.0004860614804 | AF11: 0 | AG11: 0.2657143579 | AH11: 0 | AI11: 0 | AJ11: 0.07272320442 | AK11: 0.003916448825 | AL11: 0.04201692602 | AM11: 0.0003130584751 | AN11: 0.0002088594968 | AO11: 0.02497789986 | AP11: 0.4866603853 | AR11: 0 | AS11: 0 | AT11: 0 | AU11: 0 | AV11: 0 | AW11: -0.0042865401 | AX11: 0 | AY11: -0.002209526539 | AZ11: 0 | BA11: 0 | BB11: 0 | BC11: -0.005457621954 | BE11: 2.036975544e-07 | BF11: 0.1532816004 | BG11: -0.3162834051 | BH11: -0.04990866037 | BI11: -0.2060179062
A12: CF391 | B12: CF391: OR PC rental 64Kbit link per km transmission | E12: 0.0008438429384 | F12: 32.05844022 | G12: 69.69450676 | H12: 0 | I12: 0.0004434132228 | J12: 12.74671327 | K12: 0.7978647355 | L12: 6.983227515 | M12: 0.3044990895 | N12: 0.05675170203 | O12: 1.776761345 | P12: 111.6425193 | R12: 0.001127630602 | S12: 13.22040936 | T12: 5.222413459 | U12: 0 | V12: 0.0003679593784 | W12: 5.173653892 | X12: 0.05694616863 | Y12: 1.640522764 | Z12: 0.1076768511 | AA12: 0.02241641667 | AB12: 0.4167440648 | AC12: 24.81840906 | AE12: 0 | AF12: 0.6633376107 | AG12: 1.041340678 | AH12: 0 | AI12: 0 | AJ12: 0.3819600442 | AK12: 0.0433504796 | AL12: 0.2512213165 | AM12: 0.00193173804 | AN12: 0.002080437432 | AO12: 0.116513576 | AP12: 2.461529847 | AR12: 0 | AS12: -0.09470268342 | AT12: 0.1103800113 | AU12: 0 | AV12: 0 | AW12: 0.02526932376 | AX12: 0 | AY12: 0.02832160653 | AZ12: 0 | BA12: 0 | BB12: 0 | BC12: 0.07557283485 | BE12: 9.770360729e-06 | BF12: 1.123848322 | BG12: -2.546293083 | BH12: -0.2237446716 | BI12: -1.999856141
A13: CG101 | B13: CG101: PC rental 2Mbit s regional trunk | E13: 1.466823175e-05 | F13: 40.0141354 | G13: 67.60921015 | H13: 0 | I13: 0.0003109963268 | J13: 6.073161034 | K13: 0.5407166107 | L13: 3.130903494 | M13: 0.2219836594 | N13: 0.02735435946 | O13: 0.8970328595 | P13: 108.308065 | R13: 1.461162494e-05 | S13: 18.82713778 | T13: 7.804251828 | U13: 0 | V13: 0.0002976567956 | W13: 3.470011833 | X13: 0.04480429123 | Y13: 0.83758322 | Z13: 0.1199200776 | AA13: 0.008115589131 | AB13: 0.1761970202 | AC13: 24.86528694 | AE13: 0 | AF13: 1.3665718 | AG13: 1.245873725 | AH13: 0 | AI13: 0 | AJ13: 0.2192311281 | AK13: 0.02794156515 | AL13: 0.1333076808 | AM13: -0.004771341815 | AN13: 0.0006483113479 | AO13: 0.1269207625 | AP13: 2.620963539 | AR13: 0 | AS13: -0.1985050686 | AT13: 0.334875581 | AU13: 0 | AV13: 0 | AW13: -0.002758075328 | AX13: 0 | AY13: 0.001769869425 | AZ13: 0 | BA13: 0 | BB13: 0 | BC13: 0.2000413739 | BE13: 3.084089639e-06 | BF13: 0.9177901296 | BG13: -1.986972598 | BH13: -0.08173469264 | BI13: -1.012215392
A14: CG103 | B14: CG103: PC rental 140Mbit s regional trunk | E14: 9.306197624e-06 | F14: 23.21496803 | G14: 38.70357307 | H14: 0 | I14: 0.0002823537053 | J14: 4.621680933 | K14: 0.2851517746 | L14: 2.319988125 | M14: 0.1418264878 | N14: 0.01752088405 | O14: 0.7221860306 | P14: 58.90635279 | R14: 9.016696999e-06 | S14: 8.028010343 | T14: 5.215292581 | U14: 0 | V14: 0.0002454232302 | W14: 1.857437386 | X14: 0.02583556504 | Y14: 0.6843464969 | Z14: 0.08393456109 | AA14: 0.006158315428 | AB14: 0.1468792986 | AC14: 16.16033895 | AE14: 0 | AF14: 0.6493109906 | AG14: 0.9308856997 | AH14: 0 | AI14: 0 | AJ14: 0.186055448 | AK14: 0.02398317584 | AL14: 0.09358860681 | AM14: -0.002575788136 | AN14: 0.0005123778532 | AO14: 0.07761656495 | AP14: 1.859901901 | AR14: 0 | AS14: -0.08273457739 | AT14: 0.1624620434 | AU14: 0 | AV14: 0 | AW14: -0.006518855664 | AX14: 0 | AY14: -0.001464176592 | AZ14: 0 | BA14: 0 | BB14: 0 | BC14: 0.06709727272 | BE14: 1.540598583e-06 | BF14: 0.6952189758 | BG14: -1.335257981 | BH14: -0.07571498161 | BI14: -0.7666186
A15: CG201 | B15: CG201: PC rental 2Mbit link per km national trunk | E15: 1.027320449e-05 | F15: 23.78277523 | G15: 25.18013383 | H15: 0 | I15: 0.0002461180412 | J15: 4.423953532 | K15: 0.3673933412 | L15: 2.315271063 | M15: 0.1504494134 | N15: 0.01555669029 | O15: 0.6717789726 | P15: 68.55321485 | R15: 8.78883215e-06 | S15: 8.676690896 | T15: 4.810463678 | U15: 0 | V15: 0.0001451364261 | W15: 1.858894625 | X15: 0.02050142917 | Y15: 0.4725414711 | Z15: 0.05097765223 | AA15: 0.003993751385 | AB15: 0.09955470592 | AC15: 15.84937441 | AE15: 0 | AF15: 0.4750230415 | AG15: 0.6319301294 | AH15: 0 | AI15: 0 | AJ15: 0.1611829319 | AK15: 0.01836622998 | AL15: 0.05526263083 | AM15: -0.003911579322 | AN15: 0.0003602369365 | AO15: 0.05735350735 | AP15: 1.577929794 | AR15: 0 | AS15: -0.1045197598 | AT15: 0.1775189441 | AU15: 0 | AV15: 0 | AW15: 0.009455405672 | AX15: 0 | AY15: 0.01130208891 | AZ15: 0 | BA15: 0 | BB15: 0 | BC15: 0.1105634935 | BE15: 3.685535794e-06 | BF15: 0.6884911987 | BG15: -1.461101539 | BH15: -0.05367132604 | BI15: -0.9107591659
A16: CG203 | B16: CG203: PC rental 140Mbit link per km national trunk | E16: 2.20752784e-05 | F16: 59.14338763 | G16: 77.88265597 | H16: 0 | I16: 0.0003370049733 | J16: 4.94636522 | K16: 0.6994910964 | L16: 3.545808201 | M16: 0.1891509527 | N16: 0.02722062679 | O16: 1.300852258 | P16: 154.7922252 | R16: 2.035510745e-05 | S16: 21.0134647 | T16: 13.98240976 | U16: 0 | V16: 0.0002276324467 | W16: 1.684795384 | X16: 0.05371989797 | Y16: 0.6000424045 | Z16: 0.1249799374 | AA16: 0.00779499195 | AB16: 0.1778787733 | AC16: 44.07266295 | AE16: 0 | AF16: 1.886903224 | AG16: 1.800665564 | AH16: 0 | AI16: 0 | AJ16: 0.1661411007 | AK16: 0.03333465526 | AL16: 0.0762392281 | AM16: -0.006186894419 | AN16: 0.0007672070273 | AO16: 0.1011043334 | AP16: 4.026690616 | AR16: 0 | AS16: -0.293402889 | AT16: 0.5593127445 | AU16: 0 | AV16: 0 | AW16: 0.02958575878 | AX16: 0 | AY16: 0.02696163414 | AZ16: 0 | BA16: 0 | BB16: 0 | BC16: 0.2570139421 | BE16: 8.943943983e-06 | BF16: 0.8341801489 | BG16: -1.677413197 | BH16: -0.0913484435 | BI16: -0.6844197677
A17: CL171 | B17: CL171: E side copper capital | E17: 2.803524481 | F17: 1.166406255 | G17: 1.1250789e-05 | H17: 0 | I17: 4.695810674e-07 | J17: 0.02529533687 | K17: 0.02298152918 | L17: -1.305416304e-05 | M17: 0.007945290244 | N17: 0.005463452843 | O17: 0.05778428386 | P17: 3.188371704 | R17: 0.8009549908 | S17: 0.5431583531 | T17: 8.68320935e-06 | U17: 0 | V17: 6.02510896e-07 | W17: 0.01035607101 | X17: 0.003301480719 | Y17: -1.271905637e-06 | Z17: 0.005319456382 | AA17: 0.002135442941 | AB17: 0.02044556292 | AC17: 1.479025105 | AE17: 0.1049049261 | AF17: 0.02487080604 | AG17: -3.405481235e-07 | AH17: 0 | AI17: 0 | AJ17: 0.001351191166 | AK17: 0.001496710579 | AL17: 0 | AM17: 0.000138417948 | AN17: 0.0001613257494 | AO17: 0.005868380071 | AP17: 0.1394884521 | AR17: -0.007405823429 | AS17: -0.004295692326 | AT17: 0 | AU17: 0 | AV17: 0 | AW17: 0 | AX17: 0 | AY17: 0 | AZ17: 0 | BA17: 0 | BB17: 0 | BC17: -0.01448387801 | BE17: 0 | BF17: 0.03571767333 | BG17: -0.08756320301 | BH17: -0.007562489284 | BI17: -0.04036139909
A18: CL173 | B18: CL173: D side copper capital | E18: 14.25852143 | F18: 9.139129651 | G18: 8.543172202e-05 | H18: 0 | I18: 3.014604509e-05 | J18: 0.05073317988 | K18: 0.1537251411 | L18: 3.902079154e-06 | M18: 0.05058096482 | N18: 0.03101419239 | O18: 0.4109288157 | P18: 23.17503779 | R18: 6.04056646 | S18: 5.083696235 | T18: 8.307875097e-05 | U18: 0 | V18: 2.856439378e-05 | W18: 0.01231187455 | X18: 0.01398027179 | Y18: 7.698471995e-07 | Z18: 0.03228535374 | AA18: 0.009877546877 | AB18: 0.1535937121 | AC18: 9.244624133 | AE18: 0.7255528013 | AF18: 0.2707243018 | AG18: -2.005467718e-06 | AH18: 0 | AI18: 0 | AJ18: 0.003003779311 | AK18: 0.01063670265 | AL18: 0 | AM18: 0.0008386137525 | AN18: 0.0009246383804 | AO18: 0.04318082204 | AP18: 0.9486491915 | AR18: -0.0556810004 | AS18: -0.04703454408 | AT18: 0 | AU18: 0 | AV18: 0 | AW18: 0 | AX18: 0 | AY18: 0 | AZ18: 0 | BA18: 0 | BB18: 0 | BC18: -0.08612394462 | BE18: 0 | BF18: 0.1622651452 | BG18: -0.3062429049 | BH18: -0.02834339387 | BI18: -0.2300190831
A19: CO379 | B19: CO379: Point of Handover electronics | E19: 0.9704137072 | F19: 12.70803497 | G19: 33.55761827 | H19: 0 | I19: 0.0002989582092 | J19: 5.446699773 | K19: 0.5714295217 | L19: 40.99147565 | M19: 0.2958898394 | N19: 0.109634947 | O19: 1.569656747 | P19: 106.5803923 | R19: 0.308350885 | S19: 5.020241862 | T19: 3.844434596 | U19: 0 | V19: 0.0004074991576 | W19: 3.255995344 | X19: 0.05535601546 | Y19: 3.641215154 | Z19: 0.1185237462 | AA19: 0.04121953034 | AB19: 0.3270302299 | AC19: 15.06441984 | AE19: 0.07466076269 | AF19: 0.2469591525 | AG19: 0.5882198215 | AH19: 0 | AI19: 0 | AJ19: 0.2989157858 | AK19: 0.0351125207 | AL19: 0.9265490408 | AM19: 0.002584983623 | AN19: 0.002301281689 | AO19: 0.1646667668 | AP19: 2.815664657 | AR19: 0 | AS19: -0.04354170702 | AT19: 0.06723752453 | AU19: 0 | AV19: 0 | AW19: -0.04708641783 | AX19: 0 | AY19: -0.03579231028 | AZ19: 0 | BA19: 0 | BB19: 0 | BC19: -0.06578409019 | BE19: -6.165385112e-06 | BF19: 1.136488504 | BG19: -1.72776049 | BH19: -0.1715118891 | BI19: -1.233419574
A20: CO432 | B20: CO432: PC rental 64Kbit link local end | E20: 3.792079565 | F20: -1.802682711e-06 | G20: 1.749751801 | H20: 0 | I20: 0.001248363178 | J20: 33.06845741 | K20: 1.855112808 | L20: 548.2633693 | M20: 0.9570066607 | N20: 0.487795186 | O20: 4.546161225 | P20: 587.5850836 | R20: 1.058346416 | S20: -2.096181824e-06 | T20: 0.1415067982 | U20: 0 | V20: 0.002135209899 | W20: 21.80131797 | X20: 0.2019195112 | Y20: 17.24937753 | Z20: 0.3367391182 | AA20: 0.1605647487 | AB20: 0.9122356374 | AC20: 39.04734456 | AE20: 0.2441328855 | AF20: 0 | AG20: 0.03546705372 | AH20: 0 | AI20: 0 | AJ20: 1.95993529 | AK20: 0.1111706646 | AL20: 4.290203472 | AM20: 0.01958521329 | AN20: 0.008511265555 | AO20: 0.5340173962 | AP20: 6.135885246 | AR20: 0 | AS20: 0 | AT20: 0 | AU20: 0 | AV20: 0 | AW20: -0.2774728039 | AX20: 0 | AY20: -0.2278714139 | AZ20: 0 | BA20: 0 | BB20: 0 | BC20: -0.5506511792 | BE20: -2.670558139e-05 | BF20: 3.936355159 | BG20: -7.216163926 | BH20: -0.9108288757 | BI20: -4.124382316
A21: CO434 | B21: CO434: PC rental 34Mbit link local end | E21: 6.979051383 | F21: 2.126330224 | G21: 1.568394766 | H21: 0 | I21: 6.060944061e-05 | J21: 0.6387178384 | K21: 0.194939207 | L21: 11.83744236 | M21: 0.08961806109 | N21: 0.09077749037 | O21: 0.2999398431 | P21: 22.61426747 | R21: 4.196194076 | S21: 1.37533917 | T21: 0.1619670674 | U21: 0 | V21: 6.31008577e-05 | W21: 0.1902080121 | X21: 0.0202011857 | Y21: 0.5037540461 | Z21: 0.06061578151 | AA21: 0.02826364555 | AB21: 0.1135468299 | AC21: 5.081145516 | AE21: 0.3896265947 | AF21: 0.04397485861 | AG21: 0.04230894716 | AH21: 0 | AI21: 0 | AJ21: 0.01344645716 | AK21: 0.01132033566 | AL21: 0.2133974727 | AM21: 0.002057624411 | AN21: 0.002444261544 | AO21: 0.02540049839 | AP21: 0.5726440001 | AR21: 0.09654847846 | AS21: -0.009875020081 | AT21: 0 | AU21: 0 | AV21: 0 | AW21: 0.003470027345 | AX21: 0 | AY21: 0.003972195738 | AZ21: 0 | BA21: 0 | BB21: 0 | BC21: 0.07841042724 | BE21: 9.052454913e-07 | BF21: 0.4035784447 | BG21: -0.7352114333 | BH21: -0.08896994595 | BI21: -0.4080961138
A22: CO436 | B22: CO436: PC rental 140Mbit link local end | E22: 2.801696743 | F22: 1.132846293 | G22: 9.165490636 | H22: 0 | I22: 7.222736778e-05 | J22: 1.06433678 | K22: 0.1179529846 | L22: 0.7514053127 | M22: 0.07263417314 | N22: 0.03880719172 | O22: 0.2588769429 | P22: 18.78893649 | R22: 1.718414053 | S22: 0.5941067884 | T22: 0.8320195625 | U22: 0 | V22: 6.916926667e-05 | W22: 0.4568768153 | X22: 0.01482068767 | Y22: 0.2424173259 | Z22: 0.03135523724 | AA22: 0.01124475707 | AB22: 0.07731496189 | AC22: 4.330852468 | AE22: 0.1382668271 | AF22: 0.02063817853 | AG22: 0.225884929 | AH22: 0 | AI22: 0 | AJ22: 0.0566311705 | AK22: 0.007504578396 | AL22: 0.03055926147 | AM22: 0.0008256380866 | AN22: 0.0008569487062 | AO22: 0.03227054853 | AP22: 0.4269827817 | AR22: 0.03237203728 | AS22: -0.004359621998 | AT22: 0 | AU22: 0 | AV22: 0 | AW22: -0.00698858452 | AX22: 0 | AY22: -0.004161596878 | AZ22: 0 | BA22: 0 | BB22: 0 | BC22: 0.0195344037 | BE22: -4.277008201e-07 | BF22: 0.2176683574 | BG22: -0.4019243804 | BH22: -0.06833360399 | BI22: -0.2195171262
A23: CO438 | B23: CO438: PC rental 2Mbit local end copper | E23: 0.0004749961131 | F23: -1.263800654e-07 | G23: 0.0003862380342 | H23: 0 | I23: 0.0002560584265 | J23: 2.353390841 | K23: 0.6544876503 | L23: 116.6713405 | M23: 0.3703915901 | N23: 0.2135896733 | O23: 1.028989558 | P23: 139.1513676 | R23: 0.0004043505837 | S23: -1.053273837e-07 | T23: 0.0003643483891 | U23: 0 | V23: 0.0002921810113 | W23: 1.514013507 | X23: 0.07191836626 | Y23: 4.684986712 | Z23: 0.1580700658 | AA23: 0.0824352145 | AB23: 0.232091279 | AC23: 6.274958291 | AE23: 0 | AF23: 0 | AG23: -7.58657533e-06 | AH23: 0 | AI23: 0 | AJ23: 0.1082812881 | AK23: 0.03343899842 | AL23: 2.598886219 | AM23: 0.005080758521 | AN23: 0.003689906612 | AO23: 0.1192459661 | AP23: 2.428408326 | AR23: 0 | AS23: 0 | AT23: 0 | AU23: 0 | AV23: 0 | AW23: -0.01898157518 | AX23: 0 | AY23: -0.01601008079 | AZ23: 0 | BA23: 0 | BB23: 0 | BC23: -0.02977951841 | BE23: -2.309474802e-06 | BF23: 1.229003174 | BG23: -1.661424663 | BH23: -0.2715475712 | BI23: -0.7362347472
A24: CO439 | B24: CO439: PC rental 2Mbit local end fibre | E24: 203.15184 | F24: 12.30622863 | G24: 3.549021649 | H24: 0 | I24: 0.001409931638 | J24: 13.86684799 | K24: 4.564669282 | L24: 185.4173589 | M24: 2.517639233 | N24: 1.510205633 | O24: 5.441361786 | P24: 499.2497722 | R24: 77.75900271 | S24: -13.00735894 | T24: 0.2560939032 | U24: 0 | V24: 0.001494932401 | W24: 6.572423511 | X24: 0.6565470943 | Y24: 9.426528763 | Z24: 1.523281782 | AA24: 0.6428315179 | AB24: 2.418685855 | AC24: 74.02855122 | AE24: 10.21675943 | AF24: -0.5787235642 | AG24: 0.05352130813 | AH24: 0 | AI24: 0 | AJ24: 0.7258282953 | AK24: 0.273633762 | AL24: 3.549114934 | AM24: 0.04545406916 | AN24: 0.06327977909 | AO24: 0.7570179429 | AP24: 18.43443665 | AR24: 1.792293016 | AS24: -0.215288885 | AT24: 0 | AU24: 0 | AV24: 0 | AW24: -0.06476844731 | AX24: 0 | AY24: -0.0636424813 | AZ24: 0 | BA24: 0 | BB24: 0 | BC24: 1.341898294 | BE24: -8.976356414e-06 | BF24: 7.834531358 | BG24: -14.3775799 | BH24: -1.463608769 | BI24: -9.195238602
A25: CP371 | B25: CP371: Prot Path PC rental 2Mbit link per km dist | E25: 2.264598479e-05 | F25: 0.7663086842 | G25: 1.568292938 | H25: 0 | I25: 9.678092052e-06 | J25: 0.3055905466 | K25: 0.01584844129 | L25: 0.1436626369 | M25: 0.006733444779 | N25: 0.001262877469 | O25: 0.04334547936 | P25: 3.466304963 | R25: 2.494489862e-05 | S25: 0.268450868 | T25: 0.1852183821 | U25: 0 | V25: 7.914143089e-06 | W25: 0.07542481374 | X25: 0.001125349615 | Y25: 0.03357530718 | Z25: 0.003213180603 | AA25: 0.0004336468719 | AB25: 0.0104194234 | AC25: 0.6506026454 | AE25: 0 | AF25: 0 | AG25: 0 | AH25: 0 | AI25: 0 | AJ25: 0 | AK25: 0 | AL25: 0 | AM25: 0 | AN25: 0 | AO25: 0 | AP25: 0 | AR25: 0 | AS25: -0.00293971838 | AT25: 0.004318950008 | AU25: 0 | AV25: 0 | AW25: 0.001408502246 | AX25: 0 | AY25: 0.001192543452 | AZ25: 0 | BA25: 0 | BB25: 0 | BC25: 0.003863451727 | BE25: 4.183476335e-07 | BF25: 0.02770107982 | BG25: -0.06763917161 | BH25: -0.002988088605 | BI25: -0.03546498175
A26: CP373 | B26: CP373: Protected Path PC rental 34Mbit link per km distr | E26: 4.903183643e-05 | F26: 1.770606185 | G26: 2.164657078 | H26: 0 | I26: 1.069184591e-05 | J26: 0.2654189089 | K26: 0.01756695705 | L26: 0.154714149 | M26: 0.008392117206 | N26: 0.001432836843 | O26: 0.05137902656 | P26: 3.100611615 | R26: 4.276938755e-05 | S26: 0.6479340703 | T26: 0.2656292891 | U26: 0 | V26: 6.289487454e-06 | W26: 0.07172178103 | X26: 0.002015390814 | Y26: 0.03024371748 | Z26: 0.004197349895 | AA26: 0.0006307653449 | AB26: 0.01803733936 | AC26: 1.1030612 | AE26: 0 | AF26: 0 | AG26: 0 | AH26: 0 | AI26: 0 | AJ26: 0 | AK26: 0 | AL26: 0 | AM26: 0 | AN26: 0 | AO26: 0 | AP26: 0 | AR26: 0 | AS26: -0.004750637332 | AT26: 0.006079058547 | AU26: 0 | AV26: 0 | AW26: 0.0008571231748 | AX26: 0 | AY26: 0.0007669524113 | AZ26: 0 | BA26: 0 | BB26: 0 | BC26: 0.003522706473 | BE26: 1.895138777e-07 | BF26: 0.02899357805 | BG26: -0.05574164493 | BH26: -0.004820216293 | BI26: -0.03591886803
A27: CP375 | B27: CP375: Protected Path PC rental 140Mbit link per km distr | E27: 0.0001233509857 | F27: 4.220795262 | G27: 4.341151898 | H27: 0 | I27: 2.493739079e-05 | J27: 0.5641879649 | K27: 0.03865914135 | L27: 0.3210012386 | M27: 0.01438106462 | N27: 0.003056253749 | O27: 0.1247779875 | P27: 8.276199664 | R27: 0.000141705995 | S27: 1.416850119 | T27: 0.70541211 | U27: 0 | V27: 2.522704969e-05 | W27: 0.2070026329 | X27: 0.003675120252 | Y27: 0.06315280763 | Z27: 0.008997212632 | AA27: 0.001071316655 | AB27: 0.04564918176 | AC27: 2.751639905 | AE27: 0 | AF27: 0 | AG27: 0 | AH27: 0 | AI27: 0 | AJ27: 0 | AK27: 0 | AL27: 0 | AM27: 0 | AN27: 0 | AO27: 0 | AP27: 0 | AR27: 0 | AS27: -0.01105860447 | AT27: 0.01364152322 | AU27: 0 | AV27: 0 | AW27: 0.0008434823917 | AX27: 0 | AY27: 0.0009704834393 | AZ27: 0 | BA27: 0 | BB27: 0 | BC27: 0.004285992616 | BE27: 3.91703024e-07 | BF27: 0.07510252348 | BG27: -0.124188263 | BH27: -0.01394409655 | BI27: -0.09350497857
A28: CP383 | B28: CP383: Protected Path PC rental 2Mbit link | E28: 0.01693006828 | F28: 3.13547393e-10 | G28: 0.05218400697 | H28: 0 | I28: -1.293430617e-08 | J28: 0.008206928536 | K28: 0.0006065688702 | L28: 0.005174963972 | M28: 0.0002830753413 | N28: 6.097395068e-05 | O28: 0.001153118203 | P28: 0.07461106273 | R28: 0.004640752908 | S28: 3.364748303e-10 | T28: 0.004774784569 | U28: 0 | V28: -1.023363266e-07 | W28: 0.002923156212 | X28: 5.750474466e-05 | Y28: 0.001017934575 | Z28: 0.0001064049605 | AA28: 1.842744672e-05 | AB28: 0.0001658274606 | AC28: 0.01568185147 | AE28: 0 | AF28: 0 | AG28: 0 | AH28: 0 | AI28: 0 | AJ28: 0 | AK28: 0 | AL28: 0 | AM28: 0 | AN28: 0 | AO28: 0 | AP28: 0 | AR28: 0 | AS28: 0 | AT28: 0 | AU28: 0 | AV28: 0 | AW28: 1.176230038e-05 | AX28: 0 | AY28: 1.51950328e-05 | AZ28: 0 | BA28: 0 | BB28: 0 | BC28: 2.994815741e-05 | BE28: 6.506316646e-09 | BF28: 0.001061032125 | BG28: -0.00241318357 | BH28: -8.358037988e-05 | BI28: -0.001324148558
A29: CP385 | B29: CP385: Protected Path PC rental 34Mb link | E29: -8.666523689e-09 | F29: 1.265545734e-09 | G29: 0.1465749375 | H29: 0 | I29: -1.251985075e-07 | J29: 0.02923481994 | K29: 0.001153628509 | L29: 0.02167372402 | M29: 0.000595593991 | N29: 9.29954291e-05 | O29: 0.003076571005 | P29: 0.2130945989 | R29: -2.629945638e-08 | S29: 1.301295391e-09 | T29: 0.01390868133 | U29: 0 | V29: -4.169983618e-07 | W29: 0.008820326169 | X29: 9.433051272e-05 | Y29: 0.003548096142 | Z29: 0.0002651689706 | AA29: 2.405667277e-05 | AB29: 0.0002867805621 | AC29: 0.02973512345 | AE29: 0 | AF29: 0 | AG29: 0 | AH29: 0 | AI29: 0 | AJ29: 0 | AK29: 0 | AL29: 0 | AM29: 0 | AN29: 0 | AO29: 0 | AP29: 0 | AR29: 0 | AS29: 0 | AT29: 0 | AU29: 0 | AV29: 0 | AW29: 0.0001043604064 | AX29: 0 | AY29: 0.0001196051105 | AZ29: 0 | BA29: 0 | BB29: 0 | BC29: 0.0002767330123 | BE29: 3.982790811e-08 | BF29: 0.002490095711 | BG29: -0.005487081825 | BH29: -0.0006240155478 | BI29: -0.002750382706
A30: CP388 | B30: CP388: Protected Path PC rental 140Mbit link | E30: -7.130224889e-09 | F30: 8.154266287e-10 | G30: 0.1798820594 | H30: 0 | I30: -8.228218486e-08 | J30: 0.02342498605 | K30: 0.001024616053 | L30: 0.01510474891 | M30: 0.0005392064418 | N30: 7.900499614e-05 | O30: 0.002534392712 | P30: 0.1882062057 | R30: -1.501869689e-08 | S30: 8.566698259e-10 | T30: 0.0127610796 | U30: 0 | V30: -3.064496292e-07 | W30: 0.007047065906 | X30: 8.114423387e-05 | Y30: 0.002319390426 | Z30: 0.0001797779529 | AA30: 2.200506318e-05 | AB30: 0.0003289349274 | AC30: 0.02673632126 | AE30: 0 | AF30: 0 | AG30: 0 | AH30: 0 | AI30: 0 | AJ30: 0 | AK30: 0 | AL30: 0 | AM30: 0 | AN30: 0 | AO30: 0 | AP30: 0 | AR30: 0 | AS30: 0 | AT30: 0 | AU30: 0 | AV30: 0 | AW30: 0.0001200330981 | AX30: 0 | AY30: 9.931102816e-05 | AZ30: 0 | BA30: 0 | BB30: 0 | BC30: 0.0002011823196 | BE30: 2.218422205e-08 | BF30: 0.002269127643 | BG30: -0.00452397366 | BH30: -0.0005447252784 | BI30: -0.002195542559
A31: CP434 | B31: CP434: Protected Path PC rental 34Mbit link local end | E31: 0.08972816616 | F31: 0.02200387463 | G31: 0.1325187816 | H31: 0 | I31: -1.847301727e-07 | J31: 0.03489592503 | K31: 0.002377675416 | L31: 0.01760216212 | M31: 0.001674729003 | N31: 0.0007442363885 | O31: 0.004112753069 | P31: 0.2867804124 | R31: 0.04982934294 | S31: 0.01524637363 | T31: 0.01091476581 | U31: 0 | V31: -5.571926143e-07 | W31: 0.009632958104 | X31: 0.000341165728 | Y31: 0.003354066968 | Z31: 0.0007225680128 | AA31: 0.0002895964418 | AB31: 0.001024711371 | AC31: 0.09093387445 | AE31: 0 | AF31: 0 | AG31: 0 | AH31: 0 | AI31: 0 | AJ31: 0 | AK31: 0 | AL31: 0 | AM31: 0 | AN31: 0 | AO31: 0 | AP31: 0 | AR31: 0.0009820507258 | AS31: -0.0001119525961 | AT31: 0 | AU31: 0 | AV31: 0 | AW31: 0.00010881163 | AX31: 0 | AY31: 0.0001301884462 | AZ31: 0 | BA31: 0 | BB31: 0 | BC31: 0.00121995144 | BE31: 4.298083339e-08 | BF31: 0.004411827814 | BG31: -0.009120107519 | BH31: -0.001756939297 | BI31: -0.006700841433
A32: CP436 | B32: CP436: Protected Path PC rental 140Mbit link local end | E32: 0.4357894212 | F32: 0.07716892133 | G32: 0.393853867 | H32: 0 | I32: 2.025988448e-06 | J32: 0.08771901723 | K32: 0.009715634771 | L32: 0.03712701099 | M32: 0.00504512256 | N32: 0.002023640352 | O32: 0.01763844382 | P32: 1.153695658 | R32: 0.153372936 | S32: 0.03037692409 | T32: 0.03598988321 | U32: 0 | V32: 1.268245593e-06 | W32: 0.03449525657 | X32: 0.0009564576503 | Y32: 0.01158837469 | Z32: 0.00225932697 | AA32: 0.001032360712 | AB32: 0.00396588233 | AC32: 0.3014292391 | AE32: 0 | AF32: 0 | AG32: 0 | AH32: 0 | AI32: 0 | AJ32: 0 | AK32: 0 | AL32: 0 | AM32: 0 | AN32: 0 | AO32: 0 | AP32: 0 | AR32: 0.0024605123 | AS32: -0.0002872692021 | AT32: 0 | AU32: 0 | AV32: 0 | AW32: 0.0001807056881 | AX32: 0 | AY32: 0.0001833095027 | AZ32: 0 | BA32: 0 | BB32: 0 | BC32: 0.002256895923 | BE32: 7.07741279e-08 | BF32: 0.02036233915 | BG32: -0.04174436779 | BH32: -0.004618560164 | BI32: -0.0244885628
A33: CP439 | B33: CP439: Protected Path PC rental 2Mbit local end fibre | E33: 0.1018274838 | F33: 0.003053406629 | G33: 0.03566425499 | H33: 0 | I33: -1.541857447e-07 | J33: 0.02008349885 | K33: 0.001639690398 | L33: 0.01809038279 | M33: 0.0005971103133 | N33: 0.0002705837075 | O33: 0.002293207234 | P33: 0.1880444399 | R33: 0.02926347888 | S33: 0.0019072477 | T33: 0.003491233094 | U33: 0 | V33: -5.158921641e-07 | W33: 0.004632302148 | X33: 0.0001934400569 | Y33: 0.001889259026 | Z33: 0.0003525759864 | AA33: 0.0001008687909 | AB33: 0.0003421803576 | AC33: 0.0483862959 | AE33: 0 | AF33: 0 | AG33: 0 | AH33: 0 | AI33: 0 | AJ33: 0 | AK33: 0 | AL33: 0 | AM33: 0 | AN33: 0 | AO33: 0 | AP33: 0 | AR33: 0.000123287285 | AS33: -1.536289596e-05 | AT33: 0 | AU33: 0 | AV33: 0 | AW33: 0.0002160528315 | AX33: 0 | AY33: 0.0001639959109 | AZ33: 0 | BA33: 0 | BB33: 0 | BC33: 0.000512222765 | BE33: 3.733210766e-08 | BF33: 0.003018893337 | BG33: -0.009404911186 | BH33: -0.0003426354784 | BI33: -0.004427538982
A34: CR371 | B34: CR371: PC rental 2Mbit link per km distribution | E34: 6.431562841e-06 | F34: 12.05414849 | G34: 22.45629671 | H34: 0 | I34: 0.0001642726693 | J34: 3.213064946 | K34: 0.2496959903 | L34: 1.254824652 | M34: 0.08928308301 | N34: 0.01040663459 | O34: 0.4336617333 | P34: 39.80847456 | R34: 6.411772776e-06 | S34: 4.473588297 | T34: 2.75750863 | U34: 0 | V34: 0.0001153939188 | W34: 1.657080632 | X34: 0.01913670486 | Y34: 0.4401381003 | Z34: 0.02944718971 | AA34: 0.004363546649 | AB34: 0.1026493295 | AC34: 7.811506788 | AE34: 0 | AF34: 0.2917672318 | AG34: 0.3723301052 | AH34: 0 | AI34: 0 | AJ34: 0.1542184264 | AK34: 0.01187461466 | AL34: 0.0788289621 | AM34: -0.002180010425 | AN34: 0.0004355088717 | AO34: 0.04622283906 | AP34: 0.8392326779 | AR34: 0 | AS34: -0.05552774886 | AT34: 0.07878275837 | AU34: 0 | AV34: 0 | AW34: -0.01329380204 | AX34: 0 | AY34: -0.008101079992 | AZ34: 0 | BA34: 0 | BB34: 0 | BC34: 0.02389964414 | BE34: -4.836016451e-07 | BF34: 0.4631714756 | BG34: -1.43196855 | BH34: -0.05960925487 | BI34: -0.9735001544
A35: CR373 | B35: CR373: PC rental 34Mbit link per km distribution | E35: -3.5974049e-08 | F35: 0.06781815875 | G35: 0.09111137161 | H35: 0 | I35: 5.423107279e-07 | J35: 0.01660869967 | K35: 0.001178797924 | L35: 0.004696601668 | M35: 0.0004285815929 | N35: 3.672676565e-05 | O35: 0.001377558823 | P35: 0.1576096171 | R35: -2.960954752e-08 | S35: 0.02850326081 | T35: 0.01309279275 | U35: 0 | V35: -1.469978012e-07 | W35: 0.006885214712 | X35: 7.933339511e-05 | Y35: 0.001430836997 | Z35: 0.000142329099 | AA35: 9.938144709e-06 | AB35: 0.0002755602532 | AC35: 0.0606210698 | AE35: 0 | AF35: 0.001629887576 | AG35: 0.001214945513 | AH35: 0 | AI35: 0 | AJ35: 0.0003989793538 | AK35: 5.615938854e-05 | AL35: 0.0001636282493 | AM35: -1.785223786e-05 | AN35: 1.447715905e-06 | AO35: 0.0001593014972 | AP35: 0.004116663011 | AR35: 0 | AS35: -0.0002803662399 | AT35: 0.0007063083731 | AU35: 0 | AV35: 0 | AW35: 2.322818095e-05 | AX35: 0 | AY35: 2.949832869e-05 | AZ35: 0 | BA35: 0 | BB35: 0 | BC35: 0.0003037660026 | BE35: 8.977394582e-09 | BF35: 0.002135395403 | BG35: -0.00558638545 | BH35: -0.0005806171564 | BI35: -0.005239582419
A36: CR375 | B36: CR375: PC rental 140Mbit link per km distribution | E36: -2.096727072e-07 | F36: 0.5570131907 | G36: 1.070795687 | H36: 0 | I36: 1.482837812e-05 | J36: 0.2943312712 | K36: 0.01784520164 | L36: 0.1669507178 | M36: 0.007149532729 | N36: 0.0006997903275 | O36: 0.01985943502 | P36: 2.26461842 | R36: -3.25188603e-07 | S36: 0.1595993412 | T36: 0.1096996343 | U36: 0 | V36: 3.161285279e-06 | W36: 0.1151075756 | X36: 0.001076523494 | Y36: 0.02434908532 | Z36: 0.001997746139 | AA36: 0.0002156613592 | AB36: 0.004036301803 | AC36: 0.4597848299 | AE36: 0 | AF36: 0.01506016027 | AG36: 0.01016809338 | AH36: 0 | AI36: 0 | AJ36: 0.008792093793 | AK36: 0.001114676264 | AL36: 0.003722997867 | AM36: -0.0001824632014 | AN36: 1.752215605e-05 | AO36: 0.001371438008 | AP36: 0.04886021984 | AR36: 0 | AS36: -0.002046880987 | AT36: 0.003712042518 | AU36: 0 | AV36: 0 | AW36: 0.001079339599 | AX36: 0 | AY36: 0.001241873989 | AZ36: 0 | BA36: 0 | BB36: 0 | BC36: 0.003656729433 | BE36: 2.949296392e-07 | BF36: 0.03226250086 | BG36: -0.1483867382 | BH36: -0.008359933237 | BI36: -0.07770649233
A37: CR383 | B37: CR383: PC rental 2Mb link | E37: 0.01628331778 | F37: 7.393639541e-07 | G37: 6.162500867 | H37: 0 | I37: 8.034192708e-05 | J37: 1.786288642 | K37: 0.0781938745 | L37: 1.13219117 | M37: 0.04761247491 | N37: 0.005951558722 | O37: 0.1650990871 | P37: 9.190470691 | R37: 0.004466902546 | S37: 5.071995113e-07 | T37: 0.3748175428 | U37: 0 | V37: 6.85335061e-05 | W37: 1.013107607 | X37: 0.006980205934 | Y37: 0.2630777707 | Z37: 0.01030304516 | AA37: 0.002654480644 | AB37: 0.04098420277 | AC37: 1.691377792 | AE37: 0.001223415409 | AF37: 0 | AG37: 0.08369500096 | AH37: 0 | AI37: 0 | AJ37: 0.1011170384 | AK37: 0.006196125596 | AL37: 0.04357537873 | AM37: -0.000466565193 | AN37: 0.0001784294684 | AO37: 0.01982089014 | AP37: 0.2481669063 | AR37: 0 | AS37: 0 | AT37: 0 | AU37: 0 | AV37: 0 | AW37: -0.01086143041 | AX37: 0 | AY37: -0.006872269825 | AZ37: 0 | BA37: 0 | BB37: 0 | BC37: -0.01817147997 | BE37: -1.262456643e-06 | BF37: 0.2593145984 | BG37: -0.644472516 | BH37: -0.03564415166 | BI37: -0.5070376474
A38: CR385 | B38: CR385: PC rental 34Mb link | E38: 8.248164356e-11 | F38: 3.273061205e-08 | G38: 0.0977833759 | H38: 0 | I38: 3.759513855e-06 | J38: 0.07061596707 | K38: 0.004529332751 | L38: 0.02240810934 | M38: 0.00188675167 | N38: 0.000169241579 | O38: 0.003678597416 | P38: 0.1744971294 | R38: -2.37661996e-08 | S38: 4.5581391e-08 | T38: 0.006386728473 | U38: 0 | V38: -6.508860216e-07 | W38: 0.03479986332 | X38: 0.000207473483 | Y38: 0.005338390786 | Z38: 0.0002928277479 | AA38: 5.088040975e-05 | AB38: 0.0006724618388 | AC38: 0.03811959502 | AE38: 0 | AF38: 0 | AG38: 0.0005541840825 | AH38: 0 | AI38: 0 | AJ38: 0.002061582895 | AK38: 0.0002321882134 | AL38: 0.0005748708251 | AM38: -3.975749618e-05 | AN38: 5.238160015e-06 | AO38: 0.0001581140816 | AP38: 0.00416688233 | AR38: 0 | AS38: 0 | AT38: 0 | AU38: 0 | AV38: 0 | AW38: 0.0002459421328 | AX38: 0 | AY38: 0.0001962145044 | AZ38: 0 | BA38: 0 | BB38: 0 | BC38: 0.0004906895841 | BE38: 6.987525855e-08 | BF38: 0.008922002744 | BG38: -0.0345703129 | BH38: -0.001164177635 | BI38: -0.02356279307
A39: CR388 | B39: CR388: PC rental 140Mb link | E39: -1.324714276e-10 | F39: 3.603289906e-08 | G39: 0.09354759464 | H39: 0 | I39: 3.345761863e-06 | J39: 0.07999228494 | K39: 0.004869182828 | L39: 0.03146878434 | M39: 0.001622844247 | N39: 0.0001839250863 | O39: 0.003341599994 | P39: 0.1835781033 | R39: -1.953070443e-08 | S39: 4.68522057e-08 | T39: 0.008593167451 | U39: 0 | V39: -7.061043789e-07 | W39: 0.03509508927 | X39: 0.0001828474797 | Y39: 0.003761201487 | Z39: 0.0002823017739 | AA39: 5.405700112e-05 | AB39: 0.0004946997845 | AC39: 0.039222801 | AE39: 0 | AF39: 0 | AG39: 0.0005033389855 | AH39: 0 | AI39: 0 | AJ39: 0.002534596479 | AK39: 0.0001712232859 | AL39: 0.000634010976 | AM39: -4.36176021e-05 | AN39: 5.186849106e-06 | AO39: 0.0001542053407 | AP39: 0.004247615604 | AR39: 0 | AS39: 0 | AT39: 0 | AU39: 0 | AV39: 0 | AW39: 0.0002153170721 | AX39: 0 | AY39: 0.0002546069122 | AZ39: 0 | BA39: 0 | BB39: 0 | BC39: 0.0004119042369 | BE39: 7.340121306e-08 | BF39: 0.01085308847 | BG39: -0.02772827607 | BH39: -0.007913708158 | BI39: -0.03493001975
A40: CR391 | B40: CR391: PC rental 64Kbit link per km transmission | E40: 2.930758582e-06 | F40: 9.368720014 | G40: 21.11991352 | H40: 0 | I40: 0.0001226213333 | J40: 2.884428943 | K40: 0.1357395704 | L40: 1.06265013 | M40: 0.06121044555 | N40: 0.008203528831 | O40: 0.369064444 | P40: 28.61606221 | R40: 2.788832413e-06 | S40: 4.240600631 | T40: 2.404769918 | U40: 0 | V40: 8.005391656e-05 | W40: 1.335361503 | X40: 0.01326074236 | Y40: 0.3202379692 | Z40: 0.03347601961 | AA40: 0.002938963123 | AB40: 0.07164868221 | AC40: 9.053889607 | AE40: 0 | AF40: 0.3166297886 | AG40: 0.3005995689 | AH40: 0 | AI40: 0 | AJ40: 0.1091409009 | AK40: 0.009068703713 | AL40: 0.05885906403 | AM40: -0.001373870055 | AN40: 0.0002246666158 | AO40: 0.03175768925 | AP40: 0.781070746 | AR40: 0 | AS40: -0.03830988457 | AT40: 0.09204206182 | AU40: 0 | AV40: 0 | AW40: -0.005322842327 | AX40: 0 | AY40: -0.003486281182 | AZ40: 0 | BA40: 0 | BB40: 0 | BC40: 0.029403478 | BE40: 1.00643534e-07 | BF40: 0.3234748788 | BG40: -0.5766296311 | BH40: -0.04452700771 | BI40: -0.4592498135
A41: CE103 | B41: CE103: Tisbo Excess Construction | E41: 23.08701279 | F41: 33.86291493 | G41: -5.929878813e-16 | H41: 0 | I41: 3.571395284e-14 | J41: 5.281182723e-10 | K41: 1.259065723e-09 | L41: 2.371209183e-14 | M41: 1.212107045e-11 | N41: 5.410344629e-12 | O41: 3.669496017e-10 | P41: 54.2380264 | R41: 23.63670357 | S41: 36.28169457 | T41: -8.082008239e-17 | U41: 0 | V41: 4.850436963e-14 | W41: 1.574596145e-10 | X41: 1.039622675e-10 | Y41: 2.809123559e-14 | Z41: 3.633422821e-12 | AA41: 1.651388975e-12 | AB41: 1.665013732e-10 | AC41: 69.15348366 | AE41: 1.28267 | AF41: 1.82491726 | AG41: 1.815828349e-19 | AH41: 0 | AI41: 0 | AJ41: 2.742792648e-11 | AK41: 9.18176128e-11 | AL41: 0 | AM41: -4.430212434e-13 | AN41: 1.950823592e-13 | AO41: 2.756662988e-11 | AP41: 2.75270436 | AR41: 0 | AS41: 0 | AT41: 0 | AU41: 0 | AV41: 0 | AW41: 0 | AX41: 0 | AY41: 0 | AZ41: 0 | BA41: 0 | BB41: 0 | BC41: 0 | BE41: 0 | BF41: 1.10683496e-07 | BG41: -1.758075767e-07 | BH41: -2.655024635e-11 | BI41: -3.879214926e-08
A42: CL175 | B42: CL175: Local exchanges general frames capital | E42: 1.228249052e-07 | F42: -2.870968757e-09 | G42: -2.149475511e-07 | H42: 0.1517353574 | I42: -1.628970192e-07 | J42: 0.01774169016 | K42: 0.004161724253 | L42: -1.172809279e-05 | M42: 0.0006851358993 | N42: 0.0001172800464 | O42: 0.004424506367 | P42: 0.1862752498 | R42: 1.130423907e-07 | S42: -3.136799198e-09 | T42: -4.495550758e-08 | U42: 0.03433522723 | V42: 5.204091674e-08 | W42: 0.009154946594 | X42: 0.0004990398882 | Y42: 1.431769303e-07 | Z42: 0.0001506584605 | AA42: 3.277169492e-05 | AB42: 0.001606858899 | AC42: 0.04483262523 | AE42: 0 | AF42: 0 | AG42: 3.045287638e-09 | AH42: 0.004214914299 | AI42: 0 | AJ42: 0.0007105494052 | AK42: 0.0002567092547 | AL42: 0 | AM42: 6.188517549e-05 | AN42: 2.951082158e-06 | AO42: 0.0004856089117 | AP42: 0.006958621088 | AR42: 0 | AS42: 0 | AT42: 0 | AU42: 0 | AV42: 0 | AW42: 0 | AX42: 0 | AY42: 0 | AZ42: 0 | BA42: 0 | BB42: 0 | BC42: 0 | BE42: 0 | BF42: 0.008700698806 | BG42: -0.01692278316 | BH42: -0.002371285371 | BI42: -0.0104681311
A43: CO417 | B43: CO417: 64Kbit PC link connection cct provision | E43: 1.349243437e-05 | F43: -9.847919961e-09 | G43: 1.242246967e-05 | H43: 0 | I43: 3.120143039e-06 | J43: 0.03296952379 | K43: 0.02218009455 | L43: -7.179764553e-06 | M43: 0.004534691759 | N43: 0.007784482659 | O43: 0.02667458882 | P43: 0.09872247024 | R43: 1.58734522e-05 | S43: -1.020279996e-08 | T43: 9.02233874e-06 | U43: 0 | V43: 4.176471794e-06 | W43: 0.01568341823 | X43: 0.004895103421 | Y43: -3.176515223e-06 | Z43: 0.002285169306 | AA43: 0.002352505606 | AB43: 0.007360265026 | AC43: 0.03548601781 | AE43: 0 | AF43: 0 | AG43: -3.002445062e-07 | AH43: 0 | AI43: 0 | AJ43: 0.001360884961 | AK43: 0.001281064865 | AL43: 0 | AM43: 1.073616532e-05 | AN43: 8.015259661e-05 | AO43: 0.002090720342 | AP43: 0.006355113994 | AR43: 0 | AS43: 0 | AT43: 0 | AU43: 0 | AV43: 0 | AW43: 0 | AX43: 0 | AY43: 0 | AZ43: 0 | BA43: 0 | BB43: 0 | BC43: 0 | BE43: 0 | BF43: 0.03312648066 | BG43: -0.0546423164 | BH43: -0.0117282709 | BI43: -0.0458002909
A44: CO506 | B44: CO506: Customer Support partial private circuits | E44: 0.0001251356059 | F44: 8.771364396e-07 | G44: 5.345707861e-05 | H44: 0 | I44: 0.00373051498 | J44: 1.555427471 | K44: 1.584343353 | L44: 0.001830245806 | M44: 0.1615966195 | N44: 0.3246926422 | O44: 9.773705156 | P44: 13.62471004 | R44: 0.000105784739 | S44: 8.697655452e-07 | T44: 1.102470831e-05 | U44: 0 | V44: 0.003635605926 | W44: 0.6782486005 | X44: 0.2332391483 | Y44: 0.002060771905 | Z44: 0.05579870477 | AA44: 0.0948668906 | AB44: 6.156111975 | AC44: 6.991689716 | AE44: 0 | AF44: 0 | AG44: -4.020356276e-07 | AH44: 0 | AI44: 0 | AJ44: 0.0758821136 | AK44: 0.08047788414 | AL44: 0 | AM44: -0.004910258035 | AN44: 0.009321946783 | AO44: 0.8837062053 | AP44: 1.230815799 | AR44: 0 | AS44: 0 | AT44: 0 | AU44: 0 | AV44: 0 | AW44: 0 | AX44: 0 | AY44: 0 | AZ44: 0 | BA44: 0 | BB44: 0 | BC44: 0 | BE44: 0 | BF44: 5.088334348 | BG44: -13.2329378 | BH44: -0.7555074651 | BI44: -7.599665029
A45: CO418 | B45: CO418: 64Kbit PC link connection cct rearrangements | E45: 7.578239272e-06 | F45: -5.026146621e-09 | G45: 6.378065001e-06 | H45: 0 | I45: 4.383286724e-07 | J45: 0.01723673444 | K45: 0.01249701326 | L45: -3.953791971e-06 | M45: 0.003517829284 | N45: 0.003439435631 | O45: 0.01062944365 | P45: 0.05779729527 | R45: 7.916553525e-06 | S45: -4.403861801e-09 | T45: 5.505842213e-06 | U45: 0 | V45: 8.429248206e-07 | W45: 0.008044502526 | X45: 0.00276156402 | Y45: -1.224526889e-06 | Z45: 0.001136276798 | AA45: 0.001394140532 | AB45: 0.003711935096 | AC45: 0.01513402588 | AE45: 0 | AF45: 0 | AG45: -1.649401993e-07 | AH45: 0 | AI45: 0 | AJ45: 0.001026146193 | AK45: 0.0009296839808 | AL45: 0 | AM45: 4.217905654e-06 | AN45: 4.58506518e-05 | AO45: 0.001273137358 | AP45: 0.002621858047 | AR45: 0 | AS45: 0 | AT45: 0 | AU45: 0 | AV45: 0 | AW45: 0 | AX45: 0 | AY45: 0 | AZ45: 0 | BA45: 0 | BB45: 0 | BC45: 0 | BE45: 0 | BF45: 0.01748215057 | BG45: -0.038942348 | BH45: -0.005217079721 | BI45: -0.0196928009
A46: CL172 | B46: CL172: E side copper current | E46: 2.050721829e-05 | F46: -1.172557201e-10 | G46: 2.312823029e-05 | H46: 0 | I46: -3.18864856e-07 | J46: 0.004038194135 | K46: 0.005984431544 | L46: -1.947787176e-07 | M46: 0.004183890855 | N46: 0.009336047509 | O46: 0.005452720253 | P46: 0.03330976959 | R46: 1.806140326e-05 | S46: -1.367983401e-10 | T46: 1.528089904e-05 | U46: 0 | V46: -3.163956394e-07 | W46: 0.001408740424 | X46: 0.001340080635 | Y46: -1.779769564e-07 | Z46: 0.002022785232 | AA46: 0.003689885226 | AB46: 0.002882696249 | AC46: 0.009390368901 | AE46: 0 | AF46: 0 | AG46: -4.567593607e-07 | AH46: 0 | AI46: 0 | AJ46: 0.0002282409733 | AK46: 0.0007210245577 | AL46: 0 | AM46: 0.0002218810846 | AN46: 0.0002668941767 | AO46: 0.0008092408014 | AP46: 0.0026299727 | AR46: 0 | AS46: 0 | AT46: 0 | AU46: 0 | AV46: 0 | AW46: 0 | AX46: 0 | AY46: 0 | AZ46: 0 | BA46: 0 | BB46: 0 | BC46: 0 | BE46: 0 | BF46: 0.01235373695 | BG46: -0.03034929441 | BH46: -0.003693421752 | BI46: -0.01776863024
A47: CL174 | B47: CL174: D side copper current | E47: 4.026348974e-05 | F47: -5.348321263e-11 | G47: 4.368610172e-05 | H47: 0 | I47: 1.980342427e-06 | J47: 0.01357074415 | K47: 0.01893591323 | L47: 2.58225103e-06 | M47: 0.01585537594 | N47: 0.02469587458 | O47: 0.01820300516 | P47: 0.09407161677 | R47: 5.447413317e-05 | S47: -7.012243433e-11 | T47: 3.665008773e-05 | U47: 0 | V47: 1.601039022e-06 | W47: 0.004297458281 | X47: 0.006100998503 | Y47: 2.483731898e-06 | Z47: 0.005706121109 | AA47: 0.008579721527 | AB47: 0.007696019037 | AC47: 0.03078969437 | AE47: 0 | AF47: 0 | AG47: -9.189662613e-07 | AH47: 0 | AI47: 0 | AJ47: 0.0006460708072 | AK47: 0.001901729154 | AL47: 0 | AM47: 0.000417973995 | AN47: 0.0006827227185 | AO47: 0.002287487583 | AP47: 0.00640096561 | AR47: 0 | AS47: 0 | AT47: 0 | AU47: 0 | AV47: 0 | AW47: 0 | AX47: 0 | AY47: 0 | AZ47: 0 | BA47: 0 | BB47: 0 | BC47: 0 | BE47: 0 | BF47: 0.03939313853 | BG47: -0.07376061156 | BH47: -0.0116967758 | BI47: -0.04788213849
A48: CO413 | B48: CO413: 2Mbit and above PC link connection cct provision | E48: 0.001584897334 | F48: -1.127172701e-07 | G48: 0.001736202523 | H48: 0 | I48: 0.0002146090631 | J48: 0.9554871894 | K48: 1.209048681 | L48: -0.0004087554691 | M48: 0.4488652336 | N48: 0.653622932 | O48: 1.052830653 | P48: 5.154111984 | R48: 0.00161628144 | S48: -8.856356937e-08 | T48: 0.001026464682 | U48: 0 | V48: 0.0001708749664 | W48: 0.3601246233 | X48: 0.2330199174 | Y48: -0.0003021572027 | Z48: 0.1867588091 | AA48: 0.2711715732 | AB48: 0.3523174774 | AC48: 1.731352008 | AE48: 0 | AF48: 0 | AG48: -3.332947934e-05 | AH48: 0 | AI48: 0 | AJ48: 0.038123755 | AK48: 0.08547226036 | AL48: 0 | AM48: 0.01574973705 | AN48: 0.01174790502 | AO48: 0.07013612083 | AP48: 0.2719570715 | AR48: 0 | AS48: 0 | AT48: 0 | AU48: 0 | AV48: 0 | AW48: 0 | AX48: 0 | AY48: 0 | AZ48: 0 | BA48: 0 | BB48: 0 | BC48: 0 | BE48: 0 | BF48: 1.492862958 | BG48: -3.582012696 | BH48: -0.7635619641 | BI48: -2.346818128
A49: CR187 | B49: CR187: Broadband line testing systems | E49: -4.06990303e-10 | F49: -2.670866933e-12 | G49: -1.6882753e-10 | H49: 0 | I49: -1.885035787e-10 | J49: 3.523034557e-05 | K49: 4.131611296e-05 | L49: -1.870872313e-09 | M49: 0.01418885688 | N49: 5.76934833e-06 | O49: 5.928663886e-05 | P49: 0.01432299854 | R49: -5.109989359e-10 | S49: -2.670866933e-12 | T49: -3.46674038e-11 | U49: 0 | V49: 3.958030936e-11 | W49: 1.727927118e-05 | X49: 5.655152783e-06 | Y49: -1.417031355e-11 | Z49: 0.0006127066906 | AA49: 2.209940511e-06 | AB49: 1.655142322e-05 | AC49: 0.0006988079545 | AE49: 0 | AF49: 0 | AG49: -5.739731483e-11 | AH49: 0 | AI49: 0 | AJ49: 1.299556723e-06 | AK49: 1.332322367e-06 | AL49: 0 | AM49: 6.34527813e-05 | AN49: 6.111424613e-08 | AO49: 7.460039043e-06 | AP49: 5.877967701e-05 | AR49: 0 | AS49: 0 | AT49: 0 | AU49: 0 | AV49: 0 | AW49: 0 | AX49: 0 | AY49: 0 | AZ49: 0 | BA49: 0 | BB49: 0 | BC49: 0 | BE49: 0 | BF49: 6.257766501e-05 | BG49: -0.0001065724541 | BH49: -9.697478579e-05 | BI49: -9.704910334e-05
A50: CO401 | B50: CO401: Netstream Equipment | E50: 1.001166566e-05 | F50: 1.83305827e-09 | G50: 49.89335147 | H50: 0 | I50: 0.0002524492263 | J50: 0.456451548 | K50: 0.2072063302 | L50: 0.2610713426 | M50: 0.13248885 | N50: 0.02110442165 | O50: 0.738346289 | P50: 61.86720831 | R50: 9.038737284e-06 | S50: -5.029161892e-09 | T50: 5.509404016 | U50: 0 | V50: 0.000259825837 | W50: 0.5675362681 | X50: 0.01809476337 | Y50: 0.1845246697 | Z50: 0.08108651428 | AA50: 0.006623227025 | AB50: 0.1415520234 | AC50: 5.827667227 | AE50: 0 | AF50: 0 | AG50: 1.01530735 | AH50: 0 | AI50: 0 | AJ50: 0.06325088142 | AK50: 0.01092292965 | AL50: 0.03915994469 | AM50: -0.0001408659313 | AN50: 0.0006019414975 | AO50: 0.06877767695 | AP50: 1.161534837 | AR50: 0 | AS50: 0 | AT50: 0 | AU50: 0 | AV50: 0 | AW50: -0.0170083427 | AX50: 0 | AY50: -0.01391634529 | AZ50: 0 | BA50: 0 | BB50: 0 | BC50: -0.03423837541 | BE50: -2.446814707e-06 | BF50: 0.3817232508 | BG50: -0.6449973088 | BH50: -0.03645174927 | BI50: -0.2192306438
A51: CPE432 | B51: CPE432: POH adjust credit PPC 64k LE | E51: 0 | F51: 0 | G51: 0 | H51: 0 | I51: 0 | J51: 0 | K51: 0 | L51: 0 | M51: 0 | N51: 0 | O51: 0 | P51: 0 | R51: 0 | S51: 0 | T51: 0 | U51: 0 | V51: 0 | W51: 0 | X51: 0 | Y51: 0 | Z51: 0 | AA51: 0 | AB51: 0 | AC51: 0 | AE51: 0 | AF51: 0 | AG51: -0.01996415083 | AH51: 0 | AI51: 0 | AJ51: 0 | AK51: 0 | AL51: 0 | AM51: 0 | AN51: 0 | AO51: 0 | AP51: -0.02202940782 | AR51: 0 | AS51: 0 | AT51: 0 | AU51: 0 | AV51: 0 | AW51: 0 | AX51: 0 | AY51: 0 | AZ51: 0 | BA51: 0 | BB51: 0 | BC51: 0 | BE51: 0 | BF51: 8.612986742e-08 | BG51: -1.017450515e-07 | BH51: -2.007561637e-11 | BI51: -3.400378755e-08
A52: CPE438 | B52: CPE438: POH adjust credit PPC 2Mb Copper LE | E52: 0 | F52: 0 | G52: 0 | H52: 0 | I52: 0 | J52: 0 | K52: 0 | L52: 0 | M52: 0 | N52: 0 | O52: 0 | P52: 0 | R52: 0 | S52: 0 | T52: 0 | U52: 0 | V52: 0 | W52: 0 | X52: 0 | Y52: 0 | Z52: 0 | AA52: 0 | AB52: 0 | AC52: 0 | AE52: 0 | AF52: 0 | AG52: -0.000542911717 | AH52: 0 | AI52: 0 | AJ52: 0 | AK52: 0 | AL52: 0 | AM52: 0 | AN52: 0 | AO52: 0 | AP52: -0.0006231145843 | AR52: 0 | AS52: 0 | AT52: 0 | AU52: 0 | AV52: 0 | AW52: 0 | AX52: 0 | AY52: 0 | AZ52: 0 | BA52: 0 | BB52: 0 | BC52: 0 | BE52: 0 | BF52: 2.066635428e-09 | BG52: -3.936374399e-09 | BH52: -5.34787316e-13 | BI52: -8.295538093e-10
A53: CPE439 | B53: CPE439: POH adjust credit PPC 2Mb Fibre LE | E53: 0 | F53: 0 | G53: 0 | H53: 0 | I53: 0 | J53: 0 | K53: 0 | L53: 0 | M53: 0 | N53: 0 | O53: 0 | P53: 0 | R53: 0 | S53: 0 | T53: 0 | U53: 0 | V53: 0 | W53: 0 | X53: 0 | Y53: 0 | Z53: 0 | AA53: 0 | AB53: 0 | AC53: 0 | AE53: 0 | AF53: 0 | AG53: -0.005460192307 | AH53: 0 | AI53: 0 | AJ53: 0 | AK53: 0 | AL53: 0 | AM53: 0 | AN53: 0 | AO53: 0 | AP53: -0.00445074499 | AR53: 0 | AS53: 0 | AT53: 0 | AU53: 0 | AV53: 0 | AW53: 0 | AX53: 0 | AY53: 0 | AZ53: 0 | BA53: 0 | BB53: 0 | BC53: 0 | BE53: 0 | BF53: 1.999972268e-08 | BG53: -2.009619567e-08 | BH53: -3.719573555e-12 | BI53: -5.351208248e-09
A54: CD100 | B54: CD100: Low Tisbo 3rd Party Equipment Depreciation | E54: 0 | F54: 0 | G54: 0 | H54: 0 | I54: 0 | J54: 0 | K54: 0 | L54: 0 | M54: 0 | N54: 0 | O54: 0 | P54: 0 | R54: 0 | S54: 0 | T54: 0 | U54: 0 | V54: 0 | W54: 0 | X54: 0 | Y54: 0 | Z54: 0 | AA54: 0 | AB54: 0 | AC54: 0 | AE54: 0 | AF54: 0 | AG54: 7.755279145 | AH54: 0 | AI54: 0 | AJ54: 1.745990833e-11 | AK54: 5.518426177e-11 | AL54: 0 | AM54: -4.184602138e-13 | AN54: 2.292317036e-13 | AO54: 1.945588258e-11 | AP54: 8.409338832 | AR54: 0 | AS54: 0 | AT54: 0 | AU54: 0 | AV54: 0 | AW54: 0 | AX54: 0 | AY54: 0 | AZ54: 0 | BA54: 0 | BB54: 0 | BC54: 0 | BE54: 0 | BF54: 1.081588169e-07 | BG54: -1.317339931e-07 | BH54: -1.603447167e-11 | BI54: -2.841324767e-08
A55: CPE434 | B55: CPE434: POH adjust credit PPC 34Mb LE | E55: 0 | F55: 0 | G55: 0 | H55: 0 | I55: 0 | J55: 0 | K55: 0 | L55: 0 | M55: 0 | N55: 0 | O55: 0 | P55: 0 | R55: 0 | S55: 0 | T55: 0 | U55: 0 | V55: 0 | W55: 0 | X55: 0 | Y55: 0 | Z55: 0 | AA55: 0 | AB55: 0 | AC55: 0 | AE55: 0 | AF55: 0 | AG55: -0.0001432262116 | AH55: 0 | AI55: 0 | AJ55: 0 | AK55: 0 | AL55: 0 | AM55: 0 | AN55: 0 | AO55: 0 | AP55: -0.0001287832323 | AR55: 0 | AS55: 0 | AT55: 0 | AU55: 0 | AV55: 0 | AW55: 0 | AX55: 0 | AY55: 0 | AZ55: 0 | BA55: 0 | BB55: 0 | BC55: 0 | BE55: 0 | BF55: 5.294699722e-10 | BG55: -6.768256203e-10 | BH55: -1.033641937e-13 | BI55: -1.899089295e-10
A56: CD101 | B56: CD101: Medium Tisbo 3rd Party Equipment Depreciation | E56: 0 | F56: 0 | G56: 0 | H56: 0 | I56: 0 | J56: 0 | K56: 0 | L56: 0 | M56: 0 | N56: 0 | O56: 0 | P56: 0 | R56: 0 | S56: 0 | T56: 0 | U56: 0 | V56: 0 | W56: 0 | X56: 0 | Y56: 0 | Z56: 0 | AA56: 0 | AB56: 0 | AC56: 0 | AE56: 0 | AF56: 0 | AG56: 1.520724273 | AH56: 0 | AI56: 0 | AJ56: 3.528454977e-12 | AK56: 9.640546886e-12 | AL56: 0 | AM56: -6.354386601e-14 | AN56: 2.628541482e-14 | AO56: 4.016725764e-12 | AP56: 1.327177547 | AR56: 0 | AS56: 0 | AT56: 0 | AU56: 0 | AV56: 0 | AW56: 0 | AX56: 0 | AY56: 0 | AZ56: 0 | BA56: 0 | BB56: 0 | BC56: 0 | BE56: 0 | BF56: 1.352977706e-08 | BG56: -2.066056389e-08 | BH56: -2.632816829e-12 | BI56: -5.292052914e-09
A57: CD102 | B57: CD102: High Tisbo 3rd Party Equipment Depreciation | E57: 0 | F57: 0 | G57: 0 | H57: 0 | I57: 0 | J57: 0 | K57: 0 | L57: 0 | M57: 0 | N57: 0 | O57: 0 | P57: 0 | R57: 0 | S57: 0 | T57: 0 | U57: 0 | V57: 0 | W57: 0 | X57: 0 | Y57: 0 | Z57: 0 | AA57: 0 | AB57: 0 | AC57: 0 | AE57: 0 | AF57: 0 | AG57: 0.1405290902 | AH57: 0 | AI57: 0 | AJ57: 2.428483437e-13 | AK57: 7.083072987e-13 | AL57: 0 | AM57: -5.060665742e-15 | AN57: 2.873031109e-15 | AO57: 3.374155498e-13 | AP57: 0.1241340297 | AR57: 0 | AS57: 0 | AT57: 0 | AU57: 0 | AV57: 0 | AW57: 0 | AX57: 0 | AY57: 0 | AZ57: 0 | BA57: 0 | BB57: 0 | BC57: 0 | BE57: 0 | BF57: 1.42952872e-09 | BG57: -1.485956236e-09 | BH57: -2.181204854e-13 | BI57: -4.315238749e-10
A58: CPE105 | B58: CPE105: POH LE adjust CSH debit | E58: 0 | F58: 0 | G58: 0 | H58: 0 | I58: 0 | J58: 0 | K58: 0 | L58: 0 | M58: 0 | N58: 0 | O58: 0 | P58: 0 | R58: 0 | S58: 0 | T58: 0 | U58: 0 | V58: 0 | W58: 0 | X58: 0 | Y58: 0 | Z58: 0 | AA58: 0 | AB58: 0 | AC58: 0 | AE58: 0 | AF58: 0 | AG58: 0.02346659 | AH58: 0 | AI58: 0 | AJ58: 0 | AK58: 0 | AL58: 0 | AM58: 0 | AN58: 0 | AO58: 0 | AP58: 0.02855573 | AR58: 0 | AS58: 0 | AT58: 0 | AU58: 0 | AV58: 0 | AW58: 0 | AX58: 0 | AY58: 0 | AZ58: 0 | BA58: 0 | BB58: 0 | BC58: 0 | BE58: 0 | BF58: 1.335048353e-07 | BG58: -1.330022536e-07 | BH58: -2.246559307e-11 | BI58: -3.180956239e-08
A59: CG102 | B59: CG102: PC rental 34Mbit s regional trunk | E59: 3.569565042e-06 | F59: 12.10305533 | G59: 16.72647494 | H59: 0 | I59: 8.729094427e-05 | J59: 1.371523308 | K59: 0.1191939319 | L59: 0.7396550145 | M59: 0.05634508815 | N59: 0.007012122963 | O59: 0.2503030717 | P59: 24.87390542 | R59: 2.957993972e-06 | S59: 3.553513095 | T59: 2.242797114 | U59: 0 | V59: 4.928768567e-05 | W59: 0.6415529268 | X59: 0.01238279374 | Y59: 0.2207122827 | Z59: 0.0275456064 | AA59: 0.002218906836 | AB59: 0.03718621602 | AC59: 8.448876246 | AE59: 0 | AF59: 0.2878434102 | AG59: 0.3218380816 | AH59: 0 | AI59: 0 | AJ59: 0.04760008892 | AK59: 0.007464803816 | AL59: 0.02206789947 | AM59: -0.001285128346 | AN59: 0.000184102355 | AO59: 0.02431924704 | AP59: 0.7077966812 | AR59: 0 | AS59: -0.04354878674 | AT59: 0.09566245243 | AU59: 0 | AV59: 0 | AW59: 0.003359677424 | AX59: 0 | AY59: 0.004295608784 | AZ59: 0 | BA59: 0 | BB59: 0 | BC59: 0.0575934241 | BE59: 1.299955872e-06 | BF59: 0.1828128601 | BG59: -0.4530182972 | BH59: -0.01903069983 | BI59: -0.2231722328
A60: CG202 | B60: CG202: PC rental 34Mbit link per km national trunk | E60: 3.433658768e-06 | F60: 18.77107158 | G60: 21.61406612 | H60: 0 | I60: 0.0001201470829 | J60: 2.444489622 | K60: 0.2015036451 | L60: 1.387353957 | M60: 0.06856301119 | N60: 0.00829696119 | O60: 0.3547333908 | P60: 35.61986335 | R60: 3.122142576e-06 | S60: 5.28068173 | T60: 3.520374833 | U60: 0 | V60: 5.771445923e-05 | W60: 0.6117794819 | X60: 0.01332017503 | Y60: 0.2357709538 | Z60: 0.04097960821 | AA60: 0.001948857147 | AB60: 0.06431001489 | AC60: 10.09423488 | AE60: 0 | AF60: 0.4429237598 | AG60: 0.4147448521 | AH60: 0 | AI60: 0 | AJ60: 0.06523970556 | AK60: 0.01050323925 | AL60: 0.02243997849 | AM60: -0.002527510763 | AN60: 0.0001780400933 | AO60: 0.0294389283 | AP60: 0.9321471378 | AR60: 0 | AS60: -0.05643691639 | AT60: 0.1228188044 | AU60: 0 | AV60: 0 | AW60: 0.01514350251 | AX60: 0 | AY60: 0.01076780417 | AZ60: 0 | BA60: 0 | BB60: 0 | BC60: 0.08013883352 | BE60: 3.371280603e-06 | BF60: 0.2451343795 | BG60: -0.592373684 | BH60: -0.02145642243 | BI60: -0.3576512412
A61: CO411 | B61: CO411: OR Analogue PC link connection cct prov | E61: 0.0001001728824 | F61: -8.788403809e-10 | G61: 0.0001123773791 | H61: 0 | I61: 7.193587453e-06 | J61: 0.01004532904 | K61: 0.0195169815 | L61: -8.754923449e-06 | M61: 0.01775173584 | N61: 0.01664209515 | O61: 0.01961949438 | P61: 0.09979586881 | R61: 8.013830592e-05 | S61: -1.243237612e-09 | T61: 7.048846197e-05 | U61: 0 | V61: 9.89942096e-06 | W61: 0.004842021661 | X61: 0.005639288924 | Y61: -5.247386654e-06 | Z61: 0.008096221933 | AA61: 0.007657259237 | AB61: 0.01182578474 | AC61: 0.03434937529 | AE61: 0 | AF61: 0 | AG61: -1.756573433e-06 | AH61: 0 | AI61: 0 | AJ61: 0.0008473996483 | AK61: 0.003006806496 | AL61: 0 | AM61: 0.0008999268569 | AN61: 0.0004196929492 | AO61: 0.003284082913 | AP61: 0.01028137641 | AR61: 0 | AS61: 0 | AT61: 0 | AU61: 0 | AV61: 0 | AW61: 0 | AX61: 0 | AY61: 0 | AZ61: 0 | BA61: 0 | BB61: 0 | BC61: 0 | BE61: 0 | BF61: 0.03825164042 | BG61: -0.07229144322 | BH61: -0.01309893247 | BI61: -0.07156070752
A62: CO421 | B62: CO421: OR Analogue PC installation | E62: 0.0001558531423 | F62: -4.159252291e-09 | G62: 0.0001543078298 | H62: 0 | I62: 1.478204725e-05 | J62: 0.06387028874 | K62: 0.1053980025 | L62: -3.865694731e-05 | M62: 0.04778117084 | N62: 0.04993605715 | O62: 0.07750572223 | P62: 0.2940883765 | R62: 0.000150478896 | S62: -3.91662924e-09 | T62: 9.960902568e-05 | U62: 0 | V62: 1.67501329e-05 | W62: 0.01827923017 | X62: 0.01682281458 | Y62: -2.681273582e-05 | Z62: 0.01913591506 | AA62: 0.02048970641 | AB62: 0.03795655048 | AC62: 0.1180967167 | AE62: 0 | AF62: 0 | AG62: -3.280391886e-06 | AH62: 0 | AI62: 0 | AJ62: 0.002507604953 | AK62: 0.007880926125 | AL62: 0 | AM62: 0.001373406503 | AN62: 0.001148815068 | AO62: 0.006592939047 | AP62: 0.02060632237 | AR62: 0 | AS62: 0 | AT62: 0 | AU62: 0 | AV62: 0 | AW62: 0 | AX62: 0 | AY62: 0 | AZ62: 0 | BA62: 0 | BB62: 0 | BC62: 0 | BE62: 0 | BF62: 0.1065637237 | BG62: -0.2362631216 | BH62: -0.04236491815 | BI62: -0.1447549276
A63: CO461 | B63: CO461: Private Circuit test systems | E63: 3.271797356e-06 | F63: -3.032154906e-08 | G63: -2.733491053e-06 | H63: 0 | I63: 1.282553762e-05 | J63: 0.0894691091 | K63: 0.05052713302 | L63: 133.0741756 | M63: 0.002055810023 | N63: 0.002646372072 | O63: 0.05432367106 | P63: 109.3965099 | R63: 2.605856301e-06 | S63: -2.898873371e-08 | T63: -4.782870026e-07 | U63: 0 | V63: 1.417900027e-05 | W63: 0.04782988588 | X63: 0.009087090728 | Y63: 1.128518925e-05 | Z63: 0.0002753890989 | AA63: 0.001128404179 | AB63: 0.01870817184 | AC63: 0.06719867824 | AE63: 0 | AF63: 0 | AG63: 1.708984406e-08 | AH63: 0 | AI63: 0 | AJ63: 0.005232644852 | AK63: 0.003166897183 | AL63: 0 | AM63: -0.0005523797995 | AN63: 9.023814064e-05 | AO63: 0.006298419758 | AP63: 0.014949373 | AR63: 0 | AS63: 0 | AT63: 0 | AU63: 0 | AV63: 0 | AW63: 0 | AX63: 0 | AY63: 0 | AZ63: 0 | BA63: 0 | BB63: 0 | BC63: 0 | BE63: 0 | BF63: 0.09050423392 | BG63: -0.1242856391 | BH63: -0.01085488057 | BI63: -0.07809268329
A64: CX902 | B64: CX902: Wholesale | E64: 5.372865154e-06 | F64: -5.977466252e-10 | G64: -1.068859239e-08 | H64: 0 | I64: 5.309024877e-06 | J64: 0.05125848917 | K64: 0.1312443459 | L64: 2.740937214e-06 | M64: 0.008842698803 | N64: 0.0004161081537 | O64: 1.069264528 | P64: 1.140840166 | R64: 4.247121979e-06 | S64: -5.722018976e-10 | T64: 5.712714757e-09 | U64: 0 | V64: 4.372647489e-06 | W64: 0.01198728258 | X64: 0.01034735816 | Y64: 2.563224228e-06 | Z64: 0.006626221461 | AA64: 0.0001836258549 | AB64: 0.3183398188 | AC64: 0.4716850933 | AE64: 0 | AF64: 0 | AG64: -4.076434004e-10 | AH64: 0 | AI64: 0 | AJ64: 0.002620127646 | AK64: 0.009318703683 | AL64: 0 | AM64: 7.789795961e-06 | AN64: 2.502953687e-05 | AO64: 0.2122127401 | AP64: 0.2054698597 | AR64: 0 | AS64: 0 | AT64: 0 | AU64: 0 | AV64: 0 | AW64: 0 | AX64: 0 | AY64: 0 | AZ64: 0 | BA64: 0 | BB64: 0 | BC64: 0 | BE64: 26.66036631 | BF64: 0.001148485251 | BG64: -0.01252874753 | BH64: -0.002674464187 | BI64: 18.20568453
A65: CG105 | B65: CG105: PPCs 34 45Mbit regional Trunk WECLA | E65: -9.709977542e-09 | F65: 9.595193662e-10 | G65: 0.1073406346 | H65: 0 | I65: -1.329961469e-07 | J65: 0.02510179609 | K65: 0.0009609834321 | L65: 0.01605186643 | M65: 0.0005211079876 | N65: 7.341765347e-05 | O65: 0.002052977507 | P65: 0.1144277797 | R65: -1.917021143e-08 | S65: 8.962030257e-10 | T65: 0.009885329043 | U65: 0 | V65: -3.919905069e-07 | W65: 0.005713268424 | X65: 6.79396056e-05 | Y65: 0.001858572127 | Z65: 0.0001489550366 | AA65: 1.430295901e-05 | AB65: 0.0001339747966 | AC65: 0.01603493625 | AE65: 0 | AF65: 0 | AG65: 0.002118526062 | AH65: 0 | AI65: 0 | AJ65: 0.0004550014351 | AK65: 4.902837565e-05 | AL65: 0.0002806303629 | AM65: 3.579184677e-06 | AN65: 1.726918345e-06 | AO65: 7.304515801e-05 | AP65: 0.00250176557 | AR65: 0 | AS65: 0 | AT65: 0 | AU65: 0 | AV65: 0 | AW65: 0.000124726959 | AX65: 0 | AY65: 0.0001148278986 | AZ65: 0 | BA65: 0 | BB65: 0 | BC65: 0.0002753007567 | BE65: 4.311939461e-08 | BF65: 0.001789039278 | BG65: -0.004115905812 | BH65: -0.0002318739839 | BI65: -0.001842854889
A66: CG106 | B66: CG106: PPCs 140 155Mbit regional Trunk WECLA | E66: 2.52066983e-07 | F66: 1.082789821e-09 | G66: 1.71007325 | H66: 0 | I66: 1.637313918e-05 | J66: 0.3255334475 | K66: 0.01031309622 | L66: 0.2026150442 | M66: 0.005210612647 | N66: 0.0008714126611 | O66: 0.05775114609 | P66: 1.832985366 | R66: 7.516096335e-07 | S66: -1.720097085e-09 | T66: 0.1411629496 | U66: 0 | V66: 2.105531027e-05 | W66: 0.2516977828 | X66: 0.001536862347 | Y66: 0.1334759755 | Z66: 0.003267312983 | AA66: 0.0005499752161 | AB66: 0.01367406132 | AC66: 0.5269578101 | AE66: 0 | AF66: 0 | AG66: 0.02771279612 | AH66: 0 | AI66: 0 | AJ66: 0.03285471767 | AK66: 0.000889106951 | AL66: 0.01818862411 | AM66: 9.046988825e-05 | AN66: 5.580700756e-05 | AO66: 0.01014137481 | AP66: 0.07403347075 | AR66: 0 | AS66: 0 | AT66: 0 | AU66: 0 | AV66: 0 | AW66: -0.008986521045 | AX66: 0 | AY66: -0.006567655757 | AZ66: 0 | BA66: 0 | BB66: 0 | BC66: -0.01805831322 | BE66: -1.30651344e-06 | BF66: 0.03339943664 | BG66: -0.05963483737 | BH66: -0.004229169976 | BI66: -0.02584412366
A67: CG107 | B67: CG107: ProtPath PC rent 2Mbit link perkm regional trunk | E67: -1.625244486e-07 | F67: 0.3292457505 | G67: 0.7889634687 | H67: 0 | I67: 1.776355917e-06 | J67: 0.07416640401 | K67: 0.005777949453 | L67: 0.03965175402 | M67: 0.002684516057 | N67: 0.0002741279033 | O67: 0.01137750001 | P67: 1.123129482 | R67: -1.649252065e-07 | S67: 0.1324640121 | T67: 0.07727700257 | U67: 0 | V67: 1.161068078e-06 | W67: 0.03417455516 | X67: 0.0004304264277 | Y67: 0.01366665707 | Z67: 0.001026276468 | AA67: 0.0001040846799 | AB67: 0.001893871614 | AC67: 0.2193005015 | AE67: 0 | AF67: 0.00653856566 | AG67: 0.01525759341 | AH67: 0 | AI67: 0 | AJ67: 0.002830842749 | AK67: 0.0003021779914 | AL67: 0.001471388734 | AM67: -2.763173895e-05 | AN67: 1.089897332e-05 | AO67: 0.001199671509 | AP67: 0.02797133586 | AR67: 0 | AS67: -0.00132499008 | AT67: 0.002828596862 | AU67: 0 | AV67: 0 | AW67: 4.688728987e-05 | AX67: 0 | AY67: 8.364768714e-05 | AZ67: 0 | BA67: 0 | BB67: 0 | BC67: 0.001272904634 | BE67: 5.72575385e-08 | BF67: 0.008060510762 | BG67: -0.01869328533 | BH67: -0.001260371536 | BI67: -0.00892839485
A68: CG108 | B68: CG108: ProtPath PC rent 34Mbit link perkm regional trunk | E68: -4.893846287e-07 | F68: 0.7466182646 | G68: 1.002966724 | H68: 0 | I68: 1.591083933e-06 | J68: 0.09075000345 | K68: 0.007857940777 | L68: 0.05199919352 | M68: 0.003466184118 | N68: 0.0003647458619 | O68: 0.02152079873 | P68: 2.408239972 | R68: -5.808211752e-07 | S68: 0.2994995657 | T68: 0.1484815761 | U68: 0 | V68: 2.341478381e-07 | W68: 0.02787153125 | X68: 0.0007124457454 | Y68: 0.01044626741 | Z68: 0.001507963823 | AA68: 0.0001206664814 | AB68: 0.00324022528 | AC68: 0.5569524151 | AE68: 0 | AF68: 0.02548540507 | AG68: 0.02013984106 | AH68: 0 | AI68: 0 | AJ68: 0.002486110253 | AK68: 0.0005387462456 | AL68: 0.001146431425 | AM68: -9.037890208e-05 | AN68: 1.07401429e-05 | AO68: 0.001442855334 | AP68: 0.05621631459 | AR68: 0 | AS68: -0.004244029529 | AT68: 0.00820102499 | AU68: 0 | AV68: 0 | AW68: 0.0005041398164 | AX68: 0 | AY68: 0.000422322519 | AZ68: 0 | BA68: 0 | BB68: 0 | BC68: 0.005665212461 | BE68: 1.443965477e-07 | BF68: 0.01228432057 | BG68: -0.02027107057 | BH68: -0.001311697365 | BI68: -0.009583268903
A69: CG109 | B69: CG109: ProtPath PC rent 140Mbit link perkm regional trunk | E69: -1.05683732e-06 | F69: 1.79968848 | G69: 2.222262373 | H69: 0 | I69: 1.202221294e-05 | J69: 0.1926628676 | K69: 0.01758688179 | L69: 0.1488111449 | M69: 0.00905705585 | N69: 0.001040830599 | O69: 0.04412136426 | P69: 5.399656377 | R69: -1.203851182e-06 | S69: 0.6403679311 | T69: 0.453585535 | U69: 0 | V69: 7.959824401e-06 | W69: 0.05011190182 | X69: 0.001686236663 | Y69: 0.01443595935 | Z69: 0.005252387737 | AA69: 0.0003043814684 | AB69: 0.005173551673 | AC69: 0.9732485801 | AE69: 0 | AF69: 0.04007169155 | AG69: 0.06285531003 | AH69: 0 | AI69: 0 | AJ69: 0.002917141036 | AK69: 0.001114069777 | AL69: 0.0009485522149 | AM69: -0.0002140282754 | AN69: 2.268406785e-05 | AO69: 0.002698985503 | AP69: 0.09579877212 | AR69: 0 | AS69: -0.006272958087 | AT69: 0.01757170972 | AU69: 0 | AV69: 0 | AW69: 0.002043964222 | AX69: 0 | AY69: 0.00184803264 | AZ69: 0 | BA69: 0 | BB69: 0 | BC69: 0.01263259726 | BE69: 4.250380151e-07 | BF69: 0.02565465449 | BG69: -0.05152256692 | BH69: -0.002696965727 | BI69: -0.02136861093
A70: CG207 | B70: CG207: ProtPath PC rent 2Mbit link perkm national trunk | E70: -1.050805254e-07 | F70: 0.283831225 | G70: 0.4069868241 | H70: 0 | I70: -2.996909937e-07 | J70: 0.03475595436 | K70: 0.00305371021 | L70: 0.02708091196 | M70: 0.001285492138 | N70: 0.00014151016 | O70: 0.005254649119 | P70: 0.679667326 | R70: -1.318231797e-07 | S70: 0.09212047689 | T70: 0.06250615654 | U70: 0 | V70: -9.190130266e-07 | W70: 0.01527110861 | X70: 0.0002601982148 | Y70: 0.004120295104 | Z70: 0.0006883788412 | AA70: 4.505897011e-05 | AB70: 0.001013571922 | AC70: 0.1820044747 | AE70: 0 | AF70: 0.007062846163 | AG70: 0.005984172707 | AH70: 0 | AI70: 0 | AJ70: 0.001269082607 | AK70: 0.0001521802398 | AL70: 0.0004744668441 | AM70: -2.209621355e-05 | AN70: 4.005511055e-06 | AO70: 0.0004374064544 | AP70: 0.01577664365 | AR70: 0 | AS70: -0.001100697088 | AT70: 0.002018023921 | AU70: 0 | AV70: 0 | AW70: 0.0001911513263 | AX70: 0 | AY70: 0.0001924193618 | AZ70: 0 | BA70: 0 | BB70: 0 | BC70: 0.001613934348 | BE70: 5.635897347e-08 | BF70: 0.004503584559 | BG70: -0.007614249435 | BH70: -0.0005916130608 | BI70: -0.00454732579
A71: CG208 | B71: CG208: ProtPath PC rent 34Mbit link perkm national trunk | E71: -6.773280912e-07 | F71: 1.338255115 | G71: 1.355334119 | H71: 0 | I71: 3.692026433e-06 | J71: 0.145022967 | K71: 0.01592515067 | L71: 0.07910623236 | M71: 0.003914655698 | N71: 0.0003808942061 | O71: 0.02659425116 | P71: 2.54294234 | R71: -6.056195943e-07 | S71: 0.4672879663 | T71: 0.2629709821 | U71: 0 | V71: 2.038443724e-06 | W71: 0.03539831721 | X71: 0.001148989802 | Y71: 0.01012413505 | Z71: 0.002450233837 | AA71: 0.0001202051821 | AB71: 0.003268233371 | AC71: 0.7432815414 | AE71: 0 | AF71: 0.0392950803 | AG71: 0.03147882143 | AH71: 0 | AI71: 0 | AJ71: 0.003416377687 | AK71: 0.0007609333751 | AL71: 0.001093774923 | AM71: -0.0001749624992 | AN71: 1.399908549e-05 | AO71: 0.002054615553 | AP71: 0.07081753477 | AR71: 0 | AS71: -0.00588935246 | AT71: 0.01312659162 | AU71: 0 | AV71: 0 | AW71: 0.0007406697975 | AX71: 0 | AY71: 0.0007262368217 | AZ71: 0 | BA71: 0 | BB71: 0 | BC71: 0.006683183936 | BE71: 2.492929953e-07 | BF71: 0.01562455962 | BG71: -0.03637273803 | BH71: -0.001940090257 | BI71: -0.01541378677
A72: CG209 | B72: CG209: ProtPath PC rent 140Mbit link perkm national trunk | E72: -2.913000543e-07 | F72: 0.6352628361 | G72: 0.9407233772 | H72: 0 | I72: 1.759886956e-06 | J72: 0.06150574884 | K72: 0.006669945207 | L72: 0.02961572333 | M72: 0.002220442905 | N72: 0.0003497474831 | O72: 0.01647156219 | P72: 1.938648786 | R72: -3.702279415e-07 | S72: 0.2197038547 | T72: 0.132784163 | U72: 0 | V72: 7.609206926e-07 | W72: 0.01352608765 | X72: 0.0006307890467 | Y72: 0.005356298815 | Z72: 0.001311183246 | AA72: 9.63529348e-05 | AB72: 0.00213315651 | AC72: 0.4037168885 | AE72: 0 | AF72: 0.02115322426 | AG72: 0.01554485399 | AH72: 0 | AI72: 0 | AJ72: 0.001199659588 | AK72: 0.0004782670376 | AL72: 0.0004061130948 | AM72: -8.048148031e-05 | AN72: 9.16144528e-06 | AO72: 0.001176498707 | AP72: 0.04464018629 | AR72: 0 | AS72: -0.002902655907 | AT72: 0.005316465334 | AU72: 0 | AV72: 0 | AW72: 0.0005109880355 | AX72: 0 | AY72: 0.0005985299797 | AZ72: 0 | BA72: 0 | BB72: 0 | BC72: 0.004382609813 | BE72: 1.212320089e-07 | BF72: 0.01105813868 | BG72: -0.01483114754 | BH72: -0.003419760798 | BI72: -0.009849960705
A73: CF550 | B73: CF550: OR PPCs 34 45Mb Link CELA | E73: -4.891680469e-08 | F73: 7.353563897e-09 | G73: 1.209427425 | H73: 0 | I73: 7.655107415e-06 | J73: 0.1720051544 | K73: 0.00869879611 | L73: 0.1247857212 | M73: 0.004361511243 | N73: 0.0006433810495 | O73: 0.0206553267 | P73: 1.137803837 | R73: -8.399171298e-08 | S73: 8.316631449e-09 | T73: 0.09148444148 | U73: 0 | V73: 6.273833647e-06 | W73: 0.06418684842 | X73: 0.0007232708553 | Y73: 0.01942546432 | Z73: 0.001678633357 | AA73: 0.0002013553907 | AB73: 0.003367914946 | AC73: 0.1800946413 | AE73: 0 | AF73: 0 | AG73: 0.01786267708 | AH73: 0 | AI73: 0 | AJ73: 0.005085464834 | AK73: 0.000459150665 | AL73: 0.002651560677 | AM73: 3.294988855e-05 | AN73: 1.71336188e-05 | AO73: 0.001228354469 | AP73: 0.03646145388 | AR73: 0 | AS73: 0 | AT73: 0 | AU73: 0 | AV73: 0 | AW73: 0.0003953122516 | AX73: 0 | AY73: 0.0003813466787 | AZ73: 0 | BA73: 0 | BB73: 0 | BC73: 0.0008883598041 | BE73: 1.288725761e-07 | BF73: 0.0135207721 | BG73: -0.03505492481 | BH73: -0.00720366302 | BI73: -0.02647294225
A74: CF551 | B74: CF551: OR PPCs 34 45Mb Distribution CELA | E74: -1.272084338e-07 | F74: 3.428299073e-08 | G74: 3.728925261 | H74: 0 | I74: 2.663653302e-05 | J74: 0.7502842709 | K74: 0.02727658216 | L74: 0.3893359186 | M74: 0.01513294375 | N74: 0.002711330906 | O74: 0.07845686438 | P74: 6.21155513 | R74: -2.77242186e-07 | S74: 3.579122157e-08 | T74: 0.2837605882 | U74: 0 | V74: 3.16571509e-05 | W74: 0.3026387394 | X74: 0.002308515402 | Y74: 0.1086264844 | Z74: 0.006012359295 | AA74: 0.0007175241122 | AB74: 0.0135722 | AC74: 0.6131026965 | AE74: 0 | AF74: 0 | AG74: 0.08254951571 | AH74: 0 | AI74: 0 | AJ74: 0.02862255929 | AK74: 0.001940522011 | AL74: 0.01169113157 | AM74: 9.982434125e-05 | AN74: 8.336670335e-05 | AO74: 0.007306606407 | AP74: 0.1424718107 | AR74: 0 | AS74: 0 | AT74: 0 | AU74: 0 | AV74: 0 | AW74: -8.103541951e-05 | AX74: 0 | AY74: 0.0004131098102 | AZ74: 0 | BA74: 0 | BB74: 0 | BC74: 0.0002964078922 | BE74: 2.678943591e-07 | BF74: 0.07671432931 | BG74: -0.1219999024 | BH74: -0.01796133254 | BI74: -0.08799806712
A75: CF553 | B75: CF553: OR PPCs 140 155Mb Link CELA | E75: 3.640362709e-06 | F75: -2.011142983e-08 | G75: 6.084716524 | H75: 0 | I75: 0.0001071243535 | J75: 2.09218118 | K75: 0.07888732649 | L75: 1.556895892 | M75: 0.03867213711 | N75: 0.007048703259 | O75: 0.3910919568 | P75: 11.52039624 | R75: 8.890551217e-06 | S75: -6.095363122e-08 | T75: 0.3465086986 | U75: 0 | V75: 0.0001996910874 | W75: 3.030842287 | X75: 0.01349639676 | Y75: 1.461325019 | Z75: 0.02169325995 | AA75: 0.00578942632 | AB75: 0.129053035 | AC75: 4.685566978 | AE75: 0 | AF75: 0 | AG75: 0.1255851453 | AH75: 0 | AI75: 0 | AJ75: 0.3095880667 | AK75: 0.006960526415 | AL75: 0.2243493286 | AM75: 0.0009612435515 | AN75: 0.00037390641 | AO75: 0.1060979947 | AP75: 0.7480776316 | AR75: 0 | AS75: 0 | AT75: 0 | AU75: 0 | AV75: 0 | AW75: -0.08547406476 | AX75: 0 | AY75: -0.07304022358 | AZ75: 0 | BA75: 0 | BB75: 0 | BC75: -0.2172796692 | BE75: -1.596293173e-05 | BF75: 0.2340576447 | BG75: -0.5095273017 | BH75: -0.04516873417 | BI75: -0.2620541838
A76: CF554 | B76: CF554: OR PPCs 140 155Mb Distribution CELA | E76: 5.206336665e-07 | F76: 4.032150616e-09 | G76: 2.808575928 | H76: 0 | I76: 3.912403582e-05 | J76: 0.8831785337 | K76: 0.02460399891 | L76: 0.4408307486 | M76: 0.0116424098 | N76: 0.002495883853 | O76: 0.09867143508 | P76: 3.530621191 | R76: 1.824113389e-06 | S76: -2.724609144e-09 | T76: 0.2831569021 | U76: 0 | V76: 6.691078517e-05 | W76: 0.6078122787 | X76: 0.003959260181 | Y76: 0.3082841027 | Z76: 0.007562421924 | AA76: 0.001031990466 | AB76: 0.04194106937 | AC76: 1.421083648 | AE76: 0 | AF76: 0 | AG76: 0.06544219997 | AH76: 0 | AI76: 0 | AJ76: 0.05603831753 | AK76: 0.002489118112 | AL76: 0.05146679705 | AM76: 0.0002215471066 | AN76: 0.0001276304797 | AO76: 0.01903133253 | AP76: 0.1622119999 | AR76: 0 | AS76: 0 | AT76: 0 | AU76: 0 | AV76: 0 | AW76: -0.01801251577 | AX76: 0 | AY76: -0.01373102039 | AZ76: 0 | BA76: 0 | BB76: 0 | BC76: -0.03271278466 | BE76: -2.742808967e-06 | BF76: 0.06854967009 | BG76: -0.1481304618 | BH76: -0.01294047459 | BI76: -0.08465028662
A77: CG205 | B77: CG205: PPCs 34 45Mbit national Trunk WECLA | E77: -3.012288332e-08 | F77: 1.98795102e-09 | G77: 0.560961704 | H77: 0 | I77: 1.784633497e-06 | J77: 0.08028829915 | K77: 0.003500159608 | L77: 0.0556549291 | M77: 0.002046288186 | N77: 0.0002342303901 | O77: 0.007707824139 | P77: 0.629352347 | R77: -6.580841938e-08 | S77: 2.943947654e-09 | T77: 0.03394064185 | U77: 0 | V77: 1.173226043e-06 | W77: 0.02943683224 | X77: 0.0003068017006 | Y77: 0.01090809807 | Z77: 0.0007129878045 | AA77: 8.401477769e-05 | AB77: 0.0009237094163 | AC77: 0.09569455815 | AE77: 0 | AF77: 0 | AG77: 0.009262374644 | AH77: 0 | AI77: 0 | AJ77: 0.00247040654 | AK77: 0.0001567300685 | AL77: 0.001521585065 | AM77: 1.52050771e-05 | AN77: 8.707701767e-06 | AO77: 0.0005317890475 | AP77: 0.01484579725 | AR77: 0 | AS77: 0 | AT77: 0 | AU77: 0 | AV77: 0 | AW77: 0.0002556134726 | AX77: 0 | AY77: 0.0003733598065 | AZ77: 0 | BA77: 0 | BB77: 0 | BC77: 0.0005337570562 | BE77: 9.847603697e-08 | BF77: 0.008791968736 | BG77: -0.0148720339 | BH77: -0.000945440027 | BI77: -0.009510437557
A78: CG206 | B78: CG206: PPCs 140 155Mbit national Trunk WECLA | E78: -3.922899677e-07 | F78: 2.423279463e-08 | G78: 3.461619688 | H78: 0 | I78: 2.427438799e-05 | J78: 0.4812666602 | K78: 0.029463613 | L78: 0.3566993113 | M78: 0.01505193158 | N78: 0.002256082351 | O78: 0.05475387504 | P78: 4.245694725 | R78: -6.556239329e-07 | S78: 2.215292891e-08 | T78: 0.376046378 | U78: 0 | V78: 1.848720779e-05 | W78: 0.0818792744 | X78: 0.001952845269 | Y78: 0.02207478538 | Z78: 0.005493047457 | AA78: 0.0004522730576 | AB78: 0.003274387029 | AC78: 0.460702308 | AE78: 0 | AF78: 0 | AG78: 0.08858904768 | AH78: 0 | AI78: 0 | AJ78: 0.005399676891 | AK78: 0.001046371746 | AL78: 0.001199922443 | AM78: 4.918271769e-05 | AN78: 3.418616033e-05 | AO78: 9.225900992e-05 | AP78: 0.07214208978 | AR78: 0 | AS78: 0 | AT78: 0 | AU78: 0 | AV78: 0 | AW78: 0.005246254207 | AX78: 0 | AY78: 0.006835322516 | AZ78: 0 | BA78: 0 | BB78: 0 | BC78: 0.01417993055 | BE78: 1.355029497e-06 | BF78: 0.04895576244 | BG78: -0.08959154271 | BH78: -0.006604264679 | BI78: -0.0587705435
A79: CR550 | B79: CR550: PPCs 34 45Mb Link CELA | E79: -1.11036029e-08 | F79: 9.115633651e-10 | G79: 0.1169999634 | H79: 0 | I79: -1.601004884e-07 | J79: 0.02556387304 | K79: 0.001122718959 | L79: 0.01210172336 | M79: 0.000402490007 | N79: 7.292659557e-05 | O79: 0.002084179244 | P79: 0.170294742 | R79: -1.942670517e-08 | S79: 7.141027327e-10 | T79: 0.007997306856 | U79: 0 | V79: -4.357199984e-07 | W79: 0.006766226066 | X79: 8.224038159e-05 | Y79: 0.002469873221 | Z79: 0.0001758777564 | AA79: 1.654933523e-05 | AB79: 0.0001749175013 | AC79: 0.02100603652 | AE79: 0 | AF79: 0 | AG79: 0.002598784492 | AH79: 0 | AI79: 0 | AJ79: 0.0004521274369 | AK79: 4.416687365e-05 | AL79: 0.0002811784343 | AM79: 4.824609665e-06 | AN79: 1.405629246e-06 | AO79: 6.329978681e-05 | AP79: 0.003286997541 | AR79: 0 | AS79: 0 | AT79: 0 | AU79: 0 | AV79: 0 | AW79: 0.0001808018886 | AX79: 0 | AY79: 0.0001675938156 | AZ79: 0 | BA79: 0 | BB79: 0 | BC79: 0.0002760557753 | BE79: 4.428624446e-08 | BF79: 0.001908560471 | BG79: -0.003378067674 | BH79: -0.0004416688592 | BI79: -0.002387545404
A80: CR551 | B80: CR551: PPCs 34 45Mb Distribution CELA | E80: -6.79816434e-09 | F80: 7.928330689e-10 | G80: 0.1326783713 | H80: 0 | I80: -5.587162006e-08 | J80: 0.02197326627 | K80: 0.0009957786956 | L80: 0.01277575195 | M80: 0.0005424490266 | N80: 7.639679911e-05 | O80: 0.002498298194 | P80: 0.2415133944 | R80: -1.20450007e-08 | S80: 7.492992089e-10 | T80: 0.01078052929 | U80: 0 | V80: -2.865495095e-07 | W80: 0.01081620361 | X80: 9.350985787e-05 | Y80: 0.00331450674 | Z80: 0.0002678584374 | AA80: 2.188521551e-05 | AB80: 0.0003890026976 | AC80: 0.02908632035 | AE80: 0 | AF80: 0 | AG80: 0.003093233577 | AH80: 0 | AI80: 0 | AJ80: 0.0006426408637 | AK80: 6.128960444e-05 | AL80: 0.0005413337611 | AM80: 4.145357384e-06 | AN80: 2.877421746e-06 | AO80: 0.0002454730654 | AP80: 0.004408066158 | AR80: 0 | AS80: 0 | AT80: 0 | AU80: 0 | AV80: 0 | AW80: 4.134285407e-05 | AX80: 0 | AY80: 4.413127571e-05 | AZ80: 0 | BA80: 0 | BB80: 0 | BC80: 9.364658824e-05 | BE80: 1.811645901e-08 | BF80: 0.002520036591 | BG80: -0.004469268966 | BH80: -0.0006196124859 | BI80: -0.002674990042
A81: CR553 | B81: CR553: PPCs 140 155Mb Link CELA | E81: 6.623664118e-09 | F81: 1.049360636e-08 | G81: 3.69395782 | H81: 0 | I81: 2.8765602e-05 | J81: 0.3719403723 | K81: 0.02278610214 | L81: 0.2178965294 | M81: 0.01257996896 | N81: 0.002047702061 | O81: 0.08135504123 | P81: 4.800319121 | R81: 1.345689158e-07 | S81: 8.250362913e-09 | T81: 0.4089537791 | U81: 0 | V81: 3.500683369e-05 | W81: 0.2291228559 | X81: 0.002874436491 | Y81: 0.09752585826 | Z81: 0.008169226956 | AA81: 0.000722091107 | AB81: 0.01517713201 | AC81: 0.872767453 | AE81: 0 | AF81: 0 | AG81: 0.07886779022 | AH81: 0 | AI81: 0 | AJ81: 0.02671075225 | AK81: 0.001565123221 | AL81: 0.01244148977 | AM81: 9.437497206e-05 | AN81: 7.523754476e-05 | AO81: 0.01035190693 | AP81: 0.1506224015 | AR81: 0 | AS81: 0 | AT81: 0 | AU81: 0 | AV81: 0 | AW81: -0.003193102566 | AX81: 0 | AY81: -0.002114078633 | AZ81: 0 | BA81: 0 | BB81: 0 | BC81: -0.005405083928 | BE81: -2.804005281e-07 | BF81: 0.06461334638 | BG81: -0.1161274686 | BH81: -0.00699229581 | BI81: -0.05998872779
A82: CR554 | B82: CR554: PPCs 140 155Mb Distribution CELA | E82: -1.891281126e-08 | F82: 2.151460891e-09 | G82: 0.3576833095 | H82: 0 | I82: 1.798100738e-06 | J82: 0.06326469323 | K82: 0.002809976888 | L82: 0.03985611371 | M82: 0.001837035207 | N82: 0.0002483104832 | O82: 0.007808080847 | P82: 0.6042794448 | R82: -2.861664756e-08 | S82: 2.643261191e-09 | T82: 0.02909578527 | U82: 0 | V82: 1.306096195e-06 | W82: 0.02370990375 | X82: 0.0002749699228 | Y82: 0.00766998818 | Z82: 0.0006354333077 | AA82: 8.213343697e-05 | AB82: 0.0008633712001 | AC82: 0.07364124641 | AE82: 0 | AF82: 0 | AG82: 0.0093739416 | AH82: 0 | AI82: 0 | AJ82: 0.001745189467 | AK82: 0.0001506463257 | AL82: 0.001245979428 | AM82: 9.014372811e-06 | AN82: 6.240293111e-06 | AO82: 0.0006146220659 | AP82: 0.0140856323 | AR82: 0 | AS82: 0 | AT82: 0 | AU82: 0 | AV82: 0 | AW82: 0.0001330202573 | AX82: 0 | AY82: 0.0001559908091 | AZ82: 0 | BA82: 0 | BB82: 0 | BC82: 0.0002803491708 | BE82: 5.509195844e-08 | BF82: 0.005922691976 | BG82: -0.01114457464 | BH82: -0.0007614219502 | BI82: -0.005617509991
A83: CN616 | B83: CN616: EBD | E83: -3.450875591 | F83: 179.9699886 | G83: 66.78986899 | H83: 0 | I83: 0.00596629875 | J83: 58.66369565 | K83: 4.013252274 | L83: 31.01833995 | M83: 141.7036685 | N83: 0.4573871094 | O83: 16.15483853 | P83: 516.0196588 | R83: -4.001549256 | S83: 71.95600778 | T83: 17.93471819 | U83: 0 | V83: 0.004942576633 | W83: 23.27899823 | X83: 0.4581279427 | Y83: 11.63667206 | Z83: 70.2544459 | AA83: 0.1355758837 | AB83: 3.372034377 | AC83: 200.5712486 | AE83: -0.1764918175 | AF83: 3.320579546 | AG83: 1.108616097 | AH83: 0 | AI83: 0 | AJ83: 1.781278312 | AK83: 0.2139240934 | AL83: 1.6022875 | AM83: 13.76359355 | AN83: 0.01278232456 | AO83: 2.041838937 | AP83: 30.4503429 | AR83: 0 | AS83: -0.6483966471 | AT83: 0.06700061741 | AU83: 0 | AV83: 0 | AW83: -0.1225139875 | AX83: 0 | AY83: -0.07941079757 | AZ83: -1.138045607 | BA83: 0 | BB83: 0 | BC83: -2.213570101 | BE83: 5.145762883e-06 | BF83: 11.12045647 | BG83: -19.95668115 | BH83: -1.174967435 | BI83: -10.82772929
A84: CN617 | B84: CN617: EBD Extended Reach | E84: -6.346480996e-08 | F84: 0.05391877372 | G84: 0.04105346583 | H84: 0 | I84: 2.542569449e-06 | J84: 0.01261534812 | K84: 0.002040771218 | L84: 0.009775567232 | M84: 0.1007226912 | N84: 0.0002128176302 | O84: 0.01191329636 | P84: 0.2105404271 | R84: -4.982975236e-08 | S84: 0.02722045559 | T84: 0.009353512582 | U84: 0 | V84: 2.409482835e-06 | W84: 0.005407847816 | X84: 0.0002402579751 | Y84: 0.002085879714 | Z84: 0.07792039661 | AA84: 9.273599833e-05 | AB84: 0.001956656545 | AC84: 0.1077084197 | AE84: 0 | AF84: 0.001440488603 | AG84: 0.0008486641198 | AH84: 0 | AI84: 0 | AJ84: 0.0005613338442 | AK84: 0.0001500758878 | AL84: 0.0004110373069 | AM84: 0.01400460498 | AN84: 6.27040758e-06 | AO84: 0.001273877143 | AP84: 0.02217796978 | AR84: 0 | AS84: -0.0002520988624 | AT84: -0.0001278094606 | AU84: 0 | AV84: 0 | AW84: -3.562176123e-05 | AX84: 0 | AY84: -1.945682595e-05 | AZ84: -0.0007903803213 | BA84: 0 | BB84: 0 | BC84: -0.001501892189 | BE84: 1.485972172e-09 | BF84: 0.005087380969 | BG84: -0.007753022217 | BH84: -0.008936407745 | BI84: -0.01211095185
A85: CN618 | B85: CN618: EBD Resilience | E85: 3.01206332e-06 | F85: 1.215207568 | G85: 0.552844516 | H85: 0 | I85: 6.56182985e-05 | J85: 0.2655106167 | K85: 0.03371755158 | L85: 0.1511165268 | M85: 1.746153623 | N85: 0.003707694134 | O85: 0.1540308907 | P85: 4.238330039 | R85: 2.443408503e-06 | S85: 0.3934380164 | T85: 0.1685077068 | U85: 0 | V85: 6.152320337e-05 | W85: 0.123883148 | X85: 0.004030459709 | Y85: 0.03918004161 | Z85: 1.079918504 | AA85: 0.001448447893 | AB85: 0.02850524182 | AC85: 1.817517329 | AE85: 0 | AF85: 0.03285581705 | AG85: 0.01387486776 | AH85: 0 | AI85: 0 | AJ85: 0.008220117161 | AK85: 0.002403516899 | AL85: 0.004905708039 | AM85: 0.2720936097 | AN85: 0.0001003366199 | AO85: 0.02152986247 | AP85: 0.2478831485 | AR85: 0 | AS85: -0.003746523675 | AT85: -0.002653175429 | AU85: 0 | AV85: 0 | AW85: -0.0004973402338 | AX85: 0 | AY85: -0.0003370135647 | AZ85: -0.01365012335 | BA85: 0 | BB85: 0 | BC85: -0.02401677997 | BE85: 1.977822901e-08 | BF85: 0.0868051969 | BG85: -0.1432889871 | BH85: -0.07382835907 | BI85: -0.1388155145
A86: CO447 | B86: CO447: Backhaul extension services fibre etc | E86: 41.37871466 | F86: 10.37106184 | G86: 0.001255765518 | H86: 0 | I86: 0.0001437679363 | J86: 0.4699860591 | K86: 0.7231096982 | L86: -0.0002666095547 | M86: 0.4430678477 | N86: 0.4187690248 | O86: 0.831119937 | P86: 50.34181778 | R86: 23.1837466 | S86: 5.053228267 | T86: 0.0008049273113 | U86: 0 | V86: 0.0001404880841 | W86: 0.1802163982 | X86: 0.1110865479 | Y86: -0.0002249376647 | Z86: 0.2541420587 | AA86: 0.1757770074 | AB86: 0.4669504797 | AC86: 32.80722938 | AE86: 2.5091412 | AF86: 0.1835543609 | AG86: -3.048717721e-05 | AH86: 0 | AI86: 0 | AJ86: 0.01776131303 | AK86: 0.04408914147 | AL86: 0 | AM86: 0.008874089348 | AN86: 0.01170320598 | AO86: 0.1295889724 | AP86: 2.830395656 | AR86: 0.5555795007 | AS86: -0.07239541004 | AT86: 0 | AU86: 0 | AV86: 0 | AW86: 0 | AX86: 0 | AY86: 0 | AZ86: 0 | BA86: 0 | BB86: 0 | BC86: 0.3983758786 | BE86: 0 | BF86: 1.391600452 | BG86: -2.098120706 | BH86: -0.2177478402 | BI86: -1.622653984
A87: CO450 | B87: CO450: Wholesale LAN extension services fibre etc | E87: 262.1763786 | F87: 68.60982166 | G87: 0.008272135405 | H87: 0 | I87: 0.0009864382625 | J87: 2.424237006 | K87: 3.272227774 | L87: -0.001681602964 | M87: 2.430820896 | N87: 1.8746473 | O87: 4.801029731 | P87: 375.530541 | R87: 141.1856894 | S87: 21.34566019 | T87: 0.004231186765 | U87: 0 | V87: 0.000797519169 | W87: 1.019446774 | X87: 0.5580957633 | Y87: -0.001167109268 | Z87: 1.251506766 | AA87: 0.7265269408 | AB87: 2.132267189 | AC87: 207.4205304 | AE87: 14.79259071 | AF87: 0.9688542335 | AG87: -0.0001285445557 | AH87: 0 | AI87: 0 | AJ87: 0.1148892773 | AK87: 0.2487130067 | AL87: 0 | AM87: 0.06378000072 | AN87: 0.08856101977 | AO87: 0.6617738593 | AP87: 12.52007966 | AR87: 3.365121442 | AS87: -0.3266223132 | AT87: 0 | AU87: 0 | AV87: 0 | AW87: 0 | AX87: 0 | AY87: 0 | AZ87: 0 | BA87: 0 | BB87: 0 | BC87: 2.359003453 | BE87: 0 | BF87: 8.695034755 | BG87: -14.81911979 | BH87: -1.43561806 | BI87: -8.332024983
A88: CO484 | B88: CO484: Ethernet main links | E88: 0.03460584934 | F88: 1483.371612 | G88: 423.6712736 | H88: 0 | I88: 0.001083723089 | J88: 3.408268437 | K88: 7.249625928 | L88: 0.0003178256562 | M88: 1.556880482 | N88: 0.6130054146 | O88: 27.18137413 | P88: 1487.012276 | R88: 0.04861297883 | S88: 396.3877413 | T88: 84.39469378 | U88: 0 | V88: 0.001072182741 | W88: 0.9119344678 | X88: 0.7090276743 | Y88: 0.0004413560161 | Z88: 1.398400462 | AA88: 0.2820520265 | AB88: 9.953777665 | AC88: 554.3343676 | AE88: 0 | AF88: 28.99670182 | AG88: 6.590374984 | AH88: 0 | AI88: 0 | AJ88: 0.1305355566 | AK88: 0.5055179271 | AL88: 0 | AM88: 0.01951196411 | AN88: 0.02048782718 | AO88: 2.351171016 | AP88: 38.49436643 | AR88: 0 | AS88: -3.570495598 | AT88: 4.514554646 | AU88: 0 | AV88: 0 | AW88: 0 | AX88: 0 | AY88: 0 | AZ88: 0 | BA88: 0 | BB88: 0 | BC88: 1.288069517 | BE88: 0 | BF88: 8.534991622 | BG88: -21.33891592 | BH88: -0.5895705634 | BI88: -10.04159712
A89: CO485 | B89: CO485: Ethernet Electronics | E89: 0.01727809934 | F89: 1.704978625e-06 | G89: 0.01866918532 | H89: 0 | I89: 0.01278376485 | J89: 8.836919632 | K89: 10.08449355 | L89: 403.7266723 | M89: 9.843612143 | N89: 3.981787198 | O89: 19.58643472 | P89: 352.6885594 | R89: 0.01431159623 | S89: 1.453248564e-06 | T89: 0.01352086339 | U89: 0 | V89: 0.01258700348 | W89: 4.175755304 | X89: 1.640892582 | Y89: 232.2949485 | Z89: 3.970162269 | AA89: 1.837599187 | AB89: 3.122801437 | AC89: 211.6474344 | AE89: 0 | AF89: 0 | AG89: -0.0002967297889 | AH89: 0 | AI89: 0 | AJ89: 0.4536324534 | AK89: 0.7440690553 | AL89: 73.40754679 | AM89: 0.1701648543 | AN89: 0.1000996611 | AO89: 2.279399573 | AP89: 82.45995322 | AR89: 0 | AS89: 0 | AT89: 0 | AU89: 0 | AV89: 0 | AW89: -0.01315491826 | AX89: 0 | AY89: -0.008809451511 | AZ89: 0 | BA89: 0 | BB89: 0 | BC89: -0.02341246194 | BE89: -1.602970834e-06 | BF89: 31.90687893 | BG89: -50.10645206 | BH89: -2.850892684 | BI89: -24.83227248
A90: CW609 | B90: CW609: Ethernet Access Direct Fibre | E90: 648.777225 | F90: 178.5383435 | G90: 0.03111343746 | H90: 0 | I90: 0.002820479491 | J90: 7.275810721 | K90: 10.23362639 | L90: -0.004036858698 | M90: 7.621532464 | N90: 6.331169603 | O90: 17.6890625 | P90: 870.867108 | R90: 447.40292 | S90: 74.46265366 | T90: 0.02018470955 | U90: 0 | V90: 0.002795241514 | W90: 2.699971343 | X90: 2.10973733 | Y90: -0.002816616079 | Z90: 5.266646547 | AA90: 3.37012941 | AB90: 6.926314982 | AC90: 565.0259213 | AE90: 42.58316166 | AF90: 3.285995127 | AG90: -0.0006556690007 | AH90: 0 | AI90: 0 | AJ90: 0.3188473311 | AK90: 1.097138668 | AL90: 0 | AM90: 0.239064933 | AN90: 0.2741003999 | AO90: 1.996595131 | AP90: 41.98146792 | AR90: 8.587695655 | AS90: -1.518444286 | AT90: 0 | AU90: 0 | AV90: 0 | AW90: 0 | AX90: 0 | AY90: 0 | AZ90: 0 | BA90: 0 | BB90: 0 | BC90: 9.095575308 | BE90: 0 | BF90: 30.16603443 | BG90: -49.58149547 | BH90: -4.111773029 | BI90: -23.89617289
A91: CE104 | B91: CE104: AISBO Excess Construction | E91: 87.22948716 | F91: 119.6513295 | G91: -5.786990167e-16 | H91: 0 | I91: 4.2682529e-14 | J91: 4.727915962e-10 | K91: 1.560146657e-09 | L91: 2.435295917e-14 | M91: 1.340447791e-11 | N91: 4.779137756e-12 | O91: 4.548646104e-10 | P91: 179.3112359 | R91: 75.92196105 | S91: 140.9753288 | T91: -8.531008697e-17 | U91: 0 | V91: 4.004947951e-14 | W91: 1.548132344e-10 | X91: 1.087311789e-10 | Y91: 2.642244932e-14 | Z91: 4.898997062e-12 | AA91: 1.396019546e-12 | AB91: 1.539088323e-10 | AC91: 225.1352184 | AE91: 3.98362683 | AF91: 5.47451424 | AG91: 1.394296768e-19 | AH91: 0 | AI91: 0 | AJ91: 2.1497564e-11 | AK91: 6.172612625e-11 | AL91: 0 | AM91: -3.791239487e-13 | AN91: 2.327687241e-13 | AO91: 3.124218054e-11 | AP91: 9.11839327 | AR91: 0 | AS91: 0 | AT91: 0 | AU91: 0 | AV91: 0 | AW91: 0 | AX91: 0 | AY91: 0 | AZ91: 0 | BA91: 0 | BB91: 0 | BC91: 0 | BE91: 0 | BF91: 9.12853575e-08 | BG91: -1.513473921e-07 | BH91: -2.133096716e-11 | BI91: -3.219748389e-08
A92: CL578 | B92: CL578: OR Service Centre Assurance Ethernet | E92: 0.001046139934 | F92: -2.383412992e-08 | G92: 0.001497551059 | H92: 0 | I92: 0.0002414698836 | J92: 0.3712002136 | K92: 0.7384325244 | L92: 8.498019495e-05 | M92: 0.2920700873 | N92: 0.01302455535 | O92: 2.225111787 | P92: 3.103361817 | R92: 0.001334730261 | S92: -2.755821272e-08 | T92: 0.001022784313 | U92: 0 | V92: 0.0002069729238 | W92: 0.1299834619 | X92: 0.1374670702 | Y92: 7.775194612e-05 | Z92: 0.1244647618 | AA92: 0.002391505325 | AB92: 0.8959718324 | AC92: 1.264201332 | AE92: 0 | AF92: 0 | AG92: -1.94628356e-05 | AH92: 0 | AI92: 0 | AJ92: 0.01492900447 | AK92: 0.04949846183 | AL92: 0 | AM92: 0.01416185797 | AN92: -0.001187417259 | AO92: 0.2168197439 | AP92: 0.3545470287 | AR92: 0 | AS92: 0 | AT92: 0 | AU92: 0 | AV92: 0 | AW92: 0 | AX92: 0 | AY92: 0 | AZ92: 0 | BA92: 0 | BB92: 0 | BC92: 0 | BE92: 0 | BF92: 1.36197824 | BG92: -5.013927371 | BH92: -0.2932626202 | BI92: -3.597033175
A93: CO772 | B93: CO772: Openreach Systems Development Ethernet Specific | E93: 0.0005012419385 | F93: 4.480489801e-08 | G93: 0.0004822712604 | H93: 0 | I93: 0.004761941512 | J93: 1.522216051 | K93: 2.241374973 | L93: 0.001826954077 | M93: 1.583162077 | N93: 0.1927130035 | O93: 110.2978123 | P93: 98.63428066 | R93: 0.0006420402359 | S93: 4.529725952e-08 | T93: 0.0002742942058 | U93: 0 | V93: 0.006380539114 | W93: 0.4906367382 | X93: 0.3472519101 | Y93: 0.002100056764 | Z93: 0.7139539598 | AA93: 0.07781927548 | AB93: 35.31318823 | AC93: 31.61171062 | AE93: 0 | AF93: 0 | AG93: -7.81149481e-06 | AH93: 0 | AI93: 0 | AJ93: 0.09192008905 | AK93: 0.1152762263 | AL93: 0 | AM93: 0.02842514848 | AN93: 0.006313500569 | AO93: 14.01959838 | AP93: 16.01964656 | AR93: 0 | AS93: 0 | AT93: 0 | AU93: 0 | AV93: 0 | AW93: 0 | AX93: 0 | AY93: 0 | AZ93: 0 | BA93: 0 | BB93: 0 | BC93: 0 | BE93: 0 | BF93: 4.962296958 | BG93: -2.430955009 | BH93: -1.396324524 | BI93: 0.2684222193
A94: CP502 | B94: CP502: Openreach sales product management | E94: 0.001172828846 | F94: -2.25059877e-08 | G94: 0.001161367607 | H94: 0 | I94: 6.955670599e-05 | J94: 0.1746676383 | K94: 0.4247522592 | L94: 7.50829182e-06 | M94: 0.2564360027 | N94: 0.02832845708 | O94: 0.4832263088 | P94: 1.25540438 | R94: 0.00136830032 | S94: -2.006783904e-08 | T94: 0.0009889013431 | U94: 0 | V94: 7.185427176e-05 | W94: 0.08079972517 | X94: 0.07137170063 | Y94: 2.280768885e-05 | Z94: 0.08653043675 | AA94: 0.00680127798 | AB94: 0.1814701101 | AC94: 0.5006237969 | AE94: 0 | AF94: 0 | AG94: -2.652896303e-05 | AH94: 0 | AI94: 0 | AJ94: 0.01277691518 | AK94: 0.03958470584 | AL94: 0 | AM94: 0.01389143508 | AN94: -0.0004405395442 | AO94: 0.04538002038 | AP94: 0.104535228 | AR94: 0 | AS94: 0 | AT94: 0 | AU94: 0 | AV94: 0 | AW94: 0 | AX94: 0 | AY94: 0 | AZ94: 0 | BA94: 0 | BB94: 0 | BC94: 0 | BE94: 0 | BF94: 0.6126211008 | BG94: -3.742246209 | BH94: -0.1678389972 | BI94: -2.719118732
A95: CL160 | B95: CL160: Routeing records | E95: 1.268137606e-05 | F95: -1.407636126e-10 | G95: 1.62942195e-05 | H95: 0 | I95: -2.997490741e-07 | J95: 0.004937891722 | K95: 0.01026729711 | L95: -2.434051896e-07 | M95: 0.00521270971 | N95: 0.006686448633 | O95: 0.01283593707 | P95: 0.04814793734 | R95: 1.050742588e-05 | S95: -1.228482437e-10 | T95: 1.144591715e-05 | U95: 0 | V95: -2.055469142e-07 | W95: 0.001925102385 | X95: 0.001951656762 | Y95: -1.520483125e-07 | Z95: 0.002035732875 | AA95: 0.002406535592 | AB95: 0.005912491264 | AC95: 0.01577335848 | AE95: 0 | AF95: 0 | AG95: -5.421567923e-07 | AH95: 0 | AI95: 0 | AJ95: 0.0001651570932 | AK95: 0.0006490639042 | AL95: 0 | AM95: 0.0001962491696 | AN95: 0.0001801813286 | AO95: 0.0009337600351 | AP95: 0.002255495236 | AR95: 0 | AS95: 0 | AT95: 0 | AU95: 0 | AV95: 0 | AW95: 0 | AX95: 0 | AY95: 0 | AZ95: 0 | BA95: 0 | BB95: 0 | BC95: 0 | BE95: 0 | BF95: 0.01717440644 | BG95: -0.03599644067 | BH95: -0.004454919909 | BI95: -0.0195019274
A96: CL573 | B96: CL573: OR Service Centre Provision Ethernet | E96: 0.003429769377 | F96: -5.203669842e-08 | G96: 0.002601825324 | H96: 0 | I96: 0.0003770259825 | J96: 0.8134793821 | K96: 1.679136131 | L96: -0.0004041567413 | M96: 0.8670713858 | N96: 0.6709655841 | O96: 2.927603814 | P96: 7.383563151 | R96: 0.003012232236 | S96: -4.266071673e-08 | T96: 0.001922829796 | U96: 0 | V96: 0.0004431029888 | W96: 0.2802286033 | X96: 0.2190414368 | Y96: -0.0002554135988 | Z96: 0.3736247595 | AA96: 0.2221483477 | AB96: 1.372880407 | AC96: 2.588460753 | AE96: 0 | AF96: 0 | AG96: -6.520066417e-05 | AH96: 0 | AI96: 0 | AJ96: 0.03992074004 | AK96: 0.1041486608 | AL96: 0 | AM96: 0.03562877678 | AN96: 0.01047242576 | AO96: 0.4475898571 | AP96: 0.5690723045 | AR96: 0 | AS96: 0 | AT96: 0 | AU96: 0 | AV96: 0 | AW96: 0 | AX96: 0 | AY96: 0 | AZ96: 0 | BA96: 0 | BB96: 0 | BC96: 0 | BE96: 0 | BF96: 3.882175925 | BG96: -9.36315166 | BH96: -0.8688818469 | BI96: -7.643761687
A97: CW617 | B97: CW617: Other Ethernet Rentals Internal | E97: 0.0004751548371 | F97: -4.409201664e-09 | G97: 0.0003828208645 | H97: 0 | I97: 3.249578025e-05 | J97: 0.0762252319 | K97: 0.1496430968 | L97: -8.120791598e-05 | M97: 0.1296450197 | N97: 0.1071481207 | O97: 0.1526556329 | P97: 0.6484065917 | R97: 0.0004017218168 | S97: -5.4345974e-09 | T97: 0.0003659471344 | U97: 0 | V97: 3.61381432e-05 | W97: 0.0296951706 | X97: 0.03169373642 | Y97: -6.058672296e-05 | Z97: 0.0417207564 | AA97: 0.04678528546 | AB97: 0.06942076279 | AC97: 0.2369710605 | AE97: 0 | AF97: 0 | AG97: -8.402482309e-06 | AH97: 0 | AI97: 0 | AJ97: 0.004577423124 | AK97: 0.01617187455 | AL97: 0 | AM97: 0.00429972299 | AN97: 0.002234947666 | AO97: 0.01472832059 | AP97: 0.03934762348 | AR97: 0 | AS97: 0 | AT97: 0 | AU97: 0 | AV97: 0 | AW97: 0 | AX97: 0 | AY97: 0 | AZ97: 0 | BA97: 0 | BB97: 0 | BC97: 0 | BE97: 0 | BF97: 0.2024688293 | BG97: -0.5107177638 | BH97: -0.0711345444 | BI97: -0.3789147205
A98: CW619 | B98: CW619: Other Ethernet Connection Internal | E98: 0.0002822551009 | F98: -2.284336435e-09 | G98: 0.000338852943 | H98: 0 | I98: 3.040718766e-05 | J98: 0.04073231209 | K98: 0.04385031603 | L98: 1.223617989e-05 | M98: 0.04744665553 | N98: 0.07865883935 | O98: 0.05331541672 | P98: 0.3057564737 | R98: 0.0002908082858 | S98: -2.353558751e-09 | T98: 0.0002080958349 | U98: 0 | V98: 2.521568968e-05 | W98: 0.01555531537 | X98: 0.01461062465 | Y98: 2.111776504e-05 | Z98: 0.02064381847 | AA98: 0.03586752274 | AB98: 0.02875768115 | AC98: 0.1003525022 | AE98: 0 | AF98: 0 | AG98: -5.199511399e-06 | AH98: 0 | AI98: 0 | AJ98: 0.003180233021 | AK98: 0.009286143169 | AL98: 0 | AM98: 0.002657219192 | AN98: 0.004390734415 | AO98: 0.01170251093 | AP98: 0.02536767966 | AR98: 0 | AS98: 0 | AT98: 0 | AU98: 0 | AV98: 0 | AW98: 0 | AX98: 0 | AY98: 0 | AZ98: 0 | BA98: 0 | BB98: 0 | BC98: 0 | BE98: 0 | BF98: 0.1078129025 | BG98: -0.2205569085 | BH98: -0.02693299048 | BI98: -0.1666535939
A99: CW901 | B99: CW901: Openreach non copper | E99: 1.012306762e-05 | F99: -1.18648621e-09 | G99: -2.272588734e-08 | H99: 0 | I99: 9.841571221e-06 | J99: 0.1137410808 | K99: 0.3619197241 | L99: 7.03331475e-06 | M99: 0.005391739235 | N99: 0.001131944415 | O99: 0.7422189857 | P99: 1.177839801 | R99: 9.242800869e-06 | S99: -1.318318012e-09 | T99: 1.25251627e-08 | U99: 0 | V99: 9.699617449e-06 | W99: 0.02992475015 | X99: 0.02134911813 | Y99: 8.085186156e-06 | Z99: 0.002543399355 | AA99: 0.0004152120385 | AB99: 0.4109133965 | AC99: 0.4807439412 | AE99: 0 | AF99: 0 | AG99: -1.635691782e-09 | AH99: 0 | AI99: 0 | AJ99: 0.006266579308 | AK99: 0.01947658149 | AL99: 0 | AM99: 2.034017273e-05 | AN99: 5.274563901e-05 | AO99: 0.09230720623 | AP99: 0.151784461 | AR99: 0 | AS99: 0 | AT99: 0 | AU99: 0 | AV99: 0 | AW99: 0 | AX99: 0 | AY99: 0 | AZ99: 0 | BA99: 0 | BB99: 0 | BC99: 0 | BE99: 46.82199762 | BF99: 0.002097283955 | BG99: -0.03827568091 | BH99: -0.004270492196 | BI99: 56.04225861
A100: 0 | B100: 0 | E100: 0 | F100: 0 | G100: 0 | H100: 0 | I100: 0 | J100: 0 | K100: 0 | L100: 0 | M100: 0 | N100: 0 | O100: 0 | P100: 0 | R100: 0 | S100: 0 | T100: 0 | U100: 0 | V100: 0 | W100: 0 | X100: 0 | Y100: 0 | Z100: 0 | AA100: 0 | AB100: 0 | AC100: 0 | AE100: 0 | AF100: 0 | AG100: 0 | AH100: 0 | AI100: 0 | AJ100: 0 | AK100: 0 | AL100: 0 | AM100: 0 | AN100: 0 | AO100: 0 | AP100: 0 | AR100: 0 | AS100: 0 | AT100: 0 | AU100: 0 | AV100: 0 | AW100: 0 | AX100: 0 | AY100: 0 | AZ100: 0 | BA100: 0 | BB100: 0 | BC100: 0 | BE100: 0 | BF100: 0 | BG100: 0 | BH100: 0 | BI100: 0
A101: 0 | B101: 0 | E101: 0 | F101: 0 | G101: 0 | H101: 0 | I101: 0 | J101: 0 | K101: 0 | L101: 0 | M101: 0 | N101: 0 | O101: 0 | P101: 0 | R101: 0 | S101: 0 | T101: 0 | U101: 0 | V101: 0 | W101: 0 | X101: 0 | Y101: 0 | Z101: 0 | AA101: 0 | AB101: 0 | AC101: 0 | AE101: 0 | AF101: 0 | AG101: 0 | AH101: 0 | AI101: 0 | AJ101: 0 | AK101: 0 | AL101: 0 | AM101: 0 | AN101: 0 | AO101: 0 | AP101: 0 | AR101: 0 | AS101: 0 | AT101: 0 | AU101: 0 | AV101: 0 | AW101: 0 | AX101: 0 | AY101: 0 | AZ101: 0 | BA101: 0 | BB101: 0 | BC101: 0 | BE101: 0 | BF101: 0 | BG101: 0 | BH101: 0 | BI101: 0
A102: 0 | B102: 0 | E102: 0 | F102: 0 | G102: 0 | H102: 0 | I102: 0 | J102: 0 | K102: 0 | L102: 0 | M102: 0 | N102: 0 | O102: 0 | P102: 0 | R102: 0 | S102: 0 | T102: 0 | U102: 0 | V102: 0 | W102: 0 | X102: 0 | Y102: 0 | Z102: 0 | AA102: 0 | AB102: 0 | AC102: 0 | AE102: 0 | AF102: 0 | AG102: 0 | AH102: 0 | AI102: 0 | AJ102: 0 | AK102: 0 | AL102: 0 | AM102: 0 | AN102: 0 | AO102: 0 | AP102: 0 | AR102: 0 | AS102: 0 | AT102: 0 | AU102: 0 | AV102: 0 | AW102: 0 | AX102: 0 | AY102: 0 | AZ102: 0 | BA102: 0 | BB102: 0 | BC102: 0 | BE102: 0 | BF102: 0 | BG102: 0 | BH102: 0 | BI102: 0
A103: 0 | B103: 0 | E103: 0 | F103: 0 | G103: 0 | H103: 0 | I103: 0 | J103: 0 | K103: 0 | L103: 0 | M103: 0 | N103: 0 | O103: 0 | P103: 0 | R103: 0 | S103: 0 | T103: 0 | U103: 0 | V103: 0 | W103: 0 | X103: 0 | Y103: 0 | Z103: 0 | AA103: 0 | AB103: 0 | AC103: 0 | AE103: 0 | AF103: 0 | AG103: 0 | AH103: 0 | AI103: 0 | AJ103: 0 | AK103: 0 | AL103: 0 | AM103: 0 | AN103: 0 | AO103: 0 | AP103: 0 | AR103: 0 | AS103: 0 | AT103: 0 | AU103: 0 | AV103: 0 | AW103: 0 | AX103: 0 | AY103: 0 | AZ103: 0 | BA103: 0 | BB103: 0 | BC103: 0 | BE103: 0 | BF103: 0 | BG103: 0 | BH103: 0 | BI103: 0
A104: 0 | B104: 0 | E104: 0 | F104: 0 | G104: 0 | H104: 0 | I104: 0 | J104: 0 | K104: 0 | L104: 0 | M104: 0 | N104: 0 | O104: 0 | P104: 0 | R104: 0 | S104: 0 | T104: 0 | U104: 0 | V104: 0 | W104: 0 | X104: 0 | Y104: 0 | Z104: 0 | AA104: 0 | AB104: 0 | AC104: 0 | AE104: 0 | AF104: 0 | AG104: 0 | AH104: 0 | AI104: 0 | AJ104: 0 | AK104: 0 | AL104: 0 | AM104: 0 | AN104: 0 | AO104: 0 | AP104: 0 | AR104: 0 | AS104: 0 | AT104: 0 | AU104: 0 | AV104: 0 | AW104: 0 | AX104: 0 | AY104: 0 | AZ104: 0 | BA104: 0 | BB104: 0 | BC104: 0 | BE104: 0 | BF104: 0 | BG104: 0 | BH104: 0 | BI104: 0
A105: 0 | B105: 0 | E105: 0 | F105: 0 | G105: 0 | H105: 0 | I105: 0 | J105: 0 | K105: 0 | L105: 0 | M105: 0 | N105: 0 | O105: 0 | P105: 0 | R105: 0 | S105: 0 | T105: 0 | U105: 0 | V105: 0 | W105: 0 | X105: 0 | Y105: 0 | Z105: 0 | AA105: 0 | AB105: 0 | AC105: 0 | AE105: 0 | AF105: 0 | AG105: 0 | AH105: 0 | AI105: 0 | AJ105: 0 | AK105: 0 | AL105: 0 | AM105: 0 | AN105: 0 | AO105: 0 | AP105: 0 | AR105: 0 | AS105: 0 | AT105: 0 | AU105: 0 | AV105: 0 | AW105: 0 | AX105: 0 | AY105: 0 | AZ105: 0 | BA105: 0 | BB105: 0 | BC105: 0 | BE105: 0 | BF105: 0 | BG105: 0 | BH105: 0 | BI105: 0
A106: 0 | B106: 0 | E106: 0 | F106: 0 | G106: 0 | H106: 0 | I106: 0 | J106: 0 | K106: 0 | L106: 0 | M106: 0 | N106: 0 | O106: 0 | P106: 0 | R106: 0 | S106: 0 | T106: 0 | U106: 0 | V106: 0 | W106: 0 | X106: 0 | Y106: 0 | Z106: 0 | AA106: 0 | AB106: 0 | AC106: 0 | AE106: 0 | AF106: 0 | AG106: 0 | AH106: 0 | AI106: 0 | AJ106: 0 | AK106: 0 | AL106: 0 | AM106: 0 | AN106: 0 | AO106: 0 | AP106: 0 | AR106: 0 | AS106: 0 | AT106: 0 | AU106: 0 | AV106: 0 | AW106: 0 | AX106: 0 | AY106: 0 | AZ106: 0 | BA106: 0 | BB106: 0 | BC106: 0 | BE106: 0 | BF106: 0 | BG106: 0 | BH106: 0 | BI106: 0
A107: 0 | B107: 0 | E107: 0 | F107: 0 | G107: 0 | H107: 0 | I107: 0 | J107: 0 | K107: 0 | L107: 0 | M107: 0 | N107: 0 | O107: 0 | P107: 0 | R107: 0 | S107: 0 | T107: 0 | U107: 0 | V107: 0 | W107: 0 | X107: 0 | Y107: 0 | Z107: 0 | AA107: 0 | AB107: 0 | AC107: 0 | AE107: 0 | AF107: 0 | AG107: 0 | AH107: 0 | AI107: 0 | AJ107: 0 | AK107: 0 | AL107: 0 | AM107: 0 | AN107: 0 | AO107: 0 | AP107: 0 | AR107: 0 | AS107: 0 | AT107: 0 | AU107: 0 | AV107: 0 | AW107: 0 | AX107: 0 | AY107: 0 | AZ107: 0 | BA107: 0 | BB107: 0 | BC107: 0 | BE107: 0 | BF107: 0 | BG107: 0 | BH107: 0 | BI107: 0
A108: 0 | B108: 0 | E108: 0 | F108: 0 | G108: 0 | H108: 0 | I108: 0 | J108: 0 | K108: 0 | L108: 0 | M108: 0 | N108: 0 | O108: 0 | P108: 0 | R108: 0 | S108: 0 | T108: 0 | U108: 0 | V108: 0 | W108: 0 | X108: 0 | Y108: 0 | Z108: 0 | AA108: 0 | AB108: 0 | AC108: 0 | AE108: 0 | AF108: 0 | AG108: 0 | AH108: 0 | AI108: 0 | AJ108: 0 | AK108: 0 | AL108: 0 | AM108: 0 | AN108: 0 | AO108: 0 | AP108: 0 | AR108: 0 | AS108: 0 | AT108: 0 | AU108: 0 | AV108: 0 | AW108: 0 | AX108: 0 | AY108: 0 | AZ108: 0 | BA108: 0 | BB108: 0 | BC108: 0 | BE108: 0 | BF108: 0 | BG108: 0 | BH108: 0 | BI108: 0
A109: 0 | B109: 0 | E109: 0 | F109: 0 | G109: 0 | H109: 0 | I109: 0 | J109: 0 | K109: 0 | L109: 0 | M109: 0 | N109: 0 | O109: 0 | P109: 0 | R109: 0 | S109: 0 | T109: 0 | U109: 0 | V109: 0 | W109: 0 | X109: 0 | Y109: 0 | Z109: 0 | AA109: 0 | AB109: 0 | AC109: 0 | AE109: 0 | AF109: 0 | AG109: 0 | AH109: 0 | AI109: 0 | AJ109: 0 | AK109: 0 | AL109: 0 | AM109: 0 | AN109: 0 | AO109: 0 | AP109: 0 | AR109: 0 | AS109: 0 | AT109: 0 | AU109: 0 | AV109: 0 | AW109: 0 | AX109: 0 | AY109: 0 | AZ109: 0 | BA109: 0 | BB109: 0 | BC109: 0 | BE109: 0 | BF109: 0 | BG109: 0 | BH109: 0 | BI109: 0
A110: 0 | B110: 0 | E110: 0 | F110: 0 | G110: 0 | H110: 0 | I110: 0 | J110: 0 | K110: 0 | L110: 0 | M110: 0 | N110: 0 | O110: 0 | P110: 0 | R110: 0 | S110: 0 | T110: 0 | U110: 0 | V110: 0 | W110: 0 | X110: 0 | Y110: 0 | Z110: 0 | AA110: 0 | AB110: 0 | AC110: 0 | AE110: 0 | AF110: 0 | AG110: 0 | AH110: 0 | AI110: 0 | AJ110: 0 | AK110: 0 | AL110: 0 | AM110: 0 | AN110: 0 | AO110: 0 | AP110: 0 | AR110: 0 | AS110: 0 | AT110: 0 | AU110: 0 | AV110: 0 | AW110: 0 | AX110: 0 | AY110: 0 | AZ110: 0 | BA110: 0 | BB110: 0 | BC110: 0 | BE110: 0 | BF110: 0 | BG110: 0 | BH110: 0 | BI110: 0
A111: 0 | B111: 0 | E111: 0 | F111: 0 | G111: 0 | H111: 0 | I111: 0 | J111: 0 | K111: 0 | L111: 0 | M111: 0 | N111: 0 | O111: 0 | P111: 0 | R111: 0 | S111: 0 | T111: 0 | U111: 0 | V111: 0 | W111: 0 | X111: 0 | Y111: 0 | Z111: 0 | AA111: 0 | AB111: 0 | AC111: 0 | AE111: 0 | AF111: 0 | AG111: 0 | AH111: 0 | AI111: 0 | AJ111: 0 | AK111: 0 | AL111: 0 | AM111: 0 | AN111: 0 | AO111: 0 | AP111: 0 | AR111: 0 | AS111: 0 | AT111: 0 | AU111: 0 | AV111: 0 | AW111: 0 | AX111: 0 | AY111: 0 | AZ111: 0 | BA111: 0 | BB111: 0 | BC111: 0 | BE111: 0 | BF111: 0 | BG111: 0 | BH111: 0 | BI111: 0
A112: 0 | B112: 0 | E112: 0 | F112: 0 | G112: 0 | H112: 0 | I112: 0 | J112: 0 | K112: 0 | L112: 0 | M112: 0 | N112: 0 | O112: 0 | P112: 0 | R112: 0 | S112: 0 | T112: 0 | U112: 0 | V112: 0 | W112: 0 | X112: 0 | Y112: 0 | Z112: 0 | AA112: 0 | AB112: 0 | AC112: 0 | AE112: 0 | AF112: 0 | AG112: 0 | AH112: 0 | AI112: 0 | AJ112: 0 | AK112: 0 | AL112: 0 | AM112: 0 | AN112: 0 | AO112: 0 | AP112: 0 | AR112: 0 | AS112: 0 | AT112: 0 | AU112: 0 | AV112: 0 | AW112: 0 | AX112: 0 | AY112: 0 | AZ112: 0 | BA112: 0 | BB112: 0 | BC112: 0 | BE112: 0 | BF112: 0 | BG112: 0 | BH112: 0 | BI112: 0
A113: 0 | B113: 0 | E113: 0 | F113: 0 | G113: 0 | H113: 0 | I113: 0 | J113: 0 | K113: 0 | L113: 0 | M113: 0 | N113: 0 | O113: 0 | P113: 0 | R113: 0 | S113: 0 | T113: 0 | U113: 0 | V113: 0 | W113: 0 | X113: 0 | Y113: 0 | Z113: 0 | AA113: 0 | AB113: 0 | AC113: 0 | AE113: 0 | AF113: 0 | AG113: 0 | AH113: 0 | AI113: 0 | AJ113: 0 | AK113: 0 | AL113: 0 | AM113: 0 | AN113: 0 | AO113: 0 | AP113: 0 | AR113: 0 | AS113: 0 | AT113: 0 | AU113: 0 | AV113: 0 | AW113: 0 | AX113: 0 | AY113: 0 | AZ113: 0 | BA113: 0 | BB113: 0 | BC113: 0 | BE113: 0 | BF113: 0 | BG113: 0 | BH113: 0 | BI113: 0
A114: 0 | B114: 0 | E114: 0 | F114: 0 | G114: 0 | H114: 0 | I114: 0 | J114: 0 | K114: 0 | L114: 0 | M114: 0 | N114: 0 | O114: 0 | P114: 0 | R114: 0 | S114: 0 | T114: 0 | U114: 0 | V114: 0 | W114: 0 | X114: 0 | Y114: 0 | Z114: 0 | AA114: 0 | AB114: 0 | AC114: 0 | AE114: 0 | AF114: 0 | AG114: 0 | AH114: 0 | AI114: 0 | AJ114: 0 | AK114: 0 | AL114: 0 | AM114: 0 | AN114: 0 | AO114: 0 | AP114: 0 | AR114: 0 | AS114: 0 | AT114: 0 | AU114: 0 | AV114: 0 | AW114: 0 | AX114: 0 | AY114: 0 | AZ114: 0 | BA114: 0 | BB114: 0 | BC114: 0 | BE114: 0 | BF114: 0 | BG114: 0 | BH114: 0 | BI114: 0
A115: 0 | B115: 0 | E115: 0 | F115: 0 | G115: 0 | H115: 0 | I115: 0 | J115: 0 | K115: 0 | L115: 0 | M115: 0 | N115: 0 | O115: 0 | P115: 0 | R115: 0 | S115: 0 | T115: 0 | U115: 0 | V115: 0 | W115: 0 | X115: 0 | Y115: 0 | Z115: 0 | AA115: 0 | AB115: 0 | AC115: 0 | AE115: 0 | AF115: 0 | AG115: 0 | AH115: 0 | AI115: 0 | AJ115: 0 | AK115: 0 | AL115: 0 | AM115: 0 | AN115: 0 | AO115: 0 | AP115: 0 | AR115: 0 | AS115: 0 | AT115: 0 | AU115: 0 | AV115: 0 | AW115: 0 | AX115: 0 | AY115: 0 | AZ115: 0 | BA115: 0 | BB115: 0 | BC115: 0 | BE115: 0 | BF115: 0 | BG115: 0 | BH115: 0 | BI115: 0
A116: 0 | B116: 0 | E116: 0 | F116: 0 | G116: 0 | H116: 0 | I116: 0 | J116: 0 | K116: 0 | L116: 0 | M116: 0 | N116: 0 | O116: 0 | P116: 0 | R116: 0 | S116: 0 | T116: 0 | U116: 0 | V116: 0 | W116: 0 | X116: 0 | Y116: 0 | Z116: 0 | AA116: 0 | AB116: 0 | AC116: 0 | AE116: 0 | AF116: 0 | AG116: 0 | AH116: 0 | AI116: 0 | AJ116: 0 | AK116: 0 | AL116: 0 | AM116: 0 | AN116: 0 | AO116: 0 | AP116: 0 | AR116: 0 | AS116: 0 | AT116: 0 | AU116: 0 | AV116: 0 | AW116: 0 | AX116: 0 | AY116: 0 | AZ116: 0 | BA116: 0 | BB116: 0 | BC116: 0 | BE116: 0 | BF116: 0 | BG116: 0 | BH116: 0 | BI116: 0
A117: 0 | B117: 0 | E117: 0 | F117: 0 | G117: 0 | H117: 0 | I117: 0 | J117: 0 | K117: 0 | L117: 0 | M117: 0 | N117: 0 | O117: 0 | P117: 0 | R117: 0 | S117: 0 | T117: 0 | U117: 0 | V117: 0 | W117: 0 | X117: 0 | Y117: 0 | Z117: 0 | AA117: 0 | AB117: 0 | AC117: 0 | AE117: 0 | AF117: 0 | AG117: 0 | AH117: 0 | AI117: 0 | AJ117: 0 | AK117: 0 | AL117: 0 | AM117: 0 | AN117: 0 | AO117: 0 | AP117: 0 | AR117: 0 | AS117: 0 | AT117: 0 | AU117: 0 | AV117: 0 | AW117: 0 | AX117: 0 | AY117: 0 | AZ117: 0 | BA117: 0 | BB117: 0 | BC117: 0 | BE117: 0 | BF117: 0 | BG117: 0 | BH117: 0 | BI117: 0
A118: 0 | B118: 0 | E118: 0 | F118: 0 | G118: 0 | H118: 0 | I118: 0 | J118: 0 | K118: 0 | L118: 0 | M118: 0 | N118: 0 | O118: 0 | P118: 0 | R118: 0 | S118: 0 | T118: 0 | U118: 0 | V118: 0 | W118: 0 | X118: 0 | Y118: 0 | Z118: 0 | AA118: 0 | AB118: 0 | AC118: 0 | AE118: 0 | AF118: 0 | AG118: 0 | AH118: 0 | AI118: 0 | AJ118: 0 | AK118: 0 | AL118: 0 | AM118: 0 | AN118: 0 | AO118: 0 | AP118: 0 | AR118: 0 | AS118: 0 | AT118: 0 | AU118: 0 | AV118: 0 | AW118: 0 | AX118: 0 | AY118: 0 | AZ118: 0 | BA118: 0 | BB118: 0 | BC118: 0 | BE118: 0 | BF118: 0 | BG118: 0 | BH118: 0 | BI118: 0
A119: 0 | B119: 0 | E119: 0 | F119: 0 | G119: 0 | H119: 0 | I119: 0 | J119: 0 | K119: 0 | L119: 0 | M119: 0 | N119: 0 | O119: 0 | P119: 0 | R119: 0 | S119: 0 | T119: 0 | U119: 0 | V119: 0 | W119: 0 | X119: 0 | Y119: 0 | Z119: 0 | AA119: 0 | AB119: 0 | AC119: 0 | AE119: 0 | AF119: 0 | AG119: 0 | AH119: 0 | AI119: 0 | AJ119: 0 | AK119: 0 | AL119: 0 | AM119: 0 | AN119: 0 | AO119: 0 | AP119: 0 | AR119: 0 | AS119: 0 | AT119: 0 | AU119: 0 | AV119: 0 | AW119: 0 | AX119: 0 | AY119: 0 | AZ119: 0 | BA119: 0 | BB119: 0 | BC119: 0 | BE119: 0 | BF119: 0 | BG119: 0 | BH119: 0 | BI119: 0
A120: 0 | B120: 0 | E120: 0 | F120: 0 | G120: 0 | H120: 0 | I120: 0 | J120: 0 | K120: 0 | L120: 0 | M120: 0 | N120: 0 | O120: 0 | P120: 0 | R120: 0 | S120: 0 | T120: 0 | U120: 0 | V120: 0 | W120: 0 | X120: 0 | Y120: 0 | Z120: 0 | AA120: 0 | AB120: 0 | AC120: 0 | AE120: 0 | AF120: 0 | AG120: 0 | AH120: 0 | AI120: 0 | AJ120: 0 | AK120: 0 | AL120: 0 | AM120: 0 | AN120: 0 | AO120: 0 | AP120: 0 | AR120: 0 | AS120: 0 | AT120: 0 | AU120: 0 | AV120: 0 | AW120: 0 | AX120: 0 | AY120: 0 | AZ120: 0 | BA120: 0 | BB120: 0 | BC120: 0 | BE120: 0 | BF120: 0 | BG120: 0 | BH120: 0 | BI120: 0
A121: 0 | B121: 0 | E121: 0 | F121: 0 | G121: 0 | H121: 0 | I121: 0 | J121: 0 | K121: 0 | L121: 0 | M121: 0 | N121: 0 | O121: 0 | P121: 0 | R121: 0 | S121: 0 | T121: 0 | U121: 0 | V121: 0 | W121: 0 | X121: 0 | Y121: 0 | Z121: 0 | AA121: 0 | AB121: 0 | AC121: 0 | AE121: 0 | AF121: 0 | AG121: 0 | AH121: 0 | AI121: 0 | AJ121: 0 | AK121: 0 | AL121: 0 | AM121: 0 | AN121: 0 | AO121: 0 | AP121: 0 | AR121: 0 | AS121: 0 | AT121: 0 | AU121: 0 | AV121: 0 | AW121: 0 | AX121: 0 | AY121: 0 | AZ121: 0 | BA121: 0 | BB121: 0 | BC121: 0 | BE121: 0 | BF121: 0 | BG121: 0 | BH121: 0 | BI121: 0
A122: 0 | B122: 0 | E122: 0 | F122: 0 | G122: 0 | H122: 0 | I122: 0 | J122: 0 | K122: 0 | L122: 0 | M122: 0 | N122: 0 | O122: 0 | P122: 0 | R122: 0 | S122: 0 | T122: 0 | U122: 0 | V122: 0 | W122: 0 | X122: 0 | Y122: 0 | Z122: 0 | AA122: 0 | AB122: 0 | AC122: 0 | AE122: 0 | AF122: 0 | AG122: 0 | AH122: 0 | AI122: 0 | AJ122: 0 | AK122: 0 | AL122: 0 | AM122: 0 | AN122: 0 | AO122: 0 | AP122: 0 | AR122: 0 | AS122: 0 | AT122: 0 | AU122: 0 | AV122: 0 | AW122: 0 | AX122: 0 | AY122: 0 | AZ122: 0 | BA122: 0 | BB122: 0 | BC122: 0 | BE122: 0 | BF122: 0 | BG122: 0 | BH122: 0 | BI122: 0
A123: 0 | B123: 0 | E123: 0 | F123: 0 | G123: 0 | H123: 0 | I123: 0 | J123: 0 | K123: 0 | L123: 0 | M123: 0 | N123: 0 | O123: 0 | P123: 0 | R123: 0 | S123: 0 | T123: 0 | U123: 0 | V123: 0 | W123: 0 | X123: 0 | Y123: 0 | Z123: 0 | AA123: 0 | AB123: 0 | AC123: 0 | AE123: 0 | AF123: 0 | AG123: 0 | AH123: 0 | AI123: 0 | AJ123: 0 | AK123: 0 | AL123: 0 | AM123: 0 | AN123: 0 | AO123: 0 | AP123: 0 | AR123: 0 | AS123: 0 | AT123: 0 | AU123: 0 | AV123: 0 | AW123: 0 | AX123: 0 | AY123: 0 | AZ123: 0 | BA123: 0 | BB123: 0 | BC123: 0 | BE123: 0 | BF123: 0 | BG123: 0 | BH123: 0 | BI123: 0
A124: 0 | B124: 0 | E124: 0 | F124: 0 | G124: 0 | H124: 0 | I124: 0 | J124: 0 | K124: 0 | L124: 0 | M124: 0 | N124: 0 | O124: 0 | P124: 0 | R124: 0 | S124: 0 | T124: 0 | U124: 0 | V124: 0 | W124: 0 | X124: 0 | Y124: 0 | Z124: 0 | AA124: 0 | AB124: 0 | AC124: 0 | AE124: 0 | AF124: 0 | AG124: 0 | AH124: 0 | AI124: 0 | AJ124: 0 | AK124: 0 | AL124: 0 | AM124: 0 | AN124: 0 | AO124: 0 | AP124: 0 | AR124: 0 | AS124: 0 | AT124: 0 | AU124: 0 | AV124: 0 | AW124: 0 | AX124: 0 | AY124: 0 | AZ124: 0 | BA124: 0 | BB124: 0 | BC124: 0 | BE124: 0 | BF124: 0 | BG124: 0 | BH124: 0 | BI124: 0
E125: 1298.005314 | F125: 2605.519552 | G125: 1553.389077 | H125: 0.1517353574 | I125: 0.04370388196 | J125: 282.8058106 | K125: 62.75965041 | L125: 1665.293111 | M125: 177.8769384 | N125: 19.15627268 | O125: 250.4365258 | P125: 7439.904505 | R125: 800.4217397 | S125: 934.0365313 | T125: 213.3360231 | U125: 0.03433522723 | V125: 0.04468512402 | W125: 129.7527885 | X125: 8.937532314 | Y125: 304.7770878 | Z125: 89.33725163 | AA125: 8.622318982 | AB125: 81.0432742 | AC125: 2678.18467 | AE125: 77.08217264 | AF125: 55.90945455 | AG125: 36.01096816 | AH125: 0.004214914299 | AI125: 0 | AJ125: 11.38446818 | AK125: 4.431163061 | AL125: 91.01562123 | AM125: 14.73986881 | AN125: 0.6589207671 | AO125: 29.54270389 | AP125: 327.0776153 | AR125: 14.37008916 | AS125: -8.413312688 | AT125: 7.512660248 | AU125: 0 | AV125: 0 | AW125: -0.7177332856 | AX125: 0 | AY125: -0.462307229 | AZ125: -1.152486111 | BA125: 0 | BB125: 0 | BC125: 12.37697865 | BE125: 73.48236673 | BF125: 142.2158909 | BG125: -265.0614567 | BH125: -20.75346981 | BI125: -68.98478186
... 155 more rows

Sheet Comp_OpexCosts
A1: The disclosure of this sheet is only permitted to those nominated individuals and individuals occupying the roles and functional areas (and their relevant external advisers, sub-contractors and agents) listed in Annex 2 of the Undertakings given by BT to Ofcom pursuant to the Enterprise Act 2002.
A2: Operating costs by component
A3: Units: £m | B3: Source: 2016 LLCC | D3: Pay | E3: Non Pay | F3: Cumulo | G3: Depre'n | H3: Total
A4: 1. Total costs
A5: CF371 | B5: CF371: OR PC Rental 2Mbit link per km distribution | D5: 6.89936794 | E5: 20.89225196 | F5: 0.9522091916 | G5: 16.84544886 | H5: 32.59403262
A6: CF373 | B6: CF373: OR PC Rental 34Mbit link per km distribution | D6: 0.4429593663 | E6: 1.95164397 | F6: 0.1046309304 | G6: 1.703113388 | H6: 4.104905922
A7: CF375 | B7: CF375: OR PC Rental 140Mbit link per km distribution | D7: 0.6650015341 | E7: 1.905623898 | F7: 0.09717314928 | G7: 2.546472955 | H7: 4.287523953
A8: CF381 | B8: CF381: OR PC Rental 64Kb link | D8: 1.619780068 | E8: 5.594691876 | F8: 0.09085939299 | G8: 2.354239598 | H8: 7.335377291
A9: CF383 | B9: CF383: OR PC Rental 2Mb link | D9: 1.476039589 | E9: 3.932565745 | F9: 0.09317623179 | G9: 2.769361507 | H9: 7.244931302
A10: CF385 | B10: CF385: OR PC Rental 34Mb link | D10: 0.1049239695 | E10: 0.3777050019 | F10: 0.008868572334 | G10: 0.1801193589 | H10: 0.6368958804
A11: CF388 | B11: CF388: OR PC rental 140Mb link | D11: 0.1415315301 | E11: 0.4664405113 | F11: 0.006348306545 | G11: 0.4617034424 | H11: 1.014273681
A12: CF391 | B12: CF391: OR PC rental 64Kbit link per km transmission | D12: 1.126670519 | E12: 3.943143356 | F12: 0.1953056908 | G12: 2.759897101 | H12: 9.646046977
A13: CG101 | B13: CG101: PC rental 2Mbit s regional trunk | D13: 0.5149940336 | E13: 2.4821718 | F13: 0.2729299527 | G13: 2.98343722 | H13: 6.679403885
A14: CG103 | B14: CG103: PC rental 140Mbit s regional trunk | D14: 0.4836840287 | E14: 1.794807189 | F14: 0.1330643165 | G14: 1.555879475 | H14: 3.479866103
A15: CG201 | B15: CG201: PC rental 2Mbit link per km national trunk | D15: 0.3022232663 | E15: 2.236952723 | F15: 0.1232892453 | G15: 1.25389064 | H15: 4.809751094
A16: CG203 | B16: CG203: PC rental 140Mbit link per km national trunk | D16: 0.5346582266 | E16: 1.585276307 | F16: 0.2762025223 | G16: 4.061403466 | H16: 5.210354666
A17: CL171 | B17: CL171: E side copper capital | D17: 0.02686615516 | E17: 0.03992760998 | F17: 0.006765943776 | G17: 0.1558988582 | H17: 0.1764068115
A18: CL173 | B18: CL173: D side copper capital | D18: 0.1322510771 | E18: -0.02549932478 | F18: 0.03916476896 | G18: 0.8624083559 | H18: 1.078224908
A19: CO379 | B19: CO379: Point of Handover electronics | D19: 1.414896777 | E19: 2.443182108 | F19: 0.05742775189 | G19: 2.896112219 | H19: 6.704799277
A20: CO432 | B20: CO432: PC rental 64Kbit link local end | D20: 5.369793453 | E20: 9.417144023 | F20: 0.162547631 | G20: 8.427601422 | H20: 20.00425088
A21: CO434 | B21: CO434: PC rental 34Mbit link local end | D21: 0.3721122092 | E21: 0.3950334915 | F21: 0.03880447038 | G21: 0.6857588643 | H21: 1.386094089
A22: CO436 | B22: CO436: PC rental 140Mbit link local end | D22: 0.2467238734 | E22: 0.4371242288 | F22: 0.01405441364 | G22: 0.5791260717 | H22: 1.09456885
A23: CO438 | B23: CO438: PC rental 2Mbit local end copper | D23: 1.534479958 | E23: 1.243881045 | F23: 0.0170034567 | G23: 2.611191749 | H23: 6.470362873
A24: CO439 | B24: CO439: PC rental 2Mbit local end fibre | D24: 11.50894593 | E24: 10.078736 | F24: 0.6693494195 | G24: 19.76304469 | H24: 30.74672959
A25: CP371 | B25: CP371: Prot Path PC rental 2Mbit link per km dist | D25: 0.01426162542 | E25: 0.05643847927 | F25: 0.003507647799 | G25: 0.06690643403 | H25: 0.1254791641
A26: CP373 | B26: CP373: Protected Path PC rental 34Mbit link per km distr | D26: 0.01811504229 | E26: 0.07626001391 | F26: 0.005316855612 | G26: 0.09618227406 | H26: 0.1812487069
A27: CP375 | B27: CP375: Protected Path PC rental 140Mbit link per km distr | D27: 0.05050915008 | E27: 0.159580175 | F27: 0.01282048249 | G27: 0.2616473515 | H27: 0.4976499558
A28: CP383 | B28: CP383: Protected Path PC rental 2Mbit link | D28: 0.001126844716 | E28: 0.00286022741 | F28: 6.788995719e-05 | G28: 0.003363473448 | H28: 0.006905090078
A29: CP385 | B29: CP385: Protected Path PC rental 34Mb link | D29: 0.001388311151 | E29: 0.006555246113 | F29: 0.0001697248929 | G29: 0.005322970476 | H29: 0.01284475901
A30: CP388 | B30: CP388: Protected Path PC rental 140Mbit link | D30: 0.001274020196 | E30: 0.006093168501 | F30: 0.0001381620182 | G30: 0.004835470003 | H30: 0.01050249145
A31: CP434 | B31: CP434: Protected Path PC rental 34Mbit link local end | D31: 0.0047032957 | E31: 0.009822357349 | F31: 0.0005335912434 | G31: 0.008293813336 | H31: 0.02034835657
A32: CP436 | B32: CP436: Protected Path PC rental 140Mbit link local end | D32: 0.02198398604 | E32: 0.0285547439 | F32: 0.001288122613 | G32: 0.03805628944 | H32: 0.09269833896
A33: CP439 | B33: CP439: Protected Path PC rental 2Mbit local end fibre | D33: 0.004270566131 | E33: 0.006202683962 | F33: 0.0001804443599 | G33: 0.007853070386 | H33: 0.01908535056
A34: CR371 | B34: CR371: PC rental 2Mbit link per km distribution | D34: 0.3631007571 | E34: 1.928537341 | F34: 0.07974562693 | G34: 0.7838986551 | H34: 4.076479258
A35: CR373 | B35: CR373: PC rental 34Mbit link per km distribution | D35: 0.001491496524 | E35: 0.008521981746 | F35: 0.0006193469797 | G35: 0.004939995614 | H35: 0.01385496948
A36: CR375 | B36: CR375: PC rental 140Mbit link per km distribution | D36: 0.0188870628 | E36: 0.2179038525 | F36: 0.008618450566 | G36: 0.03560999073 | H36: 0.2367478011
A37: CR383 | B37: CR383: PC rental 2Mb link | D37: 0.1617314127 | E37: 0.9936314979 | F37: 0.02679699561 | G37: 0.2553950686 | H37: 1.867898888
A38: CR385 | B38: CR385: PC rental 34Mb link | D38: 0.004116598292 | E38: 0.05904784304 | F38: 0.001563851279 | G38: 0.004094414811 | H38: 0.05744467161
A39: CR388 | B39: CR388: PC rental 140Mb link | D39: 0.006252895891 | E39: 0.05200041167 | F39: 0.001347079681 | G39: 0.003721362343 | H39: 0.06495207714
A40: CR391 | B40: CR391: PC rental 64Kbit link per km transmission | D40: 0.2321458739 | E40: 0.9155204386 | F40: 0.07530246126 | G40: 0.8042708672 | H40: 2.138150896
A41: CE103 | B41: CE103: Tisbo Excess Construction | D41: 3.454844269e-10 | E41: 6.331534299e-06 | F41: 0 | G41: 3.35386968 | H41: 2.942551988
A42: CL175 | B42: CL175: Local exchanges general frames capital | D42: 0.001942642315 | E42: 0.04094165096 | F42: 0.0009658628793 | G42: 0.005434351707 | H42: 0.04299833047
A43: CO417 | B43: CO417: 64Kbit PC link connection cct provision | D43: 0.2173655486 | E43: 0.03563817758 | F43: 5.478838648e-05 | G43: 0.005660857844 | H43: 0.2422018528
A44: CO506 | B44: CO506: Customer Support partial private circuits | D44: 11.20232358 | E44: 3.58263646 | F44: 0.009562154448 | G44: 1.093723227 | H44: 15.25229468
A45: CO418 | B45: CO418: 64Kbit PC link connection cct rearrangements | D45: 0.1325905987 | E45: 0.01663818516 | F45: 0 | G45: 0.003111655704 | H45: 0.1428034217
A46: CL172 | B46: CL172: E side copper current | D46: 0.07081164101 | E46: 0.02313925821 | F46: 1.966608645e-05 | G46: 0.002030154365 | H46: 0.1036157964
A47: CL174 | B47: CL174: D side copper current | D47: 0.209923146 | E47: 0.06132872916 | F47: 6.426641222e-05 | G47: 0.005226476507 | H47: 0.1995756802
A48: CO413 | B48: CO413: 2Mbit and above PC link connection cct provision | D48: 7.46165875 | E48: 2.14822671 | F48: 0.00388759335 | G48: 0.1912918384 | H48: 9.476419195
A49: CR187 | B49: CR187: Broadband line testing systems | D49: 0.0001092543863 | E49: 7.604348157e-05 | F49: 0 | G49: 7.299014838e-05 | H49: 0.0002794817057
A50: CO401 | B50: CO401: Netstream Equipment | D50: 0.3551856512 | E50: 0.5849604821 | F50: 0.0002548851034 | G50: 1.122381977 | H50: 2.198410198
A51: CPE432 | B51: CPE432: POH adjust credit PPC 64k LE | D51: 4.291559872e-05 | E51: 5.403375846e-06 | F51: 0 | G51: -0.02248835371 | H51: -0.02106454212
A52: CPE438 | B52: CPE438: POH adjust credit PPC 2Mb Copper LE | D52: 2.210732087e-06 | E52: 1.874765808e-07 | F52: 0 | G52: -0.0006724701919 | H52: -0.0005903175217
A53: CPE439 | B53: CPE439: POH adjust credit PPC 2Mb Fibre LE | D53: 1.926683336e-05 | E53: 1.309412334e-06 | F53: 0 | G53: -0.004634280845 | H53: -0.004248226284
A54: CD100 | B54: CD100: Low Tisbo 3rd Party Equipment Depreciation | D54: 2.232789845e-10 | E54: 6.613256415e-06 | F54: 0 | G54: 7.848716243 | H54: 10.46496116
A55: CPE434 | B55: CPE434: POH adjust credit PPC 34Mb LE | D55: 3.838794462e-07 | E55: 3.419361943e-08 | F55: 0 | G55: -0.0001360047213 | H55: -0.0001186464829
A56: CD101 | B56: CD101: Medium Tisbo 3rd Party Equipment Depreciation | D56: 3.569397375e-11 | E56: 9.379065255e-07 | F56: 0 | G56: 1.327177547 | H56: 1.202755362
A57: CD102 | B57: CD102: High Tisbo 3rd Party Equipment Depreciation | D57: 2.766258067e-12 | E57: 6.699914617e-08 | F57: 0 | G57: 0.1007125147 | H57: 0.09368611542
A58: CPE105 | B58: CPE105: POH LE adjust CSH debit | D58: -2.06497538e-05 | E58: 5.692978159e-06 | F58: 0 | G58: 0.02488024011 | H58: 0.02853689075
A59: CG102 | B59: CG102: PC rental 34Mbit s regional trunk | D59: 0.133414412 | E59: 0.4704707936 | F59: 0.06397615451 | G59: 0.6066828696 | H59: 1.448825284
A60: CG202 | B60: CG202: PC rental 34Mbit link per km national trunk | D60: 0.1539197466 | E60: 0.7415378983 | F60: 0.111403847 | G60: 0.8428990076 | H60: 2.297077575
A61: CO411 | B61: CO411: OR Analogue PC link connection cct prov | D61: 0.3053374444 | E61: 0.05281736872 | F61: 5.35973346e-05 | G61: 0.01037317441 | H61: 0.3215474054
A62: CO421 | B62: CO421: OR Analogue PC installation | D62: 0.4917475071 | E62: 0.1953665434 | F62: 0.0002620314147 | G62: 0.02025407754 | H62: 0.6830526559
A63: CO461 | B63: CO461: Private Circuit test systems | D63: 0.7202144553 | E63: 0.0668046642 | F63: 0.0001272888172 | G63: 0.01391327784 | H63: 0.6832560221
A64: CX902 | B64: CX902: Wholesale | D64: 0.02728373697 | E64: 0.03396620615 | F64: 0 | G64: 0.1995428446 | H64: 0.2472997604
A65: CG105 | B65: CG105: PPCs 34 45Mbit regional Trunk WECLA | D65: 0.0007271885746 | E65: 0.005253156215 | F65: 0.0002000967159 | G65: 0.003060983757 | H65: 0.008934754832
A66: CG106 | B66: CG106: PPCs 140 155Mbit regional Trunk WECLA | D66: 0.03731789927 | E66: 0.1053777431 | F66: 0.0006848548333 | G66: 0.07854770677 | H66: 0.2099203765
A67: CG107 | B67: CG107: ProtPath PC rent 2Mbit link perkm regional trunk | D67: 0.006858620932 | E67: 0.02137640501 | F67: 0.001350652837 | G67: 0.03082555381 | H67: 0.06577556476
A68: CG108 | B68: CG108: ProtPath PC rent 34Mbit link perkm regional trunk | D68: 0.007190016624 | E68: 0.02431994602 | F68: 0.005016710537 | G68: 0.05569579316 | H68: 0.08098515778
A69: CG109 | B69: CG109: ProtPath PC rent 140Mbit link perkm regional trunk | D69: 0.01651515478 | E69: 0.04579682879 | F69: 0.01052115682 | G69: 0.1288721577 | H69: 0.2288660689
A70: CG207 | B70: CG207: ProtPath PC rent 2Mbit link perkm national trunk | D70: 0.002680032693 | E70: 0.009518033662 | F70: 0.00143819515 | G70: 0.01824174423 | H70: 0.03645933023
A71: CG208 | B71: CG208: ProtPath PC rent 34Mbit link perkm national trunk | D71: 0.006843650617 | E71: 0.03768647116 | F71: 0.008362375279 | G71: 0.07081753477 | H71: 0.1061342303
A72: CG209 | B72: CG209: ProtPath PC rent 140Mbit link perkm national trunk | D72: 0.004264155117 | E72: 0.01871953241 | F72: 0.003013361267 | G72: 0.04869838504 | H72: 0.05891590792
A73: CF550 | B73: CF550: OR PPCs 34 45Mb Link CELA | D73: 0.0112579631 | E73: 0.03980831494 | F73: 0.001164253216 | G73: 0.03153423039 | H73: 0.07743252712
A74: CF551 | B74: CF551: OR PPCs 34 45Mb Distribution CELA | D74: 0.05667482523 | E74: 0.1999625795 | F74: 0.00454386294 | G74: 0.1174073254 | H74: 0.4124783634
A75: CF553 | B75: CF553: OR PPCs 140 155Mb Link CELA | D75: 0.303563887 | E75: 0.9982360812 | F75: 0.001238098434 | G75: 0.8061807486 | H75: 2.274779772
A76: CF554 | B76: CF554: OR PPCs 140 155Mb Distribution CELA | D76: 0.0804591909 | E76: 0.3042243455 | F76: 0.001238693959 | G76: 0.1978195121 | H76: 0.5699459164
A77: CG205 | B77: CG205: PPCs 34 45Mbit national Trunk WECLA | D77: 0.00391581782 | E77: 0.01833138657 | F77: 0.0005288270359 | G77: 0.01218475812 | H77: 0.04471334818
A78: CG206 | B78: CG206: PPCs 140 155Mbit national Trunk WECLA | D78: 0.02416689021 | E78: 0.1378151916 | F78: 0.003596381165 | G78: 0.08375116169 | H78: 0.2086321416
A79: CR550 | B79: CR550: PPCs 34 45Mb Link CELA | D79: 0.0008819935559 | E79: 0.006012733213 | F79: 0.000209029605 | G79: 0.003662654403 | H79: 0.008078205223
A80: CR551 | B80: CR551: PPCs 34 45Mb Distribution CELA | D80: 0.001599080771 | E80: 0.006348754624 | F80: 0.000109576773 | G80: 0.004120583583 | H80: 0.01163177483
A81: CR553 | B81: CR553: PPCs 140 155Mb Link CELA | D81: 0.04212006297 | E81: 0.1510762348 | F81: 0.00218677126 | G81: 0.1409494032 | H81: 0.3187526074
A82: CR554 | B82: CR554: PPCs 140 155Mb Distribution CELA | D82: 0.003792025388 | E82: 0.01961685969 | F82: 0.0004295596053 | G82: 0.0113909896 | H82: 0.02714217489
A83: CN616 | B83: CN616: EBD | D83: 6.749270918 | E83: 16.69031625 | F83: 0.6898351479 | G83: 27.43274136 | H83: 55.58990697
A84: CN617 | B84: CN617: EBD Extended Reach | D84: 0.005848090356 | E84: 0.004301840773 | F84: 0.0003537424104 | G84: 0.01892775007 | H84: 0.02326346199
A85: CN618 | B85: CN618: EBD Resilience | D85: 0.07572639702 | E85: 0.06321570511 | F85: 0.006856885701 | G85: 0.2876668636 | H85: 0.5187364481
A86: CO447 | B86: CO447: Backhaul extension services fibre etc | D86: 1.546680399 | E86: 1.436475589 | F86: 0.1551750036 | G86: 2.961432492 | H86: 6.184288526
A87: CO450 | B87: CO450: Wholesale LAN extension services fibre etc | D87: 7.44708564 | E87: 8.147168304 | F87: 0.8435508395 | G87: 12.97813136 | H87: 29.46447507
A88: CO484 | B88: CO484: Ethernet main links | D88: 7.036018986 | E88: 5.765042543 | F88: 2.820163688 | G88: 37.68395871 | H88: 50.50343351
A89: CO485 | B89: CO485: Ethernet Electronics | D89: 27.08357709 | E89: 36.02397446 | F89: 0.06085857653 | G89: 67.73496157 | H89: 162.4581414
A90: CW609 | B90: CW609: Ethernet Access Direct Fibre | D90: 33.81958976 | E90: 21.99840764 | F90: 3.130326136 | G90: 43.49887038 | H90: 100.7509062
A91: CE104 | B91: CE104: AISBO Excess Construction | D91: 2.978314025e-10 | E91: 6.075809731e-06 | F91: 0 | G91: 10.18073035 | H91: 9.118399858
A92: CL578 | B92: CL578: OR Service Centre Assurance Ethernet | D92: 6.359683947 | E92: 3.178453088 | F92: 0.0004865471559 | G92: 0.2928866759 | H92: 10.68575408
A93: CO772 | B93: CO772: Openreach Systems Development Ethernet Specific | D93: 5.874132905 | E93: -0.7390693295 | F93: 0.0033049966 | G93: 13.8657445 | H93: 17.57881092
A94: CP502 | B94: CP502: Openreach sales product management | D94: 3.232816444 | E94: 1.235769097 | F94: 0.000326080932 | G94: 0.1034347255 | H94: 4.541715636
A95: CL160 | B95: CL160: Routeing records | D95: 0.05123588144 | E95: 0.01250838065 | F95: 1.671549592e-05 | G95: 0.002534525574 | H95: 0.07411894375
A96: CL573 | B96: CL573: OR Service Centre Provision Ethernet | D96: 8.29437283 | E96: 3.349360851 | F96: 0.002416201156 | G96: 0.4703556802 | H96: 10.49239585
A97: CW617 | B97: CW617: Other Ethernet Rentals Internal | D97: 1.089575094 | E97: 0.2617554099 | F97: 0.000437711568 | G97: 0.04754504504 | H97: 1.615347547
A98: CW619 | B98: CW619: Other Ethernet Connection Internal | D98: 0.9604600794 | E98: 0.2601088484 | F98: 0.0003537424104 | G98: 0.02536767966 | H98: 1.127243302
A99: CW901 | B99: CW901: Openreach non copper | D99: 0.1767176849 | E99: 0.07229251328 | F99: 0 | G99: 0.1344757066 | H99: 0.3355383265
A100: 0 | B100: 0 | D100: 0 | E100: 0 | F100: 0 | G100: 0 | H100: 0
A101: 0 | B101: 0 | D101: 0 | E101: 0 | F101: 0 | G101: 0 | H101: 0
A102: 0 | B102: 0 | D102: 0 | E102: 0 | F102: 0 | G102: 0 | H102: 0
A103: 0 | B103: 0 | D103: 0 | E103: 0 | F103: 0 | G103: 0 | H103: 0
A104: 0 | B104: 0 | D104: 0 | E104: 0 | F104: 0 | G104: 0 | H104: 0
A105: 0 | B105: 0 | D105: 0 | E105: 0 | F105: 0 | G105: 0 | H105: 0
A106: 0 | B106: 0 | D106: 0 | E106: 0 | F106: 0 | G106: 0 | H106: 0
A107: 0 | B107: 0 | D107: 0 | E107: 0 | F107: 0 | G107: 0 | H107: 0
A108: 0 | B108: 0 | D108: 0 | E108: 0 | F108: 0 | G108: 0 | H108: 0
A109: 0 | B109: 0 | D109: 0 | E109: 0 | F109: 0 | G109: 0 | H109: 0
A110: 0 | B110: 0 | D110: 0 | E110: 0 | F110: 0 | G110: 0 | H110: 0
A111: 0 | B111: 0 | D111: 0 | E111: 0 | F111: 0 | G111: 0 | H111: 0
A112: 0 | B112: 0 | D112: 0 | E112: 0 | F112: 0 | G112: 0 | H112: 0
A113: 0 | B113: 0 | D113: 0 | E113: 0 | F113: 0 | G113: 0 | H113: 0
A114: 0 | B114: 0 | D114: 0 | E114: 0 | F114: 0 | G114: 0 | H114: 0
A115: 0 | B115: 0 | D115: 0 | E115: 0 | F115: 0 | G115: 0 | H115: 0
A116: 0 | B116: 0 | D116: 0 | E116: 0 | F116: 0 | G116: 0 | H116: 0
A117: 0 | B117: 0 | D117: 0 | E117: 0 | F117: 0 | G117: 0 | H117: 0
A118: 0 | B118: 0 | D118: 0 | E118: 0 | F118: 0 | G118: 0 | H118: 0
A119: 0 | B119: 0 | D119: 0 | E119: 0 | F119: 0 | G119: 0 | H119: 0
A120: 0 | B120: 0 | D120: 0 | E120: 0 | F120: 0 | G120: 0 | H120: 0
A121: 0 | B121: 0 | D121: 0 | E121: 0 | F121: 0 | G121: 0 | H121: 0
A122: 0 | B122: 0 | D122: 0 | E122: 0 | F122: 0 | G122: 0 | H122: 0
A123: 0 | B123: 0 | D123: 0 | E123: 0 | F123: 0 | G123: 0 | H123: 0
A124: 0 | B124: 0 | D124: 0 | E124: 0 | F124: 0 | G124: 0 | H124: 0
D125: 167.7207553 | E125: 183.6844776 | F125: 11.5281187 | G125: 314.1540512 | H125: 677.9852729
... 154 more rows

Sheet Serv_CapCosts
A1: The disclosure of this sheet is only permitted to those nominated individuals and individuals occupying the roles and functional areas (and their relevant external advisers, sub-contractors and agents) listed in Annex 2 of the Undertakings given by BT to Ofcom pursuant to the Enterprise Act 2002.
A2: Capital costs by service | P2: GRC | AC2: NRC | AP2: OCM | BC2: HGL | BI2: NCA
A3: Units: £m | B3: Source: 2016 LLCC | E3: Cable | F3: Duct | G3: Transmission | H3: Local Exchange | I3: Main Exchange | J3: Land & Buildings | K3: Computers & OM | L3: Other Ntwk Eqpt | M3: Other | N3: Motor Transport | O3: Intangibles | P3: Total | R3: Cable | S3: Duct | T3: Transmission | U3: Local Exchange | V3: Main Exchange | W3: Land & Buildings | X3: Computers & OM | Y3: Other Ntwk Eqpt | Z3: Other | AA3: Motor Transport | AB3: Intangibles | AC3: Total | AE3: Cable | AF3: Duct | AG3: Transmission | AH3: Local Exchange | AI3: Main Exchange | AJ3: Land & Buildings | AK3: Computers & OM | AL3: Other Ntwk Eqpt | AM3: Other | AN3: Motor Transport | AO3: Intangibles | AP3: Total | AR3: Cable | AS3: Duct | AT3: Transmission | AU3: Local Exchange | AV3: Main Exchange | AW3: Land & Buildings | AX3: Computers & OM | AY3: Other Ntwk Eqpt | AZ3: Other | BA3: Motor Transport | BB3: Intangibles | BC3: Total | BE3: NCA - Debtors: internal | BF3: NCA - Debtors: external | BG3: NCA - Current liabilities (external) | BH3: NCA - Provisions | BI3: Total
A4: 1. Total costs | E4: GRC | F4: GRC | G4: GRC | H4: GRC | I4: GRC | J4: GRC | K4: GRC | L4: GRC | M4: GRC | N4: GRC | O4: GRC | P4: GRC | R4: NRC | S4: NRC | T4: NRC | U4: NRC | V4: NRC | W4: NRC | X4: NRC | Y4: NRC | Z4: NRC | AA4: NRC | AB4: NRC | AC4: NRC | AE4: OCM depreciation | AF4: OCM depreciation | AG4: OCM depreciation | AH4: OCM depreciation | AI4: OCM depreciation | AJ4: OCM depreciation | AK4: OCM depreciation | AL4: OCM depreciation | AM4: OCM depreciation | AN4: OCM depreciation | AO4: OCM depreciation | AP4: OCM depreciation | AR4: Holding gain | AS4: Holding gain | AT4: Holding gain | AU4: Holding gain | AV4: Holding gain | AW4: Holding gain | AX4: Holding gain | AY4: Holding gain | AZ4: Holding gain | BA4: Holding gain | BB4: Holding gain | BC4: Holding gain | BE4: NCA | BF4: NCA | BG4: NCA | BH4: NCA | BI4: NCA
A5: SE371 | B5: SE371: PPC rental 2Mbit link per km distribution | E5: 0.002646215348 | F5: 78.38783133 | G5: 112.3370887 | H5: 0 | I5: 0.001148925387 | J5: 17.54565543 | K5: 1.471907711 | L5: 10.77355458 | M5: 0.3953459925 | N5: 0.1626637161 | O5: 4.349177693 | P5: 237.2289549 | R5: 0.002487107872 | S5: 27.68597389 | T5: 13.96440138 | U5: 0 | V5: 0.001221447635 | W5: 5.468086291 | X5: 0.1137665735 | Y5: 2.496223065 | Z5: 0.1703015558 | AA5: 0.05089559617 | AB5: 1.051853043 | AC5: 40.49923634 | AE5: 0 | AF5: 1.326074182 | AG5: 2.408756511 | AH5: 0 | AI5: 0 | AJ5: 0.6628682214 | AK5: 0.08222862918 | AL5: 0.3411684724 | AM5: 0.00232621305 | AN5: 0.004310326846 | AO5: 0.3380564029 | AP5: 6.1892419 | AR5: 0 | AS5: -0.2902851324 | AT5: 0.3671881781 | AU5: 0 | AV5: 0 | AW5: 0.02596889624 | AX5: 0 | AY5: 0.03535742355 | AZ5: 0 | BA5: 0 | BB5: 0 | BC5: 0.1402132324 | BE5: 1.358405829 | BF5: 2.94143542 | BG5: -5.789341749 | BH5: -0.2916278027 | BI5: -2.477007059
A6: SE745 | B6: SE745: Netstream 16 LL 2mbit rentals Per km | E6: 2.795090178e-05 | F6: 0.7511344564 | G6: 1.420139399 | H6: 0 | I6: 1.002276561e-05 | J6: 0.1739432689 | K6: 0.01524904036 | L6: 0.1014663378 | M6: 0.005762469256 | N6: 0.001145553876 | O6: 0.03841249617 | P6: 2.266521826 | R6: 2.311973304e-05 | S6: 0.3449325715 | T6: 0.1773880712 | U6: 0 | V6: 1.028070069e-05 | W6: 0.06658989346 | X6: 0.001176158429 | Y6: 0.02970669761 | Z6: 0.002450023795 | AA6: 0.0004535243463 | AB6: 0.0106455713 | AC6: 0.5466838966 | AE6: 0 | AF6: 0.01721889615 | AG6: 0.0231713689 | AH6: 0 | AI6: 0 | AJ6: 0.005548669546 | AK6: 0.0008230302406 | AL6: 0.003853626679 | AM6: 3.043900385e-05 | AN6: 4.027483306e-05 | AO6: 0.004063161335 | AP6: 0.06742788368 | AR6: 0 | AS6: -0.002824189852 | AT6: 0.004251455045 | AU6: 0 | AV6: 0 | AW6: 0.0002880130257 | AX6: 0 | AY6: 0.0003172933713 | AZ6: 0 | BA6: 0 | BB6: 0 | BC6: 0.001414918977 | BE6: 1.449923038e-07 | BF6: 0.02687301752 | BG6: -0.06190395414 | BH6: -0.008572757975 | BI6: -0.03723794925
A7: SH371 | B7: SH371: PPC RBS rental 2Mbit link per km distribution | E7: 0.002362822415 | F7: 75.54230277 | G7: 127.9436667 | H7: 0 | I7: 0.0007364770718 | J7: 16.31982855 | K7: 1.543694649 | L7: 8.692990042 | M7: 0.5033284943 | N7: 0.1378644978 | O7: 3.658552813 | P7: 221.7925904 | R7: 0.002268458152 | S7: 26.49804627 | T7: 11.37949092 | U7: 0 | V7: 0.0009298329118 | W7: 6.583158019 | X7: 0.1097506972 | Y7: 2.539474183 | Z7: 0.1790286026 | AA7: 0.0401883349 | AB7: 0.695212941 | AC7: 44.78298412 | AE7: 0 | AF7: 1.770635328 | AG7: 2.286967271 | AH7: 0 | AI7: 0 | AJ7: 0.5551731564 | AK7: 0.06901761792 | AL7: 0.3000804737 | AM7: 0.002699394102 | AN7: 0.003796389275 | AO7: 0.2742331384 | AP7: 5.142488219 | AR7: 0 | AS7: -0.2622356976 | AT7: 0.3073848394 | AU7: 0 | AV7: 0 | AW7: 0.02042204044 | AX7: 0 | AY7: 0.02980341393 | AZ7: 0 | BA7: 0 | BB7: 0 | BC7: 0.1465458617 | BE7: 1.41297537e-05 | BF7: 2.39584312 | BG7: -5.510719888 | BH7: -0.3261318581 | BI7: -3.911566835
A8: SO371 | B8: SO371: PC rental 2Mbit link per km distribution | E8: 0.001536686479 | F8: 45.89872136 | G8: 85.05811713 | H8: 0 | I8: 0.0008253940588 | J8: 15.35414388 | K8: 1.317114528 | L8: 5.984150872 | M8: 0.3324764588 | N8: 0.08634753641 | O8: 2.524636837 | P8: 208.5259492 | R8: 0.001585460153 | S8: 19.59321238 | T8: 11.14825125 | U8: 0 | V8: 0.0007042363552 | W8: 4.951991443 | X8: 0.1051754112 | Y8: 1.78744398 | Z8: 0.1654728908 | AA8: 0.03750709518 | AB8: 1.048194899 | AC8: 42.41231141 | AE8: 0 | AF8: 1.02578149 | AG8: 2.044646958 | AH8: 0 | AI8: 0 | AJ8: 0.4535913943 | AK8: 0.07235473914 | AL8: 0.1863164816 | AM8: 0.001923705375 | AN8: 0.003306724146 | AO8: 0.3063286434 | AP8: 4.5229884 | AR8: 0 | AS8: -0.2234025359 | AT8: 0.2370625893 | AU8: 0 | AV8: 0 | AW8: 0.01539237791 | AX8: 0 | AY8: 0.0269426431 | AZ8: 0 | BA8: 0 | BB8: 0 | BC8: 0.1036851687 | BE8: 1.45481734 | BF8: 2.240842424 | BG8: -5.233915407 | BH8: -0.4384417918 | BI8: -1.58721068
A9: ST371 | B9: ST371: Siteconnect rental 2Mbit link per km distribution | E9: 0.0003490899889 | F9: 7.711794801 | G9: 19.18284744 | H9: 0 | I9: 0.0001089268517 | J9: 2.331007513 | K9: 0.192782476 | L9: 1.267689369 | M9: 0.06685867644 | N9: 0.01401355108 | O9: 0.4942153304 | P9: 34.321358 | R9: 0.0002501479196 | S9: 3.737577608 | T9: 1.567570091 | U9: 0 | V9: 9.906885224e-05 | W9: 0.8923224853 | X9: 0.01927458919 | Y9: 0.3315104804 | Z9: 0.02924829229 | AA9: 0.006315084871 | AB9: 0.1033411731 | AC9: 7.93162951 | AE9: 0 | AF9: 0.2395570822 | AG9: 0.3651595919 | AH9: 0 | AI9: 0 | AJ9: 0.07525119016 | AK9: 0.008009869608 | AL9: 0.03712548589 | AM9: 0.0004183348807 | AN9: 0.0006010748321 | AO9: 0.04614166578 | AP9: 0.7728000055 | AR9: 0 | AS9: -0.03821588847 | AT9: 0.04653891872 | AU9: 0 | AV9: 0 | AW9: 0.003639059026 | AX9: 0 | AY9: 0.004346209141 | AZ9: 0 | BA9: 0 | BB9: 0 | BC9: 0.01911241745 | BE9: 1.354646056e-06 | BF9: 0.2646837521 | BG9: -0.7108981172 | BH9: -0.03514772942 | BI9: -0.3733673503
A10: SY371 | B10: SY371: PPC rental 2Mbit CLZ link per km dist ext | E10: 4.303215357e-05 | F10: 1.868551502 | G10: 2.820028764 | H10: 0 | I10: 2.942808185e-05 | J10: 0.4636801994 | K10: 0.02977401741 | L10: 0.1724850317 | M10: 0.0125944611 | N10: 0.003777898135 | O10: 0.07280014524 | P10: 5.368108926 | R10: 4.587599569e-05 | S10: 0.668946146 | T10: 0.2564458554 | U10: 0 | V10: 2.713320437e-05 | W10: 0.1384621021 | X10: 0.002942573951 | Y10: 0.04532297153 | Z10: 0.003889854597 | AA10: 0.001139193825 | AB10: 0.02348452175 | AC10: 0.9714141078 | AE10: 0 | AF10: 0.03029303226 | AG10: 0.05811176656 | AH10: 0 | AI10: 0 | AJ10: 0.01336120846 | AK10: 0.001449089219 | AL10: 0.006221873121 | AM10: 6.74705546e-05 | AN10: 0.0001074175196 | AO10: 0.00963160123 | AP10: 0.1083976736 | AR10: 0 | AS10: -0.005497741831 | AT10: 0.006548583939 | AU10: 0 | AV10: 0 | AW10: 0.0004546383248 | AX10: 0 | AY10: 0.0006995416015 | AZ10: 0 | BA10: 0 | BB10: 0 | BC10: 0.002372638631 | BE10: 0.02853491782 | BF10: 0.05811442263 | BG10: -0.1499776324 | BH10: -0.006395241469 | BI10: -0.05282652017
A11: SZ371 | B11: SZ371: PC rental 2Mbit CLZ link per km dist int | E11: 3.368252404e-05 | F11: 1.048977591 | G11: 1.899750583 | H11: 0 | I11: 1.681105647e-05 | J11: 0.3331212556 | K11: 0.02398549381 | L11: 0.1289663557 | M11: 0.008686590474 | N11: 0.002192338587 | O11: 0.07778969703 | P11: 3.095801797 | R11: 3.398586396e-05 | S11: 0.5431651927 | T11: 0.236720142 | U11: 0 | V11: 2.12777363e-05 | W11: 0.1105002682 | X11: 0.002293335431 | Y11: 0.03689050208 | Z11: 0.003190941017 | AA11: 0.0009140173788 | AB11: 0.01694693016 | AC11: 0.910345693 | AE11: 0 | AF11: 0.02486323095 | AG11: 0.04203940552 | AH11: 0 | AI11: 0 | AJ11: 0.01136543991 | AK11: 0.001435368674 | AL11: 0.00480859586 | AM11: 3.841512532e-05 | AN11: 8.130600301e-05 | AO11: 0.005779705089 | AP11: 0.08383171674 | AR11: 0 | AS11: -0.005105197144 | AT11: 0.004789708059 | AU11: 0 | AV11: 0 | AW11: 0.0003357199896 | AX11: 0 | AY11: 0.0005513213807 | AZ11: 0 | BA11: 0 | BB11: 0 | BC11: 0.002155064719 | BE11: 0.02834806568 | BF11: 0.04536233286 | BG11: -0.1155844266 | BH11: -0.006767080863 | BI11: -0.04037881208
A12: SE373 | B12: SE373: PPC rental 34Mbit link per km distribution | E12: 0.0004789594617 | F12: 13.32237543 | G12: 12.32495392 | H12: 0 | I12: 0.0001292921148 | J12: 1.969749723 | K12: 0.1867499579 | L12: 1.260778704 | M12: 0.06526176029 | N12: 0.01696768391 | O12: 0.4483972986 | P12: 28.16489306 | R12: 0.0004383332208 | S12: 5.209516941 | T12: 1.644822884 | U12: 0 | V12: 0.0001004996601 | W12: 0.7573099693 | X12: 0.01916129785 | Y12: 0.2594913339 | Z12: 0.02837758015 | AA12: 0.006096064137 | AB12: 0.1626399147 | AC12: 7.421313528 | AE12: 0 | AF12: 0.3150526423 | AG12: 0.2750689832 | AH12: 0 | AI12: 0 | AJ12: 0.05812221525 | AK12: 0.009804026064 | AL12: 0.0271415636 | AM12: 0.0003867287338 | AN12: 0.000554264876 | AO12: 0.04815253056 | AP12: 0.742767977 | AR12: 0 | AS12: -0.04210148553 | AT12: 0.05588198717 | AU12: 0 | AV12: 0 | AW12: 0.005584446702 | AX12: 0 | AY12: 0.00568967195 | AZ12: 0 | BA12: 0 | BB12: 0 | BC12: 0.02039977622 | BE12: 0.2561019871 | BF12: 0.3021148968 | BG12: -0.5934976087 | BH12: -0.05312075876 | BI12: -0.1589403629
A13: SO373 | B13: SO373: PC rental 34Mbit link per km distribution | E13: 0.0006448771435 | F13: 19.80841063 | G13: 23.58529073 | H13: 0 | I13: 0.0002830956833 | J13: 3.933668736 | K13: 0.2645266749 | L13: 1.911635514 | M13: 0.101760536 | N13: 0.02812998802 | O13: 0.8100682948 | P13: 44.3783115 | R13: 0.0005989155312 | S13: 9.573439701 | T13: 3.517286595 | U13: 0 | V13: 0.0002468086114 | W13: 1.392354228 | X13: 0.03647276441 | Y13: 0.4425676987 | Z13: 0.06221336201 | AA13: 0.01071310369 | AB13: 0.3075877227 | AC13: 11.47720462 | AE13: 0 | AF13: 0.4912447573 | AG13: 0.5889642468 | AH13: 0 | AI13: 0 | AJ13: 0.1108237134 | AK13: 0.01744504454 | AL13: 0.0541328957 | AM13: 0.0007395100157 | AN13: 0.0008540681675 | AO13: 0.1123803083 | AP13: 1.442734536 | AR13: 0 | AS13: -0.06591454098 | AT13: 0.1206467929 | AU13: 0 | AV13: 0 | AW13: 0.008297764312 | AX13: 0 | AY13: 0.01197666306 | AZ13: 0 | BA13: 0 | BB13: 0 | BC13: 0.04397840765 | BE13: 0.3593935466 | BF13: 0.5988673097 | BG13: -1.334951926 | BH13: -0.08261312267 | BI13: -0.3099119631
A14: SE375 | B14: SE375: PPC rental 140Mbit link per km distribution | E14: 0.0001699348346 | F14: 4.59546828 | G14: 12.75830724 | H14: 0 | I14: 7.550163692e-05 | J14: 1.050045281 | K14: 0.09442686844 | L14: 0.6134263987 | M14: 0.04286041714 | N14: 0.008515400757 | O14: 0.2495712873 | P14: 16.32118453 | R14: 0.0001513759757 | S14: 2.177169594 | T14: 1.27789475 | U14: 0 | V14: 7.103871559e-05 | W14: 0.4381847734 | X14: 0.006931431283 | Y14: 0.2090249529 | Z14: 0.0158486504 | AA14: 0.003071793505 | AB14: 0.08064132803 | AC14: 3.832168022 | AE14: 0 | AF14: 0.09413253964 | AG14: 0.1979417726 | AH14: 0 | AI14: 0 | AJ14: 0.03732171311 | AK14: 0.005987098496 | AL14: 0.02207506635 | AM14: 0.0002087143368 | AN14: 0.0002232611836 | AO14: 0.02973379245 | AP14: 0.508540419 | AR14: 0 | AS14: -0.01429118763 | AT14: 0.01833860606 | AU14: 0 | AV14: 0 | AW14: -0.0004085169211 | AX14: 0 | AY14: 0.0005577774693 | AZ14: 0 | BA14: 0 | BB14: 0 | BC14: 0.00426389937 | BE14: 0.02905101607 | BF14: 0.1346485447 | BG14: -0.303134596 | BH14: -0.01419824716 | BI14: -0.1207324256
A15: SE753 | B15: SE753: Netstream 16 LL 155mbit rentals Per km | E15: 9.182113846e-05 | F15: 4.106679391 | G15: 6.761816153 | H15: 0 | I15: 4.573731132e-05 | J15: 0.8571944362 | K15: 0.07610480673 | L15: 0.6271538324 | M15: 0.03339572146 | N15: 0.005715616214 | O15: 0.1810773876 | P15: 15.31059213 | R15: 0.0001318295673 | S15: 1.360268581 | T15: 0.7647198929 | U15: 0 | V15: 4.408136104e-05 | W15: 0.3206025496 | X15: 0.006837683934 | Y15: 0.1269925589 | Z15: 0.01651640953 | AA15: 0.001827641884 | AB15: 0.04115707257 | AC15: 3.117952334 | AE15: 0 | AF15: 0.06733070872 | AG15: 0.1584111044 | AH15: 0 | AI15: 0 | AJ15: 0.03520138752 | AK15: 0.004450492785 | AL15: 0.01692686082 | AM15: 0.0001683572859 | AN15: 0.0001576295314 | AO15: 0.01675677711 | AP15: 0.2732645451 | AR15: 0 | AS15: -0.01184927618 | AT15: 0.01742645067 | AU15: 0 | AV15: 0 | AW15: -0.0002602060988 | AX15: 0 | AY15: 0.0004543814701 | AZ15: 0 | BA15: 0 | BB15: 0 | BC15: 0.002845542912 | BE15: 4.009090882e-07 | BF15: 0.1402754267 | BG15: -0.2306912633 | BH15: -0.02345621076 | BI15: -0.1621338479
A16: SO375 | B16: SO375: PC rental 140Mbit link per km distribution | E16: 0.0004863520964 | F16: 13.74765615 | G16: 39.37497153 | H16: 0 | I16: 0.000284450966 | J16: 4.543642978 | K16: 0.2655596423 | L16: 1.86032066 | M16: 0.1252996408 | N16: 0.02158247634 | O16: 0.8122499783 | P16: 54.28579056 | R16: 0.0004707307903 | S16: 5.845740443 | T16: 3.166946893 | U16: 0 | V16: 0.0002303333303 | W16: 1.695450665 | X16: 0.03007614354 | Y16: 0.545409415 | Z16: 0.07271145839 | AA16: 0.009729543038 | AB16: 0.2080691135 | AC16: 10.76019445 | AE16: 0 | AF16: 0.3697447893 | AG16: 0.8468870485 | AH16: 0 | AI16: 0 | AJ16: 0.1352686527 | AK16: 0.0134898694 | AL16: 0.09388785015 | AM16: 0.0007165958818 | AN16: 0.0007656821716 | AO16: 0.08167776025 | AP16: 1.276371388 | AR16: 0 | AS16: -0.06402175062 | AT16: 0.05552008866 | AU16: 0 | AV16: 0 | AW16: -0.001176589451 | AX16: 0 | AY16: 0.001466218258 | AZ16: 0 | BA16: 0 | BB16: 0 | BC16: 0.01280964244 | BE16: 0.1349042156 | BF16: 0.4706825338 | BG16: -1.177518447 | BH16: -0.1047627273 | BI16: -0.4799782814
A17: ST375 | B17: ST375: Site Connect PPC rental 140Mbit link km dist | E17: 5.693883918e-06 | F17: 0.1833808524 | G17: 0.4345083548 | H17: 0 | I17: 1.841850479e-06 | J17: 0.05389670085 | K17: 0.003874765464 | L17: 0.02638855991 | M17: 0.001683529749 | N17: 0.0002897291058 | O17: 0.01177494709 | P17: 0.6118144683 | R17: 6.203091055e-06 | S17: 0.06943420685 | T17: 0.04921049524 | U17: 0 | V17: 2.093990884e-06 | W17: 0.02059373253 | X17: 0.0003832028599 | Y17: 0.008079044377 | Z17: 0.0008127276855 | AA17: 0.0001261550437 | AB17: 0.002964772909 | AC17: 0.180370782 | AE17: 0 | AF17: 0.004096404263 | AG17: 0.009518660419 | AH17: 0 | AI17: 0 | AJ17: 0.001566605669 | AK17: 0.0001750675863 | AL17: 0.001032319458 | AM17: 8.073592779e-06 | AN17: 9.303258181e-06 | AO17: 0.001212400893 | AP17: 0.01482258496 | AR17: 0 | AS17: -0.0006780620718 | AT17: 0.001053035566 | AU17: 0 | AV17: 0 | AW17: -1.234790266e-05 | AX17: 0 | AY17: 2.494053724e-05 | AZ17: 0 | BA17: 0 | BB17: 0 | BC17: 0.0001908956075 | BE17: 2.289435269e-08 | BF17: 0.00763424143 | BG17: -0.01012981635 | BH17: -0.007143904932 | BI17: -0.01391684254
A18: SE381 | B18: SE381: PPC rental 64Kbit link | E18: 0.1021841779 | F18: 7.120937243e-10 | G18: 2.561206035 | H18: 0 | I18: 9.453776975e-05 | J18: 2.072847734 | K18: 0.1270766357 | L18: 14.77922984 | M18: 0.03934168589 | N18: 0.01509195104 | O18: 0.2453895604 | P18: 21.15753759 | R18: 0.02719429757 | S18: -4.087770132e-09 | T18: 0.1430536485 | U18: 0 | V18: 0.0001401462494 | W18: 1.545215964 | X18: 0.01640436575 | Y18: 0.6058229344 | Z18: 0.01266736058 | AA18: 0.006321090637 | AB18: 0.1154516585 | AC18: 2.320529002 | AE18: 0.00558722622 | AF18: 0 | AG18: 0.03074784506 | AH18: 0 | AI18: 0 | AJ18: 0.1135218696 | AK18: 0.006185931571 | AL18: 0.1980284121 | AM18: 0.0007736449903 | AN18: 0.0004101581762 | AO18: 0.03861115582 | AP18: 0.3831049817 | AR18: 0 | AS18: 0 | AT18: 0 | AU18: 0 | AV18: 0 | AW18: -0.02237317471 | AX18: 0 | AY18: -0.01385444079 | AZ18: 0 | BA18: 0 | BB18: 0 | BC18: -0.02730185468 | BE18: 0.1512436443 | BF18: 0.2504852474 | BG18: -0.6767704927 | BH18: -0.05661220572 | BI18: -0.2244304138
A19: SH381 | B19: SH381: RBS PPC rental 64Kbit link | E19: 0.2016663714 | F19: -1.183131679e-08 | G19: 4.389558273 | H19: 0 | I19: 0.0001711710119 | J19: 4.609843693 | K19: 0.2339810928 | L19: 23.87383102 | M19: 0.07687602299 | N19: 0.03429132195 | O19: 0.525789913 | P19: 46.84067459 | R19: 0.05859395419 | S19: -2.073370135e-08 | T19: 0.3632230792 | U19: 0 | V19: 0.0001952992919 | W19: 2.956625549 | X19: 0.02600398877 | Y19: 1.834712186 | Z19: 0.03815319459 | AA19: 0.01510295733 | AB19: 0.1141973078 | AC19: 5.081601264 | AE19: 0.01379494498 | AF19: 0 | AG19: 0.07431717368 | AH19: 0 | AI19: 0 | AJ19: 0.303923415 | AK19: 0.01591293759 | AL19: 0.3243096112 | AM19: 0.002525127329 | AN19: 0.0007725135378 | AO19: 0.0617333145 | AP19: 0.9073510297 | AR19: 0 | AS19: 0 | AT19: 0 | AU19: 0 | AV19: 0 | AW19: -0.04544542486 | AX19: 0 | AY19: -0.03799140293 | AZ19: 0 | BA19: 0 | BB19: 0 | BC19: -0.07702331595 | BE19: -5.489860132e-06 | BF19: 0.4637046248 | BG19: -1.071655041 | BH19: -0.1016530938 | BI19: -0.724068321
A20: SO381 | B20: SO381: PC rental 64Kbit link | E20: 0.2715976708 | F20: 2.340093108e-09 | G20: 6.519778324 | H20: 0 | I20: 0.000321154566 | J20: 6.992981668 | K20: 0.3528964664 | L20: 36.13186143 | M20: 0.1089411134 | N20: 0.05231193843 | O20: 0.9677851302 | P20: 44.18640486 | R20: 0.08935779333 | S20: -1.413964736e-08 | T20: 0.4608404109 | U20: 0 | V20: 0.0003916132626 | W20: 3.113119893 | X20: 0.04719746554 | Y20: 1.856578778 | Z20: 0.04584882815 | AA20: 0.0198398155 | AB20: 0.2279383074 | AC20: 6.514499741 | AE20: 0.01539627536 | AF20: 0 | AG20: 0.06915063071 | AH20: 0 | AI20: 0 | AJ20: 0.2904244916 | AK20: 0.0228935861 | AL20: 0.5451920464 | AM20: 0.002260999124 | AN20: 0.001093144023 | AO20: 0.1369469173 | AP20: 0.9911010169 | AR20: 0 | AS20: 0 | AT20: 0 | AU20: 0 | AV20: 0 | AW20: -0.06037960813 | AX20: 0 | AY20: -0.03538899886 | AZ20: 0 | BA20: 0 | BB20: 0 | BC20: -0.09361717297 | BE20: 0.5411854717 | BF20: 0.7107648524 | BG20: -2.050722196 | BH20: -0.2161470787 | BI20: -0.6187710124
A21: SE383 | B21: SE383: PPC rental 2Mbit link | E21: 0.7466409368 | F21: 4.351044718e-07 | G21: 16.31790559 | H21: 0 | I21: 0.0002450016264 | J21: 2.825604647 | K21: 0.2157851523 | L21: 12.47867569 | M21: 0.09831275124 | N21: 0.02963700533 | O21: 0.7087901729 | P21: 28.96116465 | R21: 0.2768479546 | S21: 4.304545788e-07 | T21: 0.9141805466 | U21: 0 | V21: 0.0002277434959 | W21: 1.71441416 | X21: 0.03117504277 | Y21: 0.9737953681 | Z21: 0.04750282679 | AA21: 0.01355320203 | AB21: 0.2288842801 | AC21: 4.938998116 | AE21: 0.06543862274 | AF21: 0 | AG21: 0.2470293951 | AH21: 0 | AI21: 0 | AJ21: 0.1680596655 | AK21: 0.01266422561 | AL21: 0.2725007161 | AM21: 0.0002013391889 | AN21: 0.001042404412 | AO21: 0.09618946908 | AP21: 0.8749967893 | AR21: 0 | AS21: 0 | AT21: 0 | AU21: 0 | AV21: 0 | AW21: -0.02422956816 | AX21: 0 | AY21: -0.01592303016 | AZ21: 0 | BA21: 0 | BB21: 0 | BC21: -0.03762432559 | BE21: 0.5010973862 | BF21: 0.6901065687 | BG21: -1.125173485 | BH21: -0.1261882477 | BI21: -0.3494898191
A22: SE744 | B22: SE744: Netstream 16 LL 2mbit rentals Links | E22: 0.004153846553 | F22: 2.782431137e-09 | G22: 0.06821306459 | H22: 0 | I22: 2.643792962e-07 | J22: 0.01846354618 | K22: 0.001254637355 | L22: 0.06623117961 | M22: 0.0005392939212 | N22: 0.0001782104254 | O22: 0.002404668995 | P22: 0.1695922864 | R22: 0.001165211309 | S22: 2.338842229e-09 | T22: 0.005067511863 | U22: 0 | V22: 1.464427916e-07 | W22: 0.009654779095 | X22: 9.410183669e-05 | Y22: 0.005825202301 | Z22: 0.0002243916571 | AA22: 6.130836512e-05 | AB22: 0.0004450880122 | AC22: 0.02403364519 | AE22: 0.0003076513128 | AF22: 0 | AG22: 0.001001304634 | AH22: 0 | AI22: 0 | AJ22: 0.0009465249313 | AK22: 5.839819435e-05 | AL22: 0.001491633746 | AM22: 1.991958476e-06 | AN22: 3.10593989e-06 | AO22: 0.0002457445549 | AP22: 0.003434746812 | AR22: 0 | AS22: 0 | AT22: 0 | AU22: 0 | AV22: 0 | AW22: -0.000113410234 | AX22: 0 | AY22: -9.964335561e-05 | AZ22: 0 | BA22: 0 | BB22: 0 | BC22: -0.000177061142 | BE22: -1.086183855e-08 | BF22: 0.002205472594 | BG22: -0.006229617005 | BH22: -0.002218702346 | BI22: -0.004452346782
A23: SH383 | B23: SH383: PPC RBS rental 2Mbit link | E23: 0.9402078813 | F23: 7.222069385e-07 | G23: 15.7791629 | H23: 0 | I23: 0.0001771214641 | J23: 3.911628329 | K23: 0.2733565624 | L23: 11.88347548 | M23: 0.1080747323 | N23: 0.03330560697 | O23: 0.492580406 | P23: 34.3445377 | R23: 0.3110342444 | S23: 7.388265432e-07 | T23: 1.097845726 | U23: 0 | V23: 0.0002320974157 | W23: 2.388374528 | X23: 0.0252386762 | Y23: 1.179203944 | Z23: 0.04626842807 | AA23: 0.010952492 | AB23: 0.1344949808 | AC23: 5.284307077 | AE23: 0.0614374468 | AF23: 0 | AG23: 0.2827301008 | AH23: 0 | AI23: 0 | AJ23: 0.1661479489 | AK23: 0.01277670373 | AL23: 0.2798238459 | AM23: 0.0003120021334 | AN23: 0.0008242785711 | AO23: 0.05071059769 | AP23: 0.8060440234 | AR23: 0 | AS23: 0 | AT23: 0 | AU23: 0 | AV23: 0 | AW23: -0.02589991782 | AX23: 0 | AY23: -0.01851378714 | AZ23: 0 | BA23: 0 | BB23: 0 | BC23: -0.04146194803 | BE23: -3.306511186e-06 | BF23: 0.5147184003 | BG23: -1.431945036 | BH23: -0.1141293444 | BI23: -0.7250770391
A24: SO383 | B24: SO383: PC rental 2Mbit link | E24: 0.718254871 | F24: 4.854308708e-07 | G24: 12.75086676 | H24: 0 | I24: 0.0002435465341 | J24: 3.4596678 | K24: 0.2325879269 | L24: 11.93300747 | M24: 0.09052769806 | N24: 0.03199703418 | O24: 0.7375511494 | P24: 26.0489709 | R24: 0.2272563645 | S24: 5.712376406e-07 | T24: 0.9064380757 | U24: 0 | V24: 0.000299565296 | W24: 1.462603817 | X24: 0.02663450171 | Y24: 0.8160842284 | Z24: 0.03645338936 | AA24: 0.01249048563 | AB24: 0.2640257194 | AC24: 4.801999605 | AE24: 0.04917565255 | AF24: 0 | AG24: 0.1708704499 | AH24: 0 | AI24: 0 | AJ24: 0.1549532521 | AK24: 0.01602258364 | AL24: 0.2533063125 | AM24: 0.0001849321559 | AN24: 0.0007825850978 | AO24: 0.06641054747 | AP24: 0.7523965742 | AR24: 0 | AS24: 0 | AT24: 0 | AU24: 0 | AV24: 0 | AW24: -0.01738033942 | AX24: 0 | AY24: -0.0152721376 | AZ24: 0 | BA24: 0 | BB24: 0 | BC24: -0.03971453369 | BE24: 0.459834842 | BF24: 0.6218963638 | BG24: -1.225787151 | BH24: -0.134969854 | BI24: -0.2971133295
A25: ST383 | B25: ST383: Siteconnect PPC rental 2Mbit link | E25: 0.0676487655 | F25: 3.685030555e-08 | G25: 0.9561356126 | H25: 0 | I25: 1.133286582e-05 | J25: 0.2615238696 | K25: 0.01491365808 | L25: 0.983273424 | M25: 0.006286247122 | N25: 0.002572905279 | O25: 0.03063933014 | P25: 2.114896541 | R25: 0.02344433151 | S25: 3.389925901e-08 | T25: 0.09382086783 | U25: 0 | V25: 1.175691719e-05 | W25: 0.1147871226 | X25: 0.001913006802 | Y25: 0.07568935871 | Z25: 0.003337350273 | AA25: 0.0008058602706 | AB25: 0.006590517043 | AC25: 0.3300075817 | AE25: 0.005094411727 | AF25: 0 | AG25: 0.01560357394 | AH25: 0 | AI25: 0 | AJ25: 0.01482772748 | AK25: 0.001159132589 | AL25: 0.02181089498 | AM25: 3.04203505e-05 | AN25: 6.062326331e-05 | AO25: 0.004246987526 | AP25: 0.07031140857 | AR25: 0 | AS25: 0 | AT25: 0 | AU25: 0 | AV25: 0 | AW25: -0.001548463182 | AX25: 0 | AY25: -0.001397499552 | AZ25: 0 | BA25: 0 | BB25: 0 | BC25: -0.003202342546 | BE25: -1.692163651e-07 | BF25: 0.04163339104 | BG25: -0.09593554885 | BH25: -0.007075080157 | BI25: -0.06221115265
A26: SY383 | B26: SY383: PPC rental 2Mbit CLZ link et | E26: 0.08204355002 | F26: 5.367075163e-08 | G26: 1.240491462 | H26: 0 | I26: 3.631140305e-05 | J26: 0.3199159687 | K26: 0.02087120592 | L26: 1.251863569 | M26: 0.009595256411 | N26: 0.003114046395 | O26: 0.08567026182 | P26: 3.104587252 | R26: 0.03094444284 | S26: 5.195559881e-08 | T26: 0.09587050426 | U26: 0 | V26: 3.344391102e-05 | W26: 0.1595799632 | X26: 0.002768071722 | Y26: 0.1093426258 | Z26: 0.004157128049 | AA26: 0.001283368445 | AB26: 0.02656515069 | AC26: 0.4648397804 | AE26: 0.005948559561 | AF26: 0 | AG26: 0.01976780716 | AH26: 0 | AI26: 0 | AJ26: 0.0166709477 | AK26: 0.001378687755 | AL26: 0.02950169209 | AM26: 2.034577569e-05 | AN26: 0.0001148513032 | AO26: 0.009369524318 | AP26: 0.09547962266 | AR26: 0 | AS26: 0 | AT26: 0 | AU26: 0 | AV26: 0 | AW26: -0.002569626267 | AX26: 0 | AY26: -0.001795344551 | AZ26: 0 | BA26: 0 | BB26: 0 | BC26: -0.004442680161 | BE26: 0.06379966427 | BF26: 0.05996263013 | BG26: -0.1313902192 | BH26: -0.009679601768 | BI26: -0.03304187342
A27: SZ383 | B27: SZ383: PC rental 2Mbit CLZ link int | E27: 0.07267270365 | F27: 3.993001742e-08 | G27: 1.202344776 | H27: 0 | I27: 2.545076334e-05 | J27: 0.303669544 | K27: 0.0162466795 | L27: 0.8711513535 | M27: 0.007865108061 | N27: 0.002907053203 | O27: 0.05951436707 | P27: 2.997790789 | R27: 0.02158751617 | S27: 5.060007702e-08 | T27: 0.08122056214 | U27: 0 | V27: 1.985813123e-05 | W27: 0.1615571584 | X27: 0.002012065143 | Y27: 0.06689209084 | Z27: 0.003296059087 | AA27: 0.001245176973 | AB27: 0.02175386764 | AC27: 0.3862314785 | AE27: 0.005034943016 | AF27: 0 | AG27: 0.01555101959 | AH27: 0 | AI27: 0 | AJ27: 0.01154806806 | AK27: 0.001235455324 | AL27: 0.02340022491 | AM27: 1.546300212e-05 | AN27: 6.815642232e-05 | AO27: 0.006969550015 | AP27: 0.06880360076 | AR27: 0 | AS27: 0 | AT27: 0 | AU27: 0 | AV27: 0 | AW27: -0.001670568563 | AX27: 0 | AY27: -0.00114684235 | AZ27: 0 | BA27: 0 | BB27: 0 | BC27: -0.003421403286 | BE27: 0.04283254146 | BF27: 0.05664306848 | BG27: -0.1192500709 | BH27: -0.008864005015 | BI27: -0.02823266078
A28: SE385 | B28: SE385: PPC rental 34Mbit link | E28: -3.414158582e-08 | F28: 5.179914252e-08 | G28: 2.034424335 | H28: 0 | I28: 2.589083813e-05 | J28: 0.3525998301 | K28: 0.02624874888 | L28: 0.3363882929 | M28: 0.009090380007 | N28: 0.002686063006 | O28: 0.08498824598 | P28: 2.540881676 | R28: -9.02822957e-08 | S28: 5.268715712e-08 | T28: 0.1784343238 | U28: 0 | V28: 2.331048795e-05 | W28: 0.1727529129 | X28: 0.002616576562 | Y28: 0.06294104618 | Z28: 0.003909297815 | AA28: 0.0009611466919 | AB28: 0.02040634125 | AC28: 0.516616285 | AE28: 0 | AF28: 0 | AG28: 0.04723133103 | AH28: 0 | AI28: 0 | AJ28: 0.01603831199 | AK28: 0.001626062782 | AL28: 0.01419565849 | AM28: -5.251171989e-06 | AN28: 7.882310733e-05 | AO28: 0.007872382844 | AP28: 0.08760061016 | AR28: 0 | AS28: 0 | AT28: 0 | AU28: 0 | AV28: 0 | AW28: -0.0002421077181 | AX28: 0 | AY28: 3.77266878e-06 | AZ28: 0 | BA28: 0 | BB28: 0 | BC28: -0.0002509197641 | BE28: 0.07411199015 | BF28: 0.05450544089 | BG28: -0.1244308354 | BH28: -0.01371279908 | BI28: -0.02953423348
A29: SO385 | B29: SO385: PC rental 34Mbit link | E29: 1.372199271e-06 | F29: 1.090694327e-07 | G29: 3.666168936 | H29: 0 | I29: 6.25826943e-05 | J29: 0.6948398147 | K29: 0.03837012447 | L29: 0.8656127697 | M29: 0.018493108 | N29: 0.004682098656 | O29: 0.156018024 | P29: 5.318885909 | R29: 1.355166672e-06 | S29: 1.119576703e-07 | T29: 0.2945503241 | U29: 0 | V29: 5.616929254e-05 | W29: 0.3482439544 | X29: 0.00415589496 | Y29: 0.1331055608 | Z29: 0.00651013246 | AA29: 0.001759997641 | AB29: 0.03889367172 | AC29: 0.8743430552 | AE29: 0 | AF29: 0 | AG29: 0.0697031807 | AH29: 0 | AI29: 0 | AJ29: 0.0274437311 | AK29: 0.002570196341 | AL29: 0.02179998078 | AM29: -1.104345151e-05 | AN29: 0.0001137169761 | AO29: 0.0124527753 | AP29: 0.1213096983 | AR29: 0 | AS29: 0 | AT29: 0 | AU29: 0 | AV29: 0 | AW29: -0.00052933062 | AX29: 0 | AY29: 7.038146417e-06 | AZ29: 0 | BA29: 0 | BB29: 0 | BC29: -0.0004949728049 | BE29: 0.1457492705 | BF29: 0.1210626228 | BG29: -0.2828387912 | BH29: -0.02554588617 | BI29: -0.03952077585
A30: SE388 | B30: SE388: PPC rental 140Mbit link | E30: 0.0009251168651 | F30: 1.085529769e-08 | G30: 2.285643728 | H30: 0 | I30: 2.210730815e-05 | J30: 0.2245602079 | K30: 0.01646648693 | L30: 0.1478718646 | M30: 0.008113549957 | N30: 0.001666830469 | O30: 0.05487517588 | P30: 2.788144365 | R30: 0.000276939185 | S30: 1.233699088e-08 | T30: 0.1970153464 | U30: 0 | V30: 1.876853311e-05 | W30: 0.1081294549 | X30: 0.001709273951 | Y30: 0.03880519355 | Z30: 0.002855022661 | AA30: 0.0005147988212 | AB30: 0.01597389677 | AC30: 0.3685649927 | AE30: 5.128295817e-05 | AF30: 0 | AG30: 0.03158452854 | AH30: 0 | AI30: 0 | AJ30: 0.01051454665 | AK30: 0.0007056850825 | AL30: 0.004799723128 | AM30: 2.08259196e-05 | AN30: 4.172769502e-05 | AO30: 0.004059188351 | AP30: 0.06467059621 | AR30: 0 | AS30: 0 | AT30: 0 | AU30: 0 | AV30: 0 | AW30: -0.0004858171508 | AX30: 0 | AY30: -0.0002726817794 | AZ30: 0 | BA30: 0 | BB30: 0 | BC30: -0.0006035068151 | BE30: 0.02583041187 | BF30: 0.03634442603 | BG30: -0.06342100402 | BH30: -0.005901856602 | BI30: -0.010181417
A31: SE752 | B31: SE752: Netstream 16 LL 155mbit rentals Links | E31: 0.0003490512588 | F31: 5.113365882e-09 | G31: 0.6802995299 | H31: 0 | I31: 7.070213017e-06 | J31: 0.09175954024 | K31: 0.00599850093 | L31: 0.05280725949 | M31: 0.002537270009 | N31: 0.0003700591105 | O31: 0.01483389547 | P31: 0.9732445811 | R31: 8.160937168e-05 | S31: 4.752404768e-09 | T31: 0.06359675332 | U31: 0 | V31: 5.8027237e-06 | W31: 0.0344889101 | X31: 0.0005072176673 | Y31: 0.01728687001 | Z31: 0.001101105359 | AA31: 0.0001437548798 | AB31: 0.00275505303 | AC31: 0.1346664977 | AE31: 2.527341958e-05 | AF31: 0 | AG31: 0.01396368648 | AH31: 0 | AI31: 0 | AJ31: 0.004151208518 | AK31: 0.000309595845 | AL31: 0.002611321955 | AM31: 1.089903384e-05 | AN31: 1.428217543e-05 | AO31: 0.001402907211 | AP31: 0.02558408968 | AR31: 0 | AS31: 0 | AT31: 0 | AU31: 0 | AV31: 0 | AW31: -0.0001718259002 | AX31: 0 | AY31: -0.0001063867434 | AZ31: 0 | BA31: 0 | BB31: 0 | BC31: -0.0002819981277 | BE31: 1.352950349e-08 | BF31: 0.009273339399 | BG31: -0.02169276549 | BH31: -0.004750146989 | BI31: -0.01377509586
A32: SO388 | B32: SO388: PC rental 140Mbit link | E32: 0.005149925502 | F32: 6.418087889e-08 | G32: 10.70574751 | H32: 0 | I32: 0.0001191381441 | J32: 1.06143236 | K32: 0.08257169583 | L32: 0.6418595166 | M32: 0.03776377031 | N32: 0.007649804549 | O32: 0.2598876462 | P32: 11.13361657 | R32: 0.001242425574 | S32: 7.706044162e-08 | T32: 0.7605859531 | U32: 0 | V32: 0.0001152068115 | W32: 0.5541740103 | X32: 0.007971771103 | Y32: 0.2219561792 | Z32: 0.01651285515 | AA32: 0.00266070668 | AB32: 0.08977735611 | AC32: 2.16251936 | AE32: 0.0002699716494 | AF32: 0 | AG32: 0.1987054726 | AH32: 0 | AI32: 0 | AJ32: 0.04162460672 | AK32: 0.004819746446 | AL32: 0.03331138177 | AM32: 0.000138927495 | AN32: 0.0001958059653 | AO32: 0.02599981728 | AP32: 0.3628566643 | AR32: 0 | AS32: 0 | AT32: 0 | AU32: 0 | AV32: 0 | AW32: -0.002639605044 | AX32: 0 | AY32: -0.001430777422 | AZ32: 0 | BA32: 0 | BB32: 0 | BC32: -0.004588146862 | BE32: 0.1677755955 | BF32: 0.2165046239 | BG32: -0.3150493929 | BH32: -0.04867014226 | BI32: -0.0613770329
A33: ST388 | B33: ST388: Site Connect PPC rental 140Mbit link | E33: 8.810536447e-05 | F33: 1.194423306e-09 | G33: 0.2126152268 | H33: 0 | I33: 1.026344621e-06 | J33: 0.0270360112 | K33: 0.001223313651 | L33: 0.0145426401 | M33: 0.000851246441 | N33: 0.0001077871966 | O33: 0.003211034557 | P33: 0.2785386411 | R33: 3.065044749e-05 | S33: 1.096891394e-09 | T33: 0.01734541094 | U33: 0 | V33: 9.81807542e-07 | W33: 0.009773878038 | X33: 0.0001370351372 | Y33: 0.003515118053 | Z33: 0.0003310057951 | AA33: 4.391865597e-05 | AB33: 0.0007364946645 | AC33: 0.03594539094 | AE33: 7.336486996e-06 | AF33: 0 | AG33: 0.005325316151 | AH33: 0 | AI33: 0 | AJ33: 0.001058280326 | AK33: 8.562751327e-05 | AL33: 0.0005395052642 | AM33: 2.875356566e-06 | AN33: 3.036699206e-06 | AO33: 0.0003520465946 | AP33: 0.006114371719 | AR33: 0 | AS33: 0 | AT33: 0 | AU33: 0 | AV33: 0 | AW33: -6.334447794e-05 | AX33: 0 | AY33: -3.03690338e-05 | AZ33: 0 | BA33: 0 | BB33: 0 | BC33: -8.686312353e-05 | BE33: 3.464391655e-09 | BF33: 0.002737716224 | BG33: -0.005791062714 | BH33: -0.004537391817 | BI33: -0.005842909129
A34: SE391 | B34: SE391: PPC rental 64Kbit Distribution | E34: 0.000116446296 | F34: 3.538780844 | G34: 7.183052671 | H34: 0 | I34: 6.852276541e-05 | J34: 1.438465893 | K34: 0.1005101585 | L34: 0.892200513 | M34: 0.03845528065 | N34: 0.008823903673 | O34: 0.2227668806 | P34: 16.95069746 | R34: 0.0001115580945 | S34: 1.943026675 | T34: 1.061829537 | U34: 0 | V34: 8.103727988e-05 | W34: 0.6493638798 | X34: 0.00972839956 | Y34: 0.1938700597 | Z34: 0.01616230402 | AA34: 0.002748596863 | AB34: 0.05922166759 | AC34: 3.25788181 | AE34: 0 | AF34: 0.1253097498 | AG34: 0.1616553145 | AH34: 0 | AI34: 0 | AJ34: 0.06120483331 | AK34: 0.00643490228 | AL34: 0.03032938257 | AM34: 5.270872502e-05 | AN34: 0.0002005914033 | AO34: 0.02369639863 | AP34: 0.4320585373 | AR34: 0 | AS34: -0.01391941954 | AT34: 0.01998014618 | AU34: 0 | AV34: 0 | AW34: 0.002391031233 | AX34: 0 | AY34: 0.003184882998 | AZ34: 0 | BA34: 0 | BB34: 0 | BC34: 0.01251139205 | BE34: 0.03767995976 | BF34: 0.1620819975 | BG34: -0.4828529369 | BH34: -0.02389194682 | BI34: -0.2242495306
A35: SH391 | B35: SH391: RBS PPC rental 64Kbit link per km transmission | E35: 0.0004886135056 | F35: 14.33115556 | G35: 32.81025627 | H35: 0 | I35: 0.0002985706705 | J35: 5.41034934 | K35: 0.3178269825 | L35: 3.007299413 | M35: 0.1218956076 | N35: 0.02185677003 | O35: 0.8147828336 | P35: 63.75247243 | R35: 0.0005037729931 | S35: 6.995905003 | T35: 3.652307883 | U35: 0 | V35: 0.0002749871344 | W35: 2.039266785 | X35: 0.03666696938 | Y35: 0.8216486726 | Z35: 0.04993187566 | AA35: 0.009729613957 | AB35: 0.153667669 | AC35: 13.45315697 | AE35: 0 | AF35: 0.3913716228 | AG35: 0.6257489177 | AH35: 0 | AI35: 0 | AJ35: 0.1920266228 | AK35: 0.02357865734 | AL35: 0.1198576534 | AM35: 0.0002184906994 | AN35: 0.0007450194416 | AO35: 0.08295332096 | AP35: 1.519362567 | AR35: 0 | AS35: -0.07178906213 | AT35: 0.07435127637 | AU35: 0 | AV35: 0 | AW35: 0.007952559438 | AX35: 0 | AY35: 0.00922075337 | AZ35: 0 | BA35: 0 | BB35: 0 | BC35: 0.04470337572 | BE35: 4.442860631e-06 | BF35: 0.7707196109 | BG35: -1.338878136 | BH35: -0.08597615264 | BI35: -1.20360479
A36: SO391 | B36: SO391: PC rental 64Kbit link per km Distribution | E36: 0.0002631645111 | F36: 9.663879505 | G36: 16.56870947 | H36: 0 | I36: 0.0001391263129 | J36: 3.639214951 | K36: 0.2571559811 | L36: 1.952168621 | M36: 0.07579950733 | N36: 0.01838754467 | O36: 0.5857044786 | P36: 29.32111213 | R36: 0.0002336044627 | S36: 3.683603942 | T36: 1.703838026 | U36: 0 | V36: 0.0001300317258 | W36: 1.703911399 | X36: 0.02142570868 | Y36: 0.3785071701 | Z36: 0.03708130808 | AA36: 0.005714452832 | AB36: 0.1115112011 | AC36: 7.677937276 | AE36: 0 | AF36: 0.2521576894 | AG36: 0.3365871603 | AH36: 0 | AI36: 0 | AJ36: 0.09766148957 | AK36: 0.01401432058 | AL36: 0.05045493374 | AM36: 0.0001057870505 | AN36: 0.0005587415859 | AO36: 0.0470035045 | AP36: 0.9007511647 | AR36: 0 | AS36: -0.0284693178 | AT36: 0.05529919257 | AU36: 0 | AV36: 0 | AW36: 0.004294776557 | AX36: 0 | AY36: 0.006817836422 | AZ36: 0 | BA36: 0 | BB36: 0 | BC36: 0.03118810801 | BE36: 0.1010494925 | BF36: 0.4639006537 | BG36: -1.004830075 | BH36: -0.06757697209 | BI36: -0.429577039
A37: SE746 | B37: SE746: Netstream 16 LL 2mbit rentals Trunk | E37: -3.281084645e-08 | F37: 0.06671973766 | G37: 0.0957962208 | H37: 0 | I37: 1.091910131e-07 | J37: 0.0109363703 | K37: 0.001016685697 | L37: 0.005525099398 | M37: 0.000291527799 | N37: 4.025146124e-05 | O37: 0.001505974468 | P37: 0.2317273519 | R37: -4.109249946e-08 | S37: 0.02329854716 | T37: 0.01457524728 | U37: 0 | V37: -1.335193771e-07 | W37: 0.004391557156 | X37: 6.748729542e-05 | Y37: 0.001759808852 | Z37: 0.000163752088 | AA37: 1.469123419e-05 | AB37: 0.0003048557495 | AC37: 0.04216883254 | AE37: 0 | AF37: 0.001745634099 | AG37: 0.001692910749 | AH37: 0 | AI37: 0 | AJ37: 0.000513353509 | AK37: 6.599831911e-05 | AL37: 0.0002514785719 | AM37: -1.055435948e-05 | AN37: 1.297444326e-06 | AO37: 0.0001519519411 | AP37: 0.004028506608 | AR37: 0 | AS37: -0.0002698836923 | AT37: 0.0006123866015 | AU37: 0 | AV37: 0 | AW37: 4.763995946e-06 | AX37: 0 | AY37: 9.583646082e-06 | AZ37: 0 | BA37: 0 | BB37: 0 | BC37: 0.0003101156289 | BE37: 7.288897863e-09 | BF37: 0.001548204768 | BG37: -0.003884226154 | BH37: -0.000709830186 | BI37: -0.002192593394
A38: SH372 | B38: SH372: PPC RBS rental 2Mbit link per km trunk | E38: 1.352945713e-05 | F38: 35.91041886 | G38: 48.21672791 | H38: 0 | I38: 0.0002596932272 | J38: 5.05219777 | K38: 0.5250498595 | L38: 2.934422641 | M38: 0.1476604671 | N38: 0.01744690294 | O38: 0.9193017297 | P38: 96.64960287 | R38: 1.609391305e-05 | S38: 13.48061487 | T38: 7.107089706 | U38: 0 | V38: 0.0002161383044 | W38: 2.378732055 | X38: 0.02705313777 | Y38: 0.5839295708 | Z38: 0.09213120627 | AA38: 0.005332611484 | AB38: 0.1418871934 | AC38: 23.33052724 | AE38: 0 | AF38: 0.9118170502 | AG38: 0.7123541406 | AH38: 0 | AI38: 0 | AJ38: 0.1740216103 | AK38: 0.03079924167 | AL38: 0.0813465226 | AM38: -0.003806668005 | AN38: 0.0006512148045 | AO38: 0.07411297974 | AP38: 2.434371214 | AR38: 0 | AS38: -0.12005561 | AT38: 0.2195188995 | AU38: 0 | AV38: 0 | AW38: 0.001670546479 | AX38: 0 | AY38: 0.004579031319 | AZ38: 0 | BA38: 0 | BB38: 0 | BC38: 0.1280304636 | BE38: 2.266297893e-06 | BF38: 0.7984546185 | BG38: -1.932322546 | BH38: -0.09177705561 | BI38: -1.040099432
A39: ST372 | B39: ST372: Siteconnect rental 2Mbit link per km trunk | E39: 3.26608439e-07 | F39: 2.609539975 | G39: 3.848752084 | H39: 0 | I39: 2.291519923e-05 | J39: 0.6589651538 | K39: 0.05285503566 | L39: 0.2481761638 | M39: 0.01895130983 | N39: 0.002291263507 | O39: 0.09751492055 | P39: 9.560381375 | R39: 2.728736001e-07 | S39: 1.117062089 | T39: 0.5941735273 | U39: 0 | V39: 2.364777914e-05 | W39: 0.2254138749 | X39: 0.002960786361 | Y39: 0.06025829647 | Z39: 0.009355224294 | AA39: 0.0005369121363 | AB39: 0.01546627714 | AC39: 1.740007003 | AE39: 0 | AF39: 0.07565492799 | AG39: 0.0989284426 | AH39: 0 | AI39: 0 | AJ39: 0.02050788951 | AK39: 0.002840421504 | AL39: 0.008190345672 | AM39: -0.0004229219385 | AN39: 5.976491115e-05 | AO39: 0.007863223746 | AP39: 0.245103801 | AR39: 0 | AS39: -0.01520717913 | AT39: 0.02762773049 | AU39: 0 | AV39: 0 | AW39: 0.0001848332616 | AX39: 0 | AY39: 0.0004405474857 | AZ39: 0 | BA39: 0 | BB39: 0 | BC39: 0.01134942277 | BE39: 2.852267411e-07 | BF39: 0.07744194826 | BG39: -0.1345673498 | BH39: -0.006918570868 | BI39: -0.09154874005
A40: SE754 | B40: SE754: Netstream 16 LL 155mbit rentals Trunk | E40: 3.350509072e-06 | F40: 9.341765008 | G40: 14.61812989 | H40: 0 | I40: 9.3650157e-05 | J40: 1.829389115 | K40: 0.1349199587 | L40: 0.8287894992 | M40: 0.06625905189 | N40: 0.006442950285 | O40: 0.3037369766 | P40: 33.96017574 | R40: 3.009404792e-06 | S40: 3.461857865 | T40: 2.050382733 | U40: 0 | V40: 9.206401303e-05 | W40: 0.7417799984 | X40: 0.01246446258 | Y40: 0.2355685793 | Z40: 0.02604333432 | AA40: 0.002417839729 | AB40: 0.04819052009 | AC40: 7.951765767 | AE40: 0 | AF40: 0.2551007374 | AG40: 0.382973536 | AH40: 0 | AI40: 0 | AJ40: 0.05653471484 | AK40: 0.009339735876 | AL40: 0.03727262586 | AM40: -0.0009436874332 | AN40: 0.0001831253679 | AO40: 0.02382384462 | AP40: 0.7255068 | AR40: 0 | AS40: -0.0397780143 | AT40: 0.09147130269 | AU40: 0 | AV40: 0 | AW40: 0.0003159012684 | AX40: 0 | AY40: 0.001607473318 | AZ40: 0 | BA40: 0 | BB40: 0 | BC40: 0.04454820712 | BE40: 1.05423289e-06 | BF40: 0.2663905652 | BG40: -0.4197964042 | BH40: -0.02944454472 | BI40: -0.1988653518
A41: ST376 | B41: ST376: Site Con PPC rental 140Mbit link per km trunk | E41: -1.43116044e-07 | F41: 0.2296230308 | G41: 0.4180327649 | H41: 0 | I41: 1.413315093e-06 | J41: 0.04740590074 | K41: 0.004592296725 | L41: 0.02593919435 | M41: 0.001733146923 | N41: 0.0001994561342 | O41: 0.009035592595 | P41: 0.8904800578 | R41: -1.489513935e-07 | S41: 0.1042367167 | T41: 0.06515290466 | U41: 0 | V41: 1.214322422e-06 | W41: 0.02305369092 | X41: 0.000360203887 | Y41: 0.007947928997 | Z41: 0.0009989610611 | AA41: 7.272566973e-05 | AB41: 0.001587172437 | AC41: 0.174429448 | AE41: 0 | AF41: 0.006281524096 | AG41: 0.009715026886 | AH41: 0 | AI41: 0 | AJ41: 0.001460985943 | AK41: 0.0002146897375 | AL41: 0.0008916971779 | AM41: -2.857451423e-05 | AN41: 6.060700581e-06 | AO41: 0.0009794795349 | AP41: 0.02181162398 | AR41: 0 | AS41: -0.0009939603761 | AT41: 0.002283465937 | AU41: 0 | AV41: 0 | AW41: 9.217258594e-06 | AX41: 0 | AY41: 4.159374444e-05 | AZ41: 0 | BA41: 0 | BB41: 0 | BC41: 0.001300196843 | BE41: 3.074329761e-08 | BF41: 0.006667894289 | BG41: -0.01456798762 | BH41: -0.004155094862 | BI41: -0.008379990311
